Workbook

Sheet Portfolio Data
A1: Strategic Options Analyser
A2: ©Proving Services 2019, 2020. All rights reserved.
A3: Developed for the Future Highways Research Group. Licensed for use by ADEPT public sector members only.
J4: Income Generation | L4: CDE (Emissions) Change | N4: Air Quality | O4: Social Value | P4: Stakeholder Support | Q4: Option Achievability | R4: Commercial Viability
G5: Double-Click on [Option] to open the analysis worksheet.
A6: ID | B6: Source | C6: Portfolio | D6: Status | E6: Primary Purpose | F6: Additional Purposes | G6: Option | H6: In Portfolio | I6: Project Cost | J6: Avg. Op. Profit | K6: £ Payback Period | L6: CDE Avg. Change | M6: CDE Payback Period | N6: AQ Score | O6: SV Score | P6: STK Score | Q6: ACH Score | R6: ACH Viability | S6: Lead Authority
A7: 1010 | B7: =GetData(Data[[#This Row],[ID]],"db_Source","Text") -> FotE | C7: =GetData(Data[[#This Row],[ID]],"db_Portfolio","Text") -> Highways | D7: =GetData(Data[[#This Row],[ID]],"db_Status","Text") -> Planned | E7: =GetData(Data[[#This Row],[ID]],"db_Primary_Purpose","Text") -> CER | F7: =GetData(Data[[#This Row],[ID]],"db_Additional_Purposes","Text") -> SUS,AQI | G7: =GetData(Data[[#This Row],[ID]],"db_Option_Title","Text") -> Reduce Roads Capacity / Increase Private Vehicle Journey Times | H7: No | I7: =GetData(Data[[#This Row],[ID]],"db_Development_Cost","") -> 3900000 | J7: =GetData(Data[[#This Row],[ID]],"db_Average_Annual_Operating_Profit","") -> 2952000 | K7: =IF(GetData(Data[[#This Row],[ID]],"db_Payback_Period","")<0,"No Payback",GetData(Data[[#This Row],[ID]],"db_Payback_Period","")) -> 1.321138211 | L7: =GetData(Data[[#This Row],[ID]],"db_TDCE_Average","") -> -15915.6 | M7: =IF(GetData(Data[[#This Row],[ID]],"db_Emissions_Payback","")<0,"No Payback",GetData(Data[[#This Row],[ID]],"db_Emissions_Payback","")) -> 0.9990198296 | N7: =GetData(Data[[#This Row],[ID]],"db_AQ_Score","") -> 55.55555556 | O7: =GetData(Data[[#This Row],[ID]],"db_SV_Average_Score","") -> 1.333333333 | P7: =GetData(Data[[#This Row],[ID]],"db_STK_Score","") -> -2.6136 | Q7: =GetData(Data[[#This Row],[ID]],"db_ACH_Average_Achievability","") -> 70.83333333 | R7: =GetData(Data[[#This Row],[ID]],"db_ACH_Average_Commercial_Viability","") -> 35 | S7: =GetData(Data[[#This Row],[ID]],"db_Lead_Authority","Text") -> 
A8: 1020 | B8: =GetData(Data[[#This Row],[ID]],"db_Source","Text") -> FotE | C8: =GetData(Data[[#This Row],[ID]],"db_Portfolio","Text") -> Transport | D8: =GetData(Data[[#This Row],[ID]],"db_Status","Text") -> Planned | E8: =GetData(Data[[#This Row],[ID]],"db_Primary_Purpose","Text") -> CER | F8: =GetData(Data[[#This Row],[ID]],"db_Additional_Purposes","Text") -> WEL,EQY,CER,AQI | G8: =GetData(Data[[#This Row],[ID]],"db_Option_Title","Text") -> Increase Cycling & Pedestrian Priorities (Rights of Way) | H8: No | I8: =GetData(Data[[#This Row],[ID]],"db_Development_Cost","") -> 1900000 | J8: =GetData(Data[[#This Row],[ID]],"db_Average_Annual_Operating_Profit","") -> -34800 | K8: =IF(GetData(Data[[#This Row],[ID]],"db_Payback_Period","")<0,"No Payback",GetData(Data[[#This Row],[ID]],"db_Payback_Period","")) -> No Payback | L8: =GetData(Data[[#This Row],[ID]],"db_TDCE_Average","") -> -11554.8 | M8: =IF(GetData(Data[[#This Row],[ID]],"db_Emissions_Payback","")<0,"No Payback",GetData(Data[[#This Row],[ID]],"db_Emissions_Payback","")) -> 1.12732371 | N8: =GetData(Data[[#This Row],[ID]],"db_AQ_Score","") -> 55.55555556 | O8: =GetData(Data[[#This Row],[ID]],"db_SV_Average_Score","") -> 24 | P8: =GetData(Data[[#This Row],[ID]],"db_STK_Score","") -> 8.4084 | Q8: =GetData(Data[[#This Row],[ID]],"db_ACH_Average_Achievability","") -> 55 | R8: =GetData(Data[[#This Row],[ID]],"db_ACH_Average_Commercial_Viability","") -> 60 | S8: =GetData(Data[[#This Row],[ID]],"db_Lead_Authority","Text") -> 
A9: 1030 | B9: =GetData(Data[[#This Row],[ID]],"db_Source","Text") -> FotE | C9: =GetData(Data[[#This Row],[ID]],"db_Portfolio","Text") -> Environment | D9: =GetData(Data[[#This Row],[ID]],"db_Status","Text") -> Planned | E9: =GetData(Data[[#This Row],[ID]],"db_Primary_Purpose","Text") -> CER | F9: =GetData(Data[[#This Row],[ID]],"db_Additional_Purposes","Text") -> WEL,SUS,AQI | G9: =GetData(Data[[#This Row],[ID]],"db_Option_Title","Text") -> Reduce Aviation Expansion / Number of Flights | H9: No | I9: =GetData(Data[[#This Row],[ID]],"db_Development_Cost","") -> 800000 | J9: =GetData(Data[[#This Row],[ID]],"db_Average_Annual_Operating_Profit","") -> -120000 | K9: =IF(GetData(Data[[#This Row],[ID]],"db_Payback_Period","")<0,"No Payback",GetData(Data[[#This Row],[ID]],"db_Payback_Period","")) -> No Payback | L9: =GetData(Data[[#This Row],[ID]],"db_TDCE_Average","") -> -12603.6 | M9: =IF(GetData(Data[[#This Row],[ID]],"db_Emissions_Payback","")<0,"No Payback",GetData(Data[[#This Row],[ID]],"db_Emissions_Payback","")) -> 1.203941731 | N9: =GetData(Data[[#This Row],[ID]],"db_AQ_Score","") -> 26.66666667 | O9: =GetData(Data[[#This Row],[ID]],"db_SV_Average_Score","") -> -9.333333333 | P9: =GetData(Data[[#This Row],[ID]],"db_STK_Score","") -> 1.32 | Q9: =GetData(Data[[#This Row],[ID]],"db_ACH_Average_Achievability","") -> 61 | R9: =GetData(Data[[#This Row],[ID]],"db_ACH_Average_Commercial_Viability","") -> 50 | S9: =GetData(Data[[#This Row],[ID]],"db_Lead_Authority","Text") -> 
A10: 1040 | B10: =GetData(Data[[#This Row],[ID]],"db_Source","Text") -> FotE | C10: =GetData(Data[[#This Row],[ID]],"db_Portfolio","Text") -> Transport | D10: =GetData(Data[[#This Row],[ID]],"db_Status","Text") -> Planned | E10: =GetData(Data[[#This Row],[ID]],"db_Primary_Purpose","Text") -> CER | F10: =GetData(Data[[#This Row],[ID]],"db_Additional_Purposes","Text") -> WEL,EQY,SUS,AQI | G10: =GetData(Data[[#This Row],[ID]],"db_Option_Title","Text") -> Workplace Parking Charges | H10: No | I10: =GetData(Data[[#This Row],[ID]],"db_Development_Cost","") -> 960000 | J10: =GetData(Data[[#This Row],[ID]],"db_Average_Annual_Operating_Profit","") -> 1152000 | K10: =IF(GetData(Data[[#This Row],[ID]],"db_Payback_Period","")<0,"No Payback",GetData(Data[[#This Row],[ID]],"db_Payback_Period","")) -> 0.8333333333 | L10: =GetData(Data[[#This Row],[ID]],"db_TDCE_Average","") -> -20180.4 | M10: =IF(GetData(Data[[#This Row],[ID]],"db_Emissions_Payback","")<0,"No Payback",GetData(Data[[#This Row],[ID]],"db_Emissions_Payback","")) -> 0.4300707617 | N10: =GetData(Data[[#This Row],[ID]],"db_AQ_Score","") -> 68.88888889 | O10: =GetData(Data[[#This Row],[ID]],"db_SV_Average_Score","") -> -4 | P10: =GetData(Data[[#This Row],[ID]],"db_STK_Score","") -> -11.88 | Q10: =GetData(Data[[#This Row],[ID]],"db_ACH_Average_Achievability","") -> 63.33333333 | R10: =GetData(Data[[#This Row],[ID]],"db_ACH_Average_Commercial_Viability","") -> 25 | S10: =GetData(Data[[#This Row],[ID]],"db_Lead_Authority","Text") -> 
A11: 1050 | B11: =GetData(Data[[#This Row],[ID]],"db_Source","Text") -> FotE | C11: =GetData(Data[[#This Row],[ID]],"db_Portfolio","Text") -> Transport | D11: =GetData(Data[[#This Row],[ID]],"db_Status","Text") -> Planned | E11: =GetData(Data[[#This Row],[ID]],"db_Primary_Purpose","Text") -> CER | F11: =GetData(Data[[#This Row],[ID]],"db_Additional_Purposes","Text") -> WEL,SUS,AQI | G11: =GetData(Data[[#This Row],[ID]],"db_Option_Title","Text") -> Ultra-Low Emission Zones | H11: No | I11: =GetData(Data[[#This Row],[ID]],"db_Development_Cost","") -> 3800000 | J11: =GetData(Data[[#This Row],[ID]],"db_Average_Annual_Operating_Profit","") -> 2690000 | K11: =IF(GetData(Data[[#This Row],[ID]],"db_Payback_Period","")<0,"No Payback",GetData(Data[[#This Row],[ID]],"db_Payback_Period","")) -> 1.412639405 | L11: =GetData(Data[[#This Row],[ID]],"db_TDCE_Average","") -> -16281.6 | M11: =IF(GetData(Data[[#This Row],[ID]],"db_Emissions_Payback","")<0,"No Payback",GetData(Data[[#This Row],[ID]],"db_Emissions_Payback","")) -> 0.7771963443 | N11: =GetData(Data[[#This Row],[ID]],"db_AQ_Score","") -> 33.33333333 | O11: =GetData(Data[[#This Row],[ID]],"db_SV_Average_Score","") -> -32 | P11: =GetData(Data[[#This Row],[ID]],"db_STK_Score","") -> -21.516 | Q11: =GetData(Data[[#This Row],[ID]],"db_ACH_Average_Achievability","") -> 59.16666667 | R11: =GetData(Data[[#This Row],[ID]],"db_ACH_Average_Commercial_Viability","") -> 45 | S11: =GetData(Data[[#This Row],[ID]],"db_Lead_Authority","Text") -> 
A12: 1060 | B12: =GetData(Data[[#This Row],[ID]],"db_Source","Text") -> FotE | C12: =GetData(Data[[#This Row],[ID]],"db_Portfolio","Text") -> Highways | D12: =GetData(Data[[#This Row],[ID]],"db_Status","Text") -> Planned | E12: =GetData(Data[[#This Row],[ID]],"db_Primary_Purpose","Text") -> CER | F12: =GetData(Data[[#This Row],[ID]],"db_Additional_Purposes","Text") -> REV,CRY,WEL,SUS,AQI | G12: =GetData(Data[[#This Row],[ID]],"db_Option_Title","Text") -> Congestion & Pollution Charging Zones | H12: No | I12: =GetData(Data[[#This Row],[ID]],"db_Development_Cost","") -> 2200000 | J12: =GetData(Data[[#This Row],[ID]],"db_Average_Annual_Operating_Profit","") -> 471000 | K12: =IF(GetData(Data[[#This Row],[ID]],"db_Payback_Period","")<0,"No Payback",GetData(Data[[#This Row],[ID]],"db_Payback_Period","")) -> 4.670912951 | L12: =GetData(Data[[#This Row],[ID]],"db_TDCE_Average","") -> -13667.4 | M12: =IF(GetData(Data[[#This Row],[ID]],"db_Emissions_Payback","")<0,"No Payback",GetData(Data[[#This Row],[ID]],"db_Emissions_Payback","")) -> 1.235494681 | N12: =GetData(Data[[#This Row],[ID]],"db_AQ_Score","") -> 57.77777778 | O12: =GetData(Data[[#This Row],[ID]],"db_SV_Average_Score","") -> -28 | P12: =GetData(Data[[#This Row],[ID]],"db_STK_Score","") -> 0 | Q12: =GetData(Data[[#This Row],[ID]],"db_ACH_Average_Achievability","") -> 25.83333333 | R12: =GetData(Data[[#This Row],[ID]],"db_ACH_Average_Commercial_Viability","") -> 45 | S12: =GetData(Data[[#This Row],[ID]],"db_Lead_Authority","Text") -> 
A13: 1070 | B13: =GetData(Data[[#This Row],[ID]],"db_Source","Text") -> FotE | C13: =GetData(Data[[#This Row],[ID]],"db_Portfolio","Text") -> Transport | D13: =GetData(Data[[#This Row],[ID]],"db_Status","Text") -> Planned | E13: =GetData(Data[[#This Row],[ID]],"db_Primary_Purpose","Text") -> CER | F13: =GetData(Data[[#This Row],[ID]],"db_Additional_Purposes","Text") -> WEL,SUS,AQI | G13: =GetData(Data[[#This Row],[ID]],"db_Option_Title","Text") -> License EV Taxis Only | H13: Yes | I13: =GetData(Data[[#This Row],[ID]],"db_Development_Cost","") -> 560000 | J13: =GetData(Data[[#This Row],[ID]],"db_Average_Annual_Operating_Profit","") -> 50400 | K13: =IF(GetData(Data[[#This Row],[ID]],"db_Payback_Period","")<0,"No Payback",GetData(Data[[#This Row],[ID]],"db_Payback_Period","")) -> 11.11111111 | L13: =GetData(Data[[#This Row],[ID]],"db_TDCE_Average","") -> -19800 | M13: =IF(GetData(Data[[#This Row],[ID]],"db_Emissions_Payback","")<0,"No Payback",GetData(Data[[#This Row],[ID]],"db_Emissions_Payback","")) -> 0.9326767677 | N13: =GetData(Data[[#This Row],[ID]],"db_AQ_Score","") -> 68.88888889 | O13: =GetData(Data[[#This Row],[ID]],"db_SV_Average_Score","") -> 25.33333333 | P13: =GetData(Data[[#This Row],[ID]],"db_STK_Score","") -> -6.0456 | Q13: =GetData(Data[[#This Row],[ID]],"db_ACH_Average_Achievability","") -> 26 | R13: =GetData(Data[[#This Row],[ID]],"db_ACH_Average_Commercial_Viability","") -> 80 | S13: =GetData(Data[[#This Row],[ID]],"db_Lead_Authority","Text") -> 
A14: 1080 | B14: =GetData(Data[[#This Row],[ID]],"db_Source","Text") -> FotE | C14: =GetData(Data[[#This Row],[ID]],"db_Portfolio","Text") -> Transport | D14: =GetData(Data[[#This Row],[ID]],"db_Status","Text") -> Planned | E14: =GetData(Data[[#This Row],[ID]],"db_Primary_Purpose","Text") -> CER | F14: =GetData(Data[[#This Row],[ID]],"db_Additional_Purposes","Text") -> REV,WEL,SUS,AQI | G14: =GetData(Data[[#This Row],[ID]],"db_Option_Title","Text") -> Differential Charging for Parking Permits (Polluter Pays) | H14: Yes | I14: =GetData(Data[[#This Row],[ID]],"db_Development_Cost","") -> 250000 | J14: =GetData(Data[[#This Row],[ID]],"db_Average_Annual_Operating_Profit","") -> 168000 | K14: =IF(GetData(Data[[#This Row],[ID]],"db_Payback_Period","")<0,"No Payback",GetData(Data[[#This Row],[ID]],"db_Payback_Period","")) -> 1.488095238 | L14: =GetData(Data[[#This Row],[ID]],"db_TDCE_Average","") -> -19672.2 | M14: =IF(GetData(Data[[#This Row],[ID]],"db_Emissions_Payback","")<0,"No Payback",GetData(Data[[#This Row],[ID]],"db_Emissions_Payback","")) -> 0.5084840536 | N14: =GetData(Data[[#This Row],[ID]],"db_AQ_Score","") -> 55.55555556 | O14: =GetData(Data[[#This Row],[ID]],"db_SV_Average_Score","") -> -12 | P14: =GetData(Data[[#This Row],[ID]],"db_STK_Score","") -> -4.8708 | Q14: =GetData(Data[[#This Row],[ID]],"db_ACH_Average_Achievability","") -> 37 | R14: =GetData(Data[[#This Row],[ID]],"db_ACH_Average_Commercial_Viability","") -> 56.25 | S14: =GetData(Data[[#This Row],[ID]],"db_Lead_Authority","Text") -> 
A15: 1090 | B15: =GetData(Data[[#This Row],[ID]],"db_Source","Text") -> FotE | C15: =GetData(Data[[#This Row],[ID]],"db_Portfolio","Text") -> Transport | D15: =GetData(Data[[#This Row],[ID]],"db_Status","Text") -> Planned | E15: =GetData(Data[[#This Row],[ID]],"db_Primary_Purpose","Text") -> CER | F15: =GetData(Data[[#This Row],[ID]],"db_Additional_Purposes","Text") -> REV,WEL,SUS,AQI | G15: =GetData(Data[[#This Row],[ID]],"db_Option_Title","Text") -> Differential Charging for Car Park Parking (Polluter Pays) | H15: Yes | I15: =GetData(Data[[#This Row],[ID]],"db_Development_Cost","") -> 1440000 | J15: =GetData(Data[[#This Row],[ID]],"db_Average_Annual_Operating_Profit","") -> 1471000 | K15: =IF(GetData(Data[[#This Row],[ID]],"db_Payback_Period","")<0,"No Payback",GetData(Data[[#This Row],[ID]],"db_Payback_Period","")) -> 0.9789259007 | L15: =GetData(Data[[#This Row],[ID]],"db_TDCE_Average","") -> -16626.8 | M15: =IF(GetData(Data[[#This Row],[ID]],"db_Emissions_Payback","")<0,"No Payback",GetData(Data[[#This Row],[ID]],"db_Emissions_Payback","")) -> 0.9579113239 | N15: =GetData(Data[[#This Row],[ID]],"db_AQ_Score","") -> 64.44444444 | O15: =GetData(Data[[#This Row],[ID]],"db_SV_Average_Score","") -> 3.552713679e-16 | P15: =GetData(Data[[#This Row],[ID]],"db_STK_Score","") -> -1.2672 | Q15: =GetData(Data[[#This Row],[ID]],"db_ACH_Average_Achievability","") -> 45.83333333 | R15: =GetData(Data[[#This Row],[ID]],"db_ACH_Average_Commercial_Viability","") -> 55 | S15: =GetData(Data[[#This Row],[ID]],"db_Lead_Authority","Text") -> 
A16: 1100 | B16: =GetData(Data[[#This Row],[ID]],"db_Source","Text") -> FotE | C16: =GetData(Data[[#This Row],[ID]],"db_Portfolio","Text") -> Transport | D16: =GetData(Data[[#This Row],[ID]],"db_Status","Text") -> Planned | E16: =GetData(Data[[#This Row],[ID]],"db_Primary_Purpose","Text") -> CER | F16: =GetData(Data[[#This Row],[ID]],"db_Additional_Purposes","Text") -> WEL,EQY,SUS,AQI | G16: =GetData(Data[[#This Row],[ID]],"db_Option_Title","Text") -> Car Sharing Clubs & Benefits | H16: Yes | I16: =GetData(Data[[#This Row],[ID]],"db_Development_Cost","") -> 138000 | J16: =GetData(Data[[#This Row],[ID]],"db_Average_Annual_Operating_Profit","") -> -66000 | K16: =IF(GetData(Data[[#This Row],[ID]],"db_Payback_Period","")<0,"No Payback",GetData(Data[[#This Row],[ID]],"db_Payback_Period","")) -> No Payback | L16: =GetData(Data[[#This Row],[ID]],"db_TDCE_Average","") -> -19854.8 | M16: =IF(GetData(Data[[#This Row],[ID]],"db_Emissions_Payback","")<0,"No Payback",GetData(Data[[#This Row],[ID]],"db_Emissions_Payback","")) -> 0.8774200697 | N16: =GetData(Data[[#This Row],[ID]],"db_AQ_Score","") -> 64.44444444 | O16: =GetData(Data[[#This Row],[ID]],"db_SV_Average_Score","") -> 6.666666667 | P16: =GetData(Data[[#This Row],[ID]],"db_STK_Score","") -> 0.8712 | Q16: =GetData(Data[[#This Row],[ID]],"db_ACH_Average_Achievability","") -> 32 | R16: =GetData(Data[[#This Row],[ID]],"db_ACH_Average_Commercial_Viability","") -> 68.75 | S16: =GetData(Data[[#This Row],[ID]],"db_Lead_Authority","Text") -> 
A17: 1110 | B17: =GetData(Data[[#This Row],[ID]],"db_Source","Text") -> FotE | C17: =GetData(Data[[#This Row],[ID]],"db_Portfolio","Text") -> Transport | D17: =GetData(Data[[#This Row],[ID]],"db_Status","Text") -> Planned | E17: =GetData(Data[[#This Row],[ID]],"db_Primary_Purpose","Text") -> CER | F17: =GetData(Data[[#This Row],[ID]],"db_Additional_Purposes","Text") -> CRD,COF,SUS,AQI | G17: =GetData(Data[[#This Row],[ID]],"db_Option_Title","Text") -> Conversion of Fleet to EV / Hydrogen Vehicles | H17: Yes | I17: =GetData(Data[[#This Row],[ID]],"db_Development_Cost","") -> 4160000 | J17: =GetData(Data[[#This Row],[ID]],"db_Average_Annual_Operating_Profit","") -> -553200 | K17: =IF(GetData(Data[[#This Row],[ID]],"db_Payback_Period","")<0,"No Payback",GetData(Data[[#This Row],[ID]],"db_Payback_Period","")) -> No Payback | L17: =GetData(Data[[#This Row],[ID]],"db_TDCE_Average","") -> -18014.6 | M17: =IF(GetData(Data[[#This Row],[ID]],"db_Emissions_Payback","")<0,"No Payback",GetData(Data[[#This Row],[ID]],"db_Emissions_Payback","")) -> 0.8929423912 | N17: =GetData(Data[[#This Row],[ID]],"db_AQ_Score","") -> 31.11111111 | O17: =GetData(Data[[#This Row],[ID]],"db_SV_Average_Score","") -> -9.333333333 | P17: =GetData(Data[[#This Row],[ID]],"db_STK_Score","") -> -11.88 | Q17: =GetData(Data[[#This Row],[ID]],"db_ACH_Average_Achievability","") -> 48 | R17: =GetData(Data[[#This Row],[ID]],"db_ACH_Average_Commercial_Viability","") -> 41.66666667 | S17: =GetData(Data[[#This Row],[ID]],"db_Lead_Authority","Text") -> 
A18: 1120 | B18: =GetData(Data[[#This Row],[ID]],"db_Source","Text") -> FotE | C18: =GetData(Data[[#This Row],[ID]],"db_Portfolio","Text") -> Highways | D18: =GetData(Data[[#This Row],[ID]],"db_Status","Text") -> Planned | E18: =GetData(Data[[#This Row],[ID]],"db_Primary_Purpose","Text") -> CER | F18: =GetData(Data[[#This Row],[ID]],"db_Additional_Purposes","Text") -> WEL,EQY,SUS,AQI | G18: =GetData(Data[[#This Row],[ID]],"db_Option_Title","Text") -> Local Incentives for EV Ownership & Use | H18: Yes | I18: =GetData(Data[[#This Row],[ID]],"db_Development_Cost","") -> 500000 | J18: =GetData(Data[[#This Row],[ID]],"db_Average_Annual_Operating_Profit","") -> 115200 | K18: =IF(GetData(Data[[#This Row],[ID]],"db_Payback_Period","")<0,"No Payback",GetData(Data[[#This Row],[ID]],"db_Payback_Period","")) -> 4.340277778 | L18: =GetData(Data[[#This Row],[ID]],"db_TDCE_Average","") -> -12562 | M18: =IF(GetData(Data[[#This Row],[ID]],"db_Emissions_Payback","")<0,"No Payback",GetData(Data[[#This Row],[ID]],"db_Emissions_Payback","")) -> 1.227591148 | N18: =GetData(Data[[#This Row],[ID]],"db_AQ_Score","") -> 57.77777778 | O18: =GetData(Data[[#This Row],[ID]],"db_SV_Average_Score","") -> 9.333333333 | P18: =GetData(Data[[#This Row],[ID]],"db_STK_Score","") -> 17.556 | Q18: =GetData(Data[[#This Row],[ID]],"db_ACH_Average_Achievability","") -> 64.16666667 | R18: =GetData(Data[[#This Row],[ID]],"db_ACH_Average_Commercial_Viability","") -> 83.33333333 | S18: =GetData(Data[[#This Row],[ID]],"db_Lead_Authority","Text") -> 
A19: 1130 | B19: =GetData(Data[[#This Row],[ID]],"db_Source","Text") -> FotE | C19: =GetData(Data[[#This Row],[ID]],"db_Portfolio","Text") -> Planning | D19: =GetData(Data[[#This Row],[ID]],"db_Status","Text") -> Planned | E19: =GetData(Data[[#This Row],[ID]],"db_Primary_Purpose","Text") -> CER | F19: =GetData(Data[[#This Row],[ID]],"db_Additional_Purposes","Text") -> WEL,EQY,SUS,AQI | G19: =GetData(Data[[#This Row],[ID]],"db_Option_Title","Text") -> New Developments: EV Charging Plazas & Restricted Car Parking | H19: Yes | I19: =GetData(Data[[#This Row],[ID]],"db_Development_Cost","") -> 217000 | J19: =GetData(Data[[#This Row],[ID]],"db_Average_Annual_Operating_Profit","") -> -61000 | K19: =IF(GetData(Data[[#This Row],[ID]],"db_Payback_Period","")<0,"No Payback",GetData(Data[[#This Row],[ID]],"db_Payback_Period","")) -> No Payback | L19: =GetData(Data[[#This Row],[ID]],"db_TDCE_Average","") -> -15066.4 | M19: =IF(GetData(Data[[#This Row],[ID]],"db_Emissions_Payback","")<0,"No Payback",GetData(Data[[#This Row],[ID]],"db_Emissions_Payback","")) -> 1.096612329 | N19: =GetData(Data[[#This Row],[ID]],"db_AQ_Score","") -> 46.66666667 | O19: =GetData(Data[[#This Row],[ID]],"db_SV_Average_Score","") -> 34.66666667 | P19: =GetData(Data[[#This Row],[ID]],"db_STK_Score","") -> 5.2 | Q19: =GetData(Data[[#This Row],[ID]],"db_ACH_Average_Achievability","") -> 47 | R19: =GetData(Data[[#This Row],[ID]],"db_ACH_Average_Commercial_Viability","") -> 68.75 | S19: =GetData(Data[[#This Row],[ID]],"db_Lead_Authority","Text") -> 
A20: 1140 | B20: =GetData(Data[[#This Row],[ID]],"db_Source","Text") -> FotE | C20: =GetData(Data[[#This Row],[ID]],"db_Portfolio","Text") -> Planning | D20: =GetData(Data[[#This Row],[ID]],"db_Status","Text") -> Planned | E20: =GetData(Data[[#This Row],[ID]],"db_Primary_Purpose","Text") -> CER | F20: =GetData(Data[[#This Row],[ID]],"db_Additional_Purposes","Text") -> SUS,AQI | G20: =GetData(Data[[#This Row],[ID]],"db_Option_Title","Text") -> New Developments: Delivery Hubs & Use of Drones / Cargo Bikes | H20: Yes | I20: =GetData(Data[[#This Row],[ID]],"db_Development_Cost","") -> 595000 | J20: =GetData(Data[[#This Row],[ID]],"db_Average_Annual_Operating_Profit","") -> 115200 | K20: =IF(GetData(Data[[#This Row],[ID]],"db_Payback_Period","")<0,"No Payback",GetData(Data[[#This Row],[ID]],"db_Payback_Period","")) -> 5.164930556 | L20: =GetData(Data[[#This Row],[ID]],"db_TDCE_Average","") -> -16935 | M20: =IF(GetData(Data[[#This Row],[ID]],"db_Emissions_Payback","")<0,"No Payback",GetData(Data[[#This Row],[ID]],"db_Emissions_Payback","")) -> 0.4536758193 | N20: =GetData(Data[[#This Row],[ID]],"db_AQ_Score","") -> 64.44444444 | O20: =GetData(Data[[#This Row],[ID]],"db_SV_Average_Score","") -> 10.66666667 | P20: =GetData(Data[[#This Row],[ID]],"db_STK_Score","") -> 7.92 | Q20: =GetData(Data[[#This Row],[ID]],"db_ACH_Average_Achievability","") -> 83.33333333 | R20: =GetData(Data[[#This Row],[ID]],"db_ACH_Average_Commercial_Viability","") -> 37.5 | S20: =GetData(Data[[#This Row],[ID]],"db_Lead_Authority","Text") -> 
A21: 1150 | B21: =GetData(Data[[#This Row],[ID]],"db_Source","Text") -> FotE | C21: =GetData(Data[[#This Row],[ID]],"db_Portfolio","Text") -> Planning | D21: =GetData(Data[[#This Row],[ID]],"db_Status","Text") -> Planned | E21: =GetData(Data[[#This Row],[ID]],"db_Primary_Purpose","Text") -> CER | F21: =GetData(Data[[#This Row],[ID]],"db_Additional_Purposes","Text") -> WEL,EQY,SUS,AQI | G21: =GetData(Data[[#This Row],[ID]],"db_Option_Title","Text") -> New Developments: Higher Than Minimum Standards for Energy Efficiency | H21: Yes | I21: =GetData(Data[[#This Row],[ID]],"db_Development_Cost","") -> 1700000 | J21: =GetData(Data[[#This Row],[ID]],"db_Average_Annual_Operating_Profit","") -> -31800 | K21: =IF(GetData(Data[[#This Row],[ID]],"db_Payback_Period","")<0,"No Payback",GetData(Data[[#This Row],[ID]],"db_Payback_Period","")) -> No Payback | L21: =GetData(Data[[#This Row],[ID]],"db_TDCE_Average","") -> -13373.2 | M21: =IF(GetData(Data[[#This Row],[ID]],"db_Emissions_Payback","")<0,"No Payback",GetData(Data[[#This Row],[ID]],"db_Emissions_Payback","")) -> 0.6081566117 | N21: =GetData(Data[[#This Row],[ID]],"db_AQ_Score","") -> 28.88888889 | O21: =GetData(Data[[#This Row],[ID]],"db_SV_Average_Score","") -> 12 | P21: =GetData(Data[[#This Row],[ID]],"db_STK_Score","") -> 0 | Q21: =GetData(Data[[#This Row],[ID]],"db_ACH_Average_Achievability","") -> 46.66666667 | R21: =GetData(Data[[#This Row],[ID]],"db_ACH_Average_Commercial_Viability","") -> 31.25 | S21: =GetData(Data[[#This Row],[ID]],"db_Lead_Authority","Text") -> 
A22: 1160 | B22: =GetData(Data[[#This Row],[ID]],"db_Source","Text") -> FotE | C22: =GetData(Data[[#This Row],[ID]],"db_Portfolio","Text") -> Planning | D22: =GetData(Data[[#This Row],[ID]],"db_Status","Text") -> Planned | E22: =GetData(Data[[#This Row],[ID]],"db_Primary_Purpose","Text") -> CER | F22: =GetData(Data[[#This Row],[ID]],"db_Additional_Purposes","Text") -> ECD,WEL,EQY,SUS,AQI | G22: =GetData(Data[[#This Row],[ID]],"db_Option_Title","Text") -> New Developments: Develop District Heating | H22: Yes | I22: =GetData(Data[[#This Row],[ID]],"db_Development_Cost","") -> 12000000 | J22: =GetData(Data[[#This Row],[ID]],"db_Average_Annual_Operating_Profit","") -> 1512000 | K22: =IF(GetData(Data[[#This Row],[ID]],"db_Payback_Period","")<0,"No Payback",GetData(Data[[#This Row],[ID]],"db_Payback_Period","")) -> 7.936507937 | L22: =GetData(Data[[#This Row],[ID]],"db_TDCE_Average","") -> -14176.4 | M22: =IF(GetData(Data[[#This Row],[ID]],"db_Emissions_Payback","")<0,"No Payback",GetData(Data[[#This Row],[ID]],"db_Emissions_Payback","")) -> 0.7694478147 | N22: =GetData(Data[[#This Row],[ID]],"db_AQ_Score","") -> 62.22222222 | O22: =GetData(Data[[#This Row],[ID]],"db_SV_Average_Score","") -> 16 | P22: =GetData(Data[[#This Row],[ID]],"db_STK_Score","") -> 8 | Q22: =GetData(Data[[#This Row],[ID]],"db_ACH_Average_Achievability","") -> 75 | R22: =GetData(Data[[#This Row],[ID]],"db_ACH_Average_Commercial_Viability","") -> 40 | S22: =GetData(Data[[#This Row],[ID]],"db_Lead_Authority","Text") -> 
A23: 1170 | B23: =GetData(Data[[#This Row],[ID]],"db_Source","Text") -> FotE | C23: =GetData(Data[[#This Row],[ID]],"db_Portfolio","Text") -> Planning | D23: =GetData(Data[[#This Row],[ID]],"db_Status","Text") -> Planned | E23: =GetData(Data[[#This Row],[ID]],"db_Primary_Purpose","Text") -> CER | F23: =GetData(Data[[#This Row],[ID]],"db_Additional_Purposes","Text") -> ECD,WEL,EQY,SUS,AQI | G23: =GetData(Data[[#This Row],[ID]],"db_Option_Title","Text") -> New Developments: Require Solar Thermal, PV or Heat Pumps | H23: Yes | I23: =GetData(Data[[#This Row],[ID]],"db_Development_Cost","") -> 870000 | J23: =GetData(Data[[#This Row],[ID]],"db_Average_Annual_Operating_Profit","") -> -56000 | K23: =IF(GetData(Data[[#This Row],[ID]],"db_Payback_Period","")<0,"No Payback",GetData(Data[[#This Row],[ID]],"db_Payback_Period","")) -> No Payback | L23: =GetData(Data[[#This Row],[ID]],"db_TDCE_Average","") -> -13744.8 | M23: =IF(GetData(Data[[#This Row],[ID]],"db_Emissions_Payback","")<0,"No Payback",GetData(Data[[#This Row],[ID]],"db_Emissions_Payback","")) -> 0.6570484838 | N23: =GetData(Data[[#This Row],[ID]],"db_AQ_Score","") -> 42.22222222 | O23: =GetData(Data[[#This Row],[ID]],"db_SV_Average_Score","") -> -1.421085472e-15 | P23: =GetData(Data[[#This Row],[ID]],"db_STK_Score","") -> 0 | Q23: =GetData(Data[[#This Row],[ID]],"db_ACH_Average_Achievability","") -> 33 | R23: =GetData(Data[[#This Row],[ID]],"db_ACH_Average_Commercial_Viability","") -> 62.5 | S23: =GetData(Data[[#This Row],[ID]],"db_Lead_Authority","Text") -> 
A24: 1180 | B24: =GetData(Data[[#This Row],[ID]],"db_Source","Text") -> FotE | C24: =GetData(Data[[#This Row],[ID]],"db_Portfolio","Text") -> Transport | D24: =GetData(Data[[#This Row],[ID]],"db_Status","Text") -> Planned | E24: =GetData(Data[[#This Row],[ID]],"db_Primary_Purpose","Text") -> CER | F24: =GetData(Data[[#This Row],[ID]],"db_Additional_Purposes","Text") -> SOI,WEL,EQY,SUS,AQI | G24: =GetData(Data[[#This Row],[ID]],"db_Option_Title","Text") -> Electric Buses On Subsidised Routes | H24: Yes | I24: =GetData(Data[[#This Row],[ID]],"db_Development_Cost","") -> 2850000 | J24: =GetData(Data[[#This Row],[ID]],"db_Average_Annual_Operating_Profit","") -> 548300 | K24: =IF(GetData(Data[[#This Row],[ID]],"db_Payback_Period","")<0,"No Payback",GetData(Data[[#This Row],[ID]],"db_Payback_Period","")) -> 5.19788437 | L24: =GetData(Data[[#This Row],[ID]],"db_TDCE_Average","") -> -16237.6 | M24: =IF(GetData(Data[[#This Row],[ID]],"db_Emissions_Payback","")<0,"No Payback",GetData(Data[[#This Row],[ID]],"db_Emissions_Payback","")) -> 0.6208429817 | N24: =GetData(Data[[#This Row],[ID]],"db_AQ_Score","") -> 20 | O24: =GetData(Data[[#This Row],[ID]],"db_SV_Average_Score","") -> 17.33333333 | P24: =GetData(Data[[#This Row],[ID]],"db_STK_Score","") -> 25.28 | Q24: =GetData(Data[[#This Row],[ID]],"db_ACH_Average_Achievability","") -> 55 | R24: =GetData(Data[[#This Row],[ID]],"db_ACH_Average_Commercial_Viability","") -> 37.5 | S24: =GetData(Data[[#This Row],[ID]],"db_Lead_Authority","Text") -> 
A25: 1190 | B25: =GetData(Data[[#This Row],[ID]],"db_Source","Text") -> FotE | C25: =GetData(Data[[#This Row],[ID]],"db_Portfolio","Text") -> Transport | D25: =GetData(Data[[#This Row],[ID]],"db_Status","Text") -> Planned | E25: =GetData(Data[[#This Row],[ID]],"db_Primary_Purpose","Text") -> CER | F25: =GetData(Data[[#This Row],[ID]],"db_Additional_Purposes","Text") -> REV,COF,SUS,AQI | G25: =GetData(Data[[#This Row],[ID]],"db_Option_Title","Text") -> EV Charging With Local Micro-Generation | H25: Yes | I25: =GetData(Data[[#This Row],[ID]],"db_Development_Cost","") -> 4900000 | J25: =GetData(Data[[#This Row],[ID]],"db_Average_Annual_Operating_Profit","") -> 792000 | K25: =IF(GetData(Data[[#This Row],[ID]],"db_Payback_Period","")<0,"No Payback",GetData(Data[[#This Row],[ID]],"db_Payback_Period","")) -> 6.186868687 | L25: =GetData(Data[[#This Row],[ID]],"db_TDCE_Average","") -> -13794.2 | M25: =IF(GetData(Data[[#This Row],[ID]],"db_Emissions_Payback","")<0,"No Payback",GetData(Data[[#This Row],[ID]],"db_Emissions_Payback","")) -> 0.8729755984 | N25: =GetData(Data[[#This Row],[ID]],"db_AQ_Score","") -> 26.66666667 | O25: =GetData(Data[[#This Row],[ID]],"db_SV_Average_Score","") -> 30.66666667 | P25: =GetData(Data[[#This Row],[ID]],"db_STK_Score","") -> 2.64 | Q25: =GetData(Data[[#This Row],[ID]],"db_ACH_Average_Achievability","") -> 63 | R25: =GetData(Data[[#This Row],[ID]],"db_ACH_Average_Commercial_Viability","") -> 40 | S25: =GetData(Data[[#This Row],[ID]],"db_Lead_Authority","Text") -> 
A26: 1200 | B26: =GetData(Data[[#This Row],[ID]],"db_Source","Text") -> FotE | C26: =GetData(Data[[#This Row],[ID]],"db_Portfolio","Text") -> Housing | D26: =GetData(Data[[#This Row],[ID]],"db_Status","Text") -> Planned | E26: =GetData(Data[[#This Row],[ID]],"db_Primary_Purpose","Text") -> CER | F26: =GetData(Data[[#This Row],[ID]],"db_Additional_Purposes","Text") -> ECD,WEL,EQY,SUS | G26: =GetData(Data[[#This Row],[ID]],"db_Option_Title","Text") -> Minimum Energy Efficiency Standards In Private Rented Sector | H26: No | I26: =GetData(Data[[#This Row],[ID]],"db_Development_Cost","") -> 282000 | J26: =GetData(Data[[#This Row],[ID]],"db_Average_Annual_Operating_Profit","") -> 33800 | K26: =IF(GetData(Data[[#This Row],[ID]],"db_Payback_Period","")<0,"No Payback",GetData(Data[[#This Row],[ID]],"db_Payback_Period","")) -> 8.343195266 | L26: =GetData(Data[[#This Row],[ID]],"db_TDCE_Average","") -> -12180.4 | M26: =IF(GetData(Data[[#This Row],[ID]],"db_Emissions_Payback","")<0,"No Payback",GetData(Data[[#This Row],[ID]],"db_Emissions_Payback","")) -> 1.306361039 | N26: =GetData(Data[[#This Row],[ID]],"db_AQ_Score","") -> 37.77777778 | O26: =GetData(Data[[#This Row],[ID]],"db_SV_Average_Score","") -> -33.33333333 | P26: =GetData(Data[[#This Row],[ID]],"db_STK_Score","") -> 8.712 | Q26: =GetData(Data[[#This Row],[ID]],"db_ACH_Average_Achievability","") -> 40 | R26: =GetData(Data[[#This Row],[ID]],"db_ACH_Average_Commercial_Viability","") -> 75 | S26: =GetData(Data[[#This Row],[ID]],"db_Lead_Authority","Text") -> 
A27: 1210 | B27: =GetData(Data[[#This Row],[ID]],"db_Source","Text") -> FotE | C27: =GetData(Data[[#This Row],[ID]],"db_Portfolio","Text") -> Planning | D27: =GetData(Data[[#This Row],[ID]],"db_Status","Text") -> Planned | E27: =GetData(Data[[#This Row],[ID]],"db_Primary_Purpose","Text") -> CER | F27: =GetData(Data[[#This Row],[ID]],"db_Additional_Purposes","Text") -> WEL,EQY,SUS,AQI | G27: =GetData(Data[[#This Row],[ID]],"db_Option_Title","Text") -> Connect Energy Companies & IoD Households to Improve Efficiency (BEIS, 2019) | H27: No | I27: =GetData(Data[[#This Row],[ID]],"db_Development_Cost","") -> 77000 | J27: =GetData(Data[[#This Row],[ID]],"db_Average_Annual_Operating_Profit","") -> 11520 | K27: =IF(GetData(Data[[#This Row],[ID]],"db_Payback_Period","")<0,"No Payback",GetData(Data[[#This Row],[ID]],"db_Payback_Period","")) -> 6.684027778 | L27: =GetData(Data[[#This Row],[ID]],"db_TDCE_Average","") -> -11007.8 | M27: =IF(GetData(Data[[#This Row],[ID]],"db_Emissions_Payback","")<0,"No Payback",GetData(Data[[#This Row],[ID]],"db_Emissions_Payback","")) -> 0.9970202947 | N27: =GetData(Data[[#This Row],[ID]],"db_AQ_Score","") -> 37.77777778 | O27: =GetData(Data[[#This Row],[ID]],"db_SV_Average_Score","") -> -7.105427358e-16 | P27: =GetData(Data[[#This Row],[ID]],"db_STK_Score","") -> 6.9696 | Q27: =GetData(Data[[#This Row],[ID]],"db_ACH_Average_Achievability","") -> 50 | R27: =GetData(Data[[#This Row],[ID]],"db_ACH_Average_Commercial_Viability","") -> 62.5 | S27: =GetData(Data[[#This Row],[ID]],"db_Lead_Authority","Text") -> 
A28: 1220 | B28: =GetData(Data[[#This Row],[ID]],"db_Source","Text") -> FotE | C28: =GetData(Data[[#This Row],[ID]],"db_Portfolio","Text") -> Housing | D28: =GetData(Data[[#This Row],[ID]],"db_Status","Text") -> Planned | E28: =GetData(Data[[#This Row],[ID]],"db_Primary_Purpose","Text") -> CER | F28: =GetData(Data[[#This Row],[ID]],"db_Additional_Purposes","Text") -> CRD,WEL,EQY,SUS,AQI | G28: =GetData(Data[[#This Row],[ID]],"db_Option_Title","Text") -> Retrofit Council-Owned Properties to EPC C or Higher | H28: No | I28: =GetData(Data[[#This Row],[ID]],"db_Development_Cost","") -> 32000000 | J28: =GetData(Data[[#This Row],[ID]],"db_Average_Annual_Operating_Profit","") -> -666400 | K28: =IF(GetData(Data[[#This Row],[ID]],"db_Payback_Period","")<0,"No Payback",GetData(Data[[#This Row],[ID]],"db_Payback_Period","")) -> No Payback | L28: =GetData(Data[[#This Row],[ID]],"db_TDCE_Average","") -> -16094.2 | M28: =IF(GetData(Data[[#This Row],[ID]],"db_Emissions_Payback","")<0,"No Payback",GetData(Data[[#This Row],[ID]],"db_Emissions_Payback","")) -> 0.552186502 | N28: =GetData(Data[[#This Row],[ID]],"db_AQ_Score","") -> 35.55555556 | O28: =GetData(Data[[#This Row],[ID]],"db_SV_Average_Score","") -> -13.33333333 | P28: =GetData(Data[[#This Row],[ID]],"db_STK_Score","") -> -17.36 | Q28: =GetData(Data[[#This Row],[ID]],"db_ACH_Average_Achievability","") -> 57 | R28: =GetData(Data[[#This Row],[ID]],"db_ACH_Average_Commercial_Viability","") -> 70.83333333 | S28: =GetData(Data[[#This Row],[ID]],"db_Lead_Authority","Text") -> 
A29: 1230 | B29: =GetData(Data[[#This Row],[ID]],"db_Source","Text") -> FotE | C29: =GetData(Data[[#This Row],[ID]],"db_Portfolio","Text") -> Planning | D29: =GetData(Data[[#This Row],[ID]],"db_Status","Text") -> Planned | E29: =GetData(Data[[#This Row],[ID]],"db_Primary_Purpose","Text") -> CER | F29: =GetData(Data[[#This Row],[ID]],"db_Additional_Purposes","Text") -> ECD,CRD,WEL,EQY,SUS | G29: =GetData(Data[[#This Row],[ID]],"db_Option_Title","Text") -> Enforce Building Standards: Test for Planning Permission Compliance | H29: No | I29: =GetData(Data[[#This Row],[ID]],"db_Development_Cost","") -> 115000 | J29: =GetData(Data[[#This Row],[ID]],"db_Average_Annual_Operating_Profit","") -> -112000 | K29: =IF(GetData(Data[[#This Row],[ID]],"db_Payback_Period","")<0,"No Payback",GetData(Data[[#This Row],[ID]],"db_Payback_Period","")) -> No Payback | L29: =GetData(Data[[#This Row],[ID]],"db_TDCE_Average","") -> -14093.2 | M29: =IF(GetData(Data[[#This Row],[ID]],"db_Emissions_Payback","")<0,"No Payback",GetData(Data[[#This Row],[ID]],"db_Emissions_Payback","")) -> 0.5968126472 | N29: =GetData(Data[[#This Row],[ID]],"db_AQ_Score","") -> 33.33333333 | O29: =GetData(Data[[#This Row],[ID]],"db_SV_Average_Score","") -> 9.333333333 | P29: =GetData(Data[[#This Row],[ID]],"db_STK_Score","") -> 0.0528 | Q29: =GetData(Data[[#This Row],[ID]],"db_ACH_Average_Achievability","") -> 39 | R29: =GetData(Data[[#This Row],[ID]],"db_ACH_Average_Commercial_Viability","") -> 31.25 | S29: =GetData(Data[[#This Row],[ID]],"db_Lead_Authority","Text") -> 
A30: 1240 | B30: =GetData(Data[[#This Row],[ID]],"db_Source","Text") -> Proving | C30: =GetData(Data[[#This Row],[ID]],"db_Portfolio","Text") -> Environment | D30: =GetData(Data[[#This Row],[ID]],"db_Status","Text") -> Planned | E30: =GetData(Data[[#This Row],[ID]],"db_Primary_Purpose","Text") -> CER | F30: =GetData(Data[[#This Row],[ID]],"db_Additional_Purposes","Text") -> ECD,SOI,CRD,SUS | G30: =GetData(Data[[#This Row],[ID]],"db_Option_Title","Text") -> Implement Circular Economy Waste Policies | H30: No | I30: =GetData(Data[[#This Row],[ID]],"db_Development_Cost","") -> 11500000 | J30: =GetData(Data[[#This Row],[ID]],"db_Average_Annual_Operating_Profit","") -> 936000 | K30: =IF(GetData(Data[[#This Row],[ID]],"db_Payback_Period","")<0,"No Payback",GetData(Data[[#This Row],[ID]],"db_Payback_Period","")) -> 12.28632479 | L30: =GetData(Data[[#This Row],[ID]],"db_TDCE_Average","") -> -16583.6 | M30: =IF(GetData(Data[[#This Row],[ID]],"db_Emissions_Payback","")<0,"No Payback",GetData(Data[[#This Row],[ID]],"db_Emissions_Payback","")) -> 1.092886949 | N30: =GetData(Data[[#This Row],[ID]],"db_AQ_Score","") -> 46.66666667 | O30: =GetData(Data[[#This Row],[ID]],"db_SV_Average_Score","") -> -22.66666667 | P30: =GetData(Data[[#This Row],[ID]],"db_STK_Score","") -> -23.312 | Q30: =GetData(Data[[#This Row],[ID]],"db_ACH_Average_Achievability","") -> 60 | R30: =GetData(Data[[#This Row],[ID]],"db_ACH_Average_Commercial_Viability","") -> 50 | S30: =GetData(Data[[#This Row],[ID]],"db_Lead_Authority","Text") -> Lincs
A31: 1250 | B31: =GetData(Data[[#This Row],[ID]],"db_Source","Text") -> FotE | C31: =GetData(Data[[#This Row],[ID]],"db_Portfolio","Text") -> Environment | D31: =GetData(Data[[#This Row],[ID]],"db_Status","Text") -> Planned | E31: =GetData(Data[[#This Row],[ID]],"db_Primary_Purpose","Text") -> CER | F31: =GetData(Data[[#This Row],[ID]],"db_Additional_Purposes","Text") -> REV,CRD,CRY,EQY,SUS | G31: =GetData(Data[[#This Row],[ID]],"db_Option_Title","Text") -> Zero Waste to Landfill or Incineration | H31: Yes | I31: =GetData(Data[[#This Row],[ID]],"db_Development_Cost","") -> 4500000 | J31: =GetData(Data[[#This Row],[ID]],"db_Average_Annual_Operating_Profit","") -> 6480000 | K31: =IF(GetData(Data[[#This Row],[ID]],"db_Payback_Period","")<0,"No Payback",GetData(Data[[#This Row],[ID]],"db_Payback_Period","")) -> 0.6944444444 | L31: =GetData(Data[[#This Row],[ID]],"db_TDCE_Average","") -> -21208 | M31: =IF(GetData(Data[[#This Row],[ID]],"db_Emissions_Payback","")<0,"No Payback",GetData(Data[[#This Row],[ID]],"db_Emissions_Payback","")) -> 0.7814975481 | N31: =GetData(Data[[#This Row],[ID]],"db_AQ_Score","") -> 62.22222222 | O31: =GetData(Data[[#This Row],[ID]],"db_SV_Average_Score","") -> 21.33333333 | P31: =GetData(Data[[#This Row],[ID]],"db_STK_Score","") -> 1.7424 | Q31: =GetData(Data[[#This Row],[ID]],"db_ACH_Average_Achievability","") -> 70 | R31: =GetData(Data[[#This Row],[ID]],"db_ACH_Average_Commercial_Viability","") -> 68.75 | S31: =GetData(Data[[#This Row],[ID]],"db_Lead_Authority","Text") -> 
A32: 1260 | B32: =GetData(Data[[#This Row],[ID]],"db_Source","Text") -> FotE | C32: =GetData(Data[[#This Row],[ID]],"db_Portfolio","Text") -> Highways | D32: =GetData(Data[[#This Row],[ID]],"db_Status","Text") -> Planned | E32: =GetData(Data[[#This Row],[ID]],"db_Primary_Purpose","Text") -> CER | F32: =GetData(Data[[#This Row],[ID]],"db_Additional_Purposes","Text") -> REV,CRD,SUS,AQI | G32: =GetData(Data[[#This Row],[ID]],"db_Option_Title","Text") -> Bio-Mass for Bio-Gas (CHP) | H32: Yes | I32: =GetData(Data[[#This Row],[ID]],"db_Development_Cost","") -> 5190000 | J32: =GetData(Data[[#This Row],[ID]],"db_Average_Annual_Operating_Profit","") -> -498000 | K32: =IF(GetData(Data[[#This Row],[ID]],"db_Payback_Period","")<0,"No Payback",GetData(Data[[#This Row],[ID]],"db_Payback_Period","")) -> No Payback | L32: =GetData(Data[[#This Row],[ID]],"db_TDCE_Average","") -> -14915.8 | M32: =IF(GetData(Data[[#This Row],[ID]],"db_Emissions_Payback","")<0,"No Payback",GetData(Data[[#This Row],[ID]],"db_Emissions_Payback","")) -> 0.8031081135 | N32: =GetData(Data[[#This Row],[ID]],"db_AQ_Score","") -> 48.88888889 | O32: =GetData(Data[[#This Row],[ID]],"db_SV_Average_Score","") -> 20 | P32: =GetData(Data[[#This Row],[ID]],"db_STK_Score","") -> -0.3828 | Q32: =GetData(Data[[#This Row],[ID]],"db_ACH_Average_Achievability","") -> 66 | R32: =GetData(Data[[#This Row],[ID]],"db_ACH_Average_Commercial_Viability","") -> 80 | S32: =GetData(Data[[#This Row],[ID]],"db_Lead_Authority","Text") -> 
A33: 1270 | B33: =GetData(Data[[#This Row],[ID]],"db_Source","Text") -> FotE | C33: =GetData(Data[[#This Row],[ID]],"db_Portfolio","Text") -> Environment | D33: =GetData(Data[[#This Row],[ID]],"db_Status","Text") -> Planned | E33: =GetData(Data[[#This Row],[ID]],"db_Primary_Purpose","Text") -> CER | F33: =GetData(Data[[#This Row],[ID]],"db_Additional_Purposes","Text") -> REV,WEL,SUS,AQI | G33: =GetData(Data[[#This Row],[ID]],"db_Option_Title","Text") -> Industrial Waste Heat to Housing / Community Properties | H33: Yes | I33: =GetData(Data[[#This Row],[ID]],"db_Development_Cost","") -> 27000000 | J33: =GetData(Data[[#This Row],[ID]],"db_Average_Annual_Operating_Profit","") -> 2304000 | K33: =IF(GetData(Data[[#This Row],[ID]],"db_Payback_Period","")<0,"No Payback",GetData(Data[[#This Row],[ID]],"db_Payback_Period","")) -> 11.71875 | L33: =GetData(Data[[#This Row],[ID]],"db_TDCE_Average","") -> -13457.6 | M33: =IF(GetData(Data[[#This Row],[ID]],"db_Emissions_Payback","")<0,"No Payback",GetData(Data[[#This Row],[ID]],"db_Emissions_Payback","")) -> 0.5402895018 | N33: =GetData(Data[[#This Row],[ID]],"db_AQ_Score","") -> 66.66666667 | O33: =GetData(Data[[#This Row],[ID]],"db_SV_Average_Score","") -> 6.666666667 | P33: =GetData(Data[[#This Row],[ID]],"db_STK_Score","") -> -9.7152 | Q33: =GetData(Data[[#This Row],[ID]],"db_ACH_Average_Achievability","") -> 20 | R33: =GetData(Data[[#This Row],[ID]],"db_ACH_Average_Commercial_Viability","") -> 20.83333333 | S33: =GetData(Data[[#This Row],[ID]],"db_Lead_Authority","Text") -> 
A34: 1280 | B34: =GetData(Data[[#This Row],[ID]],"db_Source","Text") -> FotE | C34: =GetData(Data[[#This Row],[ID]],"db_Portfolio","Text") -> Planning | D34: =GetData(Data[[#This Row],[ID]],"db_Status","Text") -> Planned | E34: =GetData(Data[[#This Row],[ID]],"db_Primary_Purpose","Text") -> CER | F34: =GetData(Data[[#This Row],[ID]],"db_Additional_Purposes","Text") -> REV,CRD,EQY,SUS,AQI | G34: =GetData(Data[[#This Row],[ID]],"db_Option_Title","Text") -> Identify NPFF Compliant Sites Suitable for Renewable Energy Generation | H34: Yes | I34: =GetData(Data[[#This Row],[ID]],"db_Development_Cost","") -> 318000 | J34: =GetData(Data[[#This Row],[ID]],"db_Average_Annual_Operating_Profit","") -> 0 | K34: =IF(GetData(Data[[#This Row],[ID]],"db_Payback_Period","")<0,"No Payback",GetData(Data[[#This Row],[ID]],"db_Payback_Period","")) -> No Payback | L34: =GetData(Data[[#This Row],[ID]],"db_TDCE_Average","") -> 0 | M34: =IF(GetData(Data[[#This Row],[ID]],"db_Emissions_Payback","")<0,"No Payback",GetData(Data[[#This Row],[ID]],"db_Emissions_Payback","")) -> No Payback | N34: =GetData(Data[[#This Row],[ID]],"db_AQ_Score","") -> 31.11111111 | O34: =GetData(Data[[#This Row],[ID]],"db_SV_Average_Score","") -> 21.33333333 | P34: =GetData(Data[[#This Row],[ID]],"db_STK_Score","") -> -25.28 | Q34: =GetData(Data[[#This Row],[ID]],"db_ACH_Average_Achievability","") -> 44 | R34: =GetData(Data[[#This Row],[ID]],"db_ACH_Average_Commercial_Viability","") -> 54.16666667 | S34: =GetData(Data[[#This Row],[ID]],"db_Lead_Authority","Text") -> 
A35: 1290 | B35: =GetData(Data[[#This Row],[ID]],"db_Source","Text") -> Proving | C35: =GetData(Data[[#This Row],[ID]],"db_Portfolio","Text") -> Highways | D35: =GetData(Data[[#This Row],[ID]],"db_Status","Text") -> Planned | E35: =GetData(Data[[#This Row],[ID]],"db_Primary_Purpose","Text") -> RED | F35: =GetData(Data[[#This Row],[ID]],"db_Additional_Purposes","Text") -> SUS,CER | G35: =GetData(Data[[#This Row],[ID]],"db_Option_Title","Text") -> Dim Street Lights | H35: Yes | I35: =GetData(Data[[#This Row],[ID]],"db_Development_Cost","") -> 1900000 | J35: =GetData(Data[[#This Row],[ID]],"db_Average_Annual_Operating_Profit","") -> 432000 | K35: =IF(GetData(Data[[#This Row],[ID]],"db_Payback_Period","")<0,"No Payback",GetData(Data[[#This Row],[ID]],"db_Payback_Period","")) -> 4.398148148 | L35: =GetData(Data[[#This Row],[ID]],"db_TDCE_Average","") -> -17357.2 | M35: =IF(GetData(Data[[#This Row],[ID]],"db_Emissions_Payback","")<0,"No Payback",GetData(Data[[#This Row],[ID]],"db_Emissions_Payback","")) -> 0.637948517 | N35: =GetData(Data[[#This Row],[ID]],"db_AQ_Score","") -> 31.11111111 | O35: =GetData(Data[[#This Row],[ID]],"db_SV_Average_Score","") -> 32 | P35: =GetData(Data[[#This Row],[ID]],"db_STK_Score","") -> -12 | Q35: =GetData(Data[[#This Row],[ID]],"db_ACH_Average_Achievability","") -> 67.5 | R35: =GetData(Data[[#This Row],[ID]],"db_ACH_Average_Commercial_Viability","") -> 31.25 | S35: =GetData(Data[[#This Row],[ID]],"db_Lead_Authority","Text") -> 
A36: 1300 | B36: =GetData(Data[[#This Row],[ID]],"db_Source","Text") -> Proving | C36: =GetData(Data[[#This Row],[ID]],"db_Portfolio","Text") -> Highways | D36: =GetData(Data[[#This Row],[ID]],"db_Status","Text") -> Planned | E36: =GetData(Data[[#This Row],[ID]],"db_Primary_Purpose","Text") -> RED | F36: =GetData(Data[[#This Row],[ID]],"db_Additional_Purposes","Text") -> SUS,CER | G36: =GetData(Data[[#This Row],[ID]],"db_Option_Title","Text") -> Adaptive LED Street Lighting | H36: Yes | I36: =GetData(Data[[#This Row],[ID]],"db_Development_Cost","") -> 2250000 | J36: =GetData(Data[[#This Row],[ID]],"db_Average_Annual_Operating_Profit","") -> 568800 | K36: =IF(GetData(Data[[#This Row],[ID]],"db_Payback_Period","")<0,"No Payback",GetData(Data[[#This Row],[ID]],"db_Payback_Period","")) -> 3.955696203 | L36: =GetData(Data[[#This Row],[ID]],"db_TDCE_Average","") -> -14451 | M36: =IF(GetData(Data[[#This Row],[ID]],"db_Emissions_Payback","")<0,"No Payback",GetData(Data[[#This Row],[ID]],"db_Emissions_Payback","")) -> 0.5051553526 | N36: =GetData(Data[[#This Row],[ID]],"db_AQ_Score","") -> 60 | O36: =GetData(Data[[#This Row],[ID]],"db_SV_Average_Score","") -> -5.333333333 | P36: =GetData(Data[[#This Row],[ID]],"db_STK_Score","") -> 6.6 | Q36: =GetData(Data[[#This Row],[ID]],"db_ACH_Average_Achievability","") -> 34.16666667 | R36: =GetData(Data[[#This Row],[ID]],"db_ACH_Average_Commercial_Viability","") -> 50 | S36: =GetData(Data[[#This Row],[ID]],"db_Lead_Authority","Text") -> 
A37: 1310 | B37: =GetData(Data[[#This Row],[ID]],"db_Source","Text") -> FotE | C37: =GetData(Data[[#This Row],[ID]],"db_Portfolio","Text") -> Transport | D37: =GetData(Data[[#This Row],[ID]],"db_Status","Text") -> Planned | E37: =GetData(Data[[#This Row],[ID]],"db_Primary_Purpose","Text") -> CER | F37: =GetData(Data[[#This Row],[ID]],"db_Additional_Purposes","Text") -> CRD,WEL,EQY,SUS,AQI | G37: =GetData(Data[[#This Row],[ID]],"db_Option_Title","Text") -> Encourage Virtual / Home Working Over High-Speed Broadband | H37: Yes | I37: =GetData(Data[[#This Row],[ID]],"db_Development_Cost","") -> 2600000 | J37: =GetData(Data[[#This Row],[ID]],"db_Average_Annual_Operating_Profit","") -> 288000 | K37: =IF(GetData(Data[[#This Row],[ID]],"db_Payback_Period","")<0,"No Payback",GetData(Data[[#This Row],[ID]],"db_Payback_Period","")) -> 9.027777778 | L37: =GetData(Data[[#This Row],[ID]],"db_TDCE_Average","") -> -13420 | M37: =IF(GetData(Data[[#This Row],[ID]],"db_Emissions_Payback","")<0,"No Payback",GetData(Data[[#This Row],[ID]],"db_Emissions_Payback","")) -> 0.6217585693 | N37: =GetData(Data[[#This Row],[ID]],"db_AQ_Score","") -> 42.22222222 | O37: =GetData(Data[[#This Row],[ID]],"db_SV_Average_Score","") -> -5.333333333 | P37: =GetData(Data[[#This Row],[ID]],"db_STK_Score","") -> 16.04 | Q37: =GetData(Data[[#This Row],[ID]],"db_ACH_Average_Achievability","") -> 52.5 | R37: =GetData(Data[[#This Row],[ID]],"db_ACH_Average_Commercial_Viability","") -> 50 | S37: =GetData(Data[[#This Row],[ID]],"db_Lead_Authority","Text") -> 
A38: 1330 | B38: =GetData(Data[[#This Row],[ID]],"db_Source","Text") -> FotE | C38: =GetData(Data[[#This Row],[ID]],"db_Portfolio","Text") -> Facilities | D38: =GetData(Data[[#This Row],[ID]],"db_Status","Text") -> Planned | E38: =GetData(Data[[#This Row],[ID]],"db_Primary_Purpose","Text") -> CER | F38: =GetData(Data[[#This Row],[ID]],"db_Additional_Purposes","Text") -> CRD,SUS,AQI | G38: =GetData(Data[[#This Row],[ID]],"db_Option_Title","Text") -> Authority Properties Use Renewable Energy | H38: Yes | I38: =GetData(Data[[#This Row],[ID]],"db_Development_Cost","") -> 5600000 | J38: =GetData(Data[[#This Row],[ID]],"db_Average_Annual_Operating_Profit","") -> 432000 | K38: =IF(GetData(Data[[#This Row],[ID]],"db_Payback_Period","")<0,"No Payback",GetData(Data[[#This Row],[ID]],"db_Payback_Period","")) -> 12.96296296 | L38: =GetData(Data[[#This Row],[ID]],"db_TDCE_Average","") -> -16718.4 | M38: =IF(GetData(Data[[#This Row],[ID]],"db_Emissions_Payback","")<0,"No Payback",GetData(Data[[#This Row],[ID]],"db_Emissions_Payback","")) -> 0.7412790698 | N38: =GetData(Data[[#This Row],[ID]],"db_AQ_Score","") -> 44.44444444 | O38: =GetData(Data[[#This Row],[ID]],"db_SV_Average_Score","") -> -21.33333333 | P38: =GetData(Data[[#This Row],[ID]],"db_STK_Score","") -> -8.8712 | Q38: =GetData(Data[[#This Row],[ID]],"db_ACH_Average_Achievability","") -> 71 | R38: =GetData(Data[[#This Row],[ID]],"db_ACH_Average_Commercial_Viability","") -> 43.75 | S38: =GetData(Data[[#This Row],[ID]],"db_Lead_Authority","Text") -> 
A39: 1340 | B39: =GetData(Data[[#This Row],[ID]],"db_Source","Text") -> Proving | C39: =GetData(Data[[#This Row],[ID]],"db_Portfolio","Text") -> Facilities | D39: =GetData(Data[[#This Row],[ID]],"db_Status","Text") -> Planned | E39: =GetData(Data[[#This Row],[ID]],"db_Primary_Purpose","Text") -> CER | F39: =GetData(Data[[#This Row],[ID]],"db_Additional_Purposes","Text") -> REV,CRD,SUS,AQI | G39: =GetData(Data[[#This Row],[ID]],"db_Option_Title","Text") -> Land Exchange for Authority Green Energy | H39: Yes | I39: =GetData(Data[[#This Row],[ID]],"db_Development_Cost","") -> 470000 | J39: =GetData(Data[[#This Row],[ID]],"db_Average_Annual_Operating_Profit","") -> 1512000 | K39: =IF(GetData(Data[[#This Row],[ID]],"db_Payback_Period","")<0,"No Payback",GetData(Data[[#This Row],[ID]],"db_Payback_Period","")) -> 0.3108465608 | L39: =GetData(Data[[#This Row],[ID]],"db_TDCE_Average","") -> -13229.6 | M39: =IF(GetData(Data[[#This Row],[ID]],"db_Emissions_Payback","")<0,"No Payback",GetData(Data[[#This Row],[ID]],"db_Emissions_Payback","")) -> 1.294143436 | N39: =GetData(Data[[#This Row],[ID]],"db_AQ_Score","") -> 60 | O39: =GetData(Data[[#This Row],[ID]],"db_SV_Average_Score","") -> 6.666666667 | P39: =GetData(Data[[#This Row],[ID]],"db_STK_Score","") -> 5.1612 | Q39: =GetData(Data[[#This Row],[ID]],"db_ACH_Average_Achievability","") -> 66.66666667 | R39: =GetData(Data[[#This Row],[ID]],"db_ACH_Average_Commercial_Viability","") -> 50 | S39: =GetData(Data[[#This Row],[ID]],"db_Lead_Authority","Text") -> 
A40: 1350 | B40: =GetData(Data[[#This Row],[ID]],"db_Source","Text") -> FotE | C40: =GetData(Data[[#This Row],[ID]],"db_Portfolio","Text") -> Facilities | D40: =GetData(Data[[#This Row],[ID]],"db_Status","Text") -> Planned | E40: =GetData(Data[[#This Row],[ID]],"db_Primary_Purpose","Text") -> RED | F40: =GetData(Data[[#This Row],[ID]],"db_Additional_Purposes","Text") -> SOI,SUS,CER | G40: =GetData(Data[[#This Row],[ID]],"db_Option_Title","Text") -> Implement Consumer Demand Management: Reducing Load | I40: =GetData(Data[[#This Row],[ID]],"db_Development_Cost","") -> 1770000 | J40: =GetData(Data[[#This Row],[ID]],"db_Average_Annual_Operating_Profit","") -> 324000 | K40: =IF(GetData(Data[[#This Row],[ID]],"db_Payback_Period","")<0,"No Payback",GetData(Data[[#This Row],[ID]],"db_Payback_Period","")) -> 5.462962963 | L40: =GetData(Data[[#This Row],[ID]],"db_TDCE_Average","") -> -15212.4 | M40: =IF(GetData(Data[[#This Row],[ID]],"db_Emissions_Payback","")<0,"No Payback",GetData(Data[[#This Row],[ID]],"db_Emissions_Payback","")) -> 0.8824380111 | N40: =GetData(Data[[#This Row],[ID]],"db_AQ_Score","") -> 73.33333333 | O40: =GetData(Data[[#This Row],[ID]],"db_SV_Average_Score","") -> 5.333333333 | P40: =GetData(Data[[#This Row],[ID]],"db_STK_Score","") -> 11.9736 | Q40: =GetData(Data[[#This Row],[ID]],"db_ACH_Average_Achievability","") -> 50 | R40: =GetData(Data[[#This Row],[ID]],"db_ACH_Average_Commercial_Viability","") -> 40 | S40: =GetData(Data[[#This Row],[ID]],"db_Lead_Authority","Text") -> 
A41: 1360 | B41: =GetData(Data[[#This Row],[ID]],"db_Source","Text") -> FotE | C41: =GetData(Data[[#This Row],[ID]],"db_Portfolio","Text") -> Facilities | D41: =GetData(Data[[#This Row],[ID]],"db_Status","Text") -> Planned | E41: =GetData(Data[[#This Row],[ID]],"db_Primary_Purpose","Text") -> CER | F41: =GetData(Data[[#This Row],[ID]],"db_Additional_Purposes","Text") -> WEL,SUS,AQI | G41: =GetData(Data[[#This Row],[ID]],"db_Option_Title","Text") -> Council Land for Carbon Drawdown (e.g. Tree Planting) | H41: Yes | I41: =GetData(Data[[#This Row],[ID]],"db_Development_Cost","") -> 966000 | J41: =GetData(Data[[#This Row],[ID]],"db_Average_Annual_Operating_Profit","") -> -312000 | K41: =IF(GetData(Data[[#This Row],[ID]],"db_Payback_Period","")<0,"No Payback",GetData(Data[[#This Row],[ID]],"db_Payback_Period","")) -> No Payback | L41: =GetData(Data[[#This Row],[ID]],"db_TDCE_Average","") -> -1263.4 | M41: =IF(GetData(Data[[#This Row],[ID]],"db_Emissions_Payback","")<0,"No Payback",GetData(Data[[#This Row],[ID]],"db_Emissions_Payback","")) -> 7.239987336 | N41: =GetData(Data[[#This Row],[ID]],"db_AQ_Score","") -> 44.44444444 | O41: =GetData(Data[[#This Row],[ID]],"db_SV_Average_Score","") -> 2.666666667 | P41: =GetData(Data[[#This Row],[ID]],"db_STK_Score","") -> 33.068 | Q41: =GetData(Data[[#This Row],[ID]],"db_ACH_Average_Achievability","") -> 40 | R41: =GetData(Data[[#This Row],[ID]],"db_ACH_Average_Commercial_Viability","") -> 35 | S41: =GetData(Data[[#This Row],[ID]],"db_Lead_Authority","Text") -> 
A42: 1370 | B42: =GetData(Data[[#This Row],[ID]],"db_Source","Text") -> Proving | C42: =GetData(Data[[#This Row],[ID]],"db_Portfolio","Text") -> Highways | D42: =GetData(Data[[#This Row],[ID]],"db_Status","Text") -> Planned | E42: =GetData(Data[[#This Row],[ID]],"db_Primary_Purpose","Text") -> CRE | F42: =GetData(Data[[#This Row],[ID]],"db_Additional_Purposes","Text") -> CRD | G42: =GetData(Data[[#This Row],[ID]],"db_Option_Title","Text") -> Commuted Sum | I42: =GetData(Data[[#This Row],[ID]],"db_Development_Cost","") -> 615000 | J42: =GetData(Data[[#This Row],[ID]],"db_Average_Annual_Operating_Profit","") -> 1008000 | K42: =IF(GetData(Data[[#This Row],[ID]],"db_Payback_Period","")<0,"No Payback",GetData(Data[[#This Row],[ID]],"db_Payback_Period","")) -> 0.6101190476 | L42: =GetData(Data[[#This Row],[ID]],"db_TDCE_Average","") -> -18529.6 | M42: =IF(GetData(Data[[#This Row],[ID]],"db_Emissions_Payback","")<0,"No Payback",GetData(Data[[#This Row],[ID]],"db_Emissions_Payback","")) -> 0.9467554615 | N42: =GetData(Data[[#This Row],[ID]],"db_AQ_Score","") -> 24.44444444 | O42: =GetData(Data[[#This Row],[ID]],"db_SV_Average_Score","") -> -8 | P42: =GetData(Data[[#This Row],[ID]],"db_STK_Score","") -> 0 | Q42: =GetData(Data[[#This Row],[ID]],"db_ACH_Average_Achievability","") -> 65 | R42: =GetData(Data[[#This Row],[ID]],"db_ACH_Average_Commercial_Viability","") -> 56.25 | S42: =GetData(Data[[#This Row],[ID]],"db_Lead_Authority","Text") -> 
A43: 1380 | B43: =GetData(Data[[#This Row],[ID]],"db_Source","Text") -> Proving | C43: =GetData(Data[[#This Row],[ID]],"db_Portfolio","Text") -> Highways | D43: =GetData(Data[[#This Row],[ID]],"db_Status","Text") -> Planned | E43: =GetData(Data[[#This Row],[ID]],"db_Primary_Purpose","Text") -> REV | F43: =GetData(Data[[#This Row],[ID]],"db_Additional_Purposes","Text") -> CRY | G43: =GetData(Data[[#This Row],[ID]],"db_Option_Title","Text") -> Asset Sponsorship & Street-Side Advertising | H43: Yes | I43: =GetData(Data[[#This Row],[ID]],"db_Development_Cost","") -> 48000 | J43: =GetData(Data[[#This Row],[ID]],"db_Average_Annual_Operating_Profit","") -> 69120 | K43: =IF(GetData(Data[[#This Row],[ID]],"db_Payback_Period","")<0,"No Payback",GetData(Data[[#This Row],[ID]],"db_Payback_Period","")) -> 0.6944444444 | L43: =GetData(Data[[#This Row],[ID]],"db_TDCE_Average","") -> -14552.6 | M43: =IF(GetData(Data[[#This Row],[ID]],"db_Emissions_Payback","")<0,"No Payback",GetData(Data[[#This Row],[ID]],"db_Emissions_Payback","")) -> 0.9987905941 | N43: =GetData(Data[[#This Row],[ID]],"db_AQ_Score","") -> 46.66666667 | O43: =GetData(Data[[#This Row],[ID]],"db_SV_Average_Score","") -> 33.33333333 | P43: =GetData(Data[[#This Row],[ID]],"db_STK_Score","") -> 2.2176 | Q43: =GetData(Data[[#This Row],[ID]],"db_ACH_Average_Achievability","") -> 43.75 | R43: =GetData(Data[[#This Row],[ID]],"db_ACH_Average_Commercial_Viability","") -> 66.66666667 | S43: =GetData(Data[[#This Row],[ID]],"db_Lead_Authority","Text") -> 
A44: 1390 | B44: =GetData(Data[[#This Row],[ID]],"db_Source","Text") -> Proving | C44: =GetData(Data[[#This Row],[ID]],"db_Portfolio","Text") -> Highways | D44: =GetData(Data[[#This Row],[ID]],"db_Status","Text") -> Planned | E44: =GetData(Data[[#This Row],[ID]],"db_Primary_Purpose","Text") -> REV | F44: =GetData(Data[[#This Row],[ID]],"db_Additional_Purposes","Text") -> CRY | G44: =GetData(Data[[#This Row],[ID]],"db_Option_Title","Text") -> Bus Stop & Bus-Side Advertising | H44: Yes | I44: =GetData(Data[[#This Row],[ID]],"db_Development_Cost","") -> 48000 | J44: =GetData(Data[[#This Row],[ID]],"db_Average_Annual_Operating_Profit","") -> 93520 | K44: =IF(GetData(Data[[#This Row],[ID]],"db_Payback_Period","")<0,"No Payback",GetData(Data[[#This Row],[ID]],"db_Payback_Period","")) -> 0.5132591959 | L44: =GetData(Data[[#This Row],[ID]],"db_TDCE_Average","") -> -17063 | M44: =IF(GetData(Data[[#This Row],[ID]],"db_Emissions_Payback","")<0,"No Payback",GetData(Data[[#This Row],[ID]],"db_Emissions_Payback","")) -> 1.053390377 | N44: =GetData(Data[[#This Row],[ID]],"db_AQ_Score","") -> 26.66666667 | O44: =GetData(Data[[#This Row],[ID]],"db_SV_Average_Score","") -> 12 | P44: =GetData(Data[[#This Row],[ID]],"db_STK_Score","") -> 8.3424 | Q44: =GetData(Data[[#This Row],[ID]],"db_ACH_Average_Achievability","") -> 70 | R44: =GetData(Data[[#This Row],[ID]],"db_ACH_Average_Commercial_Viability","") -> 20.83333333 | S44: =GetData(Data[[#This Row],[ID]],"db_Lead_Authority","Text") -> 
A45: 1400 | B45: =GetData(Data[[#This Row],[ID]],"db_Source","Text") -> Proving | C45: =GetData(Data[[#This Row],[ID]],"db_Portfolio","Text") -> Highways | D45: =GetData(Data[[#This Row],[ID]],"db_Status","Text") -> Planned | E45: =GetData(Data[[#This Row],[ID]],"db_Primary_Purpose","Text") -> REV | F45: =GetData(Data[[#This Row],[ID]],"db_Additional_Purposes","Text") -> SOI,CRD,CRY | G45: =GetData(Data[[#This Row],[ID]],"db_Option_Title","Text") -> Road Maintenance & Winter Services on Private Roads & Commercial Estates | I45: =GetData(Data[[#This Row],[ID]],"db_Development_Cost","") -> 90000 | J45: =GetData(Data[[#This Row],[ID]],"db_Average_Annual_Operating_Profit","") -> 12240 | K45: =IF(GetData(Data[[#This Row],[ID]],"db_Payback_Period","")<0,"No Payback",GetData(Data[[#This Row],[ID]],"db_Payback_Period","")) -> 7.352941176 | L45: =GetData(Data[[#This Row],[ID]],"db_TDCE_Average","") -> -11386.8 | M45: =IF(GetData(Data[[#This Row],[ID]],"db_Emissions_Payback","")<0,"No Payback",GetData(Data[[#This Row],[ID]],"db_Emissions_Payback","")) -> 1.617135631 | N45: =GetData(Data[[#This Row],[ID]],"db_AQ_Score","") -> 51.11111111 | O45: =GetData(Data[[#This Row],[ID]],"db_SV_Average_Score","") -> -6.666666667 | P45: =GetData(Data[[#This Row],[ID]],"db_STK_Score","") -> -3.0624 | Q45: =GetData(Data[[#This Row],[ID]],"db_ACH_Average_Achievability","") -> 33.75 | R45: =GetData(Data[[#This Row],[ID]],"db_ACH_Average_Commercial_Viability","") -> 41.66666667 | S45: =GetData(Data[[#This Row],[ID]],"db_Lead_Authority","Text") -> 
A46: 1410 | B46: =GetData(Data[[#This Row],[ID]],"db_Source","Text") -> Proving | C46: =GetData(Data[[#This Row],[ID]],"db_Portfolio","Text") -> Highways | D46: =GetData(Data[[#This Row],[ID]],"db_Status","Text") -> Planned | E46: =GetData(Data[[#This Row],[ID]],"db_Primary_Purpose","Text") -> REV | F46: =GetData(Data[[#This Row],[ID]],"db_Additional_Purposes","Text") -> SOI,CRD,CRY | G46: =GetData(Data[[#This Row],[ID]],"db_Option_Title","Text") -> Road Maintenance & Winter Services on Public Sector & Regulated Services Estates | H46: Yes | I46: =GetData(Data[[#This Row],[ID]],"db_Development_Cost","") -> 90000 | J46: =GetData(Data[[#This Row],[ID]],"db_Average_Annual_Operating_Profit","") -> 115200 | K46: =IF(GetData(Data[[#This Row],[ID]],"db_Payback_Period","")<0,"No Payback",GetData(Data[[#This Row],[ID]],"db_Payback_Period","")) -> 0.78125 | L46: =GetData(Data[[#This Row],[ID]],"db_TDCE_Average","") -> -10565.6 | M46: =IF(GetData(Data[[#This Row],[ID]],"db_Emissions_Payback","")<0,"No Payback",GetData(Data[[#This Row],[ID]],"db_Emissions_Payback","")) -> 0.9425872643 | N46: =GetData(Data[[#This Row],[ID]],"db_AQ_Score","") -> 57.77777778 | O46: =GetData(Data[[#This Row],[ID]],"db_SV_Average_Score","") -> -24 | P46: =GetData(Data[[#This Row],[ID]],"db_STK_Score","") -> -4.29 | Q46: =GetData(Data[[#This Row],[ID]],"db_ACH_Average_Achievability","") -> 35 | R46: =GetData(Data[[#This Row],[ID]],"db_ACH_Average_Commercial_Viability","") -> 55 | S46: =GetData(Data[[#This Row],[ID]],"db_Lead_Authority","Text") -> 
A47: 1420 | B47: =GetData(Data[[#This Row],[ID]],"db_Source","Text") -> Proving | C47: =GetData(Data[[#This Row],[ID]],"db_Portfolio","Text") -> Highways | D47: =GetData(Data[[#This Row],[ID]],"db_Status","Text") -> Planned | E47: =GetData(Data[[#This Row],[ID]],"db_Primary_Purpose","Text") -> CER | F47: =GetData(Data[[#This Row],[ID]],"db_Additional_Purposes","Text") -> REV,CRD,CRY,AQI | G47: =GetData(Data[[#This Row],[ID]],"db_Option_Title","Text") -> Using Highways Estates for Energy Generation (PPA / Private Wire Resale) | I47: =GetData(Data[[#This Row],[ID]],"db_Development_Cost","") -> 1600000 | J47: =GetData(Data[[#This Row],[ID]],"db_Average_Annual_Operating_Profit","") -> 104400 | K47: =IF(GetData(Data[[#This Row],[ID]],"db_Payback_Period","")<0,"No Payback",GetData(Data[[#This Row],[ID]],"db_Payback_Period","")) -> 15.3256705 | L47: =GetData(Data[[#This Row],[ID]],"db_TDCE_Average","") -> -19295.2 | M47: =IF(GetData(Data[[#This Row],[ID]],"db_Emissions_Payback","")<0,"No Payback",GetData(Data[[#This Row],[ID]],"db_Emissions_Payback","")) -> 0.5528317924 | N47: =GetData(Data[[#This Row],[ID]],"db_AQ_Score","") -> 53.33333333 | O47: =GetData(Data[[#This Row],[ID]],"db_SV_Average_Score","") -> -18.66666667 | P47: =GetData(Data[[#This Row],[ID]],"db_STK_Score","") -> 2.6928 | Q47: =GetData(Data[[#This Row],[ID]],"db_ACH_Average_Achievability","") -> 25 | R47: =GetData(Data[[#This Row],[ID]],"db_ACH_Average_Commercial_Viability","") -> 58.33333333 | S47: =GetData(Data[[#This Row],[ID]],"db_Lead_Authority","Text") -> 
A48: 1430 | B48: =GetData(Data[[#This Row],[ID]],"db_Source","Text") -> Proving | C48: =GetData(Data[[#This Row],[ID]],"db_Portfolio","Text") -> Highways | D48: =GetData(Data[[#This Row],[ID]],"db_Status","Text") -> Planned | E48: =GetData(Data[[#This Row],[ID]],"db_Primary_Purpose","Text") -> CRE | F48: =GetData(Data[[#This Row],[ID]],"db_Additional_Purposes","Text") -> REV | G48: =GetData(Data[[#This Row],[ID]],"db_Option_Title","Text") -> Commercialising S278 Services | H48: Yes | I48: =GetData(Data[[#This Row],[ID]],"db_Development_Cost","") -> 56000 | J48: =GetData(Data[[#This Row],[ID]],"db_Average_Annual_Operating_Profit","") -> 244800 | K48: =IF(GetData(Data[[#This Row],[ID]],"db_Payback_Period","")<0,"No Payback",GetData(Data[[#This Row],[ID]],"db_Payback_Period","")) -> 0.2287581699 | L48: =GetData(Data[[#This Row],[ID]],"db_TDCE_Average","") -> -17289.6 | M48: =IF(GetData(Data[[#This Row],[ID]],"db_Emissions_Payback","")<0,"No Payback",GetData(Data[[#This Row],[ID]],"db_Emissions_Payback","")) -> 0.5363918194 | N48: =GetData(Data[[#This Row],[ID]],"db_AQ_Score","") -> 55.55555556 | O48: =GetData(Data[[#This Row],[ID]],"db_SV_Average_Score","") -> 26.66666667 | P48: =GetData(Data[[#This Row],[ID]],"db_STK_Score","") -> -5.2272 | Q48: =GetData(Data[[#This Row],[ID]],"db_ACH_Average_Achievability","") -> 50 | R48: =GetData(Data[[#This Row],[ID]],"db_ACH_Average_Commercial_Viability","") -> 35 | S48: =GetData(Data[[#This Row],[ID]],"db_Lead_Authority","Text") -> 
A49: 1440 | B49: =GetData(Data[[#This Row],[ID]],"db_Source","Text") -> Proving | C49: =GetData(Data[[#This Row],[ID]],"db_Portfolio","Text") -> Highways | D49: =GetData(Data[[#This Row],[ID]],"db_Status","Text") -> Planned | E49: =GetData(Data[[#This Row],[ID]],"db_Primary_Purpose","Text") -> CRE | F49: =GetData(Data[[#This Row],[ID]],"db_Additional_Purposes","Text") -> REV | G49: =GetData(Data[[#This Row],[ID]],"db_Option_Title","Text") -> Commercialising S139/169 Services (Skips / Scaffold Permits) | H49: Yes | I49: =GetData(Data[[#This Row],[ID]],"db_Development_Cost","") -> 24000 | J49: =GetData(Data[[#This Row],[ID]],"db_Average_Annual_Operating_Profit","") -> 6480 | K49: =IF(GetData(Data[[#This Row],[ID]],"db_Payback_Period","")<0,"No Payback",GetData(Data[[#This Row],[ID]],"db_Payback_Period","")) -> 3.703703704 | L49: =GetData(Data[[#This Row],[ID]],"db_TDCE_Average","") -> -15093.4 | M49: =IF(GetData(Data[[#This Row],[ID]],"db_Emissions_Payback","")<0,"No Payback",GetData(Data[[#This Row],[ID]],"db_Emissions_Payback","")) -> 0.5449401725 | N49: =GetData(Data[[#This Row],[ID]],"db_AQ_Score","") -> 44.44444444 | O49: =GetData(Data[[#This Row],[ID]],"db_SV_Average_Score","") -> -4 | P49: =GetData(Data[[#This Row],[ID]],"db_STK_Score","") -> -7.92 | Q49: =GetData(Data[[#This Row],[ID]],"db_ACH_Average_Achievability","") -> 43.33333333 | R49: =GetData(Data[[#This Row],[ID]],"db_ACH_Average_Commercial_Viability","") -> 45.83333333 | S49: =GetData(Data[[#This Row],[ID]],"db_Lead_Authority","Text") -> 
A50: 1450 | B50: =GetData(Data[[#This Row],[ID]],"db_Source","Text") -> Proving | C50: =GetData(Data[[#This Row],[ID]],"db_Portfolio","Text") -> Highways | D50: =GetData(Data[[#This Row],[ID]],"db_Status","Text") -> Planned | E50: =GetData(Data[[#This Row],[ID]],"db_Primary_Purpose","Text") -> RED | F50: =GetData(Data[[#This Row],[ID]],"db_Additional_Purposes","Text") -> REV | G50: =GetData(Data[[#This Row],[ID]],"db_Option_Title","Text") -> Commercialising S37/38 Services | H50: Yes | I50: =GetData(Data[[#This Row],[ID]],"db_Development_Cost","") -> 98000 | J50: =GetData(Data[[#This Row],[ID]],"db_Average_Annual_Operating_Profit","") -> 32400 | K50: =IF(GetData(Data[[#This Row],[ID]],"db_Payback_Period","")<0,"No Payback",GetData(Data[[#This Row],[ID]],"db_Payback_Period","")) -> 3.024691358 | L50: =GetData(Data[[#This Row],[ID]],"db_TDCE_Average","") -> -17601.2 | M50: =IF(GetData(Data[[#This Row],[ID]],"db_Emissions_Payback","")<0,"No Payback",GetData(Data[[#This Row],[ID]],"db_Emissions_Payback","")) -> 0.845624162 | N50: =GetData(Data[[#This Row],[ID]],"db_AQ_Score","") -> 51.11111111 | O50: =GetData(Data[[#This Row],[ID]],"db_SV_Average_Score","") -> -14.66666667 | P50: =GetData(Data[[#This Row],[ID]],"db_STK_Score","") -> 13.1208 | Q50: =GetData(Data[[#This Row],[ID]],"db_ACH_Average_Achievability","") -> 62.5 | R50: =GetData(Data[[#This Row],[ID]],"db_ACH_Average_Commercial_Viability","") -> 41.66666667 | S50: =GetData(Data[[#This Row],[ID]],"db_Lead_Authority","Text") -> 
A51: 1460 | B51: =GetData(Data[[#This Row],[ID]],"db_Source","Text") -> Proving | C51: =GetData(Data[[#This Row],[ID]],"db_Portfolio","Text") -> Highways | D51: =GetData(Data[[#This Row],[ID]],"db_Status","Text") -> Planned | E51: =GetData(Data[[#This Row],[ID]],"db_Primary_Purpose","Text") -> RED | F51: =GetData(Data[[#This Row],[ID]],"db_Additional_Purposes","Text") -> REV | G51: =GetData(Data[[#This Row],[ID]],"db_Option_Title","Text") -> Commercialising S184 Services | H51: Yes | I51: =GetData(Data[[#This Row],[ID]],"db_Development_Cost","") -> 67000 | J51: =GetData(Data[[#This Row],[ID]],"db_Average_Annual_Operating_Profit","") -> 51840 | K51: =IF(GetData(Data[[#This Row],[ID]],"db_Payback_Period","")<0,"No Payback",GetData(Data[[#This Row],[ID]],"db_Payback_Period","")) -> 1.292438272 | L51: =GetData(Data[[#This Row],[ID]],"db_TDCE_Average","") -> -12795.4 | M51: =IF(GetData(Data[[#This Row],[ID]],"db_Emissions_Payback","")<0,"No Payback",GetData(Data[[#This Row],[ID]],"db_Emissions_Payback","")) -> 0.6961095394 | N51: =GetData(Data[[#This Row],[ID]],"db_AQ_Score","") -> 33.33333333 | O51: =GetData(Data[[#This Row],[ID]],"db_SV_Average_Score","") -> -9.333333333 | P51: =GetData(Data[[#This Row],[ID]],"db_STK_Score","") -> 15.4848 | Q51: =GetData(Data[[#This Row],[ID]],"db_ACH_Average_Achievability","") -> 57 | R51: =GetData(Data[[#This Row],[ID]],"db_ACH_Average_Commercial_Viability","") -> 50 | S51: =GetData(Data[[#This Row],[ID]],"db_Lead_Authority","Text") -> 
A52: 1470 | B52: =GetData(Data[[#This Row],[ID]],"db_Source","Text") -> Proving | C52: =GetData(Data[[#This Row],[ID]],"db_Portfolio","Text") -> Highways | D52: =GetData(Data[[#This Row],[ID]],"db_Status","Text") -> Planned | E52: =GetData(Data[[#This Row],[ID]],"db_Primary_Purpose","Text") -> REV | F52: =GetData(Data[[#This Row],[ID]],"db_Additional_Purposes","Text") -> ECD,CRY | G52: =GetData(Data[[#This Row],[ID]],"db_Option_Title","Text") -> 5G Mobile Lamp Mast Repeaters / Fixed Wireless Broadband (Concessions) | H52: Yes | I52: =GetData(Data[[#This Row],[ID]],"db_Development_Cost","") -> 252000 | J52: =GetData(Data[[#This Row],[ID]],"db_Average_Annual_Operating_Profit","") -> 213120 | K52: =IF(GetData(Data[[#This Row],[ID]],"db_Payback_Period","")<0,"No Payback",GetData(Data[[#This Row],[ID]],"db_Payback_Period","")) -> 1.182432432 | L52: =GetData(Data[[#This Row],[ID]],"db_TDCE_Average","") -> -15567.8 | M52: =IF(GetData(Data[[#This Row],[ID]],"db_Emissions_Payback","")<0,"No Payback",GetData(Data[[#This Row],[ID]],"db_Emissions_Payback","")) -> 0.4420020812 | N52: =GetData(Data[[#This Row],[ID]],"db_AQ_Score","") -> 48.88888889 | O52: =GetData(Data[[#This Row],[ID]],"db_SV_Average_Score","") -> 5.333333333 | P52: =GetData(Data[[#This Row],[ID]],"db_STK_Score","") -> 12 | Q52: =GetData(Data[[#This Row],[ID]],"db_ACH_Average_Achievability","") -> 28.33333333 | R52: =GetData(Data[[#This Row],[ID]],"db_ACH_Average_Commercial_Viability","") -> 54.16666667 | S52: =GetData(Data[[#This Row],[ID]],"db_Lead_Authority","Text") -> 
A53: 1480 | B53: =GetData(Data[[#This Row],[ID]],"db_Source","Text") -> Proving | C53: =GetData(Data[[#This Row],[ID]],"db_Portfolio","Text") -> Planning | D53: =GetData(Data[[#This Row],[ID]],"db_Status","Text") -> Planned | E53: =GetData(Data[[#This Row],[ID]],"db_Primary_Purpose","Text") -> ECD | F53: =GetData(Data[[#This Row],[ID]],"db_Additional_Purposes","Text") -> REV | G53: =GetData(Data[[#This Row],[ID]],"db_Option_Title","Text") -> 4G Infill Concessions | H53: Yes | I53: =GetData(Data[[#This Row],[ID]],"db_Development_Cost","") -> 60000 | J53: =GetData(Data[[#This Row],[ID]],"db_Average_Annual_Operating_Profit","") -> 22320 | K53: =IF(GetData(Data[[#This Row],[ID]],"db_Payback_Period","")<0,"No Payback",GetData(Data[[#This Row],[ID]],"db_Payback_Period","")) -> 2.688172043 | L53: =GetData(Data[[#This Row],[ID]],"db_TDCE_Average","") -> -20497.8 | M53: =IF(GetData(Data[[#This Row],[ID]],"db_Emissions_Payback","")<0,"No Payback",GetData(Data[[#This Row],[ID]],"db_Emissions_Payback","")) -> 0.7145644898 | N53: =GetData(Data[[#This Row],[ID]],"db_AQ_Score","") -> 64.44444444 | O53: =GetData(Data[[#This Row],[ID]],"db_SV_Average_Score","") -> 3.552713679e-16 | P53: =GetData(Data[[#This Row],[ID]],"db_STK_Score","") -> -2.5872 | Q53: =GetData(Data[[#This Row],[ID]],"db_ACH_Average_Achievability","") -> 29.16666667 | R53: =GetData(Data[[#This Row],[ID]],"db_ACH_Average_Commercial_Viability","") -> 40 | S53: =GetData(Data[[#This Row],[ID]],"db_Lead_Authority","Text") -> 
A54: 1490 | B54: =GetData(Data[[#This Row],[ID]],"db_Source","Text") -> Proving | C54: =GetData(Data[[#This Row],[ID]],"db_Portfolio","Text") -> Highways | D54: =GetData(Data[[#This Row],[ID]],"db_Status","Text") -> Planned | E54: =GetData(Data[[#This Row],[ID]],"db_Primary_Purpose","Text") -> SOI | F54: =GetData(Data[[#This Row],[ID]],"db_Additional_Purposes","Text") -> CRD,WEL,EQY | G54: =GetData(Data[[#This Row],[ID]],"db_Option_Title","Text") -> Street Furniture / Infrastructure as Technology Platform | H54: Yes | I54: =GetData(Data[[#This Row],[ID]],"db_Development_Cost","") -> 315000 | J54: =GetData(Data[[#This Row],[ID]],"db_Average_Annual_Operating_Profit","") -> 51120 | K54: =IF(GetData(Data[[#This Row],[ID]],"db_Payback_Period","")<0,"No Payback",GetData(Data[[#This Row],[ID]],"db_Payback_Period","")) -> 6.161971831 | L54: =GetData(Data[[#This Row],[ID]],"db_TDCE_Average","") -> -16081.8 | M54: =IF(GetData(Data[[#This Row],[ID]],"db_Emissions_Payback","")<0,"No Payback",GetData(Data[[#This Row],[ID]],"db_Emissions_Payback","")) -> 0.7940653409 | N54: =GetData(Data[[#This Row],[ID]],"db_AQ_Score","") -> 35.55555556 | O54: =GetData(Data[[#This Row],[ID]],"db_SV_Average_Score","") -> 16 | P54: =GetData(Data[[#This Row],[ID]],"db_STK_Score","") -> 10.5336 | Q54: =GetData(Data[[#This Row],[ID]],"db_ACH_Average_Achievability","") -> 39.16666667 | R54: =GetData(Data[[#This Row],[ID]],"db_ACH_Average_Commercial_Viability","") -> 50 | S54: =GetData(Data[[#This Row],[ID]],"db_Lead_Authority","Text") -> 
A55: 1500 | B55: =GetData(Data[[#This Row],[ID]],"db_Source","Text") -> Proving | C55: =GetData(Data[[#This Row],[ID]],"db_Portfolio","Text") -> Highways | D55: =GetData(Data[[#This Row],[ID]],"db_Status","Text") -> Planned | E55: =GetData(Data[[#This Row],[ID]],"db_Primary_Purpose","Text") -> REV | F55: =GetData(Data[[#This Row],[ID]],"db_Additional_Purposes","Text") -> SOI,CRY,COF,SUS | G55: =GetData(Data[[#This Row],[ID]],"db_Option_Title","Text") -> Selling Services to Other Authorities | H55: Yes | I55: =GetData(Data[[#This Row],[ID]],"db_Development_Cost","") -> 650000 | J55: =GetData(Data[[#This Row],[ID]],"db_Average_Annual_Operating_Profit","") -> 813000 | K55: =IF(GetData(Data[[#This Row],[ID]],"db_Payback_Period","")<0,"No Payback",GetData(Data[[#This Row],[ID]],"db_Payback_Period","")) -> 0.7995079951 | L55: =GetData(Data[[#This Row],[ID]],"db_TDCE_Average","") -> -11928.6 | M55: =IF(GetData(Data[[#This Row],[ID]],"db_Emissions_Payback","")<0,"No Payback",GetData(Data[[#This Row],[ID]],"db_Emissions_Payback","")) -> 0.8108244052 | N55: =GetData(Data[[#This Row],[ID]],"db_AQ_Score","") -> 26.66666667 | O55: =GetData(Data[[#This Row],[ID]],"db_SV_Average_Score","") -> -12 | P55: =GetData(Data[[#This Row],[ID]],"db_STK_Score","") -> -21.912 | Q55: =GetData(Data[[#This Row],[ID]],"db_ACH_Average_Achievability","") -> 66 | R55: =GetData(Data[[#This Row],[ID]],"db_ACH_Average_Commercial_Viability","") -> 43.75 | S55: =GetData(Data[[#This Row],[ID]],"db_Lead_Authority","Text") -> 
A56: 1510 | B56: =GetData(Data[[#This Row],[ID]],"db_Source","Text") -> Proving | C56: =GetData(Data[[#This Row],[ID]],"db_Portfolio","Text") -> Highways | D56: =GetData(Data[[#This Row],[ID]],"db_Status","Text") -> Planned | E56: =GetData(Data[[#This Row],[ID]],"db_Primary_Purpose","Text") -> CRE | F56: =GetData(Data[[#This Row],[ID]],"db_Additional_Purposes","Text") -> CRD | G56: =GetData(Data[[#This Row],[ID]],"db_Option_Title","Text") -> Recycling of Aggregates | H56: Yes | I56: =GetData(Data[[#This Row],[ID]],"db_Development_Cost","") -> 70000 | J56: =GetData(Data[[#This Row],[ID]],"db_Average_Annual_Operating_Profit","") -> 18000 | K56: =IF(GetData(Data[[#This Row],[ID]],"db_Payback_Period","")<0,"No Payback",GetData(Data[[#This Row],[ID]],"db_Payback_Period","")) -> 3.888888889 | L56: =GetData(Data[[#This Row],[ID]],"db_TDCE_Average","") -> -13241.8 | M56: =IF(GetData(Data[[#This Row],[ID]],"db_Emissions_Payback","")<0,"No Payback",GetData(Data[[#This Row],[ID]],"db_Emissions_Payback","")) -> 0.6201573804 | N56: =GetData(Data[[#This Row],[ID]],"db_AQ_Score","") -> 53.33333333 | O56: =GetData(Data[[#This Row],[ID]],"db_SV_Average_Score","") -> -6.666666667 | P56: =GetData(Data[[#This Row],[ID]],"db_STK_Score","") -> -16.712 | Q56: =GetData(Data[[#This Row],[ID]],"db_ACH_Average_Achievability","") -> 55.83333333 | R56: =GetData(Data[[#This Row],[ID]],"db_ACH_Average_Commercial_Viability","") -> 50 | S56: =GetData(Data[[#This Row],[ID]],"db_Lead_Authority","Text") -> 
A57: 1520 | B57: =GetData(Data[[#This Row],[ID]],"db_Source","Text") -> Proving | C57: =GetData(Data[[#This Row],[ID]],"db_Portfolio","Text") -> Facilities | D57: =GetData(Data[[#This Row],[ID]],"db_Status","Text") -> Planned | E57: =GetData(Data[[#This Row],[ID]],"db_Primary_Purpose","Text") -> CER | F57: =GetData(Data[[#This Row],[ID]],"db_Additional_Purposes","Text") -> CRD,COF | G57: =GetData(Data[[#This Row],[ID]],"db_Option_Title","Text") -> Battery Banks (Cost Offset) | I57: =GetData(Data[[#This Row],[ID]],"db_Development_Cost","") -> 7000000 | J57: =GetData(Data[[#This Row],[ID]],"db_Average_Annual_Operating_Profit","") -> 691200 | K57: =IF(GetData(Data[[#This Row],[ID]],"db_Payback_Period","")<0,"No Payback",GetData(Data[[#This Row],[ID]],"db_Payback_Period","")) -> 10.12731481 | L57: =GetData(Data[[#This Row],[ID]],"db_TDCE_Average","") -> -14027.8 | M57: =IF(GetData(Data[[#This Row],[ID]],"db_Emissions_Payback","")<0,"No Payback",GetData(Data[[#This Row],[ID]],"db_Emissions_Payback","")) -> 1.025891444 | N57: =GetData(Data[[#This Row],[ID]],"db_AQ_Score","") -> 53.33333333 | O57: =GetData(Data[[#This Row],[ID]],"db_SV_Average_Score","") -> -21.33333333 | P57: =GetData(Data[[#This Row],[ID]],"db_STK_Score","") -> -4.818 | Q57: =GetData(Data[[#This Row],[ID]],"db_ACH_Average_Achievability","") -> 56.25 | R57: =GetData(Data[[#This Row],[ID]],"db_ACH_Average_Commercial_Viability","") -> 87.5 | S57: =GetData(Data[[#This Row],[ID]],"db_Lead_Authority","Text") -> 
A58: 1540 | B58: =GetData(Data[[#This Row],[ID]],"db_Source","Text") -> Proving | C58: =GetData(Data[[#This Row],[ID]],"db_Portfolio","Text") -> Policy | D58: =GetData(Data[[#This Row],[ID]],"db_Status","Text") -> Planned | E58: =GetData(Data[[#This Row],[ID]],"db_Primary_Purpose","Text") -> CER | F58: =GetData(Data[[#This Row],[ID]],"db_Additional_Purposes","Text") -> AQI | G58: =GetData(Data[[#This Row],[ID]],"db_Option_Title","Text") -> Incentivise Citizens to Convert to EV | H58: Yes | I58: =GetData(Data[[#This Row],[ID]],"db_Development_Cost","") -> 250000 | J58: =GetData(Data[[#This Row],[ID]],"db_Average_Annual_Operating_Profit","") -> -40000 | K58: =IF(GetData(Data[[#This Row],[ID]],"db_Payback_Period","")<0,"No Payback",GetData(Data[[#This Row],[ID]],"db_Payback_Period","")) -> No Payback | L58: =GetData(Data[[#This Row],[ID]],"db_TDCE_Average","") -> -4000 | M58: =IF(GetData(Data[[#This Row],[ID]],"db_Emissions_Payback","")<0,"No Payback",GetData(Data[[#This Row],[ID]],"db_Emissions_Payback","")) -> 0 | N58: =GetData(Data[[#This Row],[ID]],"db_AQ_Score","") -> 71.11111111 | O58: =GetData(Data[[#This Row],[ID]],"db_SV_Average_Score","") -> -5.333333333 | P58: =GetData(Data[[#This Row],[ID]],"db_STK_Score","") -> 32 | Q58: =GetData(Data[[#This Row],[ID]],"db_ACH_Average_Achievability","") -> 52.5 | R58: =GetData(Data[[#This Row],[ID]],"db_ACH_Average_Commercial_Viability","") -> 45 | S58: =GetData(Data[[#This Row],[ID]],"db_Lead_Authority","Text") -> 
A59: 1550 | B59: =GetData(Data[[#This Row],[ID]],"db_Source","Text") -> Proving | C59: =GetData(Data[[#This Row],[ID]],"db_Portfolio","Text") -> Planning | D59: =GetData(Data[[#This Row],[ID]],"db_Status","Text") -> Planned | E59: =GetData(Data[[#This Row],[ID]],"db_Primary_Purpose","Text") -> REV | F59: =GetData(Data[[#This Row],[ID]],"db_Additional_Purposes","Text") -> CRD,COF,SUS,CER,AQI | G59: =GetData(Data[[#This Row],[ID]],"db_Option_Title","Text") -> Sell EV Infrastructure Concessions | H59: Yes | I59: =GetData(Data[[#This Row],[ID]],"db_Development_Cost","") -> 250000 | J59: =GetData(Data[[#This Row],[ID]],"db_Average_Annual_Operating_Profit","") -> 936000 | K59: =IF(GetData(Data[[#This Row],[ID]],"db_Payback_Period","")<0,"No Payback",GetData(Data[[#This Row],[ID]],"db_Payback_Period","")) -> 0.2670940171 | L59: =GetData(Data[[#This Row],[ID]],"db_TDCE_Average","") -> -17205.4 | M59: =IF(GetData(Data[[#This Row],[ID]],"db_Emissions_Payback","")<0,"No Payback",GetData(Data[[#This Row],[ID]],"db_Emissions_Payback","")) -> 0.8572889907 | N59: =GetData(Data[[#This Row],[ID]],"db_AQ_Score","") -> 37.77777778 | O59: =GetData(Data[[#This Row],[ID]],"db_SV_Average_Score","") -> 34.66666667 | P59: =GetData(Data[[#This Row],[ID]],"db_STK_Score","") -> -14.64 | Q59: =GetData(Data[[#This Row],[ID]],"db_ACH_Average_Achievability","") -> 38.33333333 | R59: =GetData(Data[[#This Row],[ID]],"db_ACH_Average_Commercial_Viability","") -> 55 | S59: =GetData(Data[[#This Row],[ID]],"db_Lead_Authority","Text") -> 
A60: 1560 | B60: =GetData(Data[[#This Row],[ID]],"db_Source","Text") -> Proving | C60: =GetData(Data[[#This Row],[ID]],"db_Portfolio","Text") -> Planning | D60: =GetData(Data[[#This Row],[ID]],"db_Status","Text") -> Planned | E60: =GetData(Data[[#This Row],[ID]],"db_Primary_Purpose","Text") -> REV | F60: =GetData(Data[[#This Row],[ID]],"db_Additional_Purposes","Text") -> CRD | G60: =GetData(Data[[#This Row],[ID]],"db_Option_Title","Text") -> EV Infrastructure Change of Use (Planning & Business Rate / Share of Business Rate) | I60: =GetData(Data[[#This Row],[ID]],"db_Development_Cost","") -> 210000 | J60: =GetData(Data[[#This Row],[ID]],"db_Average_Annual_Operating_Profit","") -> 64800 | K60: =IF(GetData(Data[[#This Row],[ID]],"db_Payback_Period","")<0,"No Payback",GetData(Data[[#This Row],[ID]],"db_Payback_Period","")) -> 3.240740741 | L60: =GetData(Data[[#This Row],[ID]],"db_TDCE_Average","") -> -12723.8 | M60: =IF(GetData(Data[[#This Row],[ID]],"db_Emissions_Payback","")<0,"No Payback",GetData(Data[[#This Row],[ID]],"db_Emissions_Payback","")) -> 0.6349518226 | N60: =GetData(Data[[#This Row],[ID]],"db_AQ_Score","") -> 66.66666667 | O60: =GetData(Data[[#This Row],[ID]],"db_SV_Average_Score","") -> -8 | P60: =GetData(Data[[#This Row],[ID]],"db_STK_Score","") -> -3.88 | Q60: =GetData(Data[[#This Row],[ID]],"db_ACH_Average_Achievability","") -> 44 | R60: =GetData(Data[[#This Row],[ID]],"db_ACH_Average_Commercial_Viability","") -> 70.83333333 | S60: =GetData(Data[[#This Row],[ID]],"db_Lead_Authority","Text") -> 
A61: 1570 | B61: =GetData(Data[[#This Row],[ID]],"db_Source","Text") -> Proving | C61: =GetData(Data[[#This Row],[ID]],"db_Portfolio","Text") -> Transport | D61: =GetData(Data[[#This Row],[ID]],"db_Status","Text") -> Planned | E61: =GetData(Data[[#This Row],[ID]],"db_Primary_Purpose","Text") -> SOI | F61: =GetData(Data[[#This Row],[ID]],"db_Additional_Purposes","Text") -> CRD,CRY,WEL,SUS | G61: =GetData(Data[[#This Row],[ID]],"db_Option_Title","Text") -> Demand Responsive Transport Services | H61: Yes | I61: =GetData(Data[[#This Row],[ID]],"db_Development_Cost","") -> 830000 | J61: =GetData(Data[[#This Row],[ID]],"db_Average_Annual_Operating_Profit","") -> 78800 | K61: =IF(GetData(Data[[#This Row],[ID]],"db_Payback_Period","")<0,"No Payback",GetData(Data[[#This Row],[ID]],"db_Payback_Period","")) -> 10.53299492 | L61: =GetData(Data[[#This Row],[ID]],"db_TDCE_Average","") -> -13715.2 | M61: =IF(GetData(Data[[#This Row],[ID]],"db_Emissions_Payback","")<0,"No Payback",GetData(Data[[#This Row],[ID]],"db_Emissions_Payback","")) -> 0.5370683621 | N61: =GetData(Data[[#This Row],[ID]],"db_AQ_Score","") -> 73.33333333 | O61: =GetData(Data[[#This Row],[ID]],"db_SV_Average_Score","") -> -33.33333333 | P61: =GetData(Data[[#This Row],[ID]],"db_STK_Score","") -> 3.8676 | Q61: =GetData(Data[[#This Row],[ID]],"db_ACH_Average_Achievability","") -> 64 | R61: =GetData(Data[[#This Row],[ID]],"db_ACH_Average_Commercial_Viability","") -> 50 | S61: =GetData(Data[[#This Row],[ID]],"db_Lead_Authority","Text") -> 
A62: 1580 | B62: =GetData(Data[[#This Row],[ID]],"db_Source","Text") -> Proving | C62: =GetData(Data[[#This Row],[ID]],"db_Portfolio","Text") -> Transport | D62: =GetData(Data[[#This Row],[ID]],"db_Status","Text") -> Planned | E62: =GetData(Data[[#This Row],[ID]],"db_Primary_Purpose","Text") -> RED | F62: =GetData(Data[[#This Row],[ID]],"db_Additional_Purposes","Text") -> SOI,COF,WEL,EQY,SUS | G62: =GetData(Data[[#This Row],[ID]],"db_Option_Title","Text") -> Classroom Virtualisation (Home To School Transport Cost-Offset) | H62: Yes | I62: =GetData(Data[[#This Row],[ID]],"db_Development_Cost","") -> 4300000 | J62: =GetData(Data[[#This Row],[ID]],"db_Average_Annual_Operating_Profit","") -> 864000 | K62: =IF(GetData(Data[[#This Row],[ID]],"db_Payback_Period","")<0,"No Payback",GetData(Data[[#This Row],[ID]],"db_Payback_Period","")) -> 4.976851852 | L62: =GetData(Data[[#This Row],[ID]],"db_TDCE_Average","") -> -17803.2 | M62: =IF(GetData(Data[[#This Row],[ID]],"db_Emissions_Payback","")<0,"No Payback",GetData(Data[[#This Row],[ID]],"db_Emissions_Payback","")) -> 0.5189516491 | N62: =GetData(Data[[#This Row],[ID]],"db_AQ_Score","") -> 40 | O62: =GetData(Data[[#This Row],[ID]],"db_SV_Average_Score","") -> -4 | P62: =GetData(Data[[#This Row],[ID]],"db_STK_Score","") -> -1.044 | Q62: =GetData(Data[[#This Row],[ID]],"db_ACH_Average_Achievability","") -> 60.83333333 | R62: =GetData(Data[[#This Row],[ID]],"db_ACH_Average_Commercial_Viability","") -> 62.5 | S62: =GetData(Data[[#This Row],[ID]],"db_Lead_Authority","Text") -> 
A63: 1590 | B63: =GetData(Data[[#This Row],[ID]],"db_Source","Text") -> Proving | C63: =GetData(Data[[#This Row],[ID]],"db_Portfolio","Text") -> Transport | D63: =GetData(Data[[#This Row],[ID]],"db_Status","Text") -> Planned | E63: =GetData(Data[[#This Row],[ID]],"db_Primary_Purpose","Text") -> SOI | F63: =GetData(Data[[#This Row],[ID]],"db_Additional_Purposes","Text") -> CRD,COF,WEL,EQY,SUS | G63: =GetData(Data[[#This Row],[ID]],"db_Option_Title","Text") -> In-Home / Vulnerable People Virtual Care / Oversight Arrangements | H63: Yes | I63: =GetData(Data[[#This Row],[ID]],"db_Development_Cost","") -> 4500000 | J63: =GetData(Data[[#This Row],[ID]],"db_Average_Annual_Operating_Profit","") -> 1512000 | K63: =IF(GetData(Data[[#This Row],[ID]],"db_Payback_Period","")<0,"No Payback",GetData(Data[[#This Row],[ID]],"db_Payback_Period","")) -> 2.976190476 | L63: =GetData(Data[[#This Row],[ID]],"db_TDCE_Average","") -> -10986.6 | M63: =IF(GetData(Data[[#This Row],[ID]],"db_Emissions_Payback","")<0,"No Payback",GetData(Data[[#This Row],[ID]],"db_Emissions_Payback","")) -> 1.048641072 | N63: =GetData(Data[[#This Row],[ID]],"db_AQ_Score","") -> 44.44444444 | O63: =GetData(Data[[#This Row],[ID]],"db_SV_Average_Score","") -> -8 | P63: =GetData(Data[[#This Row],[ID]],"db_STK_Score","") -> 13.6488 | Q63: =GetData(Data[[#This Row],[ID]],"db_ACH_Average_Achievability","") -> 45 | R63: =GetData(Data[[#This Row],[ID]],"db_ACH_Average_Commercial_Viability","") -> 70 | S63: =GetData(Data[[#This Row],[ID]],"db_Lead_Authority","Text") -> 
A64: 1600 | B64: =GetData(Data[[#This Row],[ID]],"db_Source","Text") -> Proving | C64: =GetData(Data[[#This Row],[ID]],"db_Portfolio","Text") -> Transport | D64: =GetData(Data[[#This Row],[ID]],"db_Status","Text") -> Planned | E64: =GetData(Data[[#This Row],[ID]],"db_Primary_Purpose","Text") -> RED | F64: =GetData(Data[[#This Row],[ID]],"db_Additional_Purposes","Text") -> SOI,CRY,SUS,CER | G64: =GetData(Data[[#This Row],[ID]],"db_Option_Title","Text") -> Driverless Public Transport Services | H64: Yes | I64: =GetData(Data[[#This Row],[ID]],"db_Development_Cost","") -> 6700000 | J64: =GetData(Data[[#This Row],[ID]],"db_Average_Annual_Operating_Profit","") -> 1584000 | K64: =IF(GetData(Data[[#This Row],[ID]],"db_Payback_Period","")<0,"No Payback",GetData(Data[[#This Row],[ID]],"db_Payback_Period","")) -> 4.22979798 | L64: =GetData(Data[[#This Row],[ID]],"db_TDCE_Average","") -> -20884.2 | M64: =IF(GetData(Data[[#This Row],[ID]],"db_Emissions_Payback","")<0,"No Payback",GetData(Data[[#This Row],[ID]],"db_Emissions_Payback","")) -> 0.3281428065 | N64: =GetData(Data[[#This Row],[ID]],"db_AQ_Score","") -> 62.22222222 | O64: =GetData(Data[[#This Row],[ID]],"db_SV_Average_Score","") -> -6.666666667 | P64: =GetData(Data[[#This Row],[ID]],"db_STK_Score","") -> -4.356 | Q64: =GetData(Data[[#This Row],[ID]],"db_ACH_Average_Achievability","") -> 66 | R64: =GetData(Data[[#This Row],[ID]],"db_ACH_Average_Commercial_Viability","") -> 65 | S64: =GetData(Data[[#This Row],[ID]],"db_Lead_Authority","Text") -> 
A65: 1610 | B65: =GetData(Data[[#This Row],[ID]],"db_Source","Text") -> Proving | C65: =GetData(Data[[#This Row],[ID]],"db_Portfolio","Text") -> Highways | D65: =GetData(Data[[#This Row],[ID]],"db_Status","Text") -> Planned | E65: =GetData(Data[[#This Row],[ID]],"db_Primary_Purpose","Text") -> REV | F65: =GetData(Data[[#This Row],[ID]],"db_Additional_Purposes","Text") -> CER | G65: =GetData(Data[[#This Row],[ID]],"db_Option_Title","Text") -> Extending On-Street Parking Fees / Permits | H65: Yes | I65: =GetData(Data[[#This Row],[ID]],"db_Development_Cost","") -> 1300000 | J65: =GetData(Data[[#This Row],[ID]],"db_Average_Annual_Operating_Profit","") -> 1368000 | K65: =IF(GetData(Data[[#This Row],[ID]],"db_Payback_Period","")<0,"No Payback",GetData(Data[[#This Row],[ID]],"db_Payback_Period","")) -> 0.9502923977 | L65: =GetData(Data[[#This Row],[ID]],"db_TDCE_Average","") -> -15593.8 | M65: =IF(GetData(Data[[#This Row],[ID]],"db_Emissions_Payback","")<0,"No Payback",GetData(Data[[#This Row],[ID]],"db_Emissions_Payback","")) -> 1.024573869 | N65: =GetData(Data[[#This Row],[ID]],"db_AQ_Score","") -> 28.88888889 | O65: =GetData(Data[[#This Row],[ID]],"db_SV_Average_Score","") -> 8 | P65: =GetData(Data[[#This Row],[ID]],"db_STK_Score","") -> -28 | Q65: =GetData(Data[[#This Row],[ID]],"db_ACH_Average_Achievability","") -> 45 | R65: =GetData(Data[[#This Row],[ID]],"db_ACH_Average_Commercial_Viability","") -> 60 | S65: =GetData(Data[[#This Row],[ID]],"db_Lead_Authority","Text") -> 
A66: 1620 | B66: =GetData(Data[[#This Row],[ID]],"db_Source","Text") -> Proving | C66: =GetData(Data[[#This Row],[ID]],"db_Portfolio","Text") -> Transport | D66: =GetData(Data[[#This Row],[ID]],"db_Status","Text") -> Planned | E66: =GetData(Data[[#This Row],[ID]],"db_Primary_Purpose","Text") -> CER | F66: =GetData(Data[[#This Row],[ID]],"db_Additional_Purposes","Text") -> SUS,AQI | G66: =GetData(Data[[#This Row],[ID]],"db_Option_Title","Text") -> Car Club Permits / Dockless Bikes | I66: =GetData(Data[[#This Row],[ID]],"db_Development_Cost","") -> 93000 | J66: =GetData(Data[[#This Row],[ID]],"db_Average_Annual_Operating_Profit","") -> -17000 | K66: =IF(GetData(Data[[#This Row],[ID]],"db_Payback_Period","")<0,"No Payback",GetData(Data[[#This Row],[ID]],"db_Payback_Period","")) -> No Payback | L66: =GetData(Data[[#This Row],[ID]],"db_TDCE_Average","") -> -12109.2 | M66: =IF(GetData(Data[[#This Row],[ID]],"db_Emissions_Payback","")<0,"No Payback",GetData(Data[[#This Row],[ID]],"db_Emissions_Payback","")) -> 1.098751363 | N66: =GetData(Data[[#This Row],[ID]],"db_AQ_Score","") -> 28.88888889 | O66: =GetData(Data[[#This Row],[ID]],"db_SV_Average_Score","") -> 20 | P66: =GetData(Data[[#This Row],[ID]],"db_STK_Score","") -> 5.0304 | Q66: =GetData(Data[[#This Row],[ID]],"db_ACH_Average_Achievability","") -> 45.83333333 | R66: =GetData(Data[[#This Row],[ID]],"db_ACH_Average_Commercial_Viability","") -> 70 | S66: =GetData(Data[[#This Row],[ID]],"db_Lead_Authority","Text") -> 
A67: 1630 | B67: =GetData(Data[[#This Row],[ID]],"db_Source","Text") -> Proving | C67: =GetData(Data[[#This Row],[ID]],"db_Portfolio","Text") -> Highways | D67: =GetData(Data[[#This Row],[ID]],"db_Status","Text") -> Planned | E67: =GetData(Data[[#This Row],[ID]],"db_Primary_Purpose","Text") -> REV | F67: =GetData(Data[[#This Row],[ID]],"db_Additional_Purposes","Text") -> ECD,CRY | G67: =GetData(Data[[#This Row],[ID]],"db_Option_Title","Text") -> Selling Concessions to Traders (Laybys, Car Parks, Park-and-Ride and Estates) | H67: Yes | I67: =GetData(Data[[#This Row],[ID]],"db_Development_Cost","") -> 77000 | J67: =GetData(Data[[#This Row],[ID]],"db_Average_Annual_Operating_Profit","") -> 226800 | K67: =IF(GetData(Data[[#This Row],[ID]],"db_Payback_Period","")<0,"No Payback",GetData(Data[[#This Row],[ID]],"db_Payback_Period","")) -> 0.3395061728 | L67: =GetData(Data[[#This Row],[ID]],"db_TDCE_Average","") -> 310 | M67: =IF(GetData(Data[[#This Row],[ID]],"db_Emissions_Payback","")<0,"No Payback",GetData(Data[[#This Row],[ID]],"db_Emissions_Payback","")) -> No Payback | N67: =GetData(Data[[#This Row],[ID]],"db_AQ_Score","") -> 55.55555556 | O67: =GetData(Data[[#This Row],[ID]],"db_SV_Average_Score","") -> -10.66666667 | P67: =GetData(Data[[#This Row],[ID]],"db_STK_Score","") -> 7.92 | Q67: =GetData(Data[[#This Row],[ID]],"db_ACH_Average_Achievability","") -> 50.83333333 | R67: =GetData(Data[[#This Row],[ID]],"db_ACH_Average_Commercial_Viability","") -> 33.33333333 | S67: =GetData(Data[[#This Row],[ID]],"db_Lead_Authority","Text") -> 
A68: 1640 | B68: =GetData(Data[[#This Row],[ID]],"db_Source","Text") -> Proving | C68: =GetData(Data[[#This Row],[ID]],"db_Portfolio","Text") -> Highways | D68: =GetData(Data[[#This Row],[ID]],"db_Status","Text") -> Planned | E68: =GetData(Data[[#This Row],[ID]],"db_Primary_Purpose","Text") -> REV | F68: =GetData(Data[[#This Row],[ID]],"db_Additional_Purposes","Text") -> ECD,CRY | G68: =GetData(Data[[#This Row],[ID]],"db_Option_Title","Text") -> On-Street License (for Cafés and Street Traders) | H68: Yes | I68: =GetData(Data[[#This Row],[ID]],"db_Development_Cost","") -> 78000 | J68: =GetData(Data[[#This Row],[ID]],"db_Average_Annual_Operating_Profit","") -> 280800 | K68: =IF(GetData(Data[[#This Row],[ID]],"db_Payback_Period","")<0,"No Payback",GetData(Data[[#This Row],[ID]],"db_Payback_Period","")) -> 0.2777777778 | L68: =GetData(Data[[#This Row],[ID]],"db_TDCE_Average","") -> -15491.8 | M68: =IF(GetData(Data[[#This Row],[ID]],"db_Emissions_Payback","")<0,"No Payback",GetData(Data[[#This Row],[ID]],"db_Emissions_Payback","")) -> 0.7270297835 | N68: =GetData(Data[[#This Row],[ID]],"db_AQ_Score","") -> 55.55555556 | O68: =GetData(Data[[#This Row],[ID]],"db_SV_Average_Score","") -> -24 | P68: =GetData(Data[[#This Row],[ID]],"db_STK_Score","") -> 6.1248 | Q68: =GetData(Data[[#This Row],[ID]],"db_ACH_Average_Achievability","") -> 31 | R68: =GetData(Data[[#This Row],[ID]],"db_ACH_Average_Commercial_Viability","") -> 55 | S68: =GetData(Data[[#This Row],[ID]],"db_Lead_Authority","Text") -> 
A69: 1650 | B69: =GetData(Data[[#This Row],[ID]],"db_Source","Text") -> Proving | C69: =GetData(Data[[#This Row],[ID]],"db_Portfolio","Text") -> Highways | D69: =GetData(Data[[#This Row],[ID]],"db_Status","Text") -> Planned | E69: =GetData(Data[[#This Row],[ID]],"db_Primary_Purpose","Text") -> REV | F69: =GetData(Data[[#This Row],[ID]],"db_Additional_Purposes","Text") -> ECD,CRD,CRY | G69: =GetData(Data[[#This Row],[ID]],"db_Option_Title","Text") -> Downward Devolution (Agency Agreements & DTP Engagement) | H69: Yes | I69: =GetData(Data[[#This Row],[ID]],"db_Development_Cost","") -> 290000 | J69: =GetData(Data[[#This Row],[ID]],"db_Average_Annual_Operating_Profit","") -> 396000 | K69: =IF(GetData(Data[[#This Row],[ID]],"db_Payback_Period","")<0,"No Payback",GetData(Data[[#This Row],[ID]],"db_Payback_Period","")) -> 0.7323232323 | L69: =GetData(Data[[#This Row],[ID]],"db_TDCE_Average","") -> -14284.6 | M69: =IF(GetData(Data[[#This Row],[ID]],"db_Emissions_Payback","")<0,"No Payback",GetData(Data[[#This Row],[ID]],"db_Emissions_Payback","")) -> 0.4814275513 | N69: =GetData(Data[[#This Row],[ID]],"db_AQ_Score","") -> 44.44444444 | O69: =GetData(Data[[#This Row],[ID]],"db_SV_Average_Score","") -> -21.33333333 | P69: =GetData(Data[[#This Row],[ID]],"db_STK_Score","") -> -21.912 | Q69: =GetData(Data[[#This Row],[ID]],"db_ACH_Average_Achievability","") -> 32 | R69: =GetData(Data[[#This Row],[ID]],"db_ACH_Average_Commercial_Viability","") -> 50 | S69: =GetData(Data[[#This Row],[ID]],"db_Lead_Authority","Text") -> 
A70: 1660 | B70: =GetData(Data[[#This Row],[ID]],"db_Source","Text") -> Proving | C70: =GetData(Data[[#This Row],[ID]],"db_Portfolio","Text") -> Highways | D70: =GetData(Data[[#This Row],[ID]],"db_Status","Text") -> Planned | E70: =GetData(Data[[#This Row],[ID]],"db_Primary_Purpose","Text") -> REV | F70: =GetData(Data[[#This Row],[ID]],"db_Additional_Purposes","Text") -> CRD,CRY,COF | G70: =GetData(Data[[#This Row],[ID]],"db_Option_Title","Text") -> Crowd-Funded Schemes | H70: Yes | I70: =GetData(Data[[#This Row],[ID]],"db_Development_Cost","") -> 12000 | J70: =GetData(Data[[#This Row],[ID]],"db_Average_Annual_Operating_Profit","") -> 216000 | K70: =IF(GetData(Data[[#This Row],[ID]],"db_Payback_Period","")<0,"No Payback",GetData(Data[[#This Row],[ID]],"db_Payback_Period","")) -> 0.05555555556 | L70: =GetData(Data[[#This Row],[ID]],"db_TDCE_Average","") -> -15503.6 | M70: =IF(GetData(Data[[#This Row],[ID]],"db_Emissions_Payback","")<0,"No Payback",GetData(Data[[#This Row],[ID]],"db_Emissions_Payback","")) -> 1.163342708 | N70: =GetData(Data[[#This Row],[ID]],"db_AQ_Score","") -> 44.44444444 | O70: =GetData(Data[[#This Row],[ID]],"db_SV_Average_Score","") -> 12 | P70: =GetData(Data[[#This Row],[ID]],"db_STK_Score","") -> 0.0264 | Q70: =GetData(Data[[#This Row],[ID]],"db_ACH_Average_Achievability","") -> 22 | R70: =GetData(Data[[#This Row],[ID]],"db_ACH_Average_Commercial_Viability","") -> 45 | S70: =GetData(Data[[#This Row],[ID]],"db_Lead_Authority","Text") -> 
A71: 1670 | B71: =GetData(Data[[#This Row],[ID]],"db_Source","Text") -> Proving | C71: =GetData(Data[[#This Row],[ID]],"db_Portfolio","Text") -> Highways | D71: =GetData(Data[[#This Row],[ID]],"db_Status","Text") -> Planned | E71: =GetData(Data[[#This Row],[ID]],"db_Primary_Purpose","Text") -> REV | F71: =GetData(Data[[#This Row],[ID]],"db_Additional_Purposes","Text") -> SOI,CRD,CRY | G71: =GetData(Data[[#This Row],[ID]],"db_Option_Title","Text") -> Training & Knowledge Sharing (e.g. Road Safety) | I71: =GetData(Data[[#This Row],[ID]],"db_Development_Cost","") -> 170000 | J71: =GetData(Data[[#This Row],[ID]],"db_Average_Annual_Operating_Profit","") -> 18000 | K71: =IF(GetData(Data[[#This Row],[ID]],"db_Payback_Period","")<0,"No Payback",GetData(Data[[#This Row],[ID]],"db_Payback_Period","")) -> 9.444444444 | L71: =GetData(Data[[#This Row],[ID]],"db_TDCE_Average","") -> -16214.6 | M71: =IF(GetData(Data[[#This Row],[ID]],"db_Emissions_Payback","")<0,"No Payback",GetData(Data[[#This Row],[ID]],"db_Emissions_Payback","")) -> 0.8511464976 | N71: =GetData(Data[[#This Row],[ID]],"db_AQ_Score","") -> 35.55555556 | O71: =GetData(Data[[#This Row],[ID]],"db_SV_Average_Score","") -> -5.333333333 | P71: =GetData(Data[[#This Row],[ID]],"db_STK_Score","") -> -11.88 | Q71: =GetData(Data[[#This Row],[ID]],"db_ACH_Average_Achievability","") -> 61 | R71: =GetData(Data[[#This Row],[ID]],"db_ACH_Average_Commercial_Viability","") -> 41.66666667 | S71: =GetData(Data[[#This Row],[ID]],"db_Lead_Authority","Text") -> 
A72: 1680 | B72: =GetData(Data[[#This Row],[ID]],"db_Source","Text") -> Proving | C72: =GetData(Data[[#This Row],[ID]],"db_Portfolio","Text") -> Highways | D72: =GetData(Data[[#This Row],[ID]],"db_Status","Text") -> Planned | E72: =GetData(Data[[#This Row],[ID]],"db_Primary_Purpose","Text") -> CER | F72: =GetData(Data[[#This Row],[ID]],"db_Additional_Purposes","Text") -> ECD,REV,COF,WEL,AQI | G72: =GetData(Data[[#This Row],[ID]],"db_Option_Title","Text") -> Road Charging Schemes (Tolls) | H72: Yes | I72: =GetData(Data[[#This Row],[ID]],"db_Development_Cost","") -> 3900000 | J72: =GetData(Data[[#This Row],[ID]],"db_Average_Annual_Operating_Profit","") -> 792000 | K72: =IF(GetData(Data[[#This Row],[ID]],"db_Payback_Period","")<0,"No Payback",GetData(Data[[#This Row],[ID]],"db_Payback_Period","")) -> 4.924242424 | L72: =GetData(Data[[#This Row],[ID]],"db_TDCE_Average","") -> -15217.6 | M72: =IF(GetData(Data[[#This Row],[ID]],"db_Emissions_Payback","")<0,"No Payback",GetData(Data[[#This Row],[ID]],"db_Emissions_Payback","")) -> 0.61645726 | N72: =GetData(Data[[#This Row],[ID]],"db_AQ_Score","") -> 40 | O72: =GetData(Data[[#This Row],[ID]],"db_SV_Average_Score","") -> -13.33333333 | P72: =GetData(Data[[#This Row],[ID]],"db_STK_Score","") -> 23.76 | Q72: =GetData(Data[[#This Row],[ID]],"db_ACH_Average_Achievability","") -> 70.83333333 | R72: =GetData(Data[[#This Row],[ID]],"db_ACH_Average_Commercial_Viability","") -> 60 | S72: =GetData(Data[[#This Row],[ID]],"db_Lead_Authority","Text") -> 
A73: 1690 | B73: =GetData(Data[[#This Row],[ID]],"db_Source","Text") -> Proving | C73: =GetData(Data[[#This Row],[ID]],"db_Portfolio","Text") -> Highways | D73: =GetData(Data[[#This Row],[ID]],"db_Status","Text") -> Planned | E73: =GetData(Data[[#This Row],[ID]],"db_Primary_Purpose","Text") -> REV | F73: =GetData(Data[[#This Row],[ID]],"db_Additional_Purposes","Text") -> WEL,CER,AQI | G73: =GetData(Data[[#This Row],[ID]],"db_Option_Title","Text") -> CCTV Parking / Movement / Weight Restrictions Enforcement | H73: Yes | I73: =GetData(Data[[#This Row],[ID]],"db_Development_Cost","") -> 1300000 | J73: =GetData(Data[[#This Row],[ID]],"db_Average_Annual_Operating_Profit","") -> 504000 | K73: =IF(GetData(Data[[#This Row],[ID]],"db_Payback_Period","")<0,"No Payback",GetData(Data[[#This Row],[ID]],"db_Payback_Period","")) -> 2.579365079 | L73: =GetData(Data[[#This Row],[ID]],"db_TDCE_Average","") -> -14768.6 | M73: =IF(GetData(Data[[#This Row],[ID]],"db_Emissions_Payback","")<0,"No Payback",GetData(Data[[#This Row],[ID]],"db_Emissions_Payback","")) -> 0.8732039598 | N73: =GetData(Data[[#This Row],[ID]],"db_AQ_Score","") -> 44.44444444 | O73: =GetData(Data[[#This Row],[ID]],"db_SV_Average_Score","") -> 13.33333333 | P73: =GetData(Data[[#This Row],[ID]],"db_STK_Score","") -> -4.4088 | Q73: =GetData(Data[[#This Row],[ID]],"db_ACH_Average_Achievability","") -> 59.16666667 | R73: =GetData(Data[[#This Row],[ID]],"db_ACH_Average_Commercial_Viability","") -> 70 | S73: =GetData(Data[[#This Row],[ID]],"db_Lead_Authority","Text") -> 
A74: 1700 | B74: =GetData(Data[[#This Row],[ID]],"db_Source","Text") -> Proving | C74: =GetData(Data[[#This Row],[ID]],"db_Portfolio","Text") -> Highways | D74: =GetData(Data[[#This Row],[ID]],"db_Status","Text") -> Planned | E74: =GetData(Data[[#This Row],[ID]],"db_Primary_Purpose","Text") -> REV | F74: =GetData(Data[[#This Row],[ID]],"db_Additional_Purposes","Text") -> ECD,EQY,CER,AQI | G74: =GetData(Data[[#This Row],[ID]],"db_Option_Title","Text") -> Devolved Powers from DVLA (e.g. Road Tax Enforcement) | H74: Yes | I74: =GetData(Data[[#This Row],[ID]],"db_Development_Cost","") -> 16000 | J74: =GetData(Data[[#This Row],[ID]],"db_Average_Annual_Operating_Profit","") -> 81440 | K74: =IF(GetData(Data[[#This Row],[ID]],"db_Payback_Period","")<0,"No Payback",GetData(Data[[#This Row],[ID]],"db_Payback_Period","")) -> 0.1964636542 | L74: =GetData(Data[[#This Row],[ID]],"db_TDCE_Average","") -> -17217.8 | M74: =IF(GetData(Data[[#This Row],[ID]],"db_Emissions_Payback","")<0,"No Payback",GetData(Data[[#This Row],[ID]],"db_Emissions_Payback","")) -> 0.9260184228 | N74: =GetData(Data[[#This Row],[ID]],"db_AQ_Score","") -> 35.55555556 | O74: =GetData(Data[[#This Row],[ID]],"db_SV_Average_Score","") -> -13.33333333 | P74: =GetData(Data[[#This Row],[ID]],"db_STK_Score","") -> -15.644 | Q74: =GetData(Data[[#This Row],[ID]],"db_ACH_Average_Achievability","") -> 63.75 | R74: =GetData(Data[[#This Row],[ID]],"db_ACH_Average_Commercial_Viability","") -> 35 | S74: =GetData(Data[[#This Row],[ID]],"db_Lead_Authority","Text") -> 
A75: 1710 | B75: =GetData(Data[[#This Row],[ID]],"db_Source","Text") -> Proving | C75: =GetData(Data[[#This Row],[ID]],"db_Portfolio","Text") -> Highways | D75: =GetData(Data[[#This Row],[ID]],"db_Status","Text") -> Planned | E75: =GetData(Data[[#This Row],[ID]],"db_Primary_Purpose","Text") -> REV | F75: =GetData(Data[[#This Row],[ID]],"db_Additional_Purposes","Text") -> CRY | G75: =GetData(Data[[#This Row],[ID]],"db_Option_Title","Text") -> Selling Traffic Management Survey Data | H75: Yes | I75: =GetData(Data[[#This Row],[ID]],"db_Development_Cost","") -> 80000 | J75: =GetData(Data[[#This Row],[ID]],"db_Average_Annual_Operating_Profit","") -> 14400 | K75: =IF(GetData(Data[[#This Row],[ID]],"db_Payback_Period","")<0,"No Payback",GetData(Data[[#This Row],[ID]],"db_Payback_Period","")) -> 5.555555556 | L75: =GetData(Data[[#This Row],[ID]],"db_TDCE_Average","") -> -17031 | M75: =IF(GetData(Data[[#This Row],[ID]],"db_Emissions_Payback","")<0,"No Payback",GetData(Data[[#This Row],[ID]],"db_Emissions_Payback","")) -> 0.7866831073 | N75: =GetData(Data[[#This Row],[ID]],"db_AQ_Score","") -> 33.33333333 | O75: =GetData(Data[[#This Row],[ID]],"db_SV_Average_Score","") -> 5.333333333 | P75: =GetData(Data[[#This Row],[ID]],"db_STK_Score","") -> -23.7336 | Q75: =GetData(Data[[#This Row],[ID]],"db_ACH_Average_Achievability","") -> 44.16666667 | R75: =GetData(Data[[#This Row],[ID]],"db_ACH_Average_Commercial_Viability","") -> 37.5 | S75: =GetData(Data[[#This Row],[ID]],"db_Lead_Authority","Text") -> 
A76: 1720 | B76: =GetData(Data[[#This Row],[ID]],"db_Source","Text") -> Proving | C76: =GetData(Data[[#This Row],[ID]],"db_Portfolio","Text") -> Highways | D76: =GetData(Data[[#This Row],[ID]],"db_Status","Text") -> Planned | E76: =GetData(Data[[#This Row],[ID]],"db_Primary_Purpose","Text") -> CRE | F76: =GetData(Data[[#This Row],[ID]],"db_Additional_Purposes","Text") -> SOI,COF | G76: =GetData(Data[[#This Row],[ID]],"db_Option_Title","Text") -> Green / Insurance Claims | H76: Yes | I76: =GetData(Data[[#This Row],[ID]],"db_Development_Cost","") -> 156000 | J76: =GetData(Data[[#This Row],[ID]],"db_Average_Annual_Operating_Profit","") -> 2136000 | K76: =IF(GetData(Data[[#This Row],[ID]],"db_Payback_Period","")<0,"No Payback",GetData(Data[[#This Row],[ID]],"db_Payback_Period","")) -> 0.07303370787 | L76: =GetData(Data[[#This Row],[ID]],"db_TDCE_Average","") -> -11696.2 | M76: =IF(GetData(Data[[#This Row],[ID]],"db_Emissions_Payback","")<0,"No Payback",GetData(Data[[#This Row],[ID]],"db_Emissions_Payback","")) -> 1.069834647 | N76: =GetData(Data[[#This Row],[ID]],"db_AQ_Score","") -> 26.66666667 | O76: =GetData(Data[[#This Row],[ID]],"db_SV_Average_Score","") -> 4 | P76: =GetData(Data[[#This Row],[ID]],"db_STK_Score","") -> 13.4 | Q76: =GetData(Data[[#This Row],[ID]],"db_ACH_Average_Achievability","") -> 42 | R76: =GetData(Data[[#This Row],[ID]],"db_ACH_Average_Commercial_Viability","") -> 35 | S76: =GetData(Data[[#This Row],[ID]],"db_Lead_Authority","Text") -> 
A77: 1730 | B77: =GetData(Data[[#This Row],[ID]],"db_Source","Text") -> Proving | C77: =GetData(Data[[#This Row],[ID]],"db_Portfolio","Text") -> Highways | D77: =GetData(Data[[#This Row],[ID]],"db_Status","Text") -> Planned | E77: =GetData(Data[[#This Row],[ID]],"db_Primary_Purpose","Text") -> CRE | F77: =GetData(Data[[#This Row],[ID]],"db_Additional_Purposes","Text") -> CRD | G77: =GetData(Data[[#This Row],[ID]],"db_Option_Title","Text") -> Road Damage Compensation (Quarry / Timber Extraction Charging) | H77: Yes | I77: =GetData(Data[[#This Row],[ID]],"db_Development_Cost","") -> 75000 | J77: =GetData(Data[[#This Row],[ID]],"db_Average_Annual_Operating_Profit","") -> 93600 | K77: =IF(GetData(Data[[#This Row],[ID]],"db_Payback_Period","")<0,"No Payback",GetData(Data[[#This Row],[ID]],"db_Payback_Period","")) -> 0.8012820513 | L77: =GetData(Data[[#This Row],[ID]],"db_TDCE_Average","") -> -19524.2 | M77: =IF(GetData(Data[[#This Row],[ID]],"db_Emissions_Payback","")<0,"No Payback",GetData(Data[[#This Row],[ID]],"db_Emissions_Payback","")) -> 0.7911719814 | N77: =GetData(Data[[#This Row],[ID]],"db_AQ_Score","") -> 11.11111111 | O77: =GetData(Data[[#This Row],[ID]],"db_SV_Average_Score","") -> -6.666666667 | P77: =GetData(Data[[#This Row],[ID]],"db_STK_Score","") -> 18.1248 | Q77: =GetData(Data[[#This Row],[ID]],"db_ACH_Average_Achievability","") -> 26.66666667 | R77: =GetData(Data[[#This Row],[ID]],"db_ACH_Average_Commercial_Viability","") -> 37.5 | S77: =GetData(Data[[#This Row],[ID]],"db_Lead_Authority","Text") -> 
A78: 1740 | B78: =GetData(Data[[#This Row],[ID]],"db_Source","Text") -> Proving | C78: =GetData(Data[[#This Row],[ID]],"db_Portfolio","Text") -> Highways | D78: =GetData(Data[[#This Row],[ID]],"db_Status","Text") -> Planned | E78: =GetData(Data[[#This Row],[ID]],"db_Primary_Purpose","Text") -> RED | F78: =GetData(Data[[#This Row],[ID]],"db_Additional_Purposes","Text") -> ECD,SOI,SUS | G78: =GetData(Data[[#This Row],[ID]],"db_Option_Title","Text") -> Road Surface Temperature Sensors for Gritting Route Planning | H78: Yes | I78: =GetData(Data[[#This Row],[ID]],"db_Development_Cost","") -> 1400000 | J78: =GetData(Data[[#This Row],[ID]],"db_Average_Annual_Operating_Profit","") -> 504000 | K78: =IF(GetData(Data[[#This Row],[ID]],"db_Payback_Period","")<0,"No Payback",GetData(Data[[#This Row],[ID]],"db_Payback_Period","")) -> 2.777777778 | L78: =GetData(Data[[#This Row],[ID]],"db_TDCE_Average","") -> -16061.8 | M78: =IF(GetData(Data[[#This Row],[ID]],"db_Emissions_Payback","")<0,"No Payback",GetData(Data[[#This Row],[ID]],"db_Emissions_Payback","")) -> 1.019375163 | N78: =GetData(Data[[#This Row],[ID]],"db_AQ_Score","") -> 71.11111111 | O78: =GetData(Data[[#This Row],[ID]],"db_SV_Average_Score","") -> -17.33333333 | P78: =GetData(Data[[#This Row],[ID]],"db_STK_Score","") -> 29.556 | Q78: =GetData(Data[[#This Row],[ID]],"db_ACH_Average_Achievability","") -> 62.5 | R78: =GetData(Data[[#This Row],[ID]],"db_ACH_Average_Commercial_Viability","") -> 75 | S78: =GetData(Data[[#This Row],[ID]],"db_Lead_Authority","Text") -> 
A79: 1750 | B79: =GetData(Data[[#This Row],[ID]],"db_Source","Text") -> Proving | C79: =GetData(Data[[#This Row],[ID]],"db_Portfolio","Text") -> Highways | D79: =GetData(Data[[#This Row],[ID]],"db_Status","Text") -> Planned | E79: =GetData(Data[[#This Row],[ID]],"db_Primary_Purpose","Text") -> CRE | F79: =GetData(Data[[#This Row],[ID]],"db_Additional_Purposes","Text") -> CRD,SUS | G79: =GetData(Data[[#This Row],[ID]],"db_Option_Title","Text") -> Enhanced Green Claims: Asset Strike Sensors (Bridges, Roundabouts, Street Furniture) | H79: Yes | I79: =GetData(Data[[#This Row],[ID]],"db_Development_Cost","") -> 185000 | J79: =GetData(Data[[#This Row],[ID]],"db_Average_Annual_Operating_Profit","") -> 1062500 | K79: =IF(GetData(Data[[#This Row],[ID]],"db_Payback_Period","")<0,"No Payback",GetData(Data[[#This Row],[ID]],"db_Payback_Period","")) -> 0.1741176471 | L79: =GetData(Data[[#This Row],[ID]],"db_TDCE_Average","") -> -12859 | M79: =IF(GetData(Data[[#This Row],[ID]],"db_Emissions_Payback","")<0,"No Payback",GetData(Data[[#This Row],[ID]],"db_Emissions_Payback","")) -> 1.428027063 | N79: =GetData(Data[[#This Row],[ID]],"db_AQ_Score","") -> 46.66666667 | O79: =GetData(Data[[#This Row],[ID]],"db_SV_Average_Score","") -> 32 | P79: =GetData(Data[[#This Row],[ID]],"db_STK_Score","") -> -4.356 | Q79: =GetData(Data[[#This Row],[ID]],"db_ACH_Average_Achievability","") -> 51 | R79: =GetData(Data[[#This Row],[ID]],"db_ACH_Average_Commercial_Viability","") -> 60 | S79: =GetData(Data[[#This Row],[ID]],"db_Lead_Authority","Text") -> 
A80: Double-Click here to insert a new row.
A81: Double-Click the [ID] on a row to delete the option.
N82: All Options | O82: Filtered Options
M83: Total Portfolio Development Cost | N83: =SUM(Data[Project Cost]) -> 177533000 | O83: =SUBTOTAL(109,Data[Project Cost]) -> 177533000
M84: Average Operational Profit (Per Annum) | N84: =AVERAGE(Data[Avg. Op. Profit]) -> 535218.0822 | O84: =SUBTOTAL(101,Data[Avg. Op. Profit]) -> 535218.0822
M85: Number of Portfolio Initiatives | N85: =COUNTA(Data[Option]) -> 73 | O85: =SUBTOTAL(103,Data[Option]) -> 73
M87: Average Financial Break Even | N87: =IFERROR(AVERAGE(Data[£ Payback Period]),0) -> 4.067266673 | O87: =IFERROR(SUBTOTAL(101,Data[£ Payback Period]),0) -> 4.067266673
M88: Total CDE Change | N88: =IFERROR(SUM(Data[CDE Avg. Change]),0) -> -1067354.2 | O88: =IFERROR(SUBTOTAL(109,Data[CDE Avg. Change]),0) -> -1067354.2
M89: Average AQ Score | N89: =IFERROR(AVERAGE(Data[AQ Score]),0) -> 46.72754947 | O89: =IFERROR(SUBTOTAL(101,Data[AQ Score]),0) -> 46.72754947
M90: Average Social Value Score | N90: =IFERROR(AVERAGE(Data[SV Score]),0) -> 0.5114155251 | O90: =IFERROR(SUBTOTAL(101,Data[SV Score]),0) -> 0.5114155251
M91: Average Stakeholder Score | N91: =IFERROR(AVERAGE(Data[STK Score]),0) -> 0.3834027397 | O91: =IFERROR(SUBTOTAL(101,Data[STK Score]),0) -> 0.3834027397
M92: Average Achievability | N92: =IFERROR(AVERAGE(Data[ACH Score]),0) -> 50.10273973 | O92: =IFERROR(SUBTOTAL(101,Data[ACH Score]),0) -> 50.10273973
M93: Average Commercial Viability | N93: =IFERROR(AVERAGE(Data[ACH Viability]),0) -> 51.44977169 | O93: =IFERROR(SUBTOTAL(101,Data[ACH Viability]),0) -> 51.44977169

Sheet Dashboard

Sheet Pivot Financials (hidden)
A3: Row Labels | B3: Sum of Project Cost | C3: Sum of Avg. Op. Profit | D3: Average of £ Payback Period
A4: CER | B4: 147201000 | C4: 23413820 | D4: 5.96330117
A5: RED | B5: 18485000 | C5: 4361040 | D5: 3.764795569
A6: SOI | B6: 5645000 | C6: 1641920 | D6: 6.55705241
A7: REV | B7: 4961000 | C7: 5422440 | D7: 2.056644345
A8: CRE | B8: 1181000 | C8: 4569380 | D8: 1.354271888
A9: ECD | B9: 60000 | C9: 22320 | D9: 2.688172043
A10: Grand Total | B10: 177533000 | C10: 39430920 | D10: 3.967397929

Sheet Selected Option (hidden)
C6: ID | D6: =GetId() ->  | E6: Name | F6: Enforce Building Standards: Test for Planning Permission Compliance | M6: Source | N6: FotE | P6: Reference Authority | U6: Status | V6: Planned
E8: Option Description | P8: Primary Purpose | R8: CER | U8: Portfolio | V8: Planning
P10: Additional Purposes | R10: ECD,CRD,WEL,EQY,SUS | U10: Start
R11: Double-Click Purpose(s) To Set
B12: Cost of Business Change & Income Generation | C12: Cost of Option Development | J12: 115000 | U12: End
J14: Year 1 | K14: Year 2 | L14: Year 3 | M14: Year 4 | N14: Year 5 | P14: In-Line Comments
C15: Anticipated Transactions Per Annum
C16: Average Revenue Per Transaction
H17: Other Cashable Benefits / Cost Savings / Efficiency Gains
H18: Total Annual Revenue | J18: =(J17+(J15*J16)) -> 0 | K18: =(K17+(K15*K16)) -> 0 | L18: =(L17+(L15*L16)) -> 0 | M18: =(M17+(M15*M16)) -> 0 | N18: =(N17+(N15*N16)) -> 0
C19: Confidence In Revenue Projections (%) | J19: 1 | K19: 0.8 | L19: 0.7 | M19: 0.6 | N19: 0.5
H20: Confidence-Adjusted Total Annual Revenue | J20: =J19*J18 -> 0 | K20: =K19*K18 -> 0 | L20: =L19*L18 -> 0 | M20: =M19*M18 -> 0 | N20: =N19*N18 -> 0
H21: Annual Cost of Service / Operations | J21: 112000 | K21: 112000 | L21: 112000 | M21: 112000 | N21: 112000
C22: Partner(s) Revenue Sharing / License Payments (%)
H23: Gross Operating Profit After All Fees | J23: =J20-(J21+J22) -> -112000 | K23: =K20-(K21+K22) -> -112000 | L23: =L20-(L21+L22) -> -112000 | M23: =M20-(M21+M22) -> -112000 | N23: =N20-(N21+N22) -> -112000
H24: Annual Cost of Overheads
C25: Net Operating Profit | J25: =J23-J24 -> -112000 | K25: =K23-K24 -> -112000 | L25: =L23-L24 -> -112000 | M25: =M23-M24 -> -112000 | N25: =N23-N24 -> -112000
C26: Cumulative Operating Profit | J26: =J25 -> -112000 | K26: =+db_Cumulative_Operating_Profit_Year_1+db_Net_Operating_Profit_Year_2 -> -224000 | L26: =+db_Cumulative_Operating_Profit_Year_2+db_Net_Operating_Profit_Year_3 -> -336000 | M26: =+db_Cumulative_Operating_Profit_Year_3+db_Net_Operating_Profit_Year_4 -> -448000 | N26: =+db_Cumulative_Operating_Profit_Year_4+db_Net_Operating_Profit_Year_5 -> -560000
C28: Average Annual Operating Profit | J28: =AVERAGEIF(J25:N25,"<>") -> -112000
H30: £ Payback Period (Years) | J30: =CalculatePayback(J28,J12) -> -1.026785714
B32: Stakeholders | H32: Stakeholder Group | J32: Internal | M32: External / Citizens
H33: Stakeholders | J33: Executive | K33: Members | L33: Officers | M33: Affected | N33: Other | P33: In-Line Comments
H34: Awareness | J34: Medium [66] | K34: Medium [66] | L34: High [100] | M34: High [100] | N34: None [0]
H35: Influence | J35: High [100] | K35: Medium [66] | L35: Low [33] | M35: Medium [66] | N35: None [0]
H36: Perceived Option Support (Pre-Consultation) | J36: None [0] | K36: +ve Low [+40] | L36: -ve Low [-40] | M36: +ve High [+100] | N36: None [0]
H37: Actual Option Support (Post Consultation) | J37: None [0] | K37: -ve Medium [-60] | L37: None [0] | M37: +ve Low [+40] | N37: -ve Low [-40]
H38: Stakeholder Score | J38: =GetStakeholderScore(J34,J35,J36,J37) -> 0 | K38: =GetStakeholderScore(K34,K35,K36,K37) -> -26.136 | L38: =GetStakeholderScore(L34,L35,L36,L37) -> 0 | M38: =GetStakeholderScore(M34,M35,M36,M37) -> 26.4 | N38: =GetStakeholderScore(N34,N35,N36,N37) -> 0
H40: Overall Stakeholder Score | J40: =IFERROR(AVERAGEIF(J38:N38,"<>"),0) -> 0.0528
B42: CO2 Impact | C42: Option Development / Implementation Emissions | J42: 8411 | K42: (Metric Tonnes Carbon Dioxide Equivalent)
J44: Year 1 | K44: Year 2 | L44: Year 3 | M44: Year 4 | N44: Year 5 | P44: Emissions Analysis, Years 1 to 5 (Metric Tonnes: t)
H45: TCDE Output Reductions | J45: 8492 | K45: 13623 | L45: 11192 | M45: 18383 | N45: 23502 | P45: 81308 | Q45: Carbon Dioxide (CO2) | T45: 0 | U45: Perfluorocarbons (PFCs)
H46: TCDE Extraction & Storage | J46: 0 | K46: 0 | L46: 0 | M46: 0 | N46: 0 | P46: 4060 | Q46: Methane (CH4) | T46: 69215 | U46: Hydrofluorocarbons (HFCs)
H47: TCDE Offsets | J47: 0 | K47: 0 | L47: 0 | M47: 0 | N47: 0 | P47: 35826 | Q47: Nitrous Oxide (N2O) | S47: 0 | T47: 0 | U47: Sulphur Hexafluoride (SF6)
H48: TCDE Increases | J48: 0 | K48: 0 | L48: 0 | M48: 0 | N48: 4726
H49: Balance TCDE | J49: =J48-SUM(J45:J47) -> -8492 | K49: =K48-SUM(K45:K47) -> -13623 | L49: =L48-SUM(L45:L47) -> -11192 | M49: =M48-SUM(M45:M47) -> -18383 | N49: =N48-SUM(N45:N47) -> -18776
C51: Average TDCE | J51: =AVERAGE(J49:N49) -> -14093.2
H53: CDE Payback Period (Years) | J53: =IFERROR(IF(db_TDCE_Average<0,db_Emissions_Development/ABS(db_TDCE_Average),"No Payback"),0) -> 0.5968126472
B55: Air Quality | H55: COMEAP Air Quality Scales | J55: Ozone (µg/m³) | K55: Nitrogen Dioxide (µg/m³) | L55: Sulphur Dioxide (µg/m³) | M55: PM2.5 Particles (µgm-3) | N55: PM10 Particles (µgm-3) | P55: In-Line Comments
H58: Starting Air Quality (Reading) | J58: 67-100 [3] | K58: 68-134 [2] | L58: 267-354 [4] | M58: 65-70 [9] | N58: 92-100 [9]
H59: Resultant Air Quality (Post Change Reading / Projection) | J59: 188-213 [9] | K59: 468-534 [8] | L59: 178-266 [3] | M59: >71 [10] | N59: 59-66 [5]
H60: AQ Change | J60: =IF(GetScore(J58,"[","]")="",10,GetScore(J58,"[","]"))-IF(GetScore(J59,"[","]")="",10,(GetScore(J59,"[","]"))) -> -6 | K60: =IF(GetScore(K58,"[","]")="",10,GetScore(K58,"[","]"))-IF(GetScore(K59,"[","]")="",10,(GetScore(K59,"[","]"))) -> -6 | L60: =IF(GetScore(L58,"[","]")="",10,GetScore(L58,"[","]"))-IF(GetScore(L59,"[","]")="",10,(GetScore(L59,"[","]"))) -> 1 | M60: =IF(GetScore(M58,"[","]")="",10,GetScore(M58,"[","]"))-IF(GetScore(M59,"[","]")="",10,(GetScore(M59,"[","]"))) -> -1 | N60: =IF(GetScore(N58,"[","]")="",10,GetScore(N58,"[","]"))-IF(GetScore(N59,"[","]")="",10,(GetScore(N59,"[","]"))) -> 4
H62: Air Quality Score (0 to 100, Poor to Excellent) | J62: =IFERROR(AQConvert(J59:N59),0) -> 33.33333333
B64: Social Value | J64: Year 1 | K64: Year 2 | L64: Year 3 | M64: Year 4 | N64: Year 5 | P64: In-Line Comments
H65: Wellbeing Change | J65: +ve Low [+40] | K65: +ve Low [+40] | L65: +ve Medium [+60] | M65: -ve High [-100] | N65: -ve Low [-40]
H66: Equality Change | J66: +ve Low [+40] | K66: +ve Medium [+60] | L66: +ve High [+100] | M66: +ve High [+100] | N66: -ve Low [-40]
H67: Environmental Sustainability Change | J67: +ve High [+100] | K67: -ve High [-100] | L67: -ve Medium [-60] | M67: -ve Medium [-60] | N67: None [0]
H68: Average Social Value | J68: =IFERROR(GetSocialValue(J65:J67),0) -> 60 | K68: =IFERROR(GetSocialValue(K65:K67),0) -> 0 | L68: =IFERROR(GetSocialValue(L65:L67),0) -> 33.33333333 | M68: =IFERROR(GetSocialValue(M65:M67),0) -> -20 | N68: =IFERROR(GetSocialValue(N65:N67),0) -> -26.66666667
H70: Social Score (Years 1 to 5) | J70: =IFERROR(AVERAGEIF(J68:N68,"<>"),0) -> 9.333333333
B72: Achievability | H72: Sector Readiness (Case Studies) | J72: Some Cases / Mixed Results [50] | M72: =IF(GetScore(J72,"[","]",TRUE)<>-1,GetScore(J72,"[","]",TRUE),"") -> 50 | P72: Commercial Viability | R72: Market Size | T72: Not Applicable [-1] | W72: =IF(GetScore(T72,"[","]",TRUE)<>-1,GetScore(T72,"[","]",TRUE),"") -> 
H73: Authority Readiness | J73: Live Operations [100] | M73: =IF(GetScore(J73,"[","]",TRUE)<>-1,GetScore(J73,"[","]",TRUE),"") -> 100 | R73: Market Growth | T73: Very High [100] | W73: =IF(GetScore(T73,"[","]",TRUE)<>-1,GetScore(T73,"[","]",TRUE),"") -> 100
H74: Technology Readiness | J74: Research & Development [20] | M74: =IF(GetScore(J74,"[","]",TRUE)<>-1,GetScore(J74,"[","]",TRUE),"") -> 20 | R74: Market Profitability | T74: Low [25] | W74: =IF(GetScore(T74,"[","]",TRUE)<>-1,GetScore(T74,"[","]",TRUE),"") -> 25
H75: Political Alignment | J75: Not Applicable [-1] | M75: =IF(GetScore(J75,"[","]",TRUE)<>-1,GetScore(J75,"[","]",TRUE),"") ->  | R75: Market Volatility | T75: Very High [0] | W75: =IF(GetScore(T75,"[","]",TRUE)<>-1,GetScore(T75,"[","]",TRUE),"") -> 0
H76: Realisation Risk (Complexity) | J76: Very High [0] | M76: =IF(GetScore(J76,"[","]",TRUE)<>-1,GetScore(J76,"[","]",TRUE),"") -> 0 | R76: Competitive Intensity | T76: Not Applicable [-1] | W76: =IF(GetScore(T76,"[","]",TRUE)<>-1,GetScore(T76,"[","]",TRUE),"") -> 
H77: Operational Risk | J77: High [25] | M77: =IF(GetScore(J77,"[","]",TRUE)<>-1,GetScore(J77,"[","]",TRUE),"") -> 25 | R77: Competitive Position | T77: Very Low [0] | W77: =IF(GetScore(T77,"[","]",TRUE)<>-1,GetScore(T77,"[","]",TRUE),"") -> 0
C79: Achievability Score | J79: =(IFERROR(AVERAGE(M72:M77),0)) -> 39 | R79: Commercial Viability Score | T79: =(IFERROR(AVERAGE(W72:W77),0)) -> 31.25
C81: Comments
C86: Critical Enablers / Considerations
C91: Barriers to Implementation
C96: Key Operational Risks

Sheet Pivot Emmissions (hidden)
A1: In Portfolio | B1: (All)
A3: Row Labels | B3: Sum of CDE Avg. Change | C3: Average of CDE Payback Period
A4: CER | B4: -528883.2 | C4: 1.003058203
A5: REV | B5: -236789.4 | C5: 0.8868998165
A6: RED | B6: -132166.4 | C6: 0.6792181501
A7: CRE | B7: -108233.8 | C7: 0.8481826465
A8: SOI | B8: -40783.6 | C8: 0.7932582583
A9: ECD | B9: -20497.8 | C9: 0.7145644898
A10: Grand Total | B10: -1067354.2 | C10: 0.9121951461

Sheet Pivot Air Quality (hidden)
A3: Row Labels | B3: Average of AQ Score
A4: ECD | B4: 64.44444444
A5: RED | B5: 52.77777778
A6: SOI | B6: 51.11111111
A7: CER | B7: 47.80780781
A8: REV | B8: 43.52941176
A9: CRE | B9: 37.46031746
A10: Grand Total | B10: 46.72754947

Sheet Pivot Social Value (hidden)
A3: Row Labels | B3: Sum of SV Score
A4: CER | B4: 46.66666667
A5: CRE | B5: 37.33333333
A6: ECD | B6: 3.552713679e-16
A7: REV | B7: -1.333333333
A8: RED | B8: -20
A9: SOI | B9: -25.33333333
A10: Grand Total | B10: 37.33333333

Sheet Pivot Stakeholders (hidden)
A3: Row Labels | B3: Average of STK Score
A4: SOI | B4: 9.35
A5: RED | B5: 7.4169
A6: CER | B6: 1.692227027
A7: CRE | B7: -0.3843428571
A8: ECD | B8: -2.5872
A9: REV | B9: -6.866564706
A10: Grand Total | B10: 0.3834027397

Sheet Pivot Achievability (hidden)
A3: Row Labels | B3: Option Achievability Score | C3: Commercial Viability Score
A4: RED | B4: 57.5625 | C4: 51.92708333
A5: CER | B5: 51.83108108 | C5: 53.38963964
A6: SOI | B6: 49.38888889 | C6: 56.66666667
A7: CRE | B7: 47.69047619 | C7: 45.6547619
A8: REV | B8: 45.18137255 | C8: 49.14215686
A9: ECD | B9: 29.16666667 | C9: 40
A10: Grand Total | B10: 50.10273973 | C10: 51.44977169

Sheet Data (hidden)
A1: db_Source | B1: db_Option_ID | C1: db_Option_Title | D1: db_Lead_Authority | E1: db_Status | F1: db_Portfolio | G1: db_ACH_Authority_Readiness | H1: db_ACH_Average_Achievability | I1: db_ACH_Average_Commercial_Viability | J1: db_ACH_Competitive_Intensity | K1: db_ACH_Competitive_Position | L1: db_ACH_Market_Growth | M1: db_ACH_Market_Profitability | N1: db_ACH_Market_Size | O1: db_ACH_Market_Volatility | P1: db_ACH_Operational_Risk | Q1: db_ACH_Political_Alignment | R1: db_ACH_Realisation_Risk | S1: db_ACH_Sector_Readiness | T1: db_ACH_Technology_Readiness | U1: db_Additional_Purposes | V1: db_Annual_Cost_Year_1 | W1: db_Annual_Cost_Year_2 | X1: db_Annual_Cost_Year_3 | Y1: db_Annual_Cost_Year_4 | Z1: db_Annual_Cost_Year_5 | AA1: db_Annual_Overheads_1 | AB1: db_Annual_Overheads_2 | AC1: db_Annual_Overheads_3 | AD1: db_Annual_Overheads_4 | AE1: db_Annual_Overheads_5 | AF1: db_AQ_Change_Nitrogen_Dioxide | AG1: db_AQ_Change_Ozone | AH1: db_AQ_Change_PM10 | AI1: db_AQ_Change_PM25 | AJ1: db_AQ_Change_Sulphur_Dioxide | AK1: db_AQ_Closing_Nitrogen_Dioxide | AL1: db_AQ_Closing_Ozone | AM1: db_AQ_Closing_PM10 | AN1: db_AQ_Closing_PM25 | AO1: db_AQ_Closing_Sulphur_Dioxide | AP1: db_AQ_Score | AQ1: db_AQ_Starting_Nitrogen_Dioxide | AR1: db_AQ_Starting_Ozone | AS1: db_AQ_Starting_PM10 | AT1: db_AQ_Starting_PM25 | AU1: db_AQ_Starting_Sulphur_Dioxide | AV1: db_Average_Annual_Operating_Profit | AW1: db_Barrier_1 | AX1: db_Barrier_2 | AY1: db_Barrier_3 | AZ1: db_CA_Operating_Profit_Year_1 | BA1: db_CA_Operating_Profit_Year_2 | BB1: db_CA_Operating_Profit_Year_3 | BC1: db_CA_Operating_Profit_Year_4 | BD1: db_CA_Operating_Profit_Year_5 | BE1: db_Comments | BF1: db_Critical_Enabler_1 | BG1: db_Critical_Enabler_2 | BH1: db_Critical_Enabler_3 | BI1: db_Cumulative_Operating_Profit_Year_1 | BJ1: db_Cumulative_Operating_Profit_Year_2 | BK1: db_Cumulative_Operating_Profit_Year_3 | BL1: db_Cumulative_Operating_Profit_Year_4 | BM1: db_Cumulative_Operating_Profit_Year_5 | BN1: db_Development_Cost | BO1: db_Emissions_Carbon_Dioxide | BP1: db_Emissions_Development | BQ1: db_Emissions_Hydrofluorocarbons | BR1: db_Emissions_Methane | BS1: db_Emissions_Nitrous_Oxide | BT1: db_Emissions_Payback | BU1: db_Emissions_Perfluorocarbons | BV1: db_Emissions_Sulphur_Hexafluoride | BW1: db_End_Date | BX1: db_Gross_Operating_Profit_Year_1 | BY1: db_Gross_Operating_Profit_Year_2 | BZ1: db_Gross_Operating_Profit_Year_3 | CA1: db_Gross_Operating_Profit_Year_4 | CB1: db_Gross_Operating_Profit_Year_5 | CC1: db_In_Line_Comment_1 | CD1: db_In_Line_Comment_10 | CE1: db_In_Line_Comment_11 | CF1: db_In_Line_Comment_12 | CG1: db_In_Line_Comment_13 | CH1: db_In_Line_Comment_14 | CI1: db_In_Line_Comment_15 | CJ1: db_In_Line_Comment_16 | CK1: db_In_Line_Comment_17 | CL1: db_In_Line_Comment_18 | CM1: db_In_Line_Comment_19 | CN1: db_In_Line_Comment_2 | CO1: db_In_Line_Comment_20 | CP1: db_In_Line_Comment_21 | CQ1: db_In_Line_Comment_22 | CR1: db_In_Line_Comment_23 | CS1: db_In_Line_Comment_24 | CT1: db_In_Line_Comment_25 | CU1: db_In_Line_Comment_26 | CV1: db_In_Line_Comment_3 | CW1: db_In_Line_Comment_4 | CX1: db_In_Line_Comment_5 | CY1: db_In_Line_Comment_6 | CZ1: db_In_Line_Comment_7 | DA1: db_In_Line_Comment_8 | DB1: db_In_Line_Comment_9 | DC1: db_License_Payment_1 | DD1: db_License_Payment_2 | DE1: db_License_Payment_3 | DF1: db_License_Payment_4 | DG1: db_License_Payment_5 | DH1: db_Net_Operating_Profit_Year_1 | DI1: db_Net_Operating_Profit_Year_2 | DJ1: db_Net_Operating_Profit_Year_3 | DK1: db_Net_Operating_Profit_Year_4 | DL1: db_Net_Operating_Profit_Year_5 | DM1: db_Operating_Profit_After_Fees_Year_1 | DN1: db_Operating_Profit_After_Fees_Year_2 | DO1: db_Operating_Profit_After_Fees_Year_3 | DP1: db_Operating_Profit_After_Fees_Year_4 | DQ1: db_Operating_Profit_After_Fees_Year_5 | DR1: db_Option_Description | DS1: db_Other_Benefits_Year_1 | DT1: db_Other_Benefits_Year_2 | DU1: db_Other_Benefits_Year_3 | DV1: db_Other_Benefits_Year_4 | DW1: db_Other_Benefits_Year_5 | DX1: db_Payback_Period | DY1: db_Primary_Purpose | DZ1: db_Revenue_Confidence_Year_1 | EA1: db_Revenue_Confidence_Year_2 | EB1: db_Revenue_Confidence_Year_3 | EC1: db_Revenue_Confidence_Year_4 | ED1: db_Revenue_Confidence_Year_5 | EE1: db_Revenue_Per_Transaction_Year_1 | EF1: db_Revenue_Per_Transaction_Year_2 | EG1: db_Revenue_Per_Transaction_Year_3 | EH1: db_Revenue_Per_Transaction_Year_4 | EI1: db_Revenue_Per_Transaction_Year_5 | EJ1: db_Risk_1 | EK1: db_Risk_2 | EL1: db_Risk_3 | EM1: db_Start_Date | EN1: db_STK_Affected_Actual | EO1: db_STK_Affected_Awareness | EP1: db_STK_Affected_Influence | EQ1: db_STK_Affected_Perceived | ER1: db_STK_Affected_Total | ES1: db_STK_Exec_Actual | ET1: db_STK_Exec_Awareness | EU1: db_STK_Exec_Influence | EV1: db_STK_Exec_Perceived | EW1: db_STK_Exec_Total | EX1: db_STK_Member_Actual | EY1: db_STK_Member_Awareness | EZ1: db_STK_Member_Influence | FA1: db_STK_Member_Perceived | FB1: db_STK_Member_Total | FC1: db_STK_Officer_Actual | FD1: db_STK_Officer_Awareness | FE1: db_STK_Officer_Influence | FF1: db_STK_Officer_Perceived | FG1: db_STK_Officer_Total | FH1: db_STK_Other_Actual | FI1: db_STK_Other_Awareness | FJ1: db_STK_Other_Influence | FK1: db_STK_Other_Perceived | FL1: db_STK_Other_Total | FM1: db_STK_Score | FN1: db_SV_Average_Score | FO1: db_SV_Average_Year_1 | FP1: db_SV_Average_Year_2 | FQ1: db_SV_Average_Year_3 | FR1: db_SV_Average_Year_4 | FS1: db_SV_Average_Year_5 | FT1: db_SV_Equality_Year_1 | FU1: db_SV_Equality_Year_2 | FV1: db_SV_Equality_Year_3 | FW1: db_SV_Equality_Year_4 | FX1: db_SV_Equality_Year_5 | FY1: db_SV_Sustainability_Year_1 | FZ1: db_SV_Sustainability_Year_2 | GA1: db_SV_Sustainability_Year_3 | GB1: db_SV_Sustainability_Year_4 | GC1: db_SV_Sustainability_Year_5 | GD1: db_SV_Wellbeing_Year_1 | GE1: db_SV_Wellbeing_Year_2 | GF1: db_SV_Wellbeing_Year_3 | GG1: db_SV_Wellbeing_Year_4 | GH1: db_SV_Wellbeing_Year_5 | GI1: db_TDCE_Average | GJ1: db_TDCE_Balance_Year_1 | GK1: db_TDCE_Balance_Year_2 | GL1: db_TDCE_Balance_Year_3 | GM1: db_TDCE_Balance_Year_4 | GN1: db_TDCE_Balance_Year_5 | GO1: db_TDCE_Extraction_Year_1 | GP1: db_TDCE_Extraction_Year_2 | GQ1: db_TDCE_Extraction_Year_3 | GR1: db_TDCE_Extraction_Year_4 | GS1: db_TDCE_Extraction_Year_5 | GT1: db_TDCE_Increases_Year_1 | GU1: db_TDCE_Increases_Year_2 | GV1: db_TDCE_Increases_Year_3 | GW1: db_TDCE_Increases_Year_4 | GX1: db_TDCE_Increases_Year_5 | GY1: db_TDCE_Offset_Year_1 | GZ1: db_TDCE_Offset_Year_2 | HA1: db_TDCE_Offset_Year_3 | HB1: db_TDCE_Offset_Year_4 | HC1: db_TDCE_Offset_Year_5 | HD1: db_TDCE_Reductions_Year_1 | HE1: db_TDCE_Reductions_Year_2 | HF1: db_TDCE_Reductions_Year_3 | HG1: db_TDCE_Reductions_Year_4 | HH1: db_TDCE_Reductions_Year_5 | HI1: db_Transactions_Year_1 | HJ1: db_Transactions_Year_2 | HK1: db_Transactions_Year_3 | HL1: db_Transactions_Year_4 | HM1: db_Transactions_Year_5 | HN1: db_Type
A2: FotE | B2: 1010 | C2: Reduce Roads Capacity / Increase Private Vehicle Journey Times | E2: Planned | F2: Highways | G2: Adoption / Implementation [75] | H2: 70.83333333 | I2: 35 | J2: High [25] | K2: Very High [100] | L2: Medium [50] | M2: Not Applicable [-1] | N2: Very Low [0] | O2: Very High [0] | P2: Low [75] | Q2: Very High [100] | R2: High [25] | S2: Some Cases / Mixed Results [50] | T2: Available - Mature [100] | U2: SUS,AQI | AF2: 8 | AG2: 0 | AH2: 9 | AI2: 2 | AJ2: -3 | AK2: 68-134 [2] | AL2: 121-140 [5] | AM2: 0-16 [1] | AN2: 54-58 [7] | AO2: >1065 [10] | AP2: 55.55555556 | AQ2: >601 [10] | AR2: 121-140 [5] | AS2: >101 [10] | AT2: 59-64 [9] | AU2: 533-710 [7] | AV2: 2952000 | AZ2: 4100000 | BA2: 3280000 | BB2: 2870000 | BC2: 2460000 | BD2: 2050000 | BI2: 4100000 | BJ2: 7380000 | BK2: 10250000 | BL2: 12710000 | BM2: 14760000 | BN2: 3900000 | BO2: 87044 | BP2: 15900 | BQ2: 0 | BR2: 4334 | BS2: 50816 | BT2: 0.9990198296 | BU2: 0 | BV2: 0 | BX2: 4100000 | BY2: 4100000 | BZ2: 4100000 | CA2: 4100000 | CB2: 4100000 | DH2: 4100000 | DI2: 3280000 | DJ2: 2870000 | DK2: 2460000 | DL2: 2050000 | DM2: 4100000 | DN2: 3280000 | DO2: 2870000 | DP2: 2460000 | DQ2: 2050000 | DS2: 4100000 | DT2: 4100000 | DU2: 4100000 | DV2: 4100000 | DW2: 4100000 | DX2: 1.321138211 | DY2: CER | DZ2: 1 | EA2: 0.8 | EB2: 0.7 | EC2: 0.6 | ED2: 0.5 | EN2: -ve Medium [-60] | EO2: Low [33] | EP2: Medium [66] | EQ2: +ve Low [+40] | ER2: -13.068 | ES2: -ve Medium [-60] | ET2: None [0] | EU2: None [0] | EV2: +ve Low [+40] | EW2: 0 | EX2: -ve Low [-40] | EY2: Medium [66] | EZ2: Low [33] | FA2: -ve Medium [-60] | FB2: -8.712 | FC2: +ve Low [+40] | FD2: Medium [66] | FE2: Low [33] | FF2: -ve Low [-40] | FG2: 8.712 | FH2: None [0] | FI2: Medium [66] | FJ2: None [0] | FK2: None [0] | FL2: 0 | FM2: -2.6136 | FN2: 1.333333333 | FO2: -66.66666667 | FP2: 40 | FQ2: 20 | FR2: 20 | FS2: -6.666666667 | FT2: None [0] | FU2: +ve High [+100] | FV2: -ve Medium [-60] | FW2: +ve High [+100] | FX2: -ve High [-100] | FY2: -ve High [-100] | FZ2: +ve Medium [+60] | GA2: +ve Medium [+60] | GB2: None [0] | GC2: +ve Low [+40] | GD2: -ve High [-100] | GE2: -ve Low [-40] | GF2: +ve Medium [+60] | GG2: -ve Low [-40] | GH2: +ve Low [+40] | GI2: -15915.6 | GJ2: -19126 | GK2: -7776 | GL2: -12285 | GM2: -15251 | GN2: -25140 | GO2: 3618 | GP2: 0 | GQ2: 0 | GR2: 0 | GS2: 0 | GT2: 0 | GU2: 0 | GV2: 0 | GW2: 0 | GX2: 0 | GY2: 8341 | GZ2: 0 | HA2: 0 | HB2: 0 | HC2: 0 | HD2: 7167 | HE2: 7776 | HF2: 12285 | HG2: 15251 | HH2: 25140
A3: FotE | B3: 1020 | C3: Increase Cycling & Pedestrian Priorities (Rights of Way) | E3: Planned | F3: Transport | G3: Adoption / Implementation [75] | H3: 55 | I3: 60 | J3: High [25] | K3: Not Applicable [-1] | L3: Very High [100] | M3: Very Low [0] | N3: Very High [100] | O3: Low [75] | P3: Medium [50] | Q3: Medium [50] | R3: Very High [0] | S3: Many Cases / Good Results [100] | T3: Not Applicable [-1] | U3: WEL,EQY,CER,AQI | V3: 60000 | W3: 60000 | X3: 60000 | Y3: 60000 | Z3: 60000 | AF3: 4 | AG3: 1 | AH3: -8 | AI3: 1 | AJ3: -2 | AK3: 68-134 [2] | AL3: 101-120 [4] | AM3: >101 [10] | AN3: 42-47 [5] | AO3: 267-354 [4] | AP3: 55.55555556 | AQ3: 335-400 [6] | AR3: 121-140 [5] | AS3: 17-33 [2] | AT3: 48-53 [6] | AU3: 89-177 [2] | AV3: -34800 | AZ3: 35000 | BA3: 28000 | BB3: 24500 | BC3: 21000 | BD3: 17500 | BI3: -25000 | BJ3: -57000 | BK3: -92500 | BL3: -131500 | BM3: -174000 | BN3: 1900000 | BO3: 81499 | BP3: 13026 | BQ3: 0 | BR3: 6530 | BS3: 35134 | BT3: 1.12732371 | BU3: 36915 | BV3: 0 | BX3: 35000 | BY3: 35000 | BZ3: 35000 | CA3: 35000 | CB3: 35000 | DH3: -25000 | DI3: -32000 | DJ3: -35500 | DK3: -39000 | DL3: -42500 | DM3: -25000 | DN3: -32000 | DO3: -35500 | DP3: -39000 | DQ3: -42500 | DS3: 35000 | DT3: 35000 | DU3: 35000 | DV3: 35000 | DW3: 35000 | DX3: -54.59770115 | DY3: CER | DZ3: 1 | EA3: 0.8 | EB3: 0.7 | EC3: 0.6 | ED3: 0.5 | EN3: +ve High [+100] | EO3: High [100] | EP3: Medium [66] | EQ3: None [0] | ER3: 66 | ES3: -ve Medium [-60] | ET3: Low [33] | EU3: Medium [66] | EV3: -ve High [-100] | EW3: -13.068 | EX3: +ve High [+100] | EY3: High [100] | EZ3: None [0] | FA3: +ve High [+100] | FB3: 0 | FC3: -ve High [-100] | FD3: Low [33] | FE3: Low [33] | FF3: -ve Medium [-60] | FG3: -10.89 | FH3: None [0] | FI3: Low [33] | FJ3: High [100] | FK3: +ve High [+100] | FL3: 0 | FM3: 8.4084 | FN3: 24 | FO3: 53.33333333 | FP3: 26.66666667 | FQ3: 20 | FR3: 53.33333333 | FS3: -33.33333333 | FT3: +ve Medium [+60] | FU3: +ve Low [+40] | FV3: -ve Low [-40] | FW3: +ve Medium [+60] | FX3: -ve Low [-40] | FY3: +ve High [+100] | FZ3: +ve High [+100] | GA3: None [0] | GB3: +ve High [+100] | GC3: -ve Medium [-60] | GD3: None [0] | GE3: -ve Medium [-60] | GF3: +ve High [+100] | GG3: None [0] | GH3: None [0] | GI3: -11554.8 | GJ3: -1632 | GK3: -7524 | GL3: -12274 | GM3: -11286 | GN3: -25058 | GO3: 0 | GP3: 0 | GQ3: 901 | GR3: 0 | GS3: 0 | GT3: 0 | GU3: 0 | GV3: 0 | GW3: 6961 | GX3: 0 | GY3: 0 | GZ3: 0 | HA3: 0 | HB3: 0 | HC3: 0 | HD3: 1632 | HE3: 7524 | HF3: 11373 | HG3: 18247 | HH3: 25058
A4: FotE | B4: 1030 | C4: Reduce Aviation Expansion / Number of Flights | E4: Planned | F4: Environment | G4: Live Operations [100] | H4: 61 | I4: 50 | J4: Not Applicable [-1] | K4: Medium [50] | L4: Medium [50] | M4: Not Applicable [-1] | N4: Medium [50] | O4: Medium [50] | P4: Low [75] | Q4: Low [25] | R4: Not Applicable [-1] | S4: Some Cases / Good Results [75] | T4: Technology Demonstrator [30] | U4: WEL,SUS,AQI | V4: 120000 | W4: 120000 | X4: 120000 | Y4: 120000 | Z4: 120000 | AF4: -9 | AG4: -7 | AH4: -2 | AI4: 5 | AJ4: 3 | AK4: >601 [10] | AL4: >241 [10] | AM4: 92-100 [9] | AN4: 36-41 [4] | AO4: 355-443 [5] | AP4: 26.66666667 | AQ4: 0-67 [1] | AR4: 67-100 [3] | AS4: 76-83 [7] | AT4: 59-64 [9] | AU4: 711- 887 [8] | AV4: -120000 | AZ4: 0 | BA4: 0 | BB4: 0 | BC4: 0 | BD4: 0 | BI4: -120000 | BJ4: -240000 | BK4: -360000 | BL4: -480000 | BM4: -600000 | BN4: 800000 | BO4: 69286 | BP4: 15174 | BQ4: 0 | BR4: 3385 | BS4: 51235 | BT4: 1.203941731 | BU4: 0 | BV4: 0 | BX4: 0 | BY4: 0 | BZ4: 0 | CA4: 0 | CB4: 0 | DH4: -120000 | DI4: -120000 | DJ4: -120000 | DK4: -120000 | DL4: -120000 | DM4: -120000 | DN4: -120000 | DO4: -120000 | DP4: -120000 | DQ4: -120000 | DX4: -6.666666667 | DY4: CER | DZ4: 1 | EA4: 0.8 | EB4: 0.7 | EC4: 0.6 | ED4: 0.5 | EN4: +ve Medium [+60] | EO4: High [100] | EP4: Low [33] | EQ4: +ve Low [+40] | ER4: 19.8 | ES4: None [0] | ET4: None [0] | EU4: None [0] | EV4: +ve Low [+40] | EW4: 0 | EX4: -ve Low [-40] | EY4: Low [33] | EZ4: High [100] | FA4: -ve Low [-40] | FB4: -13.2 | FC4: -ve High [-100] | FD4: High [100] | FE4: None [0] | FF4: -ve Medium [-60] | FG4: 0 | FH4: +ve High [+100] | FI4: Medium [66] | FJ4: None [0] | FK4: -ve High [-100] | FL4: 0 | FM4: 1.32 | FN4: -9.333333333 | FO4: 13.33333333 | FP4: -46.66666667 | FQ4: -6.666666667 | FR4: -6.666666667 | FS4: 0 | FT4: -ve Medium [-60] | FU4: -ve High [-100] | FV4: -ve Medium [-60] | FW4: +ve Low [+40] | FX4: None [0] | FY4: +ve High [+100] | FZ4: -ve Low [-40] | GA4: +ve High [+100] | GB4: -ve High [-100] | GC4: +ve Medium [+60] | GD4: None [0] | GE4: None [0] | GF4: -ve Medium [-60] | GG4: +ve Low [+40] | GH4: -ve Medium [-60] | GI4: -12603.6 | GJ4: -5128 | GK4: 5002 | GL4: -16802 | GM4: -15937 | GN4: -30153 | GO4: 2500 | GP4: 0 | GQ4: 2595 | GR4: 0 | GS4: 0 | GT4: 0 | GU4: 7459 | GV4: 507 | GW4: 0 | GX4: 0 | GY4: 0 | GZ4: 0 | HA4: 0 | HB4: 0 | HC4: 9052 | HD4: 2628 | HE4: 2457 | HF4: 14714 | HG4: 15937 | HH4: 21101
A5: FotE | B5: 1040 | C5: Workplace Parking Charges | E5: Planned | F5: Transport | G5: Adoption / Implementation [75] | H5: 63.33333333 | I5: 25 | J5: Medium [50] | K5: Very Low [0] | L5: Not Applicable [-1] | M5: Not Applicable [-1] | N5: Not Applicable [-1] | O5: Not Applicable [-1] | P5: High [25] | Q5: High [75] | R5: High [25] | S5: Many Cases / Good Results [100] | T5: Available - New (Standardised) [80] | U5: WEL,EQY,SUS,AQI | AF5: 3 | AG5: 8 | AH5: -5 | AI5: -1 | AJ5: -1 | AK5: 68-134 [2] | AL5: 0-22 [1] | AM5: 67-75 [6] | AN5: 48-53 [6] | AO5: 267-354 [4] | AP5: 68.88888889 | AQ5: 268-334 [5] | AR5: 188-213 [9] | AS5: 0-16 [1] | AT5: 42-47 [5] | AU5: 178-266 [3] | AV5: 1152000 | AZ5: 1600000 | BA5: 1280000 | BB5: 1120000 | BC5: 960000 | BD5: 800000 | BI5: 1600000 | BJ5: 2880000 | BK5: 4000000 | BL5: 4960000 | BM5: 5760000 | BN5: 960000 | BO5: 56616 | BP5: 8679 | BQ5: 0 | BR5: 6172 | BS5: 49242 | BT5: 0.4300707617 | BU5: 0 | BV5: 0 | BX5: 1600000 | BY5: 1600000 | BZ5: 1600000 | CA5: 1600000 | CB5: 1600000 | DH5: 1600000 | DI5: 1280000 | DJ5: 1120000 | DK5: 960000 | DL5: 800000 | DM5: 1600000 | DN5: 1280000 | DO5: 1120000 | DP5: 960000 | DQ5: 800000 | DS5: 1600000 | DT5: 1600000 | DU5: 1600000 | DV5: 1600000 | DW5: 1600000 | DX5: 0.8333333333 | DY5: CER | DZ5: 1 | EA5: 0.8 | EB5: 0.7 | EC5: 0.6 | ED5: 0.5 | EN5: -ve High [-100] | EO5: Low [33] | EP5: High [100] | EQ5: None [0] | ER5: -33 | ES5: +ve High [+100] | ET5: Low [33] | EU5: None [0] | EV5: -ve High [-100] | EW5: 0 | EX5: None [0] | EY5: Medium [66] | EZ5: High [100] | FA5: -ve Low [-40] | FB5: 0 | FC5: -ve Low [-40] | FD5: Low [33] | FE5: High [100] | FF5: -ve Medium [-60] | FG5: -13.2 | FH5: -ve Low [-40] | FI5: High [100] | FJ5: Low [33] | FK5: +ve Medium [+60] | FL5: -13.2 | FM5: -11.88 | FN5: -4 | FO5: -13.33333333 | FP5: -33.33333333 | FQ5: -20 | FR5: 26.66666667 | FS5: 20 | FT5: -ve Low [-40] | FU5: -ve Low [-40] | FV5: -ve High [-100] | FW5: +ve Low [+40] | FX5: -ve Low [-40] | FY5: +ve Medium [+60] | FZ5: -ve High [-100] | GA5: -ve Medium [-60] | GB5: -ve Medium [-60] | GC5: None [0] | GD5: -ve Medium [-60] | GE5: +ve Low [+40] | GF5: +ve High [+100] | GG5: +ve High [+100] | GH5: +ve High [+100] | GI5: -20180.4 | GJ5: -17552 | GK5: -10988 | GL5: -14739 | GM5: -26961 | GN5: -30662 | GO5: 3854 | GP5: 0 | GQ5: 0 | GR5: 1115 | GS5: 4024 | GT5: 0 | GU5: 1298 | GV5: 0 | GW5: 0 | GX5: 0 | GY5: 5491 | GZ5: 0 | HA5: 0 | HB5: 9446 | HC5: 0 | HD5: 8207 | HE5: 12286 | HF5: 14739 | HG5: 16400 | HH5: 26638
A6: FotE | B6: 1050 | C6: Ultra-Low Emission Zones | E6: Planned | F6: Transport | G6: Adoption / Implementation [75] | H6: 59.16666667 | I6: 45 | J6: Medium [50] | K6: Medium [50] | L6: Not Applicable [-1] | M6: Medium [50] | N6: Medium [50] | O6: High [25] | P6: Low [75] | Q6: High [75] | R6: Very High [0] | S6: Some Cases / Mixed Results [50] | T6: Available - New (Standardised) [80] | U6: WEL,SUS,AQI | AF6: 1 | AG6: -2 | AH6: -7 | AI6: 5 | AJ6: -7 | AK6: 401-467 [7] | AL6: 121-140 [5] | AM6: >101 [10] | AN6: 36-41 [4] | AO6: 888- 1064 [9] | AP6: 33.33333333 | AQ6: 468-534 [8] | AR6: 67-100 [3] | AS6: 34-50 [3] | AT6: 59-64 [9] | AU6: 89-177 [2] | AV6: 2690000 | AZ6: 2100000 | BA6: 2080000 | BB6: 2870000 | BC6: 3300000 | BD6: 3100000 | BI6: 2100000 | BJ6: 4180000 | BK6: 7050000 | BL6: 10350000 | BM6: 13450000 | BN6: 3800000 | BO6: 91838 | BP6: 12654 | BQ6: 0 | BR6: 2274 | BS6: 51213 | BT6: 0.7771963443 | BU6: 0 | BV6: 0 | BX6: 2100000 | BY6: 2600000 | BZ6: 4100000 | CA6: 5500000 | CB6: 6200000 | DH6: 2100000 | DI6: 2080000 | DJ6: 2870000 | DK6: 3300000 | DL6: 3100000 | DM6: 2100000 | DN6: 2080000 | DO6: 2870000 | DP6: 3300000 | DQ6: 3100000 | DS6: 2100000 | DT6: 2600000 | DU6: 4100000 | DV6: 5500000 | DW6: 6200000 | DX6: 1.412639405 | DY6: CER | DZ6: 1 | EA6: 0.8 | EB6: 0.7 | EC6: 0.6 | ED6: 0.5 | EN6: -ve Medium [-60] | EO6: Low [33] | EP6: High [100] | EQ6: -ve Low [-40] | ER6: -19.8 | ES6: -ve Low [-40] | ET6: High [100] | EU6: Medium [66] | EV6: +ve High [+100] | EW6: -26.4 | EX6: -ve Medium [-60] | EY6: Medium [66] | EZ6: High [100] | FA6: +ve Medium [+60] | FB6: -39.6 | FC6: -ve Low [-40] | FD6: Low [33] | FE6: Low [33] | FF6: +ve Low [+40] | FG6: -4.356 | FH6: -ve Low [-40] | FI6: Medium [66] | FJ6: Medium [66] | FK6: -ve Medium [-60] | FL6: -17.424 | FM6: -21.516 | FN6: -32 | FO6: -66.66666667 | FP6: -86.66666667 | FQ6: 20 | FR6: -13.33333333 | FS6: -13.33333333 | FT6: -ve Medium [-60] | FU6: -ve High [-100] | FV6: -ve Low [-40] | FW6: +ve Medium [+60] | FX6: +ve Low [+40] | FY6: -ve Low [-40] | FZ6: -ve High [-100] | GA6: None [0] | GB6: -ve High [-100] | GC6: -ve Low [-40] | GD6: -ve High [-100] | GE6: -ve Medium [-60] | GF6: +ve High [+100] | GG6: None [0] | GH6: -ve Low [-40] | GI6: -16281.6 | GJ6: -6261 | GK6: -18778 | GL6: -13603 | GM6: -18106 | GN6: -24660 | GO6: 3091 | GP6: 5220 | GQ6: 0 | GR6: 0 | GS6: 0 | GT6: 0 | GU6: 0 | GV6: 0 | GW6: 0 | GX6: 2805 | GY6: 0 | GZ6: 0 | HA6: 0 | HB6: 0 | HC6: 0 | HD6: 3170 | HE6: 13558 | HF6: 13603 | HG6: 18106 | HH6: 27465
A7: FotE | B7: 1060 | C7: Congestion & Pollution Charging Zones | E7: Planned | F7: Highways | G7: Trial (Limited Scope) [50] | H7: 25.83333333 | I7: 45 | J7: Very High [0] | K7: Very Low [0] | L7: Medium [50] | M7: Very High [100] | N7: Not Applicable [-1] | O7: Low [75] | P7: High [25] | Q7: Low [25] | R7: High [25] | S7: Many Cases / Poor Results [0] | T7: Technology Demonstrator [30] | U7: REV,CRY,WEL,SUS,AQI | V7: 177000 | W7: 177000 | X7: 177000 | Y7: 177000 | Z7: 177000 | AF7: 4 | AG7: -6 | AH7: 3 | AI7: 5 | AJ7: -1 | AK7: 0-67 [1] | AL7: >241 [10] | AM7: 51-58 [4] | AN7: 11-23 [2] | AO7: 533-710 [7] | AP7: 57.77777778 | AQ7: 268-334 [5] | AR7: 101-120 [4] | AS7: 76-83 [7] | AT7: 54-58 [7] | AU7: 444-532 [6] | AV7: 471000 | AZ7: 900000 | BA7: 720000 | BB7: 630000 | BC7: 540000 | BD7: 450000 | BI7: 723000 | BJ7: 1266000 | BK7: 1719000 | BL7: 2082000 | BM7: 2355000 | BN7: 2200000 | BO7: 57995 | BP7: 16886 | BQ7: 0 | BR7: 2168 | BS7: 50094 | BT7: 1.235494681 | BU7: 0 | BV7: 0 | BX7: 900000 | BY7: 900000 | BZ7: 900000 | CA7: 900000 | CB7: 900000 | DH7: 723000 | DI7: 543000 | DJ7: 453000 | DK7: 363000 | DL7: 273000 | DM7: 723000 | DN7: 543000 | DO7: 453000 | DP7: 363000 | DQ7: 273000 | DS7: 900000 | DT7: 900000 | DU7: 900000 | DV7: 900000 | DW7: 900000 | DX7: 4.670912951 | DY7: CER | DZ7: 1 | EA7: 0.8 | EB7: 0.7 | EC7: 0.6 | ED7: 0.5 | EN7: None [0] | EO7: Low [33] | EP7: Medium [66] | EQ7: None [0] | ER7: 0 | ES7: +ve High [+100] | ET7: High [100] | EU7: High [100] | EV7: +ve Medium [+60] | EW7: 100 | EX7: -ve High [-100] | EY7: High [100] | EZ7: High [100] | FA7: -ve Medium [-60] | FB7: -100 | FC7: None [0] | FD7: Low [33] | FE7: None [0] | FF7: None [0] | FG7: 0 | FH7: None [0] | FI7: High [100] | FJ7: None [0] | FK7: -ve Low [-40] | FL7: 0 | FM7: 0 | FN7: -28 | FO7: -53.33333333 | FP7: 0 | FQ7: -40 | FR7: 0 | FS7: -46.66666667 | FT7: -ve High [-100] | FU7: -ve Low [-40] | FV7: +ve Low [+40] | FW7: -ve High [-100] | FX7: None [0] | FY7: -ve High [-100] | FZ7: +ve Low [+40] | GA7: -ve High [-100] | GB7: None [0] | GC7: -ve Low [-40] | GD7: +ve Low [+40] | GE7: None [0] | GF7: -ve Medium [-60] | GG7: +ve High [+100] | GH7: -ve High [-100] | GI7: -13667.4 | GJ7: -10862 | GK7: 3412 | GL7: -13202 | GM7: -20655 | GN7: -27030 | GO7: 0 | GP7: 1981 | GQ7: 0 | GR7: 3276 | GS7: 0 | GT7: 0 | GU7: 7143 | GV7: 0 | GW7: 0 | GX7: 0 | GY7: 0 | GZ7: 0 | HA7: 0 | HB7: 0 | HC7: 0 | HD7: 10862 | HE7: 1750 | HF7: 13202 | HG7: 17379 | HH7: 27030
A8: FotE | B8: 1070 | C8: License EV Taxis Only | E8: Planned | F8: Transport | G8: Adoption / Implementation [75] | H8: 26 | I8: 80 | J8: Not Applicable [-1] | K8: Medium [50] | L8: High [75] | M8: Very High [100] | N8: High [75] | O8: Very Low [100] | P8: Very High [0] | Q8: Very Low [0] | R8: Not Applicable [-1] | S8: Limited Cases / Data [25] | T8: Technology Demonstrator [30] | U8: WEL,SUS,AQI | AF8: 7 | AG8: 6 | AH8: -3 | AI8: 2 | AJ8: 8 | AK8: 135-200 [3] | AL8: 101-120 [4] | AM8: 59-66 [5] | AN8: 42-47 [5] | AO8: 89-177 [2] | AP8: 68.88888889 | AQ8: >601 [10] | AR8: >241 [10] | AS8: 17-33 [2] | AT8: 54-58 [7] | AU8: >1065 [10] | AV8: 50400 | AZ8: 70000 | BA8: 56000 | BB8: 49000 | BC8: 42000 | BD8: 35000 | BI8: 70000 | BJ8: 126000 | BK8: 175000 | BL8: 217000 | BM8: 252000 | BN8: 560000 | BO8: 93956 | BP8: 18467 | BQ8: 0 | BR8: 701 | BS8: 68358 | BT8: 0.9326767677 | BU8: 0 | BV8: 0 | BX8: 70000 | BY8: 70000 | BZ8: 70000 | CA8: 70000 | CB8: 70000 | DH8: 70000 | DI8: 56000 | DJ8: 49000 | DK8: 42000 | DL8: 35000 | DM8: 70000 | DN8: 56000 | DO8: 49000 | DP8: 42000 | DQ8: 35000 | DS8: 70000 | DT8: 70000 | DU8: 70000 | DV8: 70000 | DW8: 70000 | DX8: 11.11111111 | DY8: CER | DZ8: 1 | EA8: 0.8 | EB8: 0.7 | EC8: 0.6 | ED8: 0.5 | EN8: -ve High [-100] | EO8: Medium [66] | EP8: Medium [66] | EQ8: -ve High [-100] | ER8: -43.56 | ES8: -ve High [-100] | ET8: Low [33] | EU8: None [0] | EV8: +ve High [+100] | EW8: 0 | EX8: +ve Low [+40] | EY8: Medium [66] | EZ8: High [100] | FA8: +ve High [+100] | FB8: 26.4 | FC8: -ve Medium [-60] | FD8: Medium [66] | FE8: Low [33] | FF8: +ve Medium [+60] | FG8: -13.068 | FH8: +ve Medium [+60] | FI8: None [0] | FJ8: Low [33] | FK8: +ve High [+100] | FL8: 0 | FM8: -6.0456 | FN8: 25.33333333 | FO8: -46.66666667 | FP8: 86.66666667 | FQ8: 53.33333333 | FR8: 46.66666667 | FS8: -13.33333333 | FT8: -ve Low [-40] | FU8: +ve High [+100] | FV8: +ve High [+100] | FW8: None [0] | FX8: -ve Medium [-60] | FY8: -ve Medium [-60] | FZ8: +ve High [+100] | GA8: +ve Medium [+60] | GB8: +ve Low [+40] | GC8: -ve Low [-40] | GD8: -ve Low [-40] | GE8: +ve Medium [+60] | GF8: None [0] | GG8: +ve High [+100] | GH8: +ve Medium [+60] | GI8: -19800 | GJ8: -18615 | GK8: -3605 | GL8: -14623 | GM8: -24917 | GN8: -37240 | GO8: 0 | GP8: 0 | GQ8: 0 | GR8: 0 | GS8: 2263 | GT8: 0 | GU8: 3795 | GV8: 0 | GW8: 0 | GX8: 0 | GY8: 7367 | GZ8: 0 | HA8: 0 | HB8: 8859 | HC8: 7525 | HD8: 11248 | HE8: 7400 | HF8: 14623 | HG8: 16058 | HH8: 27452
A9: FotE | B9: 1080 | C9: Differential Charging for Parking Permits (Polluter Pays) | E9: Planned | F9: Transport | G9: Trial (Limited Scope) [50] | H9: 37 | I9: 56.25 | J9: Not Applicable [-1] | K9: Very High [100] | L9: Very Low [0] | M9: Low [25] | N9: Not Applicable [-1] | O9: Very Low [100] | P9: High [25] | Q9: Very Low [0] | R9: Not Applicable [-1] | S9: Many Cases / Good Results [100] | T9: Decommissioned / Superseded [10] | U9: REV,WEL,SUS,AQI | V9: 48000 | W9: 48000 | X9: 48000 | Y9: 48000 | Z9: 48000 | AF9: -5 | AG9: 2 | AH9: 8 | AI9: 0 | AJ9: 0 | AK9: 401-467 [7] | AL9: 67-100 [3] | AM9: 0-16 [1] | AN9: >71 [10] | AO9: 267-354 [4] | AP9: 55.55555556 | AQ9: 68-134 [2] | AR9: 121-140 [5] | AS9: 92-100 [9] | AT9: >71 [10] | AU9: 267-354 [4] | AV9: 168000 | AZ9: 300000 | BA9: 240000 | BB9: 210000 | BC9: 180000 | BD9: 150000 | BI9: 252000 | BJ9: 444000 | BK9: 606000 | BL9: 738000 | BM9: 840000 | BN9: 250000 | BO9: 72435 | BP9: 10003 | BQ9: 0 | BR9: 5636 | BS9: 69674 | BT9: 0.5084840536 | BU9: 0 | BV9: 0 | BX9: 300000 | BY9: 300000 | BZ9: 300000 | CA9: 300000 | CB9: 300000 | DH9: 252000 | DI9: 192000 | DJ9: 162000 | DK9: 132000 | DL9: 102000 | DM9: 252000 | DN9: 192000 | DO9: 162000 | DP9: 132000 | DQ9: 102000 | DS9: 300000 | DT9: 300000 | DU9: 300000 | DV9: 300000 | DW9: 300000 | DX9: 1.488095238 | DY9: CER | DZ9: 1 | EA9: 0.8 | EB9: 0.7 | EC9: 0.6 | ED9: 0.5 | EN9: +ve Medium [+60] | EO9: Low [33] | EP9: Low [33] | EQ9: -ve High [-100] | ER9: 6.534 | ES9: +ve High [+100] | ET9: Medium [66] | EU9: Low [33] | EV9: -ve Medium [-60] | EW9: 21.78 | EX9: -ve Medium [-60] | EY9: High [100] | EZ9: Medium [66] | FA9: +ve High [+100] | FB9: -39.6 | FC9: None [0] | FD9: Low [33] | FE9: High [100] | FF9: -ve High [-100] | FG9: 0 | FH9: -ve Medium [-60] | FI9: Medium [66] | FJ9: Low [33] | FK9: +ve Low [+40] | FL9: -13.068 | FM9: -4.8708 | FN9: -12 | FO9: -46.66666667 | FP9: 26.66666667 | FQ9: 13.33333333 | FR9: -53.33333333 | FS9: 0 | FT9: None [0] | FU9: +ve High [+100] | FV9: +ve High [+100] | FW9: -ve Medium [-60] | FX9: -ve High [-100] | FY9: -ve High [-100] | FZ9: -ve Medium [-60] | GA9: -ve Medium [-60] | GB9: -ve Medium [-60] | GC9: +ve High [+100] | GD9: -ve Low [-40] | GE9: +ve Low [+40] | GF9: None [0] | GG9: -ve Low [-40] | GH9: None [0] | GI9: -19672.2 | GJ9: -16020 | GK9: -13790 | GL9: -21611 | GM9: -19534 | GN9: -27406 | GO9: 4508 | GP9: 0 | GQ9: 0 | GR9: 4057 | GS9: 481 | GT9: 0 | GU9: 0 | GV9: 1961 | GW9: 0 | GX9: 0 | GY9: 0 | GZ9: 11093 | HA9: 11207 | HB9: 0 | HC9: 5266 | HD9: 11512 | HE9: 2697 | HF9: 12365 | HG9: 15477 | HH9: 21659
A10: FotE | B10: 1090 | C10: Differential Charging for Car Park Parking (Polluter Pays) | E10: Planned | F10: Transport | G10: Adoption / Implementation [75] | H10: 45.83333333 | I10: 55 | J10: High [25] | K10: High [75] | L10: Very High [100] | M10: Low [25] | N10: Medium [50] | O10: Not Applicable [-1] | P10: Low [75] | Q10: Very Low [0] | R10: Very High [0] | S10: Some Cases / Good Results [75] | T10: Available - Decline [50] | U10: REV,WEL,SUS,AQI | V10: 41000 | W10: 41000 | X10: 41000 | Y10: 41000 | Z10: 41000 | AF10: 5 | AG10: 5 | AH10: -5 | AI10: 7 | AJ10: 3 | AK10: 268-334 [5] | AL10: 121-140 [5] | AM10: 84-91 [8] | AN10: 11-23 [2] | AO10: 0-99 [1] | AP10: 64.44444444 | AQ10: >601 [10] | AR10: >241 [10] | AS10: 34-50 [3] | AT10: 59-64 [9] | AU10: 267-354 [4] | AV10: 1471000 | AZ10: 2100000 | BA10: 1680000 | BB10: 1470000 | BC10: 1260000 | BD10: 1050000 | BI10: 2059000 | BJ10: 3698000 | BK10: 5127000 | BL10: 6346000 | BM10: 7355000 | BN10: 1440000 | BO10: 94344 | BP10: 15927 | BQ10: 0 | BR10: 2029 | BS10: 44010 | BT10: 0.9579113239 | BU10: 0 | BV10: 60471 | BX10: 2100000 | BY10: 2100000 | BZ10: 2100000 | CA10: 2100000 | CB10: 2100000 | DH10: 2059000 | DI10: 1639000 | DJ10: 1429000 | DK10: 1219000 | DL10: 1009000 | DM10: 2059000 | DN10: 1639000 | DO10: 1429000 | DP10: 1219000 | DQ10: 1009000 | DS10: 2100000 | DT10: 2100000 | DU10: 2100000 | DV10: 2100000 | DW10: 2100000 | DX10: 0.9789259007 | DY10: CER | DZ10: 1 | EA10: 0.8 | EB10: 0.7 | EC10: 0.6 | ED10: 0.5 | EN10: -ve Medium [-60] | EO10: Low [33] | EP10: High [100] | EQ10: +ve Medium [+60] | ER10: -19.8 | ES10: None [0] | ET10: High [100] | EU10: High [100] | EV10: +ve Medium [+60] | EW10: 0 | EX10: +ve High [+100] | EY10: Medium [66] | EZ10: High [100] | FA10: +ve Medium [+60] | FB10: 66 | FC10: -ve Medium [-60] | FD10: Medium [66] | FE10: Medium [66] | FF10: -ve Medium [-60] | FG10: -26.136 | FH10: -ve Low [-40] | FI10: Medium [66] | FJ10: High [100] | FK10: +ve Medium [+60] | FL10: -26.4 | FM10: -1.2672 | FN10: 3.552713679e-16 | FO10: -6.666666667 | FP10: -20 | FQ10: 6.666666667 | FR10: 33.33333333 | FS10: -13.33333333 | FT10: +ve Low [+40] | FU10: +ve Low [+40] | FV10: -ve Low [-40] | FW10: -ve Medium [-60] | FX10: -ve Low [-40] | FY10: -ve High [-100] | FZ10: None [0] | GA10: +ve High [+100] | GB10: +ve High [+100] | GC10: -ve Medium [-60] | GD10: +ve Low [+40] | GE10: -ve High [-100] | GF10: -ve Low [-40] | GG10: +ve Medium [+60] | GH10: +ve Medium [+60] | GI10: -16626.8 | GJ10: -406 | GK10: -22575 | GL10: -11699 | GM10: -22319 | GN10: -26135 | GO10: 4675 | GP10: 4369 | GQ10: 0 | GR10: 0 | GS10: 0 | GT10: 6078 | GU10: 0 | GV10: 0 | GW10: 0 | GX10: 0 | GY10: 0 | GZ10: 9972 | HA10: 0 | HB10: 5885 | HC10: 0 | HD10: 1809 | HE10: 8234 | HF10: 11699 | HG10: 16434 | HH10: 26135
A11: FotE | B11: 1100 | C11: Car Sharing Clubs & Benefits | E11: Planned | F11: Transport | G11: Trial (Limited Scope) [50] | H11: 32 | I11: 68.75 | J11: Very Low [100] | K11: Not Applicable [-1] | L11: Low [25] | M11: High [75] | N11: Not Applicable [-1] | O11: Low [75] | P11: Medium [50] | Q11: Not Applicable [-1] | R11: High [25] | S11: Limited Cases / Data [25] | T11: Decommissioned / Superseded [10] | U11: WEL,EQY,SUS,AQI | V11: 66000 | W11: 66000 | X11: 66000 | Y11: 66000 | Z11: 66000 | AF11: 3 | AG11: -2 | AH11: 3 | AI11: -2 | AJ11: -1 | AK11: 0-67 [1] | AL11: 101-120 [4] | AM11: 0-16 [1] | AN11: 48-53 [6] | AO11: 888- 1064 [9] | AP11: 64.44444444 | AQ11: 201-267 [4] | AR11: 34-66 [2] | AS11: 51-58 [4] | AT11: 36-41 [4] | AU11: 711- 887 [8] | AV11: -66000 | AZ11: 0 | BA11: 0 | BB11: 0 | BC11: 0 | BD11: 0 | BI11: -66000 | BJ11: -132000 | BK11: -198000 | BL11: -264000 | BM11: -330000 | BN11: 138000 | BO11: 97781 | BP11: 17421 | BQ11: 0 | BR11: 2155 | BS11: 69535 | BT11: 0.8774200697 | BU11: 0 | BV11: 0 | BX11: 0 | BY11: 0 | BZ11: 0 | CA11: 0 | CB11: 0 | DH11: -66000 | DI11: -66000 | DJ11: -66000 | DK11: -66000 | DL11: -66000 | DM11: -66000 | DN11: -66000 | DO11: -66000 | DP11: -66000 | DQ11: -66000 | DX11: -2.090909091 | DY11: CER | DZ11: 1 | EA11: 0.8 | EB11: 0.7 | EC11: 0.6 | ED11: 0.5 | EN11: +ve Low [+40] | EO11: Medium [66] | EP11: None [0] | EQ11: +ve Medium [+60] | ER11: 0 | ES11: +ve Low [+40] | ET11: Low [33] | EU11: Low [33] | EV11: -ve Medium [-60] | EW11: 4.356 | EX11: +ve Low [+40] | EY11: None [0] | EZ11: Low [33] | FA11: +ve Medium [+60] | FB11: 0 | FC11: None [0] | FD11: High [100] | FE11: High [100] | FF11: None [0] | FG11: 0 | FH11: None [0] | FI11: Medium [66] | FJ11: Low [33] | FK11: -ve Medium [-60] | FL11: 0 | FM11: 0.8712 | FN11: 6.666666667 | FO11: -6.666666667 | FP11: 13.33333333 | FQ11: 26.66666667 | FR11: 6.666666667 | FS11: -6.666666667 | FT11: +ve Low [+40] | FU11: +ve Low [+40] | FV11: +ve Low [+40] | FW11: -ve Medium [-60] | FX11: -ve High [-100] | FY11: -ve Medium [-60] | FZ11: -ve Medium [-60] | GA11: +ve High [+100] | GB11: +ve Low [+40] | GC11: +ve Low [+40] | GD11: None [0] | GE11: +ve Medium [+60] | GF11: -ve Medium [-60] | GG11: +ve Low [+40] | GH11: +ve Low [+40] | GI11: -19854.8 | GJ11: -4737 | GK11: -13278 | GL11: -18292 | GM11: -27477 | GN11: -35490 | GO11: 0 | GP11: 0 | GQ11: 3582 | GR11: 2660 | GS11: 2227 | GT11: 3099 | GU11: 0 | GV11: 0 | GW11: 0 | GX11: 0 | GY11: 5520 | GZ11: 8367 | HA11: 0 | HB11: 7290 | HC11: 7154 | HD11: 2316 | HE11: 4911 | HF11: 14710 | HG11: 17527 | HH11: 26109
A12: FotE | B12: 1110 | C12: Conversion of Fleet to EV / Hydrogen Vehicles | E12: Planned | F12: Transport | G12: Identification [0] | H12: 48 | I12: 41.66666667 | J12: Medium [50] | K12: Very Low [0] | L12: Medium [50] | M12: Medium [50] | N12: Low [25] | O12: Low [75] | P12: Very Low [100] | Q12: Not Applicable [-1] | R12: Very Low [100] | S12: No Case Studies [0] | T12: Pilot Solution [40] | U12: CRD,COF,SUS,AQI | V12: 780000 | W12: 780000 | X12: 780000 | Y12: 780000 | Z12: 780000 | AF12: -3 | AG12: 0 | AH12: 4 | AI12: 6 | AJ12: -3 | AK12: 468-534 [8] | AL12: 188-213 [9] | AM12: 67-75 [6] | AN12: 36-41 [4] | AO12: 888- 1064 [9] | AP12: 31.11111111 | AQ12: 268-334 [5] | AR12: 188-213 [9] | AS12: >101 [10] | AT12: >71 [10] | AU12: 444-532 [6] | AV12: -553200 | AZ12: 315000 | BA12: 252000 | BB12: 220500 | BC12: 189000 | BD12: 157500 | BI12: -465000 | BJ12: -993000 | BK12: -1552500 | BL12: -2143500 | BM12: -2766000 | BN12: 4160000 | BO12: 79094 | BP12: 16086 | BQ12: 54386 | BR12: 792 | BS12: 33677 | BT12: 0.8929423912 | BU12: 0 | BV12: 0 | BX12: 315000 | BY12: 315000 | BZ12: 315000 | CA12: 315000 | CB12: 315000 | DH12: -465000 | DI12: -528000 | DJ12: -559500 | DK12: -591000 | DL12: -622500 | DM12: -465000 | DN12: -528000 | DO12: -559500 | DP12: -591000 | DQ12: -622500 | DS12: 315000 | DT12: 315000 | DU12: 315000 | DV12: 315000 | DW12: 315000 | DX12: -7.519884309 | DY12: CER | DZ12: 1 | EA12: 0.8 | EB12: 0.7 | EC12: 0.6 | ED12: 0.5 | EN12: +ve Medium [+60] | EO12: Low [33] | EP12: None [0] | EQ12: -ve Medium [-60] | ER12: 0 | ES12: +ve Low [+40] | ET12: Medium [66] | EU12: None [0] | EV12: +ve Low [+40] | EW12: 0 | EX12: +ve High [+100] | EY12: Low [33] | EZ12: None [0] | FA12: None [0] | FB12: 0 | FC12: -ve Medium [-60] | FD12: Low [33] | FE12: High [100] | FF12: -ve Medium [-60] | FG12: -19.8 | FH12: -ve Medium [-60] | FI12: High [100] | FJ12: Medium [66] | FK12: +ve Medium [+60] | FL12: -39.6 | FM12: -11.88 | FN12: -9.333333333 | FO12: -46.66666667 | FP12: 13.33333333 | FQ12: -53.33333333 | FR12: 53.33333333 | FS12: -13.33333333 | FT12: -ve Medium [-60] | FU12: +ve Low [+40] | FV12: -ve High [-100] | FW12: +ve Medium [+60] | FX12: -ve High [-100] | FY12: -ve Low [-40] | FZ12: -ve High [-100] | GA12: -ve Medium [-60] | GB12: +ve Low [+40] | GC12: +ve Medium [+60] | GD12: -ve Low [-40] | GE12: +ve High [+100] | GF12: None [0] | GG12: +ve Medium [+60] | GH12: None [0] | GI12: -18014.6 | GJ12: -13173 | GK12: -20077 | GL12: -14456 | GM12: -16842 | GN12: -25525 | GO12: 3789 | GP12: 0 | GQ12: 0 | GR12: 0 | GS12: 2904 | GT12: 0 | GU12: 0 | GV12: 0 | GW12: 0 | GX12: 1381 | GY12: 0 | GZ12: 6189 | HA12: 0 | HB12: 0 | HC12: 0 | HD12: 9384 | HE12: 13888 | HF12: 14456 | HG12: 16842 | HH12: 24002
A13: FotE | B13: 1120 | C13: Local Incentives for EV Ownership & Use | E13: Planned | F13: Highways | G13: Live Operations [100] | H13: 64.16666667 | I13: 83.33333333 | J13: Low [75] | K13: Very High [100] | L13: High [75] | M13: Very High [100] | N13: Very High [100] | O13: Medium [50] | P13: Medium [50] | Q13: Medium [50] | R13: Very Low [100] | S13: Some Cases / Good Results [75] | T13: Decommissioned / Superseded [10] | U13: WEL,EQY,SUS,AQI | AF13: 1 | AG13: 0 | AH13: 0 | AI13: -1 | AJ13: 5 | AK13: 0-67 [1] | AL13: >241 [10] | AM13: >101 [10] | AN13: 11-23 [2] | AO13: 0-99 [1] | AP13: 57.77777778 | AQ13: 68-134 [2] | AR13: >241 [10] | AS13: >101 [10] | AT13: 0-11 [1] | AU13: 444-532 [6] | AV13: 115200 | AZ13: 160000 | BA13: 128000 | BB13: 112000 | BC13: 96000 | BD13: 80000 | BI13: 160000 | BJ13: 288000 | BK13: 400000 | BL13: 496000 | BM13: 576000 | BN13: 500000 | BO13: 58354 | BP13: 15421 | BQ13: 0 | BR13: 1839 | BS13: 26747 | BT13: 1.227591148 | BU13: 0 | BV13: 0 | BX13: 160000 | BY13: 160000 | BZ13: 160000 | CA13: 160000 | CB13: 160000 | DH13: 160000 | DI13: 128000 | DJ13: 112000 | DK13: 96000 | DL13: 80000 | DM13: 160000 | DN13: 128000 | DO13: 112000 | DP13: 96000 | DQ13: 80000 | DS13: 160000 | DT13: 160000 | DU13: 160000 | DV13: 160000 | DW13: 160000 | DX13: 4.340277778 | DY13: CER | DZ13: 1 | EA13: 0.8 | EB13: 0.7 | EC13: 0.6 | ED13: 0.5 | EN13: -ve High [-100] | EO13: Medium [66] | EP13: High [100] | EQ13: None [0] | ER13: -66 | ES13: +ve High [+100] | ET13: Medium [66] | EU13: High [100] | EV13: -ve Medium [-60] | EW13: 66 | EX13: -ve Medium [-60] | EY13: None [0] | EZ13: None [0] | FA13: -ve Low [-40] | FB13: 0 | FC13: +ve High [+100] | FD13: High [100] | FE13: Medium [66] | FF13: -ve High [-100] | FG13: 66 | FH13: +ve High [+100] | FI13: Low [33] | FJ13: Medium [66] | FK13: +ve Medium [+60] | FL13: 21.78 | FM13: 17.556 | FN13: 9.333333333 | FO13: 6.666666667 | FP13: 6.666666667 | FQ13: 26.66666667 | FR13: 6.666666667 | FS13: 0 | FT13: None [0] | FU13: +ve High [+100] | FV13: +ve Low [+40] | FW13: -ve Low [-40] | FX13: +ve Medium [+60] | FY13: -ve Low [-40] | FZ13: -ve Low [-40] | GA13: +ve High [+100] | GB13: None [0] | GC13: -ve High [-100] | GD13: +ve Medium [+60] | GE13: -ve Low [-40] | GF13: -ve Medium [-60] | GG13: +ve Medium [+60] | GH13: +ve Low [+40] | GI13: -12562 | GJ13: -4779 | GK13: -1281 | GL13: -4749 | GM13: -23586 | GN13: -28415 | GO13: 570 | GP13: 0 | GQ13: 0 | GR13: 0 | GS13: 0 | GT13: 0 | GU13: 0 | GV13: 6967 | GW13: 0 | GX13: 0 | GY13: 0 | GZ13: 0 | HA13: 0 | HB13: 6514 | HC13: 0 | HD13: 4209 | HE13: 1281 | HF13: 11716 | HG13: 17072 | HH13: 28415
A14: FotE | B14: 1130 | C14: New Developments: EV Charging Plazas & Restricted Car Parking | E14: Planned | F14: Planning | G14: Trial (Limited Scope) [50] | H14: 47 | I14: 68.75 | J14: High [25] | K14: High [75] | L14: High [75] | M14: Not Applicable [-1] | N14: Very High [100] | O14: Not Applicable [-1] | P14: Very High [0] | Q14: Not Applicable [-1] | R14: Very Low [100] | S14: Some Cases / Good Results [75] | T14: Decommissioned / Superseded [10] | U14: WEL,EQY,SUS,AQI | V14: 61000 | W14: 61000 | X14: 61000 | Y14: 61000 | Z14: 61000 | AF14: -1 | AG14: 2 | AH14: -2 | AI14: 4 | AJ14: -4 | AK14: 68-134 [2] | AL14: 121-140 [5] | AM14: 84-91 [8] | AN14: 48-53 [6] | AO14: 711- 887 [8] | AP14: 46.66666667 | AQ14: 0-67 [1] | AR14: 161-187 [7] | AS14: 67-75 [6] | AT14: >71 [10] | AU14: 267-354 [4] | AV14: -61000 | AZ14: 0 | BA14: 0 | BB14: 0 | BC14: 0 | BD14: 0 | BI14: -61000 | BJ14: -122000 | BK14: -183000 | BL14: -244000 | BM14: -305000 | BN14: 217000 | BO14: 76623 | BP14: 16522 | BQ14: 0 | BR14: 4326 | BS14: 56472 | BT14: 1.096612329 | BU14: 0 | BV14: 40291 | BX14: 0 | BY14: 0 | BZ14: 0 | CA14: 0 | CB14: 0 | DH14: -61000 | DI14: -61000 | DJ14: -61000 | DK14: -61000 | DL14: -61000 | DM14: -61000 | DN14: -61000 | DO14: -61000 | DP14: -61000 | DQ14: -61000 | DX14: -3.557377049 | DY14: CER | DZ14: 1 | EA14: 0.8 | EB14: 0.7 | EC14: 0.6 | ED14: 0.5 | EN14: None [0] | EO14: None [0] | EP14: Medium [66] | EQ14: -ve Medium [-60] | ER14: 0 | ES14: -ve High [-100] | ET14: High [100] | EU14: High [100] | EV14: -ve Medium [-60] | EW14: -100 | EX14: +ve High [+100] | EY14: High [100] | EZ14: Medium [66] | FA14: +ve Medium [+60] | FB14: 66 | FC14: +ve Medium [+60] | FD14: High [100] | FE14: High [100] | FF14: -ve Medium [-60] | FG14: 60 | FH14: -ve Low [-40] | FI14: Medium [66] | FJ14: None [0] | FK14: +ve Medium [+60] | FL14: 0 | FM14: 5.2 | FN14: 34.66666667 | FO14: 73.33333333 | FP14: 46.66666667 | FQ14: -13.33333333 | FR14: 0 | FS14: 66.66666667 | FT14: +ve Medium [+60] | FU14: +ve Low [+40] | FV14: +ve Medium [+60] | FW14: None [0] | FX14: +ve Low [+40] | FY14: +ve Medium [+60] | FZ14: +ve High [+100] | GA14: -ve High [-100] | GB14: -ve Low [-40] | GC14: +ve Medium [+60] | GD14: +ve High [+100] | GE14: None [0] | GF14: None [0] | GG14: +ve Low [+40] | GH14: +ve High [+100] | GI14: -15066.4 | GJ14: -10624 | GK14: -4830 | GL14: -7413 | GM14: -24336 | GN14: -28129 | GO14: 0 | GP14: 0 | GQ14: 0 | GR14: 1429 | GS14: 4728 | GT14: 0 | GU14: 7767 | GV14: 4780 | GW14: 0 | GX14: 3574 | GY14: 0 | GZ14: 10490 | HA14: 0 | HB14: 7573 | HC14: 0 | HD14: 10624 | HE14: 2107 | HF14: 12193 | HG14: 15334 | HH14: 26975
A15: FotE | B15: 1140 | C15: New Developments: Delivery Hubs & Use of Drones / Cargo Bikes | E15: Planned | F15: Planning | G15: Live Operations [100] | H15: 83.33333333 | I15: 37.5 | J15: High [25] | K15: High [75] | L15: Low [25] | M15: Low [25] | N15: Low [25] | O15: Medium [50] | P15: Very Low [100] | Q15: High [75] | R15: Medium [50] | S15: Many Cases / Mixed Results [75] | T15: Available - Mature [100] | U15: SUS,AQI | AF15: -2 | AG15: 9 | AH15: -2 | AI15: 6 | AJ15: -1 | AK15: 535-600 [9] | AL15: 0-22 [1] | AM15: 34-50 [3] | AN15: 0-11 [1] | AO15: 533-710 [7] | AP15: 64.44444444 | AQ15: 401-467 [7] | AR15: >241 [10] | AS15: 0-16 [1] | AT15: 54-58 [7] | AU15: 444-532 [6] | AV15: 115200 | AZ15: 160000 | BA15: 128000 | BB15: 112000 | BC15: 96000 | BD15: 80000 | BI15: 160000 | BJ15: 288000 | BK15: 400000 | BL15: 496000 | BM15: 576000 | BN15: 595000 | BO15: 83399 | BP15: 7683 | BQ15: 0 | BR15: 6532 | BS15: 30828 | BT15: 0.4536758193 | BU15: 0 | BV15: 0 | BX15: 160000 | BY15: 160000 | BZ15: 160000 | CA15: 160000 | CB15: 160000 | DH15: 160000 | DI15: 128000 | DJ15: 112000 | DK15: 96000 | DL15: 80000 | DM15: 160000 | DN15: 128000 | DO15: 112000 | DP15: 96000 | DQ15: 80000 | DS15: 160000 | DT15: 160000 | DU15: 160000 | DV15: 160000 | DW15: 160000 | DX15: 5.164930556 | DY15: CER | DZ15: 1 | EA15: 0.8 | EB15: 0.7 | EC15: 0.6 | ED15: 0.5 | EN15: None [0] | EO15: Medium [66] | EP15: High [100] | EQ15: +ve High [+100] | ER15: 0 | ES15: +ve Medium [+60] | ET15: Low [33] | EU15: High [100] | EV15: -ve Low [-40] | EW15: 19.8 | EX15: +ve Medium [+60] | EY15: Low [33] | EZ15: High [100] | FA15: +ve Medium [+60] | FB15: 19.8 | FC15: -ve Low [-40] | FD15: Low [33] | FE15: None [0] | FF15: +ve High [+100] | FG15: 0 | FH15: -ve Low [-40] | FI15: Medium [66] | FJ15: None [0] | FK15: -ve Medium [-60] | FL15: 0 | FM15: 7.92 | FN15: 10.66666667 | FO15: 60 | FP15: 53.33333333 | FQ15: -6.666666667 | FR15: -20 | FS15: -33.33333333 | FT15: +ve Low [+40] | FU15: +ve Medium [+60] | FV15: -ve Medium [-60] | FW15: None [0] | FX15: -ve High [-100] | FY15: +ve Low [+40] | FZ15: +ve Medium [+60] | GA15: None [0] | GB15: +ve Low [+40] | GC15: -ve High [-100] | GD15: +ve High [+100] | GE15: +ve Low [+40] | GF15: +ve Low [+40] | GG15: -ve High [-100] | GH15: +ve High [+100] | GI15: -16935 | GJ15: -7746 | GK15: -19129 | GL15: -15346 | GM15: -16949 | GN15: -25505 | GO15: 4239 | GP15: 0 | GQ15: 0 | GR15: 0 | GS15: 3785 | GT15: 0 | GU15: 0 | GV15: 0 | GW15: 6211 | GX15: 0 | GY15: 0 | GZ15: 5575 | HA15: 0 | HB15: 7588 | HC15: 0 | HD15: 3507 | HE15: 13554 | HF15: 15346 | HG15: 15572 | HH15: 21720
A16: FotE | B16: 1150 | C16: New Developments: Higher Than Minimum Standards for Energy Efficiency | E16: Planned | F16: Planning | G16: Identification [0] | H16: 46.66666667 | I16: 31.25 | J16: Medium [50] | K16: Not Applicable [-1] | L16: Very Low [0] | M16: Medium [50] | N16: Low [25] | O16: Not Applicable [-1] | P16: High [25] | Q16: Very High [100] | R16: Very High [0] | S16: Many Cases / Mixed Results [75] | T16: Available - New (Standardised) [80] | U16: WEL,EQY,SUS,AQI | V16: 75000 | W16: 75000 | X16: 75000 | Y16: 75000 | Z16: 75000 | AF16: -1 | AG16: -6 | AH16: -2 | AI16: 7 | AJ16: -1 | AK16: 401-467 [7] | AL16: 188-213 [9] | AM16: 92-100 [9] | AN16: 24-35 [3] | AO16: 888- 1064 [9] | AP16: 28.88888889 | AQ16: 335-400 [6] | AR16: 67-100 [3] | AS16: 76-83 [7] | AT16: >71 [10] | AU16: 711- 887 [8] | AV16: -31800 | AZ16: 60000 | BA16: 48000 | BB16: 42000 | BC16: 36000 | BD16: 30000 | BI16: -15000 | BJ16: -42000 | BK16: -75000 | BL16: -114000 | BM16: -159000 | BN16: 1700000 | BO16: 67607 | BP16: 8133 | BQ16: 0 | BR16: 4029 | BS16: 43551 | BT16: 0.6081566117 | BU16: 0 | BV16: 0 | BX16: 60000 | BY16: 60000 | BZ16: 60000 | CA16: 60000 | CB16: 60000 | DH16: -15000 | DI16: -27000 | DJ16: -33000 | DK16: -39000 | DL16: -45000 | DM16: -15000 | DN16: -27000 | DO16: -33000 | DP16: -39000 | DQ16: -45000 | DS16: 60000 | DT16: 60000 | DU16: 60000 | DV16: 60000 | DW16: 60000 | DX16: -53.4591195 | DY16: CER | DZ16: 1 | EA16: 0.8 | EB16: 0.7 | EC16: 0.6 | ED16: 0.5 | EN16: +ve Low [+40] | EO16: Low [33] | EP16: None [0] | EQ16: -ve Low [-40] | ER16: 0 | ES16: +ve Medium [+60] | ET16: None [0] | EU16: Low [33] | EV16: +ve Medium [+60] | EW16: 0 | EX16: None [0] | EY16: Medium [66] | EZ16: None [0] | FA16: +ve Medium [+60] | FB16: 0 | FC16: None [0] | FD16: None [0] | FE16: Medium [66] | FF16: +ve Low [+40] | FG16: 0 | FH16: -ve Medium [-60] | FI16: None [0] | FJ16: High [100] | FK16: None [0] | FL16: 0 | FM16: 0 | FN16: 12 | FO16: 6.666666667 | FP16: 66.66666667 | FQ16: 33.33333333 | FR16: 20 | FS16: -66.66666667 | FT16: +ve Medium [+60] | FU16: +ve Medium [+60] | FV16: +ve High [+100] | FW16: None [0] | FX16: -ve Low [-40] | FY16: -ve High [-100] | FZ16: +ve High [+100] | GA16: +ve Low [+40] | GB16: +ve High [+100] | GC16: -ve Medium [-60] | GD16: +ve Medium [+60] | GE16: +ve Low [+40] | GF16: -ve Low [-40] | GG16: -ve Low [-40] | GH16: -ve High [-100] | GI16: -13373.2 | GJ16: -3016 | GK16: -11872 | GL16: -14338 | GM16: -16667 | GN16: -20973 | GO16: 0 | GP16: 0 | GQ16: 0 | GR16: 0 | GS16: 0 | GT16: 0 | GU16: 0 | GV16: 0 | GW16: 0 | GX16: 4236 | GY16: 0 | GZ16: 0 | HA16: 0 | HB16: 0 | HC16: 0 | HD16: 3016 | HE16: 11872 | HF16: 14338 | HG16: 16667 | HH16: 25209
A17: FotE | B17: 1160 | C17: New Developments: Develop District Heating | E17: Planned | F17: Planning | G17: Live Operations [100] | H17: 75 | I17: 40 | J17: Very High [0] | K17: Low [25] | L17: Very High [100] | M17: Very Low [0] | N17: Not Applicable [-1] | O17: Low [75] | P17: Very Low [100] | Q17: Not Applicable [-1] | R17: Not Applicable [-1] | S17: Some Cases / Mixed Results [50] | T17: Available - Decline [50] | U17: ECD,WEL,EQY,SUS,AQI | AF17: -3 | AG17: 4 | AH17: 2 | AI17: -1 | AJ17: 2 | AK17: 401-467 [7] | AL17: 34-66 [2] | AM17: 51-58 [4] | AN17: 11-23 [2] | AO17: 533-710 [7] | AP17: 62.22222222 | AQ17: 201-267 [4] | AR17: 141-160 [6] | AS17: 67-75 [6] | AT17: 0-11 [1] | AU17: 888- 1064 [9] | AV17: 1512000 | AZ17: 2100000 | BA17: 1680000 | BB17: 1470000 | BC17: 1260000 | BD17: 1050000 | BI17: 2100000 | BJ17: 3780000 | BK17: 5250000 | BL17: 6510000 | BM17: 7560000 | BN17: 12000000 | BO17: 92512 | BP17: 10908 | BQ17: 0 | BR17: 4624 | BS17: 39682 | BT17: 0.7694478147 | BU17: 0 | BV17: 0 | BX17: 2100000 | BY17: 2100000 | BZ17: 2100000 | CA17: 2100000 | CB17: 2100000 | DH17: 2100000 | DI17: 1680000 | DJ17: 1470000 | DK17: 1260000 | DL17: 1050000 | DM17: 2100000 | DN17: 1680000 | DO17: 1470000 | DP17: 1260000 | DQ17: 1050000 | DS17: 2100000 | DT17: 2100000 | DU17: 2100000 | DV17: 2100000 | DW17: 2100000 | DX17: 7.936507937 | DY17: CER | DZ17: 1 | EA17: 0.8 | EB17: 0.7 | EC17: 0.6 | ED17: 0.5 | EN17: -ve Medium [-60] | EO17: None [0] | EP17: High [100] | EQ17: +ve Medium [+60] | ER17: 0 | ES17: -ve Medium [-60] | ET17: None [0] | EU17: Low [33] | EV17: -ve Medium [-60] | EW17: 0 | EX17: -ve High [-100] | EY17: High [100] | EZ17: None [0] | FA17: -ve Low [-40] | FB17: 0 | FC17: +ve Medium [+60] | FD17: Low [33] | FE17: None [0] | FF17: +ve High [+100] | FG17: 0 | FH17: +ve Low [+40] | FI17: High [100] | FJ17: High [100] | FK17: -ve High [-100] | FL17: 40 | FM17: 8 | FN17: 16 | FO17: -13.33333333 | FP17: 40 | FQ17: -20 | FR17: 33.33333333 | FS17: 40 | FT17: -ve Low [-40] | FU17: +ve Low [+40] | FV17: -ve Low [-40] | FW17: +ve High [+100] | FX17: +ve Medium [+60] | FY17: -ve High [-100] | FZ17: +ve Low [+40] | GA17: +ve Low [+40] | GB17: -ve Low [-40] | GC17: +ve Medium [+60] | GD17: +ve High [+100] | GE17: +ve Low [+40] | GF17: -ve Medium [-60] | GG17: +ve Low [+40] | GH17: None [0] | GI17: -14176.4 | GJ17: -11357 | GK17: -13332 | GL17: -10806 | GM17: -15850 | GN17: -19537 | GO17: 0 | GP17: 0 | GQ17: 0 | GR17: 0 | GS17: 0 | GT17: 0 | GU17: 0 | GV17: 1365 | GW17: 0 | GX17: 3421 | GY17: 0 | GZ17: 0 | HA17: 0 | HB17: 0 | HC17: 0 | HD17: 11357 | HE17: 13332 | HF17: 12171 | HG17: 15850 | HH17: 22958
A18: FotE | B18: 1170 | C18: New Developments: Require Solar Thermal, PV or Heat Pumps | E18: Planned | F18: Planning | G18: Design / Development [25] | H18: 33 | I18: 62.5 | J18: Medium [50] | K18: High [75] | L18: Very High [100] | M18: Not Applicable [-1] | N18: Not Applicable [-1] | O18: High [25] | P18: Medium [50] | Q18: Not Applicable [-1] | R18: Very High [0] | S18: Some Cases / Mixed Results [50] | T18: Pilot Solution [40] | U18: ECD,WEL,EQY,SUS,AQI | V18: 56000 | W18: 56000 | X18: 56000 | Y18: 56000 | Z18: 56000 | AF18: -3 | AG18: -9 | AH18: -8 | AI18: -1 | AJ18: 5 | AK18: 335-400 [6] | AL18: >241 [10] | AM18: 92-100 [9] | AN18: 24-35 [3] | AO18: 178-266 [3] | AP18: 42.22222222 | AQ18: 135-200 [3] | AR18: 0-22 [1] | AS18: 0-16 [1] | AT18: 11-23 [2] | AU18: 711- 887 [8] | AV18: -56000 | AZ18: 0 | BA18: 0 | BB18: 0 | BC18: 0 | BD18: 0 | BI18: -56000 | BJ18: -112000 | BK18: -168000 | BL18: -224000 | BM18: -280000 | BN18: 870000 | BO18: 81923 | BP18: 9031 | BQ18: 0 | BR18: 6743 | BS18: 61550 | BT18: 0.6570484838 | BU18: 0 | BV18: 0 | BX18: 0 | BY18: 0 | BZ18: 0 | CA18: 0 | CB18: 0 | DH18: -56000 | DI18: -56000 | DJ18: -56000 | DK18: -56000 | DL18: -56000 | DM18: -56000 | DN18: -56000 | DO18: -56000 | DP18: -56000 | DQ18: -56000 | DX18: -15.53571429 | DY18: CER | DZ18: 1 | EA18: 0.8 | EB18: 0.7 | EC18: 0.6 | ED18: 0.5 | EN18: -ve Medium [-60] | EO18: None [0] | EP18: High [100] | EQ18: None [0] | ER18: 0 | ES18: +ve Medium [+60] | ET18: Low [33] | EU18: None [0] | EV18: +ve High [+100] | EW18: 0 | EX18: +ve Low [+40] | EY18: None [0] | EZ18: Medium [66] | FA18: -ve Medium [-60] | FB18: 0 | FC18: +ve Low [+40] | FD18: None [0] | FE18: High [100] | FF18: +ve Medium [+60] | FG18: 0 | FH18: +ve Medium [+60] | FI18: None [0] | FJ18: High [100] | FK18: -ve Medium [-60] | FL18: 0 | FM18: 0 | FN18: -1.421085472e-15 | FO18: 0 | FP18: 26.66666667 | FQ18: 33.33333333 | FR18: -26.66666667 | FS18: -33.33333333 | FT18: -ve Low [-40] | FU18: +ve Medium [+60] | FV18: None [0] | FW18: -ve Medium [-60] | FX18: -ve Low [-40] | FY18: -ve Medium [-60] | FZ18: -ve Low [-40] | GA18: None [0] | GB18: +ve Low [+40] | GC18: -ve Medium [-60] | GD18: +ve High [+100] | GE18: +ve Medium [+60] | GF18: +ve High [+100] | GG18: -ve Medium [-60] | GH18: None [0] | GI18: -13744.8 | GJ18: -6616 | GK18: -4040 | GL18: -22823 | GM18: -10458 | GN18: -24787 | GO18: 4594 | GP18: 0 | GQ18: 0 | GR18: 0 | GS18: 1980 | GT18: 2115 | GU18: 0 | GV18: 0 | GW18: 7181 | GX18: 0 | GY18: 0 | GZ18: 0 | HA18: 10104 | HB18: 0 | HC18: 0 | HD18: 4137 | HE18: 4040 | HF18: 12719 | HG18: 17639 | HH18: 22807
A19: FotE | B19: 1180 | C19: Electric Buses On Subsidised Routes | E19: Planned | F19: Transport | G19: Trial (Limited Scope) [50] | H19: 55 | I19: 37.5 | J19: Medium [50] | K19: Very Low [0] | L19: Very Low [0] | M19: High [75] | N19: Low [25] | O19: Low [75] | P19: Not Applicable [-1] | Q19: Very High [100] | R19: High [25] | S19: Some Cases / Mixed Results [50] | T19: Available - Decline [50] | U19: SOI,WEL,EQY,SUS,AQI | V19: 27700 | W19: 27700 | X19: 27700 | Y19: 27700 | Z19: 27700 | AF19: -4 | AG19: -4 | AH19: -1 | AI19: -5 | AJ19: -7 | AK19: 335-400 [6] | AL19: >241 [10] | AM19: 67-75 [6] | AN19: 65-70 [9] | AO19: >1065 [10] | AP19: 20 | AQ19: 68-134 [2] | AR19: 141-160 [6] | AS19: 59-66 [5] | AT19: 36-41 [4] | AU19: 178-266 [3] | AV19: 548300 | AZ19: 800000 | BA19: 640000 | BB19: 560000 | BC19: 480000 | BD19: 400000 | BI19: 772300 | BJ19: 1384600 | BK19: 1916900 | BL19: 2369200 | BM19: 2741500 | BN19: 2850000 | BO19: 96083 | BP19: 10081 | BQ19: 0 | BR19: 6503 | BS19: 42536 | BT19: 0.6208429817 | BU19: 0 | BV19: 0 | BX19: 800000 | BY19: 800000 | BZ19: 800000 | CA19: 800000 | CB19: 800000 | DH19: 772300 | DI19: 612300 | DJ19: 532300 | DK19: 452300 | DL19: 372300 | DM19: 772300 | DN19: 612300 | DO19: 532300 | DP19: 452300 | DQ19: 372300 | DS19: 800000 | DT19: 800000 | DU19: 800000 | DV19: 800000 | DW19: 800000 | DX19: 5.19788437 | DY19: CER | DZ19: 1 | EA19: 0.8 | EB19: 0.7 | EC19: 0.6 | ED19: 0.5 | EN19: +ve Low [+40] | EO19: Medium [66] | EP19: High [100] | EQ19: -ve High [-100] | ER19: 26.4 | ES19: None [0] | ET19: None [0] | EU19: Medium [66] | EV19: None [0] | EW19: 0 | EX19: +ve High [+100] | EY19: High [100] | EZ19: High [100] | FA19: +ve Low [+40] | FB19: 100 | FC19: +ve Medium [+60] | FD19: Low [33] | FE19: None [0] | FF19: +ve High [+100] | FG19: 0 | FH19: -ve High [-100] | FI19: Low [33] | FJ19: None [0] | FK19: None [0] | FL19: 0 | FM19: 25.28 | FN19: 17.33333333 | FO19: 40 | FP19: -20 | FQ19: -20 | FR19: 33.33333333 | FS19: 53.33333333 | FT19: +ve Low [+40] | FU19: +ve Low [+40] | FV19: +ve Low [+40] | FW19: +ve Low [+40] | FX19: +ve Low [+40] | FY19: +ve Low [+40] | FZ19: None [0] | GA19: -ve Medium [-60] | GB19: +ve Medium [+60] | GC19: +ve Medium [+60] | GD19: +ve Low [+40] | GE19: -ve High [-100] | GF19: -ve Low [-40] | GG19: None [0] | GH19: +ve Medium [+60] | GI19: -16237.6 | GJ19: -6422 | GK19: -13287 | GL19: -20736 | GM19: -9128 | GN19: -31615 | GO19: 0 | GP19: 0 | GQ19: 0 | GR19: 0 | GS19: 1638 | GT19: 0 | GU19: 0 | GV19: 0 | GW19: 6318 | GX19: 0 | GY19: 0 | GZ19: 0 | HA19: 7747 | HB19: 0 | HC19: 7882 | HD19: 6422 | HE19: 13287 | HF19: 12989 | HG19: 15446 | HH19: 22095
A20: FotE | B20: 1190 | C20: EV Charging With Local Micro-Generation | E20: Planned | F20: Transport | G20: Adoption / Implementation [75] | H20: 63 | I20: 40 | J20: Medium [50] | K20: Low [25] | L20: Not Applicable [-1] | M20: High [75] | N20: Medium [50] | O20: Very High [0] | P20: High [25] | Q20: Not Applicable [-1] | R20: Low [75] | S20: Many Cases / Good Results [100] | T20: Pilot Solution [40] | U20: REV,COF,SUS,AQI | AF20: -3 | AG20: -5 | AH20: -2 | AI20: -1 | AJ20: -4 | AK20: >601 [10] | AL20: 161-187 [7] | AM20: 84-91 [8] | AN20: 48-53 [6] | AO20: 533-710 [7] | AP20: 26.66666667 | AQ20: 401-467 [7] | AR20: 34-66 [2] | AS20: 67-75 [6] | AT20: 42-47 [5] | AU20: 178-266 [3] | AV20: 792000 | AZ20: 1100000 | BA20: 880000 | BB20: 770000 | BC20: 660000 | BD20: 550000 | BI20: 1100000 | BJ20: 1980000 | BK20: 2750000 | BL20: 3410000 | BM20: 3960000 | BN20: 4900000 | BO20: 86585 | BP20: 12042 | BQ20: 0 | BR20: 2760 | BS20: 63023 | BT20: 0.8729755984 | BU20: 0 | BV20: 0 | BX20: 1100000 | BY20: 1100000 | BZ20: 1100000 | CA20: 1100000 | CB20: 1100000 | DH20: 1100000 | DI20: 880000 | DJ20: 770000 | DK20: 660000 | DL20: 550000 | DM20: 1100000 | DN20: 880000 | DO20: 770000 | DP20: 660000 | DQ20: 550000 | DS20: 1100000 | DT20: 1100000 | DU20: 1100000 | DV20: 1100000 | DW20: 1100000 | DX20: 6.186868687 | DY20: CER | DZ20: 1 | EA20: 0.8 | EB20: 0.7 | EC20: 0.6 | ED20: 0.5 | EN20: +ve Medium [+60] | EO20: High [100] | EP20: Low [33] | EQ20: -ve Low [-40] | ER20: 19.8 | ES20: -ve Low [-40] | ET20: Medium [66] | EU20: None [0] | EV20: None [0] | EW20: 0 | EX20: +ve Low [+40] | EY20: None [0] | EZ20: Medium [66] | FA20: -ve Low [-40] | FB20: 0 | FC20: +ve Low [+40] | FD20: Medium [66] | FE20: High [100] | FF20: -ve Low [-40] | FG20: 26.4 | FH20: -ve High [-100] | FI20: High [100] | FJ20: Low [33] | FK20: -ve Low [-40] | FL20: -33 | FM20: 2.64 | FN20: 30.66666667 | FO20: 13.33333333 | FP20: 20 | FQ20: 33.33333333 | FR20: 0 | FS20: 86.66666667 | FT20: +ve High [+100] | FU20: +ve Low [+40] | FV20: -ve Medium [-60] | FW20: +ve Low [+40] | FX20: +ve High [+100] | FY20: -ve Medium [-60] | FZ20: -ve Low [-40] | GA20: +ve Medium [+60] | GB20: None [0] | GC20: +ve Medium [+60] | GD20: None [0] | GE20: +ve Medium [+60] | GF20: +ve High [+100] | GG20: -ve Low [-40] | GH20: +ve High [+100] | GI20: -13794.2 | GJ20: -12025 | GK20: 2063 | GL20: -16362 | GM20: -18198 | GN20: -24449 | GO20: 0 | GP20: 0 | GQ20: 3899 | GR20: 0 | GS20: 0 | GT20: 0 | GU20: 4512 | GV20: 0 | GW20: 0 | GX20: 0 | GY20: 8528 | GZ20: 0 | HA20: 0 | HB20: 0 | HC20: 0 | HD20: 3497 | HE20: 2449 | HF20: 12463 | HG20: 18198 | HH20: 24449
A21: FotE | B21: 1200 | C21: Minimum Energy Efficiency Standards In Private Rented Sector | E21: Planned | F21: Housing | G21: Trial (Limited Scope) [50] | H21: 40 | I21: 75 | J21: Not Applicable [-1] | K21: Not Applicable [-1] | L21: Very High [100] | M21: Not Applicable [-1] | N21: Not Applicable [-1] | O21: Medium [50] | P21: Not Applicable [-1] | Q21: Not Applicable [-1] | R21: Medium [50] | S21: No Case Studies [0] | T21: Available - New (No Standard) [60] | U21: ECD,WEL,EQY,SUS | V21: 31000 | W21: 31000 | X21: 31000 | Y21: 31000 | Z21: 31000 | AF21: 6 | AG21: -6 | AH21: -7 | AI21: -9 | AJ21: 7 | AK21: 135-200 [3] | AL21: 188-213 [9] | AM21: >101 [10] | AN21: >71 [10] | AO21: 0-99 [1] | AP21: 37.77777778 | AQ21: 535-600 [9] | AR21: 67-100 [3] | AS21: 34-50 [3] | AT21: 0-11 [1] | AU21: 711- 887 [8] | AV21: 33800 | AZ21: 90000 | BA21: 72000 | BB21: 63000 | BC21: 54000 | BD21: 45000 | BI21: 59000 | BJ21: 100000 | BK21: 132000 | BL21: 155000 | BM21: 169000 | BN21: 282000 | BO21: 66733 | BP21: 15912 | BQ21: 0 | BR21: 3620 | BS21: 57881 | BT21: 1.306361039 | BU21: 0 | BV21: 0 | BX21: 90000 | BY21: 90000 | BZ21: 90000 | CA21: 90000 | CB21: 90000 | DH21: 59000 | DI21: 41000 | DJ21: 32000 | DK21: 23000 | DL21: 14000 | DM21: 59000 | DN21: 41000 | DO21: 32000 | DP21: 23000 | DQ21: 14000 | DS21: 90000 | DT21: 90000 | DU21: 90000 | DV21: 90000 | DW21: 90000 | DX21: 8.343195266 | DY21: CER | DZ21: 1 | EA21: 0.8 | EB21: 0.7 | EC21: 0.6 | ED21: 0.5 | EN21: None [0] | EO21: High [100] | EP21: Low [33] | EQ21: -ve Low [-40] | ER21: 0 | ES21: +ve High [+100] | ET21: Medium [66] | EU21: Medium [66] | EV21: +ve Medium [+60] | EW21: 43.56 | EX21: -ve Low [-40] | EY21: Low [33] | EZ21: None [0] | FA21: +ve Medium [+60] | FB21: 0 | FC21: +ve Medium [+60] | FD21: None [0] | FE21: None [0] | FF21: +ve High [+100] | FG21: 0 | FH21: +ve Medium [+60] | FI21: High [100] | FJ21: None [0] | FK21: None [0] | FL21: 0 | FM21: 8.712 | FN21: -33.33333333 | FO21: 40 | FP21: -46.66666667 | FQ21: -73.33333333 | FR21: -20 | FS21: -66.66666667 | FT21: -ve Low [-40] | FU21: None [0] | FV21: -ve Medium [-60] | FW21: -ve Medium [-60] | FX21: -ve High [-100] | FY21: +ve High [+100] | FZ21: -ve High [-100] | GA21: -ve High [-100] | GB21: -ve Medium [-60] | GC21: -ve High [-100] | GD21: +ve Medium [+60] | GE21: -ve Low [-40] | GF21: -ve Medium [-60] | GG21: +ve Medium [+60] | GH21: None [0] | GI21: -12180.4 | GJ21: 3888 | GK21: -6001 | GL21: -14384 | GM21: -21316 | GN21: -23089 | GO21: 0 | GP21: 2802 | GQ21: 0 | GR21: 4431 | GS21: 0 | GT21: 6527 | GU21: 2664 | GV21: 0 | GW21: 1544 | GX21: 0 | GY21: 0 | GZ21: 0 | HA21: 0 | HB21: 0 | HC21: 0 | HD21: 2639 | HE21: 5863 | HF21: 14384 | HG21: 18429 | HH21: 23089
A22: FotE | B22: 1210 | C22: Connect Energy Companies & IoD Households to Improve Efficiency (BEIS, 2019) | E22: Planned | F22: Planning | G22: Live Operations [100] | H22: 50 | I22: 62.5 | J22: High [25] | K22: Low [25] | L22: Very High [100] | M22: Medium [50] | N22: High [75] | O22: Very Low [100] | P22: Not Applicable [-1] | Q22: Medium [50] | R22: Not Applicable [-1] | S22: Many Cases / Poor Results [0] | T22: Not Applicable [-1] | U22: WEL,EQY,SUS,AQI | AF22: 4 | AG22: -5 | AH22: -3 | AI22: -4 | AJ22: 0 | AK22: 201-267 [4] | AL22: 161-187 [7] | AM22: >101 [10] | AN22: 42-47 [5] | AO22: 533-710 [7] | AP22: 37.77777778 | AQ22: 468-534 [8] | AR22: 34-66 [2] | AS22: 76-83 [7] | AT22: 0-11 [1] | AU22: 533-710 [7] | AV22: 11520 | AZ22: 16000 | BA22: 12800 | BB22: 11200 | BC22: 9600 | BD22: 8000 | BI22: 16000 | BJ22: 28800 | BK22: 40000 | BL22: 49600 | BM22: 57600 | BN22: 77000 | BO22: 60680 | BP22: 10975 | BQ22: 0 | BR22: 6960 | BS22: 43881 | BT22: 0.9970202947 | BU22: 0 | BV22: 0 | BX22: 16000 | BY22: 16000 | BZ22: 16000 | CA22: 16000 | CB22: 16000 | DH22: 16000 | DI22: 12800 | DJ22: 11200 | DK22: 9600 | DL22: 8000 | DM22: 16000 | DN22: 12800 | DO22: 11200 | DP22: 9600 | DQ22: 8000 | DS22: 16000 | DT22: 16000 | DU22: 16000 | DV22: 16000 | DW22: 16000 | DX22: 6.684027778 | DY22: CER | DZ22: 1 | EA22: 0.8 | EB22: 0.7 | EC22: 0.6 | ED22: 0.5 | EN22: -ve Low [-40] | EO22: Medium [66] | EP22: Low [33] | EQ22: +ve High [+100] | ER22: -8.712 | ES22: +ve High [+100] | ET22: Medium [66] | EU22: Low [33] | EV22: None [0] | EW22: 21.78 | EX22: +ve High [+100] | EY22: Medium [66] | EZ22: Low [33] | FA22: +ve High [+100] | FB22: 21.78 | FC22: None [0] | FD22: High [100] | FE22: High [100] | FF22: -ve Low [-40] | FG22: 0 | FH22: -ve High [-100] | FI22: High [100] | FJ22: None [0] | FK22: -ve High [-100] | FL22: 0 | FM22: 6.9696 | FN22: -7.105427358e-16 | FO22: 40 | FP22: -33.33333333 | FQ22: 20 | FR22: 0 | FS22: -26.66666667 | FT22: None [0] | FU22: -ve High [-100] | FV22: -ve Low [-40] | FW22: +ve Low [+40] | FX22: -ve Low [-40] | FY22: +ve Medium [+60] | FZ22: +ve Medium [+60] | GA22: +ve Low [+40] | GB22: -ve Low [-40] | GC22: None [0] | GD22: +ve Medium [+60] | GE22: -ve Medium [-60] | GF22: +ve Medium [+60] | GG22: None [0] | GH22: -ve Low [-40] | GI22: -11007.8 | GJ22: -1914 | GK22: -3665 | GL22: -13309 | GM22: -9810 | GN22: -26341 | GO22: 0 | GP22: 0 | GQ22: 2585 | GR22: 0 | GS22: 0 | GT22: 0 | GU22: 0 | GV22: 7854 | GW22: 7132 | GX22: 0 | GY22: 0 | GZ22: 0 | HA22: 5304 | HB22: 0 | HC22: 0 | HD22: 1914 | HE22: 3665 | HF22: 13274 | HG22: 16942 | HH22: 26341
A23: FotE | B23: 1220 | C23: Retrofit Council-Owned Properties to EPC C or Higher | E23: Planned | F23: Housing | G23: Live Operations [100] | H23: 57 | I23: 70.83333333 | J23: Low [75] | K23: Very High [100] | L23: Medium [50] | M23: High [75] | N23: Very High [100] | O23: High [25] | P23: Not Applicable [-1] | Q23: Low [25] | R23: Medium [50] | S23: Many Cases / Good Results [100] | T23: Decommissioned / Superseded [10] | U23: CRD,WEL,EQY,SUS,AQI | V23: 1300000 | W23: 1300000 | X23: 1300000 | Y23: 1300000 | Z23: 1300000 | AF23: -1 | AG23: -4 | AH23: -3 | AI23: -4 | AJ23: -3 | AK23: 68-134 [2] | AL23: 141-160 [6] | AM23: 84-91 [8] | AN23: 59-64 [9] | AO23: 888- 1064 [9] | AP23: 35.55555556 | AQ23: 0-67 [1] | AR23: 34-66 [2] | AS23: 59-66 [5] | AT23: 42-47 [5] | AU23: 444-532 [6] | AV23: -666400 | AZ23: 880000 | BA23: 704000 | BB23: 616000 | BC23: 528000 | BD23: 440000 | BI23: -420000 | BJ23: -1016000 | BK23: -1700000 | BL23: -2472000 | BM23: -3332000 | BN23: 32000000 | BO23: 85752 | BP23: 8887 | BQ23: 0 | BR23: 687 | BS23: 54405 | BT23: 0.552186502 | BU23: 0 | BV23: 0 | BX23: 880000 | BY23: 880000 | BZ23: 880000 | CA23: 880000 | CB23: 880000 | DH23: -420000 | DI23: -596000 | DJ23: -684000 | DK23: -772000 | DL23: -860000 | DM23: -420000 | DN23: -596000 | DO23: -684000 | DP23: -772000 | DQ23: -860000 | DS23: 880000 | DT23: 880000 | DU23: 880000 | DV23: 880000 | DW23: 880000 | DX23: -48.01920768 | DY23: CER | DZ23: 1 | EA23: 0.8 | EB23: 0.7 | EC23: 0.6 | ED23: 0.5 | EN23: -ve High [-100] | EO23: High [100] | EP23: High [100] | EQ23: +ve Medium [+60] | ER23: -100 | ES23: +ve High [+100] | ET23: High [100] | EU23: Low [33] | EV23: +ve Low [+40] | EW23: 33 | EX23: -ve Medium [-60] | EY23: Low [33] | EZ23: High [100] | FA23: None [0] | FB23: -19.8 | FC23: None [0] | FD23: Medium [66] | FE23: Low [33] | FF23: None [0] | FG23: 0 | FH23: +ve High [+100] | FI23: None [0] | FJ23: Low [33] | FK23: -ve High [-100] | FL23: 0 | FM23: -17.36 | FN23: -13.33333333 | FO23: -53.33333333 | FP23: 46.66666667 | FQ23: -13.33333333 | FR23: -60 | FS23: 13.33333333 | FT23: None [0] | FU23: +ve High [+100] | FV23: None [0] | FW23: -ve Low [-40] | FX23: +ve Medium [+60] | FY23: -ve Medium [-60] | FZ23: None [0] | GA23: +ve Medium [+60] | GB23: -ve High [-100] | GC23: +ve Low [+40] | GD23: -ve High [-100] | GE23: +ve Low [+40] | GF23: -ve High [-100] | GG23: -ve Low [-40] | GH23: -ve Medium [-60] | GI23: -16094.2 | GJ23: -17339 | GK23: -11651 | GL23: -15523 | GM23: -11563 | GN23: -24395 | GO23: 0 | GP23: 0 | GQ23: 835 | GR23: 0 | GS23: 0 | GT23: 0 | GU23: 0 | GV23: 0 | GW23: 6433 | GX23: 0 | GY23: 7489 | GZ23: 0 | HA23: 0 | HB23: 0 | HC23: 0 | HD23: 9850 | HE23: 11651 | HF23: 14688 | HG23: 17996 | HH23: 24395
A24: FotE | B24: 1230 | C24: Enforce Building Standards: Test for Planning Permission Compliance | E24: Planned | F24: Planning | G24: Live Operations [100] | H24: 39 | I24: 31.25 | J24: Not Applicable [-1] | K24: Very Low [0] | L24: Very High [100] | M24: Low [25] | N24: Not Applicable [-1] | O24: Very High [0] | P24: High [25] | Q24: Not Applicable [-1] | R24: Very High [0] | S24: Some Cases / Mixed Results [50] | T24: Research & Development [20] | U24: ECD,CRD,WEL,EQY,SUS | V24: 112000 | W24: 112000 | X24: 112000 | Y24: 112000 | Z24: 112000 | AF24: -6 | AG24: -6 | AH24: 4 | AI24: -1 | AJ24: 1 | AK24: 468-534 [8] | AL24: 188-213 [9] | AM24: 59-66 [5] | AN24: >71 [10] | AO24: 178-266 [3] | AP24: 33.33333333 | AQ24: 68-134 [2] | AR24: 67-100 [3] | AS24: 92-100 [9] | AT24: 65-70 [9] | AU24: 267-354 [4] | AV24: -112000 | AZ24: 0 | BA24: 0 | BB24: 0 | BC24: 0 | BD24: 0 | BI24: -112000 | BJ24: -224000 | BK24: -336000 | BL24: -448000 | BM24: -560000 | BN24: 115000 | BO24: 81308 | BP24: 8411 | BQ24: 69215 | BR24: 4060 | BS24: 35826 | BT24: 0.5968126472 | BU24: 0 | BV24: 0 | BX24: 0 | BY24: 0 | BZ24: 0 | CA24: 0 | CB24: 0 | DH24: -112000 | DI24: -112000 | DJ24: -112000 | DK24: -112000 | DL24: -112000 | DM24: -112000 | DN24: -112000 | DO24: -112000 | DP24: -112000 | DQ24: -112000 | DX24: -1.026785714 | DY24: CER | DZ24: 1 | EA24: 0.8 | EB24: 0.7 | EC24: 0.6 | ED24: 0.5 | EN24: +ve Low [+40] | EO24: High [100] | EP24: Medium [66] | EQ24: +ve High [+100] | ER24: 26.4 | ES24: None [0] | ET24: Medium [66] | EU24: High [100] | EV24: None [0] | EW24: 0 | EX24: -ve Medium [-60] | EY24: Medium [66] | EZ24: Medium [66] | FA24: +ve Low [+40] | FB24: -26.136 | FC24: None [0] | FD24: High [100] | FE24: Low [33] | FF24: -ve Low [-40] | FG24: 0 | FH24: -ve Low [-40] | FI24: None [0] | FJ24: None [0] | FK24: None [0] | FL24: 0 | FM24: 0.0528 | FN24: 9.333333333 | FO24: 60 | FP24: 0 | FQ24: 33.33333333 | FR24: -20 | FS24: -26.66666667 | FT24: +ve Low [+40] | FU24: +ve Medium [+60] | FV24: +ve High [+100] | FW24: +ve High [+100] | FX24: -ve Low [-40] | FY24: +ve High [+100] | FZ24: -ve High [-100] | GA24: -ve Medium [-60] | GB24: -ve Medium [-60] | GC24: None [0] | GD24: +ve Low [+40] | GE24: +ve Low [+40] | GF24: +ve Medium [+60] | GG24: -ve High [-100] | GH24: -ve Low [-40] | GI24: -14093.2 | GJ24: -8492 | GK24: -13623 | GL24: -11192 | GM24: -18383 | GN24: -18776 | GO24: 0 | GP24: 0 | GQ24: 0 | GR24: 0 | GS24: 0 | GT24: 0 | GU24: 0 | GV24: 0 | GW24: 0 | GX24: 4726 | GY24: 0 | GZ24: 0 | HA24: 0 | HB24: 0 | HC24: 0 | HD24: 8492 | HE24: 13623 | HF24: 11192 | HG24: 18383 | HH24: 23502
A25: Proving | B25: 1240 | C25: Implement Circular Economy Waste Policies | D25: Lincs | E25: Planned | F25: Environment | G25: Live Operations [100] | H25: 60 | I25: 50 | J25: Medium [50] | K25: Very Low [0] | L25: Not Applicable [-1] | M25: Very High [100] | N25: Medium [50] | O25: Medium [50] | P25: Very Low [100] | Q25: Low [25] | R25: High [25] | S25: Some Cases / Mixed Results [50] | T25: Not Applicable [-1] | U25: ECD,SOI,CRD,SUS | AF25: 6 | AG25: 7 | AH25: -4 | AI25: 3 | AJ25: 1 | AK25: 135-200 [3] | AL25: 67-100 [3] | AM25: 92-100 [9] | AN25: 48-53 [6] | AO25: 711- 887 [8] | AP25: 46.66666667 | AQ25: 535-600 [9] | AR25: >241 [10] | AS25: 59-66 [5] | AT25: 59-64 [9] | AU25: 888- 1064 [9] | AV25: 936000 | AZ25: 1300000 | BA25: 1040000 | BB25: 910000 | BC25: 780000 | BD25: 650000 | BI25: 1300000 | BJ25: 2340000 | BK25: 3250000 | BL25: 4030000 | BM25: 4680000 | BN25: 11500000 | BO25: 60533 | BP25: 18124 | BQ25: 0 | BR25: 3999 | BS25: 58936 | BT25: 1.092886949 | BU25: 0 | BV25: 0 | BX25: 1300000 | BY25: 1300000 | BZ25: 1300000 | CA25: 1300000 | CB25: 1300000 | DH25: 1300000 | DI25: 1040000 | DJ25: 910000 | DK25: 780000 | DL25: 650000 | DM25: 1300000 | DN25: 1040000 | DO25: 910000 | DP25: 780000 | DQ25: 650000 | DS25: 1300000 | DT25: 1300000 | DU25: 1300000 | DV25: 1300000 | DW25: 1300000 | DX25: 12.28632479 | DY25: CER | DZ25: 1 | EA25: 0.8 | EB25: 0.7 | EC25: 0.6 | ED25: 0.5 | EN25: -ve Low [-40] | EO25: High [100] | EP25: High [100] | EQ25: +ve Low [+40] | ER25: -40 | ES25: -ve Low [-40] | ET25: High [100] | EU25: Low [33] | EV25: +ve High [+100] | EW25: -13.2 | EX25: -ve High [-100] | EY25: Medium [66] | EZ25: Medium [66] | FA25: +ve Low [+40] | FB25: -43.56 | FC25: +ve High [+100] | FD25: Medium [66] | FE25: None [0] | FF25: -ve Low [-40] | FG25: 0 | FH25: -ve Medium [-60] | FI25: High [100] | FJ25: Low [33] | FK25: +ve Medium [+60] | FL25: -19.8 | FM25: -23.312 | FN25: -22.66666667 | FO25: 0 | FP25: 13.33333333 | FQ25: -33.33333333 | FR25: -33.33333333 | FS25: -60 | FT25: +ve Medium [+60] | FU25: +ve High [+100] | FV25: -ve High [-100] | FW25: -ve High [-100] | FX25: -ve Medium [-60] | FY25: -ve Medium [-60] | FZ25: None [0] | GA25: None [0] | GB25: -ve High [-100] | GC25: -ve Medium [-60] | GD25: None [0] | GE25: -ve Medium [-60] | GF25: None [0] | GG25: +ve High [+100] | GH25: -ve Medium [-60] | GI25: -16583.6 | GJ25: -17917 | GK25: -9646 | GL25: -13782 | GM25: -15723 | GN25: -25850 | GO25: 0 | GP25: 0 | GQ25: 0 | GR25: 0 | GS25: 0 | GT25: 0 | GU25: 0 | GV25: 0 | GW25: 0 | GX25: 0 | GY25: 8183 | GZ25: 0 | HA25: 0 | HB25: 0 | HC25: 0 | HD25: 9734 | HE25: 9646 | HF25: 13782 | HG25: 15723 | HH25: 25850
A26: FotE | B26: 1250 | C26: Zero Waste to Landfill or Incineration | E26: Planned | F26: Environment | G26: Design / Development [25] | H26: 70 | I26: 68.75 | J26: Very Low [100] | K26: Very High [100] | L26: Not Applicable [-1] | M26: Not Applicable [-1] | N26: Very Low [0] | O26: Low [75] | P26: Very Low [100] | Q26: Low [25] | R26: Very Low [100] | S26: Many Cases / Good Results [100] | T26: Not Applicable [-1] | U26: REV,CRD,CRY,EQY,SUS | AF26: -1 | AG26: 8 | AH26: -6 | AI26: 2 | AJ26: 1 | AK26: 268-334 [5] | AL26: 0-22 [1] | AM26: 84-91 [8] | AN26: 54-58 [7] | AO26: 0-99 [1] | AP26: 62.22222222 | AQ26: 201-267 [4] | AR26: 188-213 [9] | AS26: 17-33 [2] | AT26: 65-70 [9] | AU26: 89-177 [2] | AV26: 6480000 | AZ26: 9000000 | BA26: 7200000 | BB26: 6300000 | BC26: 5400000 | BD26: 4500000 | BI26: 9000000 | BJ26: 16200000 | BK26: 22500000 | BL26: 27900000 | BM26: 32400000 | BN26: 4500000 | BO26: 68517 | BP26: 16574 | BQ26: 0 | BR26: 6007 | BS26: 65793 | BT26: 0.7814975481 | BU26: 0 | BV26: 50010 | BX26: 9000000 | BY26: 9000000 | BZ26: 9000000 | CA26: 9000000 | CB26: 9000000 | DH26: 9000000 | DI26: 7200000 | DJ26: 6300000 | DK26: 5400000 | DL26: 4500000 | DM26: 9000000 | DN26: 7200000 | DO26: 6300000 | DP26: 5400000 | DQ26: 4500000 | DS26: 9000000 | DT26: 9000000 | DU26: 9000000 | DV26: 9000000 | DW26: 9000000 | DX26: 0.6944444444 | DY26: CER | DZ26: 1 | EA26: 0.8 | EB26: 0.7 | EC26: 0.6 | ED26: 0.5 | EN26: +ve High [+100] | EO26: Medium [66] | EP26: Low [33] | EQ26: -ve High [-100] | ER26: 21.78 | ES26: -ve High [-100] | ET26: High [100] | EU26: None [0] | EV26: -ve High [-100] | EW26: 0 | EX26: None [0] | EY26: High [100] | EZ26: Medium [66] | FA26: -ve High [-100] | FB26: 0 | FC26: -ve Medium [-60] | FD26: Medium [66] | FE26: Low [33] | FF26: -ve Low [-40] | FG26: -13.068 | FH26: -ve Low [-40] | FI26: None [0] | FJ26: Medium [66] | FK26: None [0] | FL26: 0 | FM26: 1.7424 | FN26: 21.33333333 | FO26: 73.33333333 | FP26: 33.33333333 | FQ26: 33.33333333 | FR26: -20 | FS26: -13.33333333 | FT26: +ve Medium [+60] | FU26: +ve Medium [+60] | FV26: +ve High [+100] | FW26: None [0] | FX26: +ve High [+100] | FY26: +ve High [+100] | FZ26: +ve High [+100] | GA26: +ve Medium [+60] | GB26: -ve Medium [-60] | GC26: -ve High [-100] | GD26: +ve Medium [+60] | GE26: -ve Medium [-60] | GF26: -ve Medium [-60] | GG26: None [0] | GH26: -ve Low [-40] | GI26: -21208 | GJ26: -20270 | GK26: -12302 | GL26: -19560 | GM26: -30188 | GN26: -23720 | GO26: 0 | GP26: 0 | GQ26: 0 | GR26: 3654 | GS26: 0 | GT26: 0 | GU26: 0 | GV26: 4575 | GW26: 1172 | GX26: 0 | GY26: 10136 | GZ26: 0 | HA26: 9683 | HB26: 9131 | HC26: 0 | HD26: 10134 | HE26: 12302 | HF26: 14452 | HG26: 18575 | HH26: 23720
A27: FotE | B27: 1260 | C27: Bio-Mass for Bio-Gas (CHP) | E27: Planned | F27: Highways | G27: Identification [0] | H27: 66 | I27: 80 | J27: Medium [50] | K27: Not Applicable [-1] | L27: Very High [100] | M27: Medium [50] | N27: Very High [100] | O27: Very Low [100] | P27: Not Applicable [-1] | Q27: Medium [50] | R27: Very Low [100] | S27: Many Cases / Good Results [100] | T27: Available - New (Standardised) [80] | U27: REV,CRD,SUS,AQI | V27: 966000 | W27: 966000 | X27: 966000 | Y27: 966000 | Z27: 966000 | AF27: 4 | AG27: 0 | AH27: -1 | AI27: -7 | AJ27: 4 | AK27: 335-400 [6] | AL27: 161-187 [7] | AM27: 51-58 [4] | AN27: 59-64 [9] | AO27: 89-177 [2] | AP27: 48.88888889 | AQ27: >601 [10] | AR27: 161-187 [7] | AS27: 34-50 [3] | AT27: 11-23 [2] | AU27: 444-532 [6] | AV27: -498000 | AZ27: 650000 | BA27: 520000 | BB27: 455000 | BC27: 390000 | BD27: 325000 | BI27: -316000 | BJ27: -762000 | BK27: -1273000 | BL27: -1849000 | BM27: -2490000 | BN27: 5190000 | BO27: 69014 | BP27: 11979 | BQ27: 0 | BR27: 4871 | BS27: 55372 | BT27: 0.8031081135 | BU27: 0 | BV27: 0 | BX27: 650000 | BY27: 650000 | BZ27: 650000 | CA27: 650000 | CB27: 650000 | DH27: -316000 | DI27: -446000 | DJ27: -511000 | DK27: -576000 | DL27: -641000 | DM27: -316000 | DN27: -446000 | DO27: -511000 | DP27: -576000 | DQ27: -641000 | DS27: 650000 | DT27: 650000 | DU27: 650000 | DV27: 650000 | DW27: 650000 | DX27: -10.42168675 | DY27: CER | DZ27: 1 | EA27: 0.8 | EB27: 0.7 | EC27: 0.6 | ED27: 0.5 | EN27: None [0] | EO27: High [100] | EP27: Medium [66] | EQ27: -ve Low [-40] | ER27: 0 | ES27: -ve High [-100] | ET27: Low [33] | EU27: Low [33] | EV27: -ve Medium [-60] | EW27: -10.89 | EX27: +ve Low [+40] | EY27: Medium [66] | EZ27: High [100] | FA27: +ve High [+100] | FB27: 26.4 | FC27: -ve Low [-40] | FD27: Medium [66] | FE27: Medium [66] | FF27: -ve Low [-40] | FG27: -17.424 | FH27: +ve Medium [+60] | FI27: None [0] | FJ27: Low [33] | FK27: -ve Low [-40] | FL27: 0 | FM27: -0.3828 | FN27: 20 | FO27: 53.33333333 | FP27: 20 | FQ27: 53.33333333 | FR27: -26.66666667 | FS27: 0 | FT27: None [0] | FU27: +ve High [+100] | FV27: -ve Low [-40] | FW27: -ve Low [-40] | FX27: -ve High [-100] | FY27: +ve Medium [+60] | FZ27: None [0] | GA27: +ve High [+100] | GB27: -ve High [-100] | GC27: +ve Low [+40] | GD27: +ve High [+100] | GE27: -ve Low [-40] | GF27: +ve High [+100] | GG27: +ve Medium [+60] | GH27: +ve Medium [+60] | GI27: -14915.8 | GJ27: -7052 | GK27: -4243 | GL27: -24558 | GM27: -15100 | GN27: -23626 | GO27: 3076 | GP27: 0 | GQ27: 0 | GR27: 3469 | GS27: 0 | GT27: 3177 | GU27: 0 | GV27: 0 | GW27: 4210 | GX27: 0 | GY27: 0 | GZ27: 0 | HA27: 9126 | HB27: 0 | HC27: 0 | HD27: 7153 | HE27: 4243 | HF27: 15432 | HG27: 15841 | HH27: 23626
A28: FotE | B28: 1270 | C28: Industrial Waste Heat to Housing / Community Properties | E28: Planned | F28: Environment | G28: Trial (Limited Scope) [50] | H28: 20 | I28: 20.83333333 | J28: Very High [0] | K28: Medium [50] | L28: Very Low [0] | M28: High [75] | N28: Very Low [0] | O28: Very High [0] | P28: Very High [0] | Q28: Very Low [0] | R28: Medium [50] | S28: Many Cases / Poor Results [0] | T28: Research & Development [20] | U28: REV,WEL,SUS,AQI | AF28: -4 | AG28: -4 | AH28: -2 | AI28: 8 | AJ28: -1 | AK28: 268-334 [5] | AL28: 121-140 [5] | AM28: 76-83 [7] | AN28: 0-11 [1] | AO28: 89-177 [2] | AP28: 66.66666667 | AQ28: 0-67 [1] | AR28: 0-22 [1] | AS28: 59-66 [5] | AT28: 59-64 [9] | AU28: 0-99 [1] | AV28: 2304000 | AZ28: 3200000 | BA28: 2560000 | BB28: 2240000 | BC28: 1920000 | BD28: 1600000 | BI28: 3200000 | BJ28: 5760000 | BK28: 8000000 | BL28: 9920000 | BM28: 11520000 | BN28: 27000000 | BO28: 69243 | BP28: 7271 | BQ28: 0 | BR28: 6980 | BS28: 38381 | BT28: 0.5402895018 | BU28: 0 | BV28: 0 | BX28: 3200000 | BY28: 3200000 | BZ28: 3200000 | CA28: 3200000 | CB28: 3200000 | DH28: 3200000 | DI28: 2560000 | DJ28: 2240000 | DK28: 1920000 | DL28: 1600000 | DM28: 3200000 | DN28: 2560000 | DO28: 2240000 | DP28: 1920000 | DQ28: 1600000 | DS28: 3200000 | DT28: 3200000 | DU28: 3200000 | DV28: 3200000 | DW28: 3200000 | DX28: 11.71875 | DY28: CER | DZ28: 1 | EA28: 0.8 | EB28: 0.7 | EC28: 0.6 | ED28: 0.5 | EN28: -ve Medium [-60] | EO28: High [100] | EP28: None [0] | EQ28: +ve Low [+40] | ER28: 0 | ES28: +ve High [+100] | ET28: None [0] | EU28: None [0] | EV28: -ve Low [-40] | EW28: 0 | EX28: -ve High [-100] | EY28: High [100] | EZ28: Medium [66] | FA28: None [0] | FB28: -66 | FC28: -ve High [-100] | FD28: None [0] | FE28: High [100] | FF28: -ve Low [-40] | FG28: 0 | FH28: +ve Low [+40] | FI28: Medium [66] | FJ28: Medium [66] | FK28: +ve High [+100] | FL28: 17.424 | FM28: -9.7152 | FN28: 6.666666667 | FO28: -53.33333333 | FP28: 6.666666667 | FQ28: 20 | FR28: 46.66666667 | FS28: 13.33333333 | FT28: -ve High [-100] | FU28: +ve Medium [+60] | FV28: +ve Medium [+60] | FW28: +ve Medium [+60] | FX28: +ve High [+100] | FY28: -ve High [-100] | FZ28: None [0] | GA28: +ve High [+100] | GB28: +ve Low [+40] | GC28: None [0] | GD28: +ve Low [+40] | GE28: -ve Low [-40] | GF28: -ve High [-100] | GG28: +ve Low [+40] | GH28: -ve Medium [-60] | GI28: -13457.6 | GJ28: -11364 | GK28: -1873 | GL28: -12594 | GM28: -17386 | GN28: -24071 | GO28: 639 | GP28: 0 | GQ28: 0 | GR28: 0 | GS28: 0 | GT28: 0 | GU28: 0 | GV28: 1930 | GW28: 0 | GX28: 0 | GY28: 0 | GZ28: 0 | HA28: 0 | HB28: 0 | HC28: 0 | HD28: 10725 | HE28: 1873 | HF28: 14524 | HG28: 17386 | HH28: 24071
A29: FotE | B29: 1280 | C29: Identify NPFF Compliant Sites Suitable for Renewable Energy Generation | E29: Planned | F29: Planning | G29: Trial (Limited Scope) [50] | H29: 44 | I29: 54.16666667 | J29: Low [75] | K29: Very High [100] | L29: Very Low [0] | M29: Very Low [0] | N29: High [75] | O29: Low [75] | P29: Not Applicable [-1] | Q29: Medium [50] | R29: High [25] | S29: Many Cases / Mixed Results [75] | T29: Research & Development [20] | U29: REV,CRD,EQY,SUS,AQI | AF29: -1 | AG29: -5 | AH29: -1 | AI29: -9 | AJ29: 0 | AK29: 335-400 [6] | AL29: >241 [10] | AM29: 17-33 [2] | AN29: >71 [10] | AO29: 711- 887 [8] | AP29: 31.11111111 | AQ29: 268-334 [5] | AR29: 121-140 [5] | AS29: 0-16 [1] | AT29: 0-11 [1] | AU29: 711- 887 [8] | AV29: 0 | AZ29: 0 | BA29: 0 | BB29: 0 | BC29: 0 | BD29: 0 | BI29: 0 | BJ29: 0 | BK29: 0 | BL29: 0 | BM29: 0 | BN29: 318000 | BO29: 0 | BP29: 11087 | BQ29: 0 | BR29: 0 | BS29: 0 | BT29: No Payback | BU29: 0 | BV29: 0 | BX29: 0 | BY29: 0 | BZ29: 0 | CA29: 0 | CB29: 0 | DH29: 0 | DI29: 0 | DJ29: 0 | DK29: 0 | DL29: 0 | DM29: 0 | DN29: 0 | DO29: 0 | DP29: 0 | DQ29: 0 | DX29: -1 | DY29: CER | DZ29: 1 | EA29: 0.8 | EB29: 0.7 | EC29: 0.6 | ED29: 0.5 | EN29: -ve Medium [-60] | EO29: Low [33] | EP29: None [0] | EQ29: -ve High [-100] | ER29: 0 | ES29: -ve Low [-40] | ET29: Medium [66] | EU29: High [100] | EV29: -ve High [-100] | EW29: -26.4 | EX29: -ve High [-100] | EY29: High [100] | EZ29: High [100] | FA29: +ve Medium [+60] | FB29: -100 | FC29: +ve High [+100] | FD29: High [100] | FE29: None [0] | FF29: +ve Low [+40] | FG29: 0 | FH29: -ve Low [-40] | FI29: None [0] | FJ29: High [100] | FK29: +ve Low [+40] | FL29: 0 | FM29: -25.28 | FN29: 21.33333333 | FO29: -20 | FP29: 53.33333333 | FQ29: 100 | FR29: 26.66666667 | FS29: -53.33333333 | FT29: -ve Medium [-60] | FU29: None [0] | FV29: +ve High [+100] | FW29: -ve Medium [-60] | FX29: -ve High [-100] | FY29: +ve High [+100] | FZ29: +ve High [+100] | GA29: +ve High [+100] | GB29: +ve High [+100] | GC29: -ve High [-100] | GD29: -ve High [-100] | GE29: +ve Medium [+60] | GF29: +ve High [+100] | GG29: +ve Low [+40] | GH29: +ve Low [+40] | GI29: 0 | GJ29: 0 | GK29: 0 | GL29: 0 | GM29: 0 | GN29: 0 | GO29: 0 | GP29: 0 | GQ29: 0 | GR29: 0 | GS29: 0 | GT29: 0 | GU29: 0 | GV29: 0 | GW29: 0 | GX29: 0 | GY29: 0 | GZ29: 0 | HA29: 0 | HB29: 0 | HC29: 0 | HD29: 0 | HE29: 0 | HF29: 0 | HG29: 0 | HH29: 0
A30: Proving | B30: 1290 | C30: Dim Street Lights | E30: Planned | F30: Highways | G30: Design / Development [25] | H30: 67.5 | I30: 31.25 | J30: Very High [0] | K30: Not Applicable [-1] | L30: Low [25] | M30: Not Applicable [-1] | N30: Very Low [0] | O30: Very Low [100] | P30: Medium [50] | Q30: Medium [50] | R30: Very Low [100] | S30: Many Cases / Good Results [100] | T30: Available - New (Standardised) [80] | U30: SUS,CER | AF30: 0 | AG30: -1 | AH30: 4 | AI30: 0 | AJ30: -3 | AK30: >601 [10] | AL30: 101-120 [4] | AM30: 67-75 [6] | AN30: 54-58 [7] | AO30: 888- 1064 [9] | AP30: 31.11111111 | AQ30: >601 [10] | AR30: 67-100 [3] | AS30: >101 [10] | AT30: 54-58 [7] | AU30: 444-532 [6] | AV30: 432000 | AZ30: 600000 | BA30: 480000 | BB30: 420000 | BC30: 360000 | BD30: 300000 | BI30: 600000 | BJ30: 1080000 | BK30: 1500000 | BL30: 1860000 | BM30: 2160000 | BN30: 1900000 | BO30: 68244 | BP30: 11073 | BQ30: 0 | BR30: 5020 | BS30: 69299 | BT30: 0.637948517 | BU30: 0 | BV30: 0 | BX30: 600000 | BY30: 600000 | BZ30: 600000 | CA30: 600000 | CB30: 600000 | DH30: 600000 | DI30: 480000 | DJ30: 420000 | DK30: 360000 | DL30: 300000 | DM30: 600000 | DN30: 480000 | DO30: 420000 | DP30: 360000 | DQ30: 300000 | DS30: 600000 | DT30: 600000 | DU30: 600000 | DV30: 600000 | DW30: 600000 | DX30: 4.398148148 | DY30: RED | DZ30: 1 | EA30: 0.8 | EB30: 0.7 | EC30: 0.6 | ED30: 0.5 | EN30: +ve Low [+40] | EO30: Medium [66] | EP30: None [0] | EQ30: +ve High [+100] | ER30: 0 | ES30: None [0] | ET30: High [100] | EU30: Medium [66] | EV30: +ve Low [+40] | EW30: 0 | EX30: -ve Medium [-60] | EY30: High [100] | EZ30: High [100] | FA30: -ve High [-100] | FB30: -60 | FC30: +ve High [+100] | FD30: None [0] | FE30: Medium [66] | FF30: -ve Low [-40] | FG30: 0 | FH30: -ve High [-100] | FI30: High [100] | FJ30: None [0] | FK30: -ve High [-100] | FL30: 0 | FM30: -12 | FN30: 32 | FO30: 53.33333333 | FP30: 33.33333333 | FQ30: 46.66666667 | FR30: 26.66666667 | FS30: 0 | FT30: +ve High [+100] | FU30: -ve Low [-40] | FV30: +ve Medium [+60] | FW30: -ve Medium [-60] | FX30: +ve Low [+40] | FY30: +ve Medium [+60] | FZ30: +ve Low [+40] | GA30: +ve Low [+40] | GB30: +ve Low [+40] | GC30: +ve Medium [+60] | GD30: None [0] | GE30: +ve High [+100] | GF30: +ve Low [+40] | GG30: +ve High [+100] | GH30: -ve High [-100] | GI30: -17357.2 | GJ30: -13446 | GK30: -11565 | GL30: -18940 | GM30: -22509 | GN30: -20326 | GO30: 2677 | GP30: 0 | GQ30: 0 | GR30: 5227 | GS30: 4144 | GT30: 4724 | GU30: 0 | GV30: 0 | GW30: 0 | GX30: 5307 | GY30: 5444 | GZ30: 0 | HA30: 4493 | HB30: 0 | HC30: 0 | HD30: 10049 | HE30: 11565 | HF30: 14447 | HG30: 17282 | HH30: 21489
A31: Proving | B31: 1300 | C31: Adaptive LED Street Lighting | E31: Planned | F31: Highways | G31: Identification [0] | H31: 34.16666667 | I31: 50 | J31: Very Low [100] | K31: Low [25] | L31: High [75] | M31: Not Applicable [-1] | N31: Not Applicable [-1] | O31: Very High [0] | P31: Medium [50] | Q31: Very Low [0] | R31: Medium [50] | S31: Limited Cases / Data [25] | T31: Available - New (Standardised) [80] | U31: SUS,CER | AF31: 0 | AG31: 3 | AH31: -3 | AI31: 3 | AJ31: -5 | AK31: 401-467 [7] | AL31: 0-22 [1] | AM31: 76-83 [7] | AN31: 0-11 [1] | AO31: 533-710 [7] | AP31: 60 | AQ31: 401-467 [7] | AR31: 101-120 [4] | AS31: 51-58 [4] | AT31: 36-41 [4] | AU31: 89-177 [2] | AV31: 568800 | AZ31: 790000 | BA31: 632000 | BB31: 553000 | BC31: 474000 | BD31: 395000 | BI31: 790000 | BJ31: 1422000 | BK31: 1975000 | BL31: 2449000 | BM31: 2844000 | BN31: 2250000 | BO31: 63164 | BP31: 7300 | BQ31: 0 | BR31: 3249 | BS31: 51559 | BT31: 0.5051553526 | BU31: 0 | BV31: 0 | BX31: 790000 | BY31: 790000 | BZ31: 790000 | CA31: 790000 | CB31: 790000 | DH31: 790000 | DI31: 632000 | DJ31: 553000 | DK31: 474000 | DL31: 395000 | DM31: 790000 | DN31: 632000 | DO31: 553000 | DP31: 474000 | DQ31: 395000 | DS31: 790000 | DT31: 790000 | DU31: 790000 | DV31: 790000 | DW31: 790000 | DX31: 3.955696203 | DY31: RED | DZ31: 1 | EA31: 0.8 | EB31: 0.7 | EC31: 0.6 | ED31: 0.5 | EN31: None [0] | EO31: None [0] | EP31: High [100] | EQ31: +ve Medium [+60] | ER31: 0 | ES31: -ve Medium [-60] | ET31: None [0] | EU31: None [0] | EV31: -ve High [-100] | EW31: 0 | EX31: +ve High [+100] | EY31: Low [33] | EZ31: High [100] | FA31: +ve High [+100] | FB31: 33 | FC31: None [0] | FD31: None [0] | FE31: Medium [66] | FF31: +ve High [+100] | FG31: 0 | FH31: +ve Low [+40] | FI31: None [0] | FJ31: High [100] | FK31: +ve High [+100] | FL31: 0 | FM31: 6.6 | FN31: -5.333333333 | FO31: 0 | FP31: 33.33333333 | FQ31: -66.66666667 | FR31: 13.33333333 | FS31: -6.666666667 | FT31: +ve Low [+40] | FU31: +ve Medium [+60] | FV31: -ve High [-100] | FW31: -ve High [-100] | FX31: +ve Low [+40] | FY31: None [0] | FZ31: -ve Medium [-60] | GA31: -ve Low [-40] | GB31: +ve High [+100] | GC31: -ve High [-100] | GD31: -ve Low [-40] | GE31: +ve High [+100] | GF31: -ve Medium [-60] | GG31: +ve Low [+40] | GH31: +ve Low [+40] | GI31: -14451 | GJ31: -5255 | GK31: -10718 | GL31: -9072 | GM31: -20943 | GN31: -26267 | GO31: 1852 | GP31: 0 | GQ31: 2457 | GR31: 0 | GS31: 0 | GT31: 0 | GU31: 2747 | GV31: 6140 | GW31: 0 | GX31: 0 | GY31: 0 | GZ31: 0 | HA31: 0 | HB31: 4298 | HC31: 0 | HD31: 3403 | HE31: 13465 | HF31: 12755 | HG31: 16645 | HH31: 26267
A32: FotE | B32: 1310 | C32: Encourage Virtual / Home Working Over High-Speed Broadband | E32: Planned | F32: Transport | G32: Adoption / Implementation [75] | H32: 52.5 | I32: 50 | J32: Low [75] | K32: Medium [50] | L32: Low [25] | M32: Very Low [0] | N32: Medium [50] | O32: Very Low [100] | P32: Not Applicable [-1] | Q32: Not Applicable [-1] | R32: High [25] | S32: Many Cases / Good Results [100] | T32: Decommissioned / Superseded [10] | U32: CRD,WEL,EQY,SUS,AQI | AF32: 2 | AG32: -4 | AH32: -8 | AI32: 8 | AJ32: 1 | AK32: 335-400 [6] | AL32: >241 [10] | AM32: 92-100 [9] | AN32: 11-23 [2] | AO32: 267-354 [4] | AP32: 42.22222222 | AQ32: 468-534 [8] | AR32: 141-160 [6] | AS32: 0-16 [1] | AT32: >71 [10] | AU32: 355-443 [5] | AV32: 288000 | AZ32: 400000 | BA32: 320000 | BB32: 280000 | BC32: 240000 | BD32: 200000 | BI32: 400000 | BJ32: 720000 | BK32: 1000000 | BL32: 1240000 | BM32: 1440000 | BN32: 2600000 | BO32: 74043 | BP32: 8344 | BQ32: 39112 | BR32: 5796 | BS32: 37794 | BT32: 0.6217585693 | BU32: 0 | BV32: 62231 | BX32: 400000 | BY32: 400000 | BZ32: 400000 | CA32: 400000 | CB32: 400000 | DH32: 400000 | DI32: 320000 | DJ32: 280000 | DK32: 240000 | DL32: 200000 | DM32: 400000 | DN32: 320000 | DO32: 280000 | DP32: 240000 | DQ32: 200000 | DS32: 400000 | DT32: 400000 | DU32: 400000 | DV32: 400000 | DW32: 400000 | DX32: 9.027777778 | DY32: CER | DZ32: 1 | EA32: 0.8 | EB32: 0.7 | EC32: 0.6 | ED32: 0.5 | EN32: None [0] | EO32: Low [33] | EP32: None [0] | EQ32: None [0] | ER32: 0 | ES32: -ve Medium [-60] | ET32: Low [33] | EU32: Medium [66] | EV32: +ve High [+100] | EW32: -13.068 | EX32: -ve Medium [-60] | EY32: Low [33] | EZ32: High [100] | FA32: +ve High [+100] | FB32: -19.8 | FC32: +ve High [+100] | FD32: High [100] | FE32: High [100] | FF32: -ve Low [-40] | FG32: 100 | FH32: +ve Medium [+60] | FI32: Medium [66] | FJ32: Low [33] | FK32: +ve Low [+40] | FL32: 13.068 | FM32: 16.04 | FN32: -5.333333333 | FO32: -73.33333333 | FP32: 73.33333333 | FQ32: -26.66666667 | FR32: -33.33333333 | FS32: 33.33333333 | FT32: -ve High [-100] | FU32: +ve Medium [+60] | FV32: -ve High [-100] | FW32: +ve Medium [+60] | FX32: None [0] | FY32: -ve Medium [-60] | FZ32: +ve High [+100] | GA32: -ve Low [-40] | GB32: -ve Medium [-60] | GC32: +ve High [+100] | GD32: -ve Medium [-60] | GE32: +ve Medium [+60] | GF32: +ve Medium [+60] | GG32: -ve High [-100] | GH32: None [0] | GI32: -13420 | GJ32: -3168 | GK32: -4319 | GL32: -16900 | GM32: -20194 | GN32: -22519 | GO32: 0 | GP32: 2325 | GQ32: 0 | GR32: 0 | GS32: 0 | GT32: 0 | GU32: 0 | GV32: 0 | GW32: 2958 | GX32: 7454 | GY32: 0 | GZ32: 0 | HA32: 5882 | HB32: 4360 | HC32: 7656 | HD32: 3168 | HE32: 1994 | HF32: 11018 | HG32: 18792 | HH32: 22317
A33: FotE | B33: 1330 | C33: Authority Properties Use Renewable Energy | E33: Planned | F33: Facilities | G33: Adoption / Implementation [75] | H33: 71 | I33: 43.75 | J33: Not Applicable [-1] | K33: Very Low [0] | L33: Medium [50] | M33: Medium [50] | N33: High [75] | O33: Not Applicable [-1] | P33: Very Low [100] | Q33: Not Applicable [-1] | R33: Medium [50] | S33: Some Cases / Mixed Results [50] | T33: Available - New (Standardised) [80] | U33: CRD,SUS,AQI | AF33: -2 | AG33: 0 | AH33: -1 | AI33: 3 | AJ33: -4 | AK33: 535-600 [9] | AL33: 161-187 [7] | AM33: 59-66 [5] | AN33: 24-35 [3] | AO33: 444-532 [6] | AP33: 44.44444444 | AQ33: 401-467 [7] | AR33: 161-187 [7] | AS33: 51-58 [4] | AT33: 48-53 [6] | AU33: 89-177 [2] | AV33: 432000 | AZ33: 600000 | BA33: 480000 | BB33: 420000 | BC33: 360000 | BD33: 300000 | BI33: 600000 | BJ33: 1080000 | BK33: 1500000 | BL33: 1860000 | BM33: 2160000 | BN33: 5600000 | BO33: 87360 | BP33: 12393 | BQ33: 0 | BR33: 3279 | BS33: 60919 | BT33: 0.7412790698 | BU33: 0 | BV33: 0 | BX33: 600000 | BY33: 600000 | BZ33: 600000 | CA33: 600000 | CB33: 600000 | DH33: 600000 | DI33: 480000 | DJ33: 420000 | DK33: 360000 | DL33: 300000 | DM33: 600000 | DN33: 480000 | DO33: 420000 | DP33: 360000 | DQ33: 300000 | DS33: 600000 | DT33: 600000 | DU33: 600000 | DV33: 600000 | DW33: 600000 | DX33: 12.96296296 | DY33: CER | DZ33: 1 | EA33: 0.8 | EB33: 0.7 | EC33: 0.6 | ED33: 0.5 | EN33: -ve High [-100] | EO33: Medium [66] | EP33: Low [33] | EQ33: +ve Medium [+60] | ER33: -21.78 | ES33: +ve Low [+40] | ET33: Low [33] | EU33: None [0] | EV33: +ve High [+100] | EW33: 0 | EX33: +ve High [+100] | EY33: Low [33] | EZ33: Medium [66] | FA33: None [0] | FB33: 21.78 | FC33: -ve Low [-40] | FD33: Low [33] | FE33: Low [33] | FF33: +ve Medium [+60] | FG33: -4.356 | FH33: -ve Low [-40] | FI33: High [100] | FJ33: High [100] | FK33: -ve Medium [-60] | FL33: -40 | FM33: -8.8712 | FN33: -21.33333333 | FO33: -13.33333333 | FP33: -80 | FQ33: -66.66666667 | FR33: 33.33333333 | FS33: 20 | FT33: None [0] | FU33: -ve High [-100] | FV33: -ve Low [-40] | FW33: +ve Medium [+60] | FX33: -ve High [-100] | FY33: -ve High [-100] | FZ33: -ve High [-100] | GA33: -ve High [-100] | GB33: None [0] | GC33: +ve Medium [+60] | GD33: +ve Medium [+60] | GE33: -ve Low [-40] | GF33: -ve Medium [-60] | GG33: +ve Low [+40] | GH33: +ve High [+100] | GI33: -16718.4 | GJ33: -10435 | GK33: -17090 | GL33: -11215 | GM33: -14326 | GN33: -30526 | GO33: 0 | GP33: 0 | GQ33: 0 | GR33: 3262 | GS33: 1578 | GT33: 0 | GU33: 0 | GV33: 553 | GW33: 5022 | GX33: 0 | GY33: 0 | GZ33: 7911 | HA33: 0 | HB33: 0 | HC33: 0 | HD33: 10435 | HE33: 9179 | HF33: 11768 | HG33: 16086 | HH33: 28948
A34: Proving | B34: 1340 | C34: Land Exchange for Authority Green Energy | E34: Planned | F34: Facilities | G34: Trial (Limited Scope) [50] | H34: 66.66666667 | I34: 50 | J34: Very Low [100] | K34: Not Applicable [-1] | L34: High [75] | M34: Low [25] | N34: Very Low [0] | O34: Medium [50] | P34: Medium [50] | Q34: Low [25] | R34: Very Low [100] | S34: Many Cases / Mixed Results [75] | T34: Available - Mature [100] | U34: REV,CRD,SUS,AQI | AF34: 0 | AG34: 0 | AH34: -6 | AI34: -1 | AJ34: 6 | AK34: 135-200 [3] | AL34: 101-120 [4] | AM34: >101 [10] | AN34: 11-23 [2] | AO34: 267-354 [4] | AP34: 60 | AQ34: 135-200 [3] | AR34: 101-120 [4] | AS34: 51-58 [4] | AT34: 0-11 [1] | AU34: >1065 [10] | AV34: 1512000 | AZ34: 2100000 | BA34: 1680000 | BB34: 1470000 | BC34: 1260000 | BD34: 1050000 | BI34: 2100000 | BJ34: 3780000 | BK34: 5250000 | BL34: 6510000 | BM34: 7560000 | BN34: 470000 | BO34: 83860 | BP34: 17121 | BQ34: 0 | BR34: 1980 | BS34: 30098 | BT34: 1.294143436 | BU34: 0 | BV34: 53549 | BX34: 2100000 | BY34: 2100000 | BZ34: 2100000 | CA34: 2100000 | CB34: 2100000 | DH34: 2100000 | DI34: 1680000 | DJ34: 1470000 | DK34: 1260000 | DL34: 1050000 | DM34: 2100000 | DN34: 1680000 | DO34: 1470000 | DP34: 1260000 | DQ34: 1050000 | DS34: 2100000 | DT34: 2100000 | DU34: 2100000 | DV34: 2100000 | DW34: 2100000 | DX34: 0.3108465608 | DY34: CER | DZ34: 1 | EA34: 0.8 | EB34: 0.7 | EC34: 0.6 | ED34: 0.5 | EN34: +ve Medium [+60] | EO34: Low [33] | EP34: Low [33] | EQ34: +ve High [+100] | ER34: 6.534 | ES34: -ve Medium [-60] | ET34: High [100] | EU34: Low [33] | EV34: +ve Medium [+60] | EW34: -19.8 | EX34: -ve Low [-40] | EY34: Low [33] | EZ34: High [100] | FA34: -ve High [-100] | FB34: -13.2 | FC34: +ve Low [+40] | FD34: Medium [66] | FE34: Low [33] | FF34: -ve Low [-40] | FG34: 8.712 | FH34: +ve High [+100] | FI34: Medium [66] | FJ34: Medium [66] | FK34: +ve Low [+40] | FL34: 43.56 | FM34: 5.1612 | FN34: 6.666666667 | FO34: 0 | FP34: 33.33333333 | FQ34: 0 | FR34: -33.33333333 | FS34: 33.33333333 | FT34: -ve Medium [-60] | FU34: -ve Low [-40] | FV34: +ve Low [+40] | FW34: None [0] | FX34: +ve Medium [+60] | FY34: None [0] | FZ34: +ve High [+100] | GA34: -ve Low [-40] | GB34: -ve High [-100] | GC34: -ve Medium [-60] | GD34: +ve Medium [+60] | GE34: +ve Low [+40] | GF34: None [0] | GG34: None [0] | GH34: +ve High [+100] | GI34: -13229.6 | GJ34: -3643 | GK34: -9260 | GL34: -11952 | GM34: -14703 | GN34: -26590 | GO34: 2119 | GP34: 0 | GQ34: 0 | GR34: 0 | GS34: 0 | GT34: 4245 | GU34: 0 | GV34: 0 | GW34: 835 | GX34: 0 | GY34: 0 | GZ34: 0 | HA34: 0 | HB34: 0 | HC34: 0 | HD34: 5769 | HE34: 9260 | HF34: 11952 | HG34: 15538 | HH34: 26590
A35: FotE | B35: 1350 | C35: Implement Consumer Demand Management: Reducing Load | E35: Planned | F35: Facilities | G35: Adoption / Implementation [75] | H35: 50 | I35: 40 | J35: Not Applicable [-1] | K35: Very Low [0] | L35: Low [25] | M35: Very High [100] | N35: Very Low [0] | O35: Low [75] | P35: High [25] | Q35: High [75] | R35: High [25] | S35: No Case Studies [0] | T35: Available - Mature [100] | U35: SOI,SUS,CER | AF35: -1 | AG35: 2 | AH35: 6 | AI35: 1 | AJ35: -1 | AK35: 135-200 [3] | AL35: 67-100 [3] | AM35: 51-58 [4] | AN35: 24-35 [3] | AO35: 267-354 [4] | AP35: 73.33333333 | AQ35: 68-134 [2] | AR35: 121-140 [5] | AS35: >101 [10] | AT35: 36-41 [4] | AU35: 178-266 [3] | AV35: 324000 | AZ35: 450000 | BA35: 360000 | BB35: 315000 | BC35: 270000 | BD35: 225000 | BI35: 450000 | BJ35: 810000 | BK35: 1125000 | BL35: 1395000 | BM35: 1620000 | BN35: 1770000 | BO35: 64184 | BP35: 13424 | BQ35: 0 | BR35: 3684 | BS35: 44276 | BT35: 0.8824380111 | BU35: 0 | BV35: 0 | BX35: 450000 | BY35: 450000 | BZ35: 450000 | CA35: 450000 | CB35: 450000 | DH35: 450000 | DI35: 360000 | DJ35: 315000 | DK35: 270000 | DL35: 225000 | DM35: 450000 | DN35: 360000 | DO35: 315000 | DP35: 270000 | DQ35: 225000 | DS35: 450000 | DT35: 450000 | DU35: 450000 | DV35: 450000 | DW35: 450000 | DX35: 5.462962963 | DY35: RED | DZ35: 1 | EA35: 0.8 | EB35: 0.7 | EC35: 0.6 | ED35: 0.5 | EN35: None [0] | EO35: Low [33] | EP35: High [100] | EQ35: +ve Low [+40] | ER35: 0 | ES35: +ve Medium [+60] | ET35: Medium [66] | EU35: Low [33] | EV35: -ve High [-100] | EW35: 13.068 | EX35: -ve Low [-40] | EY35: Low [33] | EZ35: High [100] | FA35: +ve Low [+40] | FB35: -13.2 | FC35: +ve Medium [+60] | FD35: None [0] | FE35: High [100] | FF35: -ve Medium [-60] | FG35: 0 | FH35: +ve Medium [+60] | FI35: High [100] | FJ35: High [100] | FK35: -ve Medium [-60] | FL35: 60 | FM35: 11.9736 | FN35: 5.333333333 | FO35: 20 | FP35: -33.33333333 | FQ35: 40 | FR35: -6.666666667 | FS35: 6.666666667 | FT35: None [0] | FU35: -ve High [-100] | FV35: -ve Low [-40] | FW35: -ve Medium [-60] | FX35: None [0] | FY35: +ve High [+100] | FZ35: +ve Low [+40] | GA35: +ve Medium [+60] | GB35: -ve Medium [-60] | GC35: +ve Medium [+60] | GD35: -ve Low [-40] | GE35: -ve Low [-40] | GF35: +ve High [+100] | GG35: +ve High [+100] | GH35: -ve Low [-40] | GI35: -15212.4 | GJ35: -8053 | GK35: -17057 | GL35: -12458 | GM35: -18211 | GN35: -20283 | GO35: 0 | GP35: 0 | GQ35: 0 | GR35: 0 | GS35: 0 | GT35: 0 | GU35: 0 | GV35: 0 | GW35: 0 | GX35: 2079 | GY35: 0 | GZ35: 9625 | HA35: 0 | HB35: 0 | HC35: 0 | HD35: 8053 | HE35: 7432 | HF35: 12458 | HG35: 18211 | HH35: 22362
A36: FotE | B36: 1360 | C36: Council Land for Carbon Drawdown (e.g. Tree Planting) | E36: Planned | F36: Facilities | G36: Trial (Limited Scope) [50] | H36: 40 | I36: 35 | J36: Not Applicable [-1] | K36: Very Low [0] | L36: Very High [100] | M36: Low [25] | N36: Low [25] | O36: High [25] | P36: Very Low [100] | Q36: Medium [50] | R36: Very High [0] | S36: Many Cases / Poor Results [0] | T36: Not Applicable [-1] | U36: WEL,SUS,AQI | V36: 312000 | W36: 312000 | X36: 312000 | Y36: 312000 | Z36: 312000 | AF36: -1 | AG36: 3 | AH36: -1 | AI36: 2 | AJ36: 1 | AK36: >601 [10] | AL36: 34-66 [2] | AM36: 84-91 [8] | AN36: 36-41 [4] | AO36: 444-532 [6] | AP36: 44.44444444 | AQ36: 535-600 [9] | AR36: 121-140 [5] | AS36: 76-83 [7] | AT36: 48-53 [6] | AU36: 533-710 [7] | AV36: -312000 | AZ36: 0 | BA36: 0 | BB36: 0 | BC36: 0 | BD36: 0 | BI36: -312000 | BJ36: -624000 | BK36: -936000 | BL36: -1248000 | BM36: -1560000 | BN36: 966000 | BO36: 1260 | BP36: 9147 | BQ36: 0 | BR36: 6263 | BS36: 349 | BT36: 7.239987336 | BU36: 0 | BV36: 0 | BX36: 0 | BY36: 0 | BZ36: 0 | CA36: 0 | CB36: 0 | DH36: -312000 | DI36: -312000 | DJ36: -312000 | DK36: -312000 | DL36: -312000 | DM36: -312000 | DN36: -312000 | DO36: -312000 | DP36: -312000 | DQ36: -312000 | DX36: -3.096153846 | DY36: CER | DZ36: 1 | EA36: 0.8 | EB36: 0.7 | EC36: 0.6 | ED36: 0.5 | EN36: +ve High [+100] | EO36: Low [33] | EP36: Medium [66] | EQ36: -ve Low [-40] | ER36: 21.78 | ES36: +ve High [+100] | ET36: Medium [66] | EU36: Medium [66] | EV36: +ve High [+100] | EW36: 43.56 | EX36: +ve High [+100] | EY36: High [100] | EZ36: High [100] | FA36: +ve Low [+40] | FB36: 100 | FC36: None [0] | FD36: Medium [66] | FE36: Low [33] | FF36: +ve Low [+40] | FG36: 0 | FH36: None [0] | FI36: High [100] | FJ36: Low [33] | FK36: -ve High [-100] | FL36: 0 | FM36: 33.068 | FN36: 2.666666667 | FO36: -20 | FP36: 0 | FQ36: -6.666666667 | FR36: -13.33333333 | FS36: 53.33333333 | FT36: -ve Medium [-60] | FU36: None [0] | FV36: +ve Low [+40] | FW36: -ve Medium [-60] | FX36: +ve Medium [+60] | FY36: +ve High [+100] | FZ36: +ve High [+100] | GA36: +ve Low [+40] | GB36: -ve Low [-40] | GC36: +ve Low [+40] | GD36: -ve High [-100] | GE36: -ve High [-100] | GF36: -ve High [-100] | GG36: +ve Medium [+60] | GH36: +ve Medium [+60] | GI36: -1263.4 | GJ36: 4966 | GK36: -197 | GL36: -1020 | GM36: -4050 | GN36: -6016 | GO36: 34 | GP36: 197 | GQ36: 1020 | GR36: 4050 | GS36: 6016 | GT36: 5000 | GU36: 0 | GV36: 0 | GW36: 0 | GX36: 0 | GY36: 0 | GZ36: 0 | HA36: 0 | HB36: 0 | HC36: 0 | HD36: 0 | HE36: 0 | HF36: 0 | HG36: 0 | HH36: 0
A37: Proving | B37: 1370 | C37: Commuted Sum | E37: Planned | F37: Highways | G37: Live Operations [100] | H37: 65 | I37: 56.25 | J37: Low [75] | K37: High [75] | L37: Not Applicable [-1] | M37: Not Applicable [-1] | N37: Very Low [0] | O37: Low [75] | P37: Low [75] | Q37: Very High [100] | R37: Very High [0] | S37: Some Cases / Mixed Results [50] | T37: Not Applicable [-1] | U37: CRD | AF37: 1 | AG37: -8 | AH37: -5 | AI37: 0 | AJ37: 3 | AK37: 335-400 [6] | AL37: >241 [10] | AM37: 92-100 [9] | AN37: >71 [10] | AO37: 267-354 [4] | AP37: 24.44444444 | AQ37: 401-467 [7] | AR37: 34-66 [2] | AS37: 51-58 [4] | AT37: >71 [10] | AU37: 533-710 [7] | AV37: 1008000 | AZ37: 1400000 | BA37: 1120000 | BB37: 980000 | BC37: 840000 | BD37: 700000 | BI37: 1400000 | BJ37: 2520000 | BK37: 3500000 | BL37: 4340000 | BM37: 5040000 | BN37: 615000 | BO37: 95853 | BP37: 17543 | BQ37: 0 | BR37: 2466 | BS37: 47967 | BT37: 0.9467554615 | BU37: 0 | BV37: 0 | BX37: 1400000 | BY37: 1400000 | BZ37: 1400000 | CA37: 1400000 | CB37: 1400000 | DH37: 1400000 | DI37: 1120000 | DJ37: 980000 | DK37: 840000 | DL37: 700000 | DM37: 1400000 | DN37: 1120000 | DO37: 980000 | DP37: 840000 | DQ37: 700000 | DS37: 1400000 | DT37: 1400000 | DU37: 1400000 | DV37: 1400000 | DW37: 1400000 | DX37: 0.6101190476 | DY37: CRE | DZ37: 1 | EA37: 0.8 | EB37: 0.7 | EC37: 0.6 | ED37: 0.5 | EN37: +ve High [+100] | EO37: Low [33] | EP37: None [0] | EQ37: -ve High [-100] | ER37: 0 | ES37: -ve Medium [-60] | ET37: None [0] | EU37: Medium [66] | EV37: +ve High [+100] | EW37: 0 | EX37: +ve High [+100] | EY37: Medium [66] | EZ37: None [0] | FA37: +ve High [+100] | FB37: 0 | FC37: None [0] | FD37: None [0] | FE37: Low [33] | FF37: None [0] | FG37: 0 | FH37: -ve High [-100] | FI37: Medium [66] | FJ37: None [0] | FK37: None [0] | FL37: 0 | FM37: 0 | FN37: -8 | FO37: -33.33333333 | FP37: -6.666666667 | FQ37: 33.33333333 | FR37: -46.66666667 | FS37: 13.33333333 | FT37: +ve High [+100] | FU37: +ve Low [+40] | FV37: None [0] | FW37: -ve Low [-40] | FX37: +ve High [+100] | FY37: -ve High [-100] | FZ37: -ve High [-100] | GA37: None [0] | GB37: -ve High [-100] | GC37: None [0] | GD37: -ve High [-100] | GE37: +ve Low [+40] | GF37: +ve High [+100] | GG37: None [0] | GH37: -ve Medium [-60] | GI37: -18529.6 | GJ37: -5790 | GK37: -17425 | GL37: -23516 | GM37: -17240 | GN37: -28677 | GO37: 0 | GP37: 5202 | GQ37: 4651 | GR37: 0 | GS37: 0 | GT37: 0 | GU37: 0 | GV37: 0 | GW37: 0 | GX37: 0 | GY37: 0 | GZ37: 0 | HA37: 5853 | HB37: 0 | HC37: 0 | HD37: 5790 | HE37: 12223 | HF37: 13012 | HG37: 17240 | HH37: 28677
A38: Proving | B38: 1380 | C38: Asset Sponsorship & Street-Side Advertising | E38: Planned | F38: Highways | G38: Adoption / Implementation [75] | H38: 43.75 | I38: 66.66666667 | J38: Low [75] | K38: Very Low [0] | L38: Very High [100] | M38: Medium [50] | N38: Very High [100] | O38: Low [75] | P38: Medium [50] | Q38: Not Applicable [-1] | R38: Medium [50] | S38: Many Cases / Poor Results [0] | T38: Not Applicable [-1] | U38: CRY | AF38: 6 | AG38: 2 | AH38: -4 | AI38: -3 | AJ38: -1 | AK38: 135-200 [3] | AL38: 161-187 [7] | AM38: 76-83 [7] | AN38: 54-58 [7] | AO38: 355-443 [5] | AP38: 46.66666667 | AQ38: 535-600 [9] | AR38: 188-213 [9] | AS38: 34-50 [3] | AT38: 36-41 [4] | AU38: 267-354 [4] | AV38: 69120 | AZ38: 96000 | BA38: 76800 | BB38: 67200 | BC38: 57600 | BD38: 48000 | BI38: 96000 | BJ38: 172800 | BK38: 240000 | BL38: 297600 | BM38: 345600 | BN38: 48000 | BO38: 90550 | BP38: 14535 | BQ38: 0 | BR38: 1477 | BS38: 67584 | BT38: 0.9987905941 | BU38: 0 | BV38: 0 | BX38: 96000 | BY38: 96000 | BZ38: 96000 | CA38: 96000 | CB38: 96000 | DH38: 96000 | DI38: 76800 | DJ38: 67200 | DK38: 57600 | DL38: 48000 | DM38: 96000 | DN38: 76800 | DO38: 67200 | DP38: 57600 | DQ38: 48000 | DS38: 96000 | DT38: 96000 | DU38: 96000 | DV38: 96000 | DW38: 96000 | DX38: 0.6944444444 | DY38: REV | DZ38: 1 | EA38: 0.8 | EB38: 0.7 | EC38: 0.6 | ED38: 0.5 | EN38: -ve High [-100] | EO38: None [0] | EP38: Low [33] | EQ38: -ve High [-100] | ER38: 0 | ES38: +ve Medium [+60] | ET38: Low [33] | EU38: High [100] | EV38: None [0] | EW38: 19.8 | EX38: -ve Low [-40] | EY38: Medium [66] | EZ38: Low [33] | FA38: +ve Medium [+60] | FB38: -8.712 | FC38: +ve Low [+40] | FD38: None [0] | FE38: High [100] | FF38: +ve Low [+40] | FG38: 0 | FH38: -ve Medium [-60] | FI38: Low [33] | FJ38: None [0] | FK38: +ve Medium [+60] | FL38: 0 | FM38: 2.2176 | FN38: 33.33333333 | FO38: 20 | FP38: 0 | FQ38: 26.66666667 | FR38: 53.33333333 | FS38: 66.66666667 | FT38: +ve High [+100] | FU38: None [0] | FV38: -ve Low [-40] | FW38: +ve Medium [+60] | FX38: None [0] | FY38: +ve Medium [+60] | FZ38: +ve Medium [+60] | GA38: +ve Medium [+60] | GB38: +ve Medium [+60] | GC38: +ve High [+100] | GD38: -ve High [-100] | GE38: -ve Medium [-60] | GF38: +ve Medium [+60] | GG38: +ve Low [+40] | GH38: +ve High [+100] | GI38: -14552.6 | GJ38: -5659 | GK38: -17351 | GL38: -12740 | GM38: -10786 | GN38: -26227 | GO38: 3113 | GP38: 0 | GQ38: 0 | GR38: 2060 | GS38: 0 | GT38: 5988 | GU38: 0 | GV38: 0 | GW38: 6624 | GX38: 0 | GY38: 0 | GZ38: 6472 | HA38: 0 | HB38: 0 | HC38: 0 | HD38: 8534 | HE38: 10879 | HF38: 12740 | HG38: 15350 | HH38: 26227
A39: Proving | B39: 1390 | C39: Bus Stop & Bus-Side Advertising | E39: Planned | F39: Highways | G39: Trial (Limited Scope) [50] | H39: 70 | I39: 20.83333333 | J39: Very High [0] | K39: Very Low [0] | L39: High [75] | M39: Very Low [0] | N39: Very Low [0] | O39: Medium [50] | P39: Low [75] | Q39: Not Applicable [-1] | R39: Not Applicable [-1] | S39: Many Cases / Mixed Results [75] | T39: Available - New (Standardised) [80] | U39: CRY | V39: 26000 | W39: 26000 | X39: 26000 | Y39: 26000 | Z39: 26000 | AF39: -3 | AG39: -8 | AH39: 0 | AI39: 1 | AJ39: -5 | AK39: 335-400 [6] | AL39: 188-213 [9] | AM39: 67-75 [6] | AN39: 65-70 [9] | AO39: 711- 887 [8] | AP39: 26.66666667 | AQ39: 135-200 [3] | AR39: 0-22 [1] | AS39: 67-75 [6] | AT39: >71 [10] | AU39: 178-266 [3] | AV39: 93520 | AZ39: 166000 | BA39: 132800 | BB39: 116200 | BC39: 99600 | BD39: 83000 | BI39: 140000 | BJ39: 246800 | BK39: 337000 | BL39: 410600 | BM39: 467600 | BN39: 48000 | BO39: 68745 | BP39: 17974 | BQ39: 0 | BR39: 1951 | BS39: 52024 | BT39: 1.053390377 | BU39: 53601 | BV39: 0 | BX39: 166000 | BY39: 166000 | BZ39: 166000 | CA39: 166000 | CB39: 166000 | DH39: 140000 | DI39: 106800 | DJ39: 90200 | DK39: 73600 | DL39: 57000 | DM39: 140000 | DN39: 106800 | DO39: 90200 | DP39: 73600 | DQ39: 57000 | DS39: 166000 | DT39: 166000 | DU39: 166000 | DV39: 166000 | DW39: 166000 | DX39: 0.5132591959 | DY39: REV | DZ39: 1 | EA39: 0.8 | EB39: 0.7 | EC39: 0.6 | ED39: 0.5 | EN39: -ve Medium [-60] | EO39: None [0] | EP39: None [0] | EQ39: -ve Medium [-60] | ER39: 0 | ES39: -ve High [-100] | ET39: Medium [66] | EU39: None [0] | EV39: +ve Medium [+60] | EW39: 0 | EX39: +ve Low [+40] | EY39: Low [33] | EZ39: Medium [66] | FA39: +ve High [+100] | FB39: 8.712 | FC39: +ve High [+100] | FD39: Low [33] | FE39: High [100] | FF39: +ve Medium [+60] | FG39: 33 | FH39: +ve High [+100] | FI39: None [0] | FJ39: None [0] | FK39: +ve High [+100] | FL39: 0 | FM39: 8.3424 | FN39: 12 | FO39: 0 | FP39: 46.66666667 | FQ39: 13.33333333 | FR39: -33.33333333 | FS39: 33.33333333 | FT39: -ve High [-100] | FU39: None [0] | FV39: +ve Medium [+60] | FW39: -ve Low [-40] | FX39: +ve Low [+40] | FY39: +ve High [+100] | FZ39: +ve Low [+40] | GA39: -ve Medium [-60] | GB39: None [0] | GC39: None [0] | GD39: None [0] | GE39: +ve High [+100] | GF39: +ve Low [+40] | GG39: -ve Medium [-60] | GH39: +ve Medium [+60] | GI39: -17063 | GJ39: -2487 | GK39: -12931 | GL39: -12908 | GM39: -23446 | GN39: -33543 | GO39: 0 | GP39: 723 | GQ39: 0 | GR39: 1091 | GS39: 0 | GT39: 2866 | GU39: 421 | GV39: 0 | GW39: 1217 | GX39: 0 | GY39: 0 | GZ39: 0 | HA39: 0 | HB39: 5244 | HC39: 6337 | HD39: 5353 | HE39: 12629 | HF39: 12908 | HG39: 18328 | HH39: 27206
A40: Proving | B40: 1400 | C40: Road Maintenance & Winter Services on Private Roads & Commercial Estates | E40: Planned | F40: Highways | G40: Identification [0] | H40: 33.75 | I40: 41.66666667 | J40: High [25] | K40: Very Low [0] | L40: High [75] | M40: Low [25] | N40: Very High [100] | O40: High [25] | P40: Very High [0] | Q40: Not Applicable [-1] | R40: Not Applicable [-1] | S40: Some Cases / Good Results [75] | T40: Available - New (No Standard) [60] | U40: SOI,CRD,CRY | AF40: -7 | AG40: 3 | AH40: -9 | AI40: 0 | AJ40: 5 | AK40: 535-600 [9] | AL40: 0-22 [1] | AM40: >101 [10] | AN40: 48-53 [6] | AO40: 0-99 [1] | AP40: 51.11111111 | AQ40: 68-134 [2] | AR40: 101-120 [4] | AS40: 0-16 [1] | AT40: 48-53 [6] | AU40: 444-532 [6] | AV40: 12240 | AZ40: 17000 | BA40: 13600 | BB40: 11900 | BC40: 10200 | BD40: 8500 | BI40: 17000 | BJ40: 30600 | BK40: 42500 | BL40: 52700 | BM40: 61200 | BN40: 90000 | BO40: 83797 | BP40: 18414 | BQ40: 0 | BR40: 2862 | BS40: 53063 | BT40: 1.617135631 | BU40: 0 | BV40: 0 | BX40: 17000 | BY40: 17000 | BZ40: 17000 | CA40: 17000 | CB40: 17000 | DH40: 17000 | DI40: 13600 | DJ40: 11900 | DK40: 10200 | DL40: 8500 | DM40: 17000 | DN40: 13600 | DO40: 11900 | DP40: 10200 | DQ40: 8500 | DS40: 17000 | DT40: 17000 | DU40: 17000 | DV40: 17000 | DW40: 17000 | DX40: 7.352941176 | DY40: REV | DZ40: 1 | EA40: 0.8 | EB40: 0.7 | EC40: 0.6 | ED40: 0.5 | EN40: -ve Medium [-60] | EO40: High [100] | EP40: Medium [66] | EQ40: None [0] | ER40: -39.6 | ES40: -ve Low [-40] | ET40: Low [33] | EU40: None [0] | EV40: +ve Low [+40] | EW40: 0 | EX40: -ve Low [-40] | EY40: Medium [66] | EZ40: Low [33] | FA40: +ve High [+100] | FB40: -8.712 | FC40: -ve High [-100] | FD40: Medium [66] | FE40: None [0] | FF40: +ve Medium [+60] | FG40: 0 | FH40: +ve High [+100] | FI40: Low [33] | FJ40: High [100] | FK40: None [0] | FL40: 33 | FM40: -3.0624 | FN40: -6.666666667 | FO40: 33.33333333 | FP40: -46.66666667 | FQ40: 6.666666667 | FR40: 6.666666667 | FS40: -33.33333333 | FT40: +ve Medium [+60] | FU40: -ve Medium [-60] | FV40: +ve Low [+40] | FW40: +ve Low [+40] | FX40: -ve High [-100] | FY40: +ve Low [+40] | FZ40: -ve Low [-40] | GA40: -ve Medium [-60] | GB40: +ve Low [+40] | GC40: None [0] | GD40: None [0] | GE40: -ve Low [-40] | GF40: +ve Low [+40] | GG40: -ve Medium [-60] | GH40: None [0] | GI40: -11386.8 | GJ40: -11358 | GK40: -8930 | GL40: -7506 | GM40: -11848 | GN40: -17292 | GO40: 0 | GP40: 0 | GQ40: 0 | GR40: 0 | GS40: 1742 | GT40: 0 | GU40: 0 | GV40: 3977 | GW40: 5484 | GX40: 6693 | GY40: 0 | GZ40: 0 | HA40: 0 | HB40: 0 | HC40: 0 | HD40: 11358 | HE40: 8930 | HF40: 11483 | HG40: 17332 | HH40: 22243
A41: Proving | B41: 1410 | C41: Road Maintenance & Winter Services on Public Sector & Regulated Services Estates | E41: Planned | F41: Highways | G41: Adoption / Implementation [75] | H41: 35 | I41: 55 | J41: Very Low [100] | K41: Medium [50] | L41: High [75] | M41: Not Applicable [-1] | N41: Medium [50] | O41: Very High [0] | P41: Medium [50] | Q41: Low [25] | R41: High [25] | S41: No Case Studies [0] | T41: Not Applicable [-1] | U41: SOI,CRD,CRY | AF41: 0 | AG41: 2 | AH41: -1 | AI41: -3 | AJ41: 2 | AK41: 201-267 [4] | AL41: 0-22 [1] | AM41: 76-83 [7] | AN41: >71 [10] | AO41: 89-177 [2] | AP41: 57.77777778 | AQ41: 201-267 [4] | AR41: 67-100 [3] | AS41: 67-75 [6] | AT41: 54-58 [7] | AU41: 267-354 [4] | AV41: 115200 | AZ41: 160000 | BA41: 128000 | BB41: 112000 | BC41: 96000 | BD41: 80000 | BI41: 160000 | BJ41: 288000 | BK41: 400000 | BL41: 496000 | BM41: 576000 | BN41: 90000 | BO41: 74852 | BP41: 9959 | BQ41: 0 | BR41: 3607 | BS41: 34114 | BT41: 0.9425872643 | BU41: 0 | BV41: 0 | BX41: 160000 | BY41: 160000 | BZ41: 160000 | CA41: 160000 | CB41: 160000 | DH41: 160000 | DI41: 128000 | DJ41: 112000 | DK41: 96000 | DL41: 80000 | DM41: 160000 | DN41: 128000 | DO41: 112000 | DP41: 96000 | DQ41: 80000 | DS41: 160000 | DT41: 160000 | DU41: 160000 | DV41: 160000 | DW41: 160000 | DX41: 0.78125 | DY41: REV | DZ41: 1 | EA41: 0.8 | EB41: 0.7 | EC41: 0.6 | ED41: 0.5 | EN41: +ve Low [+40] | EO41: None [0] | EP41: Low [33] | EQ41: +ve Medium [+60] | ER41: 0 | ES41: -ve Medium [-60] | ET41: Low [33] | EU41: Low [33] | EV41: -ve Low [-40] | EW41: -6.534 | EX41: +ve High [+100] | EY41: High [100] | EZ41: Low [33] | FA41: +ve Low [+40] | FB41: 33 | FC41: -ve Medium [-60] | FD41: Medium [66] | FE41: Medium [66] | FF41: -ve Low [-40] | FG41: -26.136 | FH41: -ve High [-100] | FI41: Low [33] | FJ41: Medium [66] | FK41: +ve High [+100] | FL41: -21.78 | FM41: -4.29 | FN41: -24 | FO41: -20 | FP41: -53.33333333 | FQ41: -33.33333333 | FR41: -46.66666667 | FS41: 33.33333333 | FT41: +ve High [+100] | FU41: -ve Medium [-60] | FV41: None [0] | FW41: None [0] | FX41: +ve High [+100] | FY41: -ve High [-100] | FZ41: -ve Medium [-60] | GA41: -ve High [-100] | GB41: -ve High [-100] | GC41: None [0] | GD41: -ve Medium [-60] | GE41: -ve Low [-40] | GF41: None [0] | GG41: -ve Low [-40] | GH41: None [0] | GI41: -10565.6 | GJ41: 3114 | GK41: -3849 | GL41: -19355 | GM41: -8728 | GN41: -24010 | GO41: 0 | GP41: 1235 | GQ41: 0 | GR41: 0 | GS41: 0 | GT41: 4249 | GU41: 0 | GV41: 0 | GW41: 7694 | GX41: 0 | GY41: 0 | GZ41: 0 | HA41: 6311 | HB41: 0 | HC41: 0 | HD41: 1135 | HE41: 2614 | HF41: 13044 | HG41: 16422 | HH41: 24010
A42: Proving | B42: 1420 | C42: Using Highways Estates for Energy Generation (PPA / Private Wire Resale) | E42: Planned | F42: Highways | G42: Trial (Limited Scope) [50] | H42: 25 | I42: 58.33333333 | J42: High [25] | K42: Low [25] | L42: High [75] | M42: Very High [100] | N42: Low [25] | O42: Very Low [100] | P42: Very High [0] | Q42: Very Low [0] | R42: Very High [0] | S42: Many Cases / Poor Results [0] | T42: Available - Mature [100] | U42: REV,CRD,CRY,AQI | AF42: 9 | AG42: -1 | AH42: -3 | AI42: 3 | AJ42: -2 | AK42: 0-67 [1] | AL42: 101-120 [4] | AM42: 84-91 [8] | AN42: 48-53 [6] | AO42: 533-710 [7] | AP42: 53.33333333 | AQ42: >601 [10] | AR42: 67-100 [3] | AS42: 59-66 [5] | AT42: 65-70 [9] | AU42: 355-443 [5] | AV42: 104400 | AZ42: 145000 | BA42: 116000 | BB42: 101500 | BC42: 87000 | BD42: 72500 | BI42: 145000 | BJ42: 261000 | BK42: 362500 | BL42: 449500 | BM42: 522000 | BN42: 1600000 | BO42: 80686 | BP42: 10667 | BQ42: 69593 | BR42: 4947 | BS42: 26827 | BT42: 0.5528317924 | BU42: 0 | BV42: 0 | BX42: 145000 | BY42: 145000 | BZ42: 145000 | CA42: 145000 | CB42: 145000 | DH42: 145000 | DI42: 116000 | DJ42: 101500 | DK42: 87000 | DL42: 72500 | DM42: 145000 | DN42: 116000 | DO42: 101500 | DP42: 87000 | DQ42: 72500 | DS42: 145000 | DT42: 145000 | DU42: 145000 | DV42: 145000 | DW42: 145000 | DX42: 15.3256705 | DY42: CER | DZ42: 1 | EA42: 0.8 | EB42: 0.7 | EC42: 0.6 | ED42: 0.5 | EN42: None [0] | EO42: Low [33] | EP42: High [100] | EQ42: +ve High [+100] | ER42: 0 | ES42: -ve Medium [-60] | ET42: Medium [66] | EU42: Medium [66] | EV42: -ve Low [-40] | EW42: -26.136 | EX42: +ve Medium [+60] | EY42: Medium [66] | EZ42: High [100] | FA42: -ve High [-100] | FB42: 39.6 | FC42: -ve High [-100] | FD42: Medium [66] | FE42: High [100] | FF42: +ve Low [+40] | FG42: -66 | FH42: +ve High [+100] | FI42: High [100] | FJ42: Medium [66] | FK42: -ve Low [-40] | FL42: 66 | FM42: 2.6928 | FN42: -18.66666667 | FO42: -33.33333333 | FP42: -6.666666667 | FQ42: -6.666666667 | FR42: 20 | FS42: -66.66666667 | FT42: -ve High [-100] | FU42: -ve Medium [-60] | FV42: +ve Low [+40] | FW42: +ve Medium [+60] | FX42: -ve High [-100] | FY42: -ve Low [-40] | FZ42: +ve Low [+40] | GA42: -ve Medium [-60] | GB42: +ve Medium [+60] | GC42: None [0] | GD42: +ve Low [+40] | GE42: None [0] | GF42: None [0] | GG42: -ve Medium [-60] | GH42: -ve High [-100] | GI42: -19295.2 | GJ42: -12135 | GK42: -12107 | GL42: -17669 | GM42: -22346 | GN42: -32219 | GO42: 0 | GP42: 0 | GQ42: 3749 | GR42: 4990 | GS42: 0 | GT42: 2735 | GU42: 0 | GV42: 0 | GW42: 0 | GX42: 0 | GY42: 10661 | GZ42: 0 | HA42: 0 | HB42: 0 | HC42: 7274 | HD42: 4209 | HE42: 12107 | HF42: 13920 | HG42: 17356 | HH42: 24945
A43: Proving | B43: 1430 | C43: Commercialising S278 Services | E43: Planned | F43: Highways | G43: Live Operations [100] | H43: 50 | I43: 35 | J43: Very High [0] | K43: Medium [50] | L43: Low [25] | M43: Not Applicable [-1] | N43: High [75] | O43: High [25] | P43: High [25] | Q43: Very High [100] | R43: Very High [0] | S43: Limited Cases / Data [25] | T43: Not Applicable [-1] | U43: REV | AF43: -2 | AG43: 1 | AH43: -1 | AI43: -6 | AJ43: -1 | AK43: 201-267 [4] | AL43: 0-22 [1] | AM43: 17-33 [2] | AN43: >71 [10] | AO43: 711- 887 [8] | AP43: 55.55555556 | AQ43: 68-134 [2] | AR43: 34-66 [2] | AS43: 0-16 [1] | AT43: 36-41 [4] | AU43: 533-710 [7] | AV43: 244800 | AZ43: 340000 | BA43: 272000 | BB43: 238000 | BC43: 204000 | BD43: 170000 | BI43: 340000 | BJ43: 612000 | BK43: 850000 | BL43: 1054000 | BM43: 1224000 | BN43: 56000 | BO43: 96204 | BP43: 9274 | BQ43: 0 | BR43: 4491 | BS43: 44485 | BT43: 0.5363918194 | BU43: 0 | BV43: 0 | BX43: 340000 | BY43: 340000 | BZ43: 340000 | CA43: 340000 | CB43: 340000 | DH43: 340000 | DI43: 272000 | DJ43: 238000 | DK43: 204000 | DL43: 170000 | DM43: 340000 | DN43: 272000 | DO43: 238000 | DP43: 204000 | DQ43: 170000 | DS43: 340000 | DT43: 340000 | DU43: 340000 | DV43: 340000 | DW43: 340000 | DX43: 0.2287581699 | DY43: CRE | DZ43: 1 | EA43: 0.8 | EB43: 0.7 | EC43: 0.6 | ED43: 0.5 | EN43: -ve Low [-40] | EO43: Low [33] | EP43: Medium [66] | EQ43: None [0] | ER43: -8.712 | ES43: +ve Medium [+60] | ET43: None [0] | EU43: None [0] | EV43: +ve High [+100] | EW43: 0 | EX43: -ve Low [-40] | EY43: Low [33] | EZ43: Low [33] | FA43: +ve Medium [+60] | FB43: -4.356 | FC43: -ve Medium [-60] | FD43: Medium [66] | FE43: Low [33] | FF43: None [0] | FG43: -13.068 | FH43: -ve High [-100] | FI43: None [0] | FJ43: Medium [66] | FK43: -ve High [-100] | FL43: 0 | FM43: -5.2272 | FN43: 26.66666667 | FO43: 13.33333333 | FP43: 40 | FQ43: 46.66666667 | FR43: -13.33333333 | FS43: 46.66666667 | FT43: +ve Low [+40] | FU43: -ve Low [-40] | FV43: +ve Low [+40] | FW43: +ve High [+100] | FX43: -ve Medium [-60] | FY43: +ve Low [+40] | FZ43: +ve Medium [+60] | GA43: +ve High [+100] | GB43: -ve High [-100] | GC43: +ve High [+100] | GD43: -ve Low [-40] | GE43: +ve High [+100] | GF43: None [0] | GG43: -ve Low [-40] | GH43: +ve High [+100] | GI43: -17289.6 | GJ43: 400 | GK43: -11804 | GL43: -23979 | GM43: -18259 | GN43: -32806 | GO43: 0 | GP43: 0 | GQ43: 0 | GR43: 0 | GS43: 0 | GT43: 4051 | GU43: 0 | GV43: 0 | GW43: 5314 | GX43: 0 | GY43: 0 | GZ43: 8341 | HA43: 11189 | HB43: 8472 | HC43: 5500 | HD43: 3651 | HE43: 3463 | HF43: 12790 | HG43: 15101 | HH43: 27306
A44: Proving | B44: 1440 | C44: Commercialising S139/169 Services (Skips / Scaffold Permits) | E44: Planned | F44: Highways | G44: Design / Development [25] | H44: 43.33333333 | I44: 45.83333333 | J44: Very Low [100] | K44: Medium [50] | L44: Low [25] | M44: Medium [50] | N44: Low [25] | O44: High [25] | P44: Medium [50] | Q44: Very High [100] | R44: High [25] | S44: Some Cases / Mixed Results [50] | T44: Decommissioned / Superseded [10] | U44: REV | AF44: -6 | AG44: 4 | AH44: 0 | AI44: 3 | AJ44: 1 | AK44: 535-600 [9] | AL44: 121-140 [5] | AM44: 67-75 [6] | AN44: 54-58 [7] | AO44: 178-266 [3] | AP44: 44.44444444 | AQ44: 135-200 [3] | AR44: 188-213 [9] | AS44: 67-75 [6] | AT44: >71 [10] | AU44: 267-354 [4] | AV44: 6480 | AZ44: 9000 | BA44: 7200 | BB44: 6300 | BC44: 5400 | BD44: 4500 | BI44: 9000 | BJ44: 16200 | BK44: 22500 | BL44: 27900 | BM44: 32400 | BN44: 24000 | BO44: 56995 | BP44: 8225 | BQ44: 0 | BR44: 1551 | BS44: 50572 | BT44: 0.5449401725 | BU44: 0 | BV44: 0 | BX44: 9000 | BY44: 9000 | BZ44: 9000 | CA44: 9000 | CB44: 9000 | DH44: 9000 | DI44: 7200 | DJ44: 6300 | DK44: 5400 | DL44: 4500 | DM44: 9000 | DN44: 7200 | DO44: 6300 | DP44: 5400 | DQ44: 4500 | DS44: 9000 | DT44: 9000 | DU44: 9000 | DV44: 9000 | DW44: 9000 | DX44: 3.703703704 | DY44: CRE | DZ44: 1 | EA44: 0.8 | EB44: 0.7 | EC44: 0.6 | ED44: 0.5 | EN44: -ve High [-100] | EO44: Low [33] | EP44: None [0] | EQ44: -ve Low [-40] | ER44: 0 | ES44: +ve Low [+40] | ET44: High [100] | EU44: None [0] | EV44: -ve High [-100] | EW44: 0 | EX44: None [0] | EY44: Medium [66] | EZ44: High [100] | FA44: -ve Low [-40] | FB44: 0 | FC44: -ve Medium [-60] | FD44: Low [33] | FE44: None [0] | FF44: -ve High [-100] | FG44: 0 | FH44: -ve Medium [-60] | FI44: High [100] | FJ44: Medium [66] | FK44: None [0] | FL44: -39.6 | FM44: -7.92 | FN44: -4 | FO44: 20 | FP44: -20 | FQ44: 13.33333333 | FR44: 20 | FS44: -53.33333333 | FT44: -ve High [-100] | FU44: -ve Medium [-60] | FV44: +ve Medium [+60] | FW44: +ve High [+100] | FX44: +ve Low [+40] | FY44: +ve Medium [+60] | FZ44: +ve Low [+40] | GA44: +ve Low [+40] | GB44: -ve Low [-40] | GC44: -ve High [-100] | GD44: +ve High [+100] | GE44: -ve Low [-40] | GF44: -ve Medium [-60] | GG44: None [0] | GH44: -ve High [-100] | GI44: -15093.4 | GJ44: -12079 | GK44: -3621 | GL44: -15209 | GM44: -17589 | GN44: -26969 | GO44: 1639 | GP44: 0 | GQ44: 0 | GR44: 0 | GS44: 1151 | GT44: 0 | GU44: 0 | GV44: 0 | GW44: 0 | GX44: 0 | GY44: 0 | GZ44: 0 | HA44: 0 | HB44: 0 | HC44: 4393 | HD44: 10440 | HE44: 3621 | HF44: 15209 | HG44: 17589 | HH44: 21425
A45: Proving | B45: 1450 | C45: Commercialising S37/38 Services | E45: Planned | F45: Highways | G45: Live Operations [100] | H45: 62.5 | I45: 41.66666667 | J45: Low [75] | K45: High [75] | L45: Low [25] | M45: High [75] | N45: Very Low [0] | O45: Very High [0] | P45: Medium [50] | Q45: Very High [100] | R45: Low [75] | S45: No Case Studies [0] | T45: Available - Decline [50] | U45: REV | AF45: 1 | AG45: 6 | AH45: 8 | AI45: 0 | AJ45: -8 | AK45: 468-534 [8] | AL45: 101-120 [4] | AM45: 17-33 [2] | AN45: 36-41 [4] | AO45: 888- 1064 [9] | AP45: 51.11111111 | AQ45: 535-600 [9] | AR45: >241 [10] | AS45: >101 [10] | AT45: 36-41 [4] | AU45: 0-99 [1] | AV45: 32400 | AZ45: 45000 | BA45: 36000 | BB45: 31500 | BC45: 27000 | BD45: 22500 | BI45: 45000 | BJ45: 81000 | BK45: 112500 | BL45: 139500 | BM45: 162000 | BN45: 98000 | BO45: 96312 | BP45: 14884 | BQ45: 0 | BR45: 1817 | BS45: 27889 | BT45: 0.845624162 | BU45: 0 | BV45: 0 | BX45: 45000 | BY45: 45000 | BZ45: 45000 | CA45: 45000 | CB45: 45000 | DH45: 45000 | DI45: 36000 | DJ45: 31500 | DK45: 27000 | DL45: 22500 | DM45: 45000 | DN45: 36000 | DO45: 31500 | DP45: 27000 | DQ45: 22500 | DS45: 45000 | DT45: 45000 | DU45: 45000 | DV45: 45000 | DW45: 45000 | DX45: 3.024691358 | DY45: RED | DZ45: 1 | EA45: 0.8 | EB45: 0.7 | EC45: 0.6 | ED45: 0.5 | EN45: +ve Medium [+60] | EO45: Low [33] | EP45: Medium [66] | EQ45: -ve Low [-40] | ER45: 13.068 | ES45: +ve Low [+40] | ET45: High [100] | EU45: Medium [66] | EV45: None [0] | EW45: 26.4 | EX45: -ve Low [-40] | EY45: High [100] | EZ45: Low [33] | FA45: -ve High [-100] | FB45: -13.2 | FC45: +ve Medium [+60] | FD45: Medium [66] | FE45: Medium [66] | FF45: +ve Medium [+60] | FG45: 26.136 | FH45: +ve Low [+40] | FI45: Low [33] | FJ45: High [100] | FK45: -ve High [-100] | FL45: 13.2 | FM45: 13.1208 | FN45: -14.66666667 | FO45: 0 | FP45: 13.33333333 | FQ45: 60 | FR45: -100 | FS45: -46.66666667 | FT45: -ve High [-100] | FU45: +ve High [+100] | FV45: +ve High [+100] | FW45: -ve High [-100] | FX45: -ve High [-100] | FY45: +ve Medium [+60] | FZ45: -ve High [-100] | GA45: +ve Low [+40] | GB45: -ve High [-100] | GC45: -ve High [-100] | GD45: +ve Low [+40] | GE45: +ve Low [+40] | GF45: +ve Low [+40] | GG45: -ve High [-100] | GH45: +ve Medium [+60] | GI45: -17601.2 | GJ45: -4769 | GK45: -22195 | GL45: -17394 | GM45: -15413 | GN45: -28235 | GO45: 0 | GP45: 0 | GQ45: 2941 | GR45: 0 | GS45: 0 | GT45: 0 | GU45: 0 | GV45: 0 | GW45: 0 | GX45: 0 | GY45: 0 | GZ45: 8680 | HA45: 0 | HB45: 0 | HC45: 0 | HD45: 4769 | HE45: 13515 | HF45: 14453 | HG45: 15413 | HH45: 28235
A46: Proving | B46: 1460 | C46: Commercialising S184 Services | E46: Planned | F46: Highways | G46: Adoption / Implementation [75] | H46: 57 | I46: 50 | J46: Very High [0] | K46: High [75] | L46: Very High [100] | M46: Medium [50] | N46: Very Low [0] | O46: Low [75] | P46: Low [75] | Q46: Very Low [0] | R46: Not Applicable [-1] | S46: Many Cases / Mixed Results [75] | T46: Available - New (No Standard) [60] | U46: REV | AF46: -1 | AG46: -4 | AH46: 3 | AI46: -5 | AJ46: 1 | AK46: 401-467 [7] | AL46: >241 [10] | AM46: 51-58 [4] | AN46: 65-70 [9] | AO46: 355-443 [5] | AP46: 33.33333333 | AQ46: 335-400 [6] | AR46: 141-160 [6] | AS46: 76-83 [7] | AT46: 36-41 [4] | AU46: 444-532 [6] | AV46: 51840 | AZ46: 72000 | BA46: 57600 | BB46: 50400 | BC46: 43200 | BD46: 36000 | BI46: 72000 | BJ46: 129600 | BK46: 180000 | BL46: 223200 | BM46: 259200 | BN46: 67000 | BO46: 85830 | BP46: 8907 | BQ46: 0 | BR46: 928 | BS46: 28595 | BT46: 0.6961095394 | BU46: 0 | BV46: 0 | BX46: 72000 | BY46: 72000 | BZ46: 72000 | CA46: 72000 | CB46: 72000 | DH46: 72000 | DI46: 57600 | DJ46: 50400 | DK46: 43200 | DL46: 36000 | DM46: 72000 | DN46: 57600 | DO46: 50400 | DP46: 43200 | DQ46: 36000 | DS46: 72000 | DT46: 72000 | DU46: 72000 | DV46: 72000 | DW46: 72000 | DX46: 1.292438272 | DY46: RED | DZ46: 1 | EA46: 0.8 | EB46: 0.7 | EC46: 0.6 | ED46: 0.5 | EN46: -ve Low [-40] | EO46: None [0] | EP46: Low [33] | EQ46: -ve High [-100] | ER46: 0 | ES46: +ve Medium [+60] | ET46: High [100] | EU46: High [100] | EV46: +ve High [+100] | EW46: 60 | EX46: None [0] | EY46: High [100] | EZ46: Medium [66] | FA46: +ve High [+100] | FB46: 0 | FC46: +ve High [+100] | FD46: None [0] | FE46: Low [33] | FF46: +ve High [+100] | FG46: 0 | FH46: +ve Low [+40] | FI46: Medium [66] | FJ46: Medium [66] | FK46: -ve Medium [-60] | FL46: 17.424 | FM46: 15.4848 | FN46: -9.333333333 | FO46: -6.666666667 | FP46: -13.33333333 | FQ46: 26.66666667 | FR46: -26.66666667 | FS46: -26.66666667 | FT46: -ve Medium [-60] | FU46: None [0] | FV46: +ve Medium [+60] | FW46: +ve Medium [+60] | FX46: -ve Medium [-60] | FY46: +ve Low [+40] | FZ46: -ve High [-100] | GA46: +ve Medium [+60] | GB46: -ve High [-100] | GC46: +ve Low [+40] | GD46: None [0] | GE46: +ve Medium [+60] | GF46: -ve Low [-40] | GG46: -ve Low [-40] | GH46: -ve Medium [-60] | GI46: -12795.4 | GJ46: -3399 | GK46: -3074 | GL46: -10942 | GM46: -24129 | GN46: -22433 | GO46: 0 | GP46: 0 | GQ46: 3000 | GR46: 2803 | GS46: 427 | GT46: 0 | GU46: 0 | GV46: 7945 | GW46: 0 | GX46: 0 | GY46: 0 | GZ46: 0 | HA46: 0 | HB46: 5545 | HC46: 0 | HD46: 3399 | HE46: 3074 | HF46: 15887 | HG46: 15781 | HH46: 22006
A47: Proving | B47: 1470 | C47: 5G Mobile Lamp Mast Repeaters / Fixed Wireless Broadband (Concessions) | E47: Planned | F47: Highways | G47: Trial (Limited Scope) [50] | H47: 28.33333333 | I47: 54.16666667 | J47: Very High [0] | K47: High [75] | L47: High [75] | M47: Medium [50] | N47: Medium [50] | O47: Low [75] | P47: Very High [0] | Q47: High [75] | R47: High [25] | S47: No Case Studies [0] | T47: Research & Development [20] | U47: ECD,CRY | AF47: -2 | AG47: 0 | AH47: -6 | AI47: 6 | AJ47: 2 | AK47: >601 [10] | AL47: 0-22 [1] | AM47: 84-91 [8] | AN47: 36-41 [4] | AO47: 355-443 [5] | AP47: 48.88888889 | AQ47: 468-534 [8] | AR47: 0-22 [1] | AS47: 17-33 [2] | AT47: >71 [10] | AU47: 533-710 [7] | AV47: 213120 | AZ47: 296000 | BA47: 236800 | BB47: 207200 | BC47: 177600 | BD47: 148000 | BI47: 296000 | BJ47: 532800 | BK47: 740000 | BL47: 917600 | BM47: 1065600 | BN47: 252000 | BO47: 78604 | BP47: 6881 | BQ47: 0 | BR47: 5656 | BS47: 52534 | BT47: 0.4420020812 | BU47: 0 | BV47: 32877 | BX47: 296000 | BY47: 296000 | BZ47: 296000 | CA47: 296000 | CB47: 296000 | DH47: 296000 | DI47: 236800 | DJ47: 207200 | DK47: 177600 | DL47: 148000 | DM47: 296000 | DN47: 236800 | DO47: 207200 | DP47: 177600 | DQ47: 148000 | DS47: 296000 | DT47: 296000 | DU47: 296000 | DV47: 296000 | DW47: 296000 | DX47: 1.182432432 | DY47: REV | DZ47: 1 | EA47: 0.8 | EB47: 0.7 | EC47: 0.6 | ED47: 0.5 | EN47: -ve High [-100] | EO47: None [0] | EP47: None [0] | EQ47: +ve Low [+40] | ER47: 0 | ES47: +ve High [+100] | ET47: Low [33] | EU47: None [0] | EV47: +ve Medium [+60] | EW47: 0 | EX47: +ve Medium [+60] | EY47: High [100] | EZ47: High [100] | FA47: +ve Medium [+60] | FB47: 60 | FC47: None [0] | FD47: Low [33] | FE47: Medium [66] | FF47: -ve Low [-40] | FG47: 0 | FH47: None [0] | FI47: None [0] | FJ47: Medium [66] | FK47: -ve High [-100] | FL47: 0 | FM47: 12 | FN47: 5.333333333 | FO47: -20 | FP47: 33.33333333 | FQ47: -33.33333333 | FR47: 73.33333333 | FS47: -26.66666667 | FT47: -ve Medium [-60] | FU47: +ve High [+100] | FV47: -ve Low [-40] | FW47: +ve Medium [+60] | FX47: +ve Medium [+60] | FY47: -ve High [-100] | FZ47: -ve Medium [-60] | GA47: -ve Medium [-60] | GB47: +ve High [+100] | GC47: -ve High [-100] | GD47: +ve High [+100] | GE47: +ve Medium [+60] | GF47: None [0] | GG47: +ve Medium [+60] | GH47: -ve Low [-40] | GI47: -15567.8 | GJ47: -8253 | GK47: -2834 | GL47: -22617 | GM47: -17015 | GN47: -27120 | GO47: 0 | GP47: 0 | GQ47: 0 | GR47: 0 | GS47: 0 | GT47: 0 | GU47: 0 | GV47: 0 | GW47: 0 | GX47: 7160 | GY47: 7407 | GZ47: 0 | HA47: 7122 | HB47: 0 | HC47: 5852 | HD47: 846 | HE47: 2834 | HF47: 15495 | HG47: 17015 | HH47: 28428
A48: Proving | B48: 1480 | C48: 4G Infill Concessions | E48: Planned | F48: Planning | G48: Adoption / Implementation [75] | H48: 29.16666667 | I48: 40 | J48: High [25] | K48: Low [25] | L48: Very Low [0] | M48: High [75] | N48: High [75] | O48: Not Applicable [-1] | P48: High [25] | Q48: Very Low [0] | R48: Very High [0] | S48: Limited Cases / Data [25] | T48: Available - Decline [50] | U48: REV | AF48: -8 | AG48: 8 | AH48: 2 | AI48: 7 | AJ48: 5 | AK48: 535-600 [9] | AL48: 34-66 [2] | AM48: 51-58 [4] | AN48: 11-23 [2] | AO48: 267-354 [4] | AP48: 64.44444444 | AQ48: 0-67 [1] | AR48: >241 [10] | AS48: 67-75 [6] | AT48: 59-64 [9] | AU48: 888- 1064 [9] | AV48: 22320 | AZ48: 31000 | BA48: 24800 | BB48: 21700 | BC48: 18600 | BD48: 15500 | BI48: 31000 | BJ48: 55800 | BK48: 77500 | BL48: 96100 | BM48: 111600 | BN48: 60000 | BO48: 71553 | BP48: 14647 | BQ48: 0 | BR48: 3513 | BS48: 52243 | BT48: 0.7145644898 | BU48: 0 | BV48: 0 | BX48: 31000 | BY48: 31000 | BZ48: 31000 | CA48: 31000 | CB48: 31000 | DH48: 31000 | DI48: 24800 | DJ48: 21700 | DK48: 18600 | DL48: 15500 | DM48: 31000 | DN48: 24800 | DO48: 21700 | DP48: 18600 | DQ48: 15500 | DS48: 31000 | DT48: 31000 | DU48: 31000 | DV48: 31000 | DW48: 31000 | DX48: 2.688172043 | DY48: ECD | DZ48: 1 | EA48: 0.8 | EB48: 0.7 | EC48: 0.6 | ED48: 0.5 | EN48: +ve Low [+40] | EO48: Low [33] | EP48: High [100] | EQ48: -ve Low [-40] | ER48: 13.2 | ES48: +ve Medium [+60] | ET48: None [0] | EU48: High [100] | EV48: -ve Low [-40] | EW48: 0 | EX48: +ve Medium [+60] | EY48: Low [33] | EZ48: Medium [66] | FA48: None [0] | FB48: 13.068 | FC48: -ve Medium [-60] | FD48: Medium [66] | FE48: Medium [66] | FF48: -ve Low [-40] | FG48: -26.136 | FH48: -ve Medium [-60] | FI48: Low [33] | FJ48: Medium [66] | FK48: +ve Medium [+60] | FL48: -13.068 | FM48: -2.5872 | FN48: 3.552713679e-16 | FO48: -40 | FP48: 13.33333333 | FQ48: 20 | FR48: -6.666666667 | FS48: 13.33333333 | FT48: +ve Low [+40] | FU48: +ve High [+100] | FV48: -ve High [-100] | FW48: -ve Low [-40] | FX48: +ve High [+100] | FY48: -ve Medium [-60] | FZ48: None [0] | GA48: +ve Medium [+60] | GB48: +ve Medium [+60] | GC48: -ve High [-100] | GD48: -ve High [-100] | GE48: -ve Medium [-60] | GF48: +ve High [+100] | GG48: -ve Low [-40] | GH48: +ve Low [+40] | GI48: -20497.8 | GJ48: -20569 | GK48: -15557 | GL48: -20369 | GM48: -16721 | GN48: -29273 | GO48: 0 | GP48: 0 | GQ48: 5110 | GR48: 0 | GS48: 0 | GT48: 0 | GU48: 0 | GV48: 0 | GW48: 5947 | GX48: 0 | GY48: 10949 | GZ48: 7050 | HA48: 0 | HB48: 7660 | HC48: 4965 | HD48: 9620 | HE48: 8507 | HF48: 15259 | HG48: 15008 | HH48: 24308
A49: Proving | B49: 1490 | C49: Street Furniture / Infrastructure as Technology Platform | E49: Planned | F49: Highways | G49: Trial (Limited Scope) [50] | H49: 39.16666667 | I49: 50 | J49: Low [75] | K49: Medium [50] | L49: Medium [50] | M49: Not Applicable [-1] | N49: High [75] | O49: Very High [0] | P49: Very Low [100] | Q49: Medium [50] | R49: High [25] | S49: Many Cases / Poor Results [0] | T49: Decommissioned / Superseded [10] | U49: CRD,WEL,EQY | AF49: 5 | AG49: -1 | AH49: 7 | AI49: -2 | AJ49: -2 | AK49: 201-267 [4] | AL49: >241 [10] | AM49: 34-50 [3] | AN49: 59-64 [9] | AO49: 711- 887 [8] | AP49: 35.55555556 | AQ49: 535-600 [9] | AR49: 188-213 [9] | AS49: >101 [10] | AT49: 54-58 [7] | AU49: 444-532 [6] | AV49: 51120 | AZ49: 71000 | BA49: 56800 | BB49: 49700 | BC49: 42600 | BD49: 35500 | BI49: 71000 | BJ49: 127800 | BK49: 177500 | BL49: 220100 | BM49: 255600 | BN49: 315000 | BO49: 67868 | BP49: 12770 | BQ49: 0 | BR49: 1250 | BS49: 66010 | BT49: 0.7940653409 | BU49: 41422 | BV49: 0 | BX49: 71000 | BY49: 71000 | BZ49: 71000 | CA49: 71000 | CB49: 71000 | DH49: 71000 | DI49: 56800 | DJ49: 49700 | DK49: 42600 | DL49: 35500 | DM49: 71000 | DN49: 56800 | DO49: 49700 | DP49: 42600 | DQ49: 35500 | DS49: 71000 | DT49: 71000 | DU49: 71000 | DV49: 71000 | DW49: 71000 | DX49: 6.161971831 | DY49: SOI | DZ49: 1 | EA49: 0.8 | EB49: 0.7 | EC49: 0.6 | ED49: 0.5 | EN49: -ve High [-100] | EO49: Low [33] | EP49: High [100] | EQ49: -ve Low [-40] | ER49: -33 | ES49: +ve Medium [+60] | ET49: Low [33] | EU49: Medium [66] | EV49: +ve Low [+40] | EW49: 13.068 | EX49: -ve Medium [-60] | EY49: High [100] | EZ49: None [0] | FA49: None [0] | FB49: 0 | FC49: +ve Medium [+60] | FD49: High [100] | FE49: Medium [66] | FF49: -ve Medium [-60] | FG49: 39.6 | FH49: +ve High [+100] | FI49: High [100] | FJ49: Low [33] | FK49: -ve Low [-40] | FL49: 33 | FM49: 10.5336 | FN49: 16 | FO49: 66.66666667 | FP49: -20 | FQ49: 53.33333333 | FR49: -13.33333333 | FS49: -6.666666667 | FT49: +ve Low [+40] | FU49: +ve High [+100] | FV49: +ve High [+100] | FW49: -ve Low [-40] | FX49: -ve Low [-40] | FY49: +ve Medium [+60] | FZ49: -ve Medium [-60] | GA49: None [0] | GB49: -ve Medium [-60] | GC49: -ve Low [-40] | GD49: +ve High [+100] | GE49: -ve High [-100] | GF49: +ve Medium [+60] | GG49: +ve Medium [+60] | GH49: +ve Medium [+60] | GI49: -16081.8 | GJ49: -14671 | GK49: -4927 | GL49: -16808 | GM49: -14828 | GN49: -29175 | GO49: 0 | GP49: 0 | GQ49: 2959 | GR49: 0 | GS49: 3026 | GT49: 0 | GU49: 0 | GV49: 1266 | GW49: 1281 | GX49: 0 | GY49: 5301 | GZ49: 0 | HA49: 0 | HB49: 0 | HC49: 0 | HD49: 9370 | HE49: 4927 | HF49: 15115 | HG49: 16109 | HH49: 26149
A50: Proving | B50: 1500 | C50: Selling Services to Other Authorities | E50: Planned | F50: Highways | G50: Design / Development [25] | H50: 66 | I50: 43.75 | J50: Not Applicable [-1] | K50: Medium [50] | L50: Low [25] | M50: Not Applicable [-1] | N50: Very Low [0] | O50: Very Low [100] | P50: Low [75] | Q50: Very High [100] | R50: Not Applicable [-1] | S50: Some Cases / Mixed Results [50] | T50: Available - New (Standardised) [80] | U50: SOI,CRY,COF,SUS | V50: 51000 | W50: 51000 | X50: 51000 | Y50: 51000 | Z50: 51000 | AF50: 5 | AG50: -6 | AH50: -9 | AI50: 0 | AJ50: -4 | AK50: 68-134 [2] | AL50: >241 [10] | AM50: >101 [10] | AN50: 65-70 [9] | AO50: 533-710 [7] | AP50: 26.66666667 | AQ50: 401-467 [7] | AR50: 101-120 [4] | AS50: 0-16 [1] | AT50: 65-70 [9] | AU50: 178-266 [3] | AV50: 813000 | AZ50: 1200000 | BA50: 960000 | BB50: 840000 | BC50: 720000 | BD50: 600000 | BI50: 1149000 | BJ50: 2058000 | BK50: 2847000 | BL50: 3516000 | BM50: 4065000 | BN50: 650000 | BO50: 66729 | BP50: 9672 | BQ50: 0 | BR50: 812 | BS50: 51339 | BT50: 0.8108244052 | BU50: 0 | BV50: 0 | BX50: 1200000 | BY50: 1200000 | BZ50: 1200000 | CA50: 1200000 | CB50: 1200000 | DH50: 1149000 | DI50: 909000 | DJ50: 789000 | DK50: 669000 | DL50: 549000 | DM50: 1149000 | DN50: 909000 | DO50: 789000 | DP50: 669000 | DQ50: 549000 | DS50: 1200000 | DT50: 1200000 | DU50: 1200000 | DV50: 1200000 | DW50: 1200000 | DX50: 0.7995079951 | DY50: REV | DZ50: 1 | EA50: 0.8 | EB50: 0.7 | EC50: 0.6 | ED50: 0.5 | EN50: -ve High [-100] | EO50: Medium [66] | EP50: Medium [66] | EQ50: None [0] | ER50: -43.56 | ES50: -ve High [-100] | ET50: High [100] | EU50: Medium [66] | EV50: -ve High [-100] | EW50: -66 | EX50: None [0] | EY50: Low [33] | EZ50: Low [33] | FA50: +ve Low [+40] | FB50: 0 | FC50: +ve Medium [+60] | FD50: Medium [66] | FE50: None [0] | FF50: -ve Medium [-60] | FG50: 0 | FH50: None [0] | FI50: Low [33] | FJ50: High [100] | FK50: -ve Low [-40] | FL50: 0 | FM50: -21.912 | FN50: -12 | FO50: 13.33333333 | FP50: -86.66666667 | FQ50: 53.33333333 | FR50: 33.33333333 | FS50: -73.33333333 | FT50: None [0] | FU50: -ve High [-100] | FV50: +ve Medium [+60] | FW50: +ve High [+100] | FX50: -ve High [-100] | FY50: +ve High [+100] | FZ50: -ve Medium [-60] | GA50: +ve Medium [+60] | GB50: -ve High [-100] | GC50: -ve Medium [-60] | GD50: -ve Medium [-60] | GE50: -ve High [-100] | GF50: +ve Low [+40] | GG50: +ve High [+100] | GH50: -ve Medium [-60] | GI50: -11928.6 | GJ50: -4458 | GK50: -4101 | GL50: -13404 | GM50: -16423 | GN50: -21257 | GO50: 3130 | GP50: 0 | GQ50: 0 | GR50: 0 | GS50: 0 | GT50: 5425 | GU50: 0 | GV50: 0 | GW50: 0 | GX50: 0 | GY50: 0 | GZ50: 0 | HA50: 0 | HB50: 0 | HC50: 0 | HD50: 6753 | HE50: 4101 | HF50: 13404 | HG50: 16423 | HH50: 21257
A51: Proving | B51: 1510 | C51: Recycling of Aggregates | E51: Planned | F51: Highways | G51: Trial (Limited Scope) [50] | H51: 55.83333333 | I51: 50 | J51: Very High [0] | K51: Not Applicable [-1] | L51: Not Applicable [-1] | M51: Very High [100] | N51: Very Low [0] | O51: Very Low [100] | P51: Very High [0] | Q51: Very High [100] | R51: Very Low [100] | S51: Some Cases / Good Results [75] | T51: Decommissioned / Superseded [10] | U51: CRD | AF51: -5 | AG51: 0 | AH51: 4 | AI51: 5 | AJ51: 5 | AK51: 335-400 [6] | AL51: 188-213 [9] | AM51: 67-75 [6] | AN51: 0-11 [1] | AO51: 267-354 [4] | AP51: 53.33333333 | AQ51: 0-67 [1] | AR51: 188-213 [9] | AS51: >101 [10] | AT51: 48-53 [6] | AU51: 888- 1064 [9] | AV51: 18000 | AZ51: 25000 | BA51: 20000 | BB51: 17500 | BC51: 15000 | BD51: 12500 | BI51: 25000 | BJ51: 45000 | BK51: 62500 | BL51: 77500 | BM51: 90000 | BN51: 70000 | BO51: 58680 | BP51: 8212 | BQ51: 0 | BR51: 3965 | BS51: 58231 | BT51: 0.6201573804 | BU51: 0 | BV51: 64289 | BX51: 25000 | BY51: 25000 | BZ51: 25000 | CA51: 25000 | CB51: 25000 | DH51: 25000 | DI51: 20000 | DJ51: 17500 | DK51: 15000 | DL51: 12500 | DM51: 25000 | DN51: 20000 | DO51: 17500 | DP51: 15000 | DQ51: 12500 | DS51: 25000 | DT51: 25000 | DU51: 25000 | DV51: 25000 | DW51: 25000 | DX51: 3.888888889 | DY51: CRE | DZ51: 1 | EA51: 0.8 | EB51: 0.7 | EC51: 0.6 | ED51: 0.5 | EN51: +ve Medium [+60] | EO51: None [0] | EP51: Low [33] | EQ51: -ve Medium [-60] | ER51: 0 | ES51: -ve High [-100] | ET51: Medium [66] | EU51: Medium [66] | EV51: None [0] | EW51: -43.56 | EX51: +ve High [+100] | EY51: Medium [66] | EZ51: None [0] | FA51: -ve Medium [-60] | FB51: 0 | FC51: +ve Medium [+60] | FD51: Medium [66] | FE51: None [0] | FF51: +ve Medium [+60] | FG51: 0 | FH51: -ve Low [-40] | FI51: High [100] | FJ51: High [100] | FK51: +ve Medium [+60] | FL51: -40 | FM51: -16.712 | FN51: -6.666666667 | FO51: 20 | FP51: 20 | FQ51: 0 | FR51: -60 | FS51: -13.33333333 | FT51: None [0] | FU51: -ve Medium [-60] | FV51: +ve Low [+40] | FW51: -ve Medium [-60] | FX51: -ve Low [-40] | FY51: +ve High [+100] | FZ51: +ve Medium [+60] | GA51: None [0] | GB51: -ve Medium [-60] | GC51: -ve Low [-40] | GD51: -ve Low [-40] | GE51: +ve Medium [+60] | GF51: -ve Low [-40] | GG51: -ve Medium [-60] | GH51: +ve Low [+40] | GI51: -13241.8 | GJ51: -8810 | GK51: -8868 | GL51: -15677 | GM51: -13558 | GN51: -19296 | GO51: 1009 | GP51: 0 | GQ51: 0 | GR51: 0 | GS51: 0 | GT51: 0 | GU51: 2316 | GV51: 0 | GW51: 3594 | GX51: 2876 | GY51: 0 | GZ51: 0 | HA51: 0 | HB51: 0 | HC51: 0 | HD51: 7801 | HE51: 11184 | HF51: 15677 | HG51: 17152 | HH51: 22172
A52: Proving | B52: 1520 | C52: Battery Banks (Cost Offset) | E52: Planned | F52: Facilities | G52: Live Operations [100] | H52: 56.25 | I52: 87.5 | J52: Very Low [100] | K52: High [75] | L52: Not Applicable [-1] | M52: Very High [100] | N52: High [75] | O52: Not Applicable [-1] | P52: Not Applicable [-1] | Q52: Low [25] | R52: High [25] | S52: Many Cases / Mixed Results [75] | T52: Not Applicable [-1] | U52: CRD,COF | AF52: 3 | AG52: 0 | AH52: 1 | AI52: 0 | AJ52: 5 | AK52: 68-134 [2] | AL52: 34-66 [2] | AM52: 84-91 [8] | AN52: >71 [10] | AO52: 267-354 [4] | AP52: 53.33333333 | AQ52: 268-334 [5] | AR52: 34-66 [2] | AS52: 92-100 [9] | AT52: >71 [10] | AU52: 888- 1064 [9] | AV52: 691200 | AZ52: 960000 | BA52: 768000 | BB52: 672000 | BC52: 576000 | BD52: 480000 | BI52: 960000 | BJ52: 1728000 | BK52: 2400000 | BL52: 2976000 | BM52: 3456000 | BN52: 7000000 | BO52: 72060 | BP52: 14391 | BQ52: 0 | BR52: 1908 | BS52: 28623 | BT52: 1.025891444 | BU52: 0 | BV52: 0 | BX52: 960000 | BY52: 960000 | BZ52: 960000 | CA52: 960000 | CB52: 960000 | DH52: 960000 | DI52: 768000 | DJ52: 672000 | DK52: 576000 | DL52: 480000 | DM52: 960000 | DN52: 768000 | DO52: 672000 | DP52: 576000 | DQ52: 480000 | DS52: 960000 | DT52: 960000 | DU52: 960000 | DV52: 960000 | DW52: 960000 | DX52: 10.12731481 | DY52: CER | DZ52: 1 | EA52: 0.8 | EB52: 0.7 | EC52: 0.6 | ED52: 0.5 | EN52: -ve Low [-40] | EO52: Low [33] | EP52: High [100] | EQ52: -ve Medium [-60] | ER52: -13.2 | ES52: None [0] | ET52: None [0] | EU52: Low [33] | EV52: +ve High [+100] | EW52: 0 | EX52: +ve Low [+40] | EY52: None [0] | EZ52: Low [33] | FA52: -ve High [-100] | FB52: 0 | FC52: -ve High [-100] | FD52: Low [33] | FE52: Low [33] | FF52: -ve Low [-40] | FG52: -10.89 | FH52: -ve Medium [-60] | FI52: High [100] | FJ52: None [0] | FK52: -ve High [-100] | FL52: 0 | FM52: -4.818 | FN52: -21.33333333 | FO52: -13.33333333 | FP52: -20 | FQ52: -6.666666667 | FR52: -33.33333333 | FS52: -33.33333333 | FT52: -ve Medium [-60] | FU52: +ve Low [+40] | FV52: -ve High [-100] | FW52: -ve Low [-40] | FX52: None [0] | FY52: -ve Low [-40] | FZ52: -ve High [-100] | GA52: +ve Low [+40] | GB52: +ve Low [+40] | GC52: None [0] | GD52: +ve Medium [+60] | GE52: None [0] | GF52: +ve Low [+40] | GG52: -ve High [-100] | GH52: -ve High [-100] | GI52: -14027.8 | GJ52: -3524 | GK52: -13268 | GL52: -11243 | GM52: -16639 | GN52: -25465 | GO52: 0 | GP52: 596 | GQ52: 0 | GR52: 0 | GS52: 0 | GT52: 0 | GU52: 0 | GV52: 1616 | GW52: 0 | GX52: 0 | GY52: 0 | GZ52: 0 | HA52: 0 | HB52: 0 | HC52: 0 | HD52: 3524 | HE52: 12672 | HF52: 12859 | HG52: 16639 | HH52: 25465
A53: Proving | B53: 1540 | C53: Incentivise Citizens to Convert to EV | E53: Planned | F53: Policy | G53: Trial (Limited Scope) [50] | H53: 52.5 | I53: 45 | J53: Not Applicable [-1] | K53: Medium [50] | L53: Very High [100] | M53: High [75] | N53: Very Low [0] | O53: Very High [0] | P53: Very Low [100] | Q53: High [75] | R53: Medium [50] | S53: Many Cases / Poor Results [0] | T53: Pilot Solution [40] | U53: AQI | V53: 40000 | W53: 40000 | X53: 40000 | Y53: 40000 | Z53: 40000 | AF53: -1 | AG53: -2 | AH53: -6 | AI53: 5 | AJ53: 3 | AK53: 201-267 [4] | AL53: 101-120 [4] | AM53: 84-91 [8] | AN53: 0-11 [1] | AO53: 0-99 [1] | AP53: 71.11111111 | AQ53: 135-200 [3] | AR53: 34-66 [2] | AS53: 17-33 [2] | AT53: 48-53 [6] | AU53: 267-354 [4] | AV53: -40000 | AZ53: 0 | BA53: 0 | BB53: 0 | BC53: 0 | BD53: 0 | BI53: -40000 | BJ53: -80000 | BK53: -120000 | BL53: -160000 | BM53: -200000 | BN53: 250000 | BO53: 0 | BP53: 0 | BQ53: 0 | BR53: 0 | BS53: 0 | BT53: 0 | BU53: 0 | BV53: 66170 | BX53: 0 | BY53: 0 | BZ53: 0 | CA53: 0 | CB53: 0 | DH53: -40000 | DI53: -40000 | DJ53: -40000 | DK53: -40000 | DL53: -40000 | DM53: -40000 | DN53: -40000 | DO53: -40000 | DP53: -40000 | DQ53: -40000 | DX53: -6.25 | DY53: CER | DZ53: 1 | EA53: 0.8 | EB53: 0.7 | EC53: 0.6 | ED53: 0.5 | EN53: -ve High [-100] | EO53: Medium [66] | EP53: None [0] | EQ53: -ve Medium [-60] | ER53: 0 | ES53: +ve Medium [+60] | ET53: None [0] | EU53: None [0] | EV53: -ve Low [-40] | EW53: 0 | EX53: +ve Low [+40] | EY53: High [100] | EZ53: None [0] | FA53: -ve Medium [-60] | FB53: 0 | FC53: +ve Medium [+60] | FD53: High [100] | FE53: High [100] | FF53: +ve Medium [+60] | FG53: 60 | FH53: +ve High [+100] | FI53: High [100] | FJ53: High [100] | FK53: +ve Low [+40] | FL53: 100 | FM53: 32 | FN53: -5.333333333 | FO53: 46.66666667 | FP53: -53.33333333 | FQ53: 0 | FR53: 13.33333333 | FS53: -33.33333333 | FT53: -ve Medium [-60] | FU53: -ve Medium [-60] | FV53: +ve High [+100] | FW53: -ve Medium [-60] | FX53: -ve Low [-40] | FY53: +ve High [+100] | FZ53: -ve Medium [-60] | GA53: None [0] | GB53: +ve High [+100] | GC53: -ve Medium [-60] | GD53: +ve High [+100] | GE53: -ve Low [-40] | GF53: -ve High [-100] | GG53: None [0] | GH53: None [0] | GI53: -4000 | GJ53: -4000 | GK53: -4000 | GL53: -4000 | GM53: -4000 | GN53: -4000 | GO53: 0 | GP53: 0 | GQ53: 0 | GR53: 0 | GS53: 0 | GT53: 0 | GU53: 0 | GV53: 0 | GW53: 0 | GX53: 0 | GY53: 4000 | GZ53: 4000 | HA53: 4000 | HB53: 4000 | HC53: 4000 | HD53: 0 | HE53: 0 | HF53: 0 | HG53: 0 | HH53: 0
A54: Proving | B54: 1550 | C54: Sell EV Infrastructure Concessions | E54: Planned | F54: Planning | G54: Trial (Limited Scope) [50] | H54: 38.33333333 | I54: 55 | J54: Medium [50] | K54: Medium [50] | L54: Not Applicable [-1] | M54: Very High [100] | N54: Very Low [0] | O54: Low [75] | P54: High [25] | Q54: Medium [50] | R54: Medium [50] | S54: Limited Cases / Data [25] | T54: Technology Demonstrator [30] | U54: CRD,COF,SUS,CER,AQI | AF54: 0 | AG54: 5 | AH54: -5 | AI54: -2 | AJ54: 1 | AK54: 468-534 [8] | AL54: 121-140 [5] | AM54: 84-91 [8] | AN54: 42-47 [5] | AO54: 533-710 [7] | AP54: 37.77777778 | AQ54: 468-534 [8] | AR54: >241 [10] | AS54: 34-50 [3] | AT54: 24-35 [3] | AU54: 711- 887 [8] | AV54: 936000 | AZ54: 1300000 | BA54: 1040000 | BB54: 910000 | BC54: 780000 | BD54: 650000 | BI54: 1300000 | BJ54: 2340000 | BK54: 3250000 | BL54: 4030000 | BM54: 4680000 | BN54: 250000 | BO54: 67320 | BP54: 14750 | BQ54: 0 | BR54: 3093 | BS54: 41195 | BT54: 0.8572889907 | BU54: 0 | BV54: 0 | BX54: 1300000 | BY54: 1300000 | BZ54: 1300000 | CA54: 1300000 | CB54: 1300000 | DH54: 1300000 | DI54: 1040000 | DJ54: 910000 | DK54: 780000 | DL54: 650000 | DM54: 1300000 | DN54: 1040000 | DO54: 910000 | DP54: 780000 | DQ54: 650000 | DS54: 1300000 | DT54: 1300000 | DU54: 1300000 | DV54: 1300000 | DW54: 1300000 | DX54: 0.2670940171 | DY54: REV | DZ54: 1 | EA54: 0.8 | EB54: 0.7 | EC54: 0.6 | ED54: 0.5 | EN54: -ve High [-100] | EO54: Medium [66] | EP54: None [0] | EQ54: +ve High [+100] | ER54: 0 | ES54: -ve High [-100] | ET54: None [0] | EU54: Medium [66] | EV54: +ve High [+100] | EW54: 0 | EX54: -ve Medium [-60] | EY54: None [0] | EZ54: High [100] | FA54: None [0] | FB54: 0 | FC54: -ve Low [-40] | FD54: Low [33] | FE54: High [100] | FF54: -ve Medium [-60] | FG54: -13.2 | FH54: -ve Medium [-60] | FI54: High [100] | FJ54: High [100] | FK54: None [0] | FL54: -60 | FM54: -14.64 | FN54: 34.66666667 | FO54: 40 | FP54: 6.666666667 | FQ54: 20 | FR54: 53.33333333 | FS54: 53.33333333 | FT54: +ve Medium [+60] | FU54: +ve High [+100] | FV54: None [0] | FW54: +ve High [+100] | FX54: +ve Medium [+60] | FY54: +ve High [+100] | FZ54: -ve Low [-40] | GA54: +ve Medium [+60] | GB54: +ve High [+100] | GC54: +ve Medium [+60] | GD54: -ve Low [-40] | GE54: -ve Low [-40] | GF54: None [0] | GG54: -ve Low [-40] | GH54: +ve Low [+40] | GI54: -17205.4 | GJ54: -11281 | GK54: -13562 | GL54: -18205 | GM54: -19739 | GN54: -23240 | GO54: 0 | GP54: 0 | GQ54: 0 | GR54: 2890 | GS54: 0 | GT54: 0 | GU54: 0 | GV54: 0 | GW54: 0 | GX54: 2449 | GY54: 0 | GZ54: 4618 | HA54: 4453 | HB54: 0 | HC54: 0 | HD54: 11281 | HE54: 8944 | HF54: 13752 | HG54: 16849 | HH54: 25689
A55: Proving | B55: 1560 | C55: EV Infrastructure Change of Use (Planning & Business Rate / Share of Business Rate) | E55: Planned | F55: Planning | G55: Live Operations [100] | H55: 44 | I55: 70.83333333 | J55: Low [75] | K55: Very High [100] | L55: Very High [100] | M55: Very Low [0] | N55: High [75] | O55: Low [75] | P55: Not Applicable [-1] | Q55: Low [25] | R55: Very High [0] | S55: Many Cases / Mixed Results [75] | T55: Research & Development [20] | U55: CRD | AF55: 1 | AG55: -4 | AH55: -6 | AI55: 6 | AJ55: 8 | AK55: 68-134 [2] | AL55: 161-187 [7] | AM55: 92-100 [9] | AN55: 0-11 [1] | AO55: 0-99 [1] | AP55: 66.66666667 | AQ55: 135-200 [3] | AR55: 67-100 [3] | AS55: 34-50 [3] | AT55: 54-58 [7] | AU55: 888- 1064 [9] | AV55: 64800 | AZ55: 90000 | BA55: 72000 | BB55: 63000 | BC55: 54000 | BD55: 45000 | BI55: 90000 | BJ55: 162000 | BK55: 225000 | BL55: 279000 | BM55: 324000 | BN55: 210000 | BO55: 79851 | BP55: 8079 | BQ55: 39842 | BR55: 5349 | BS55: 60825 | BT55: 0.6349518226 | BU55: 0 | BV55: 0 | BX55: 90000 | BY55: 90000 | BZ55: 90000 | CA55: 90000 | CB55: 90000 | DH55: 90000 | DI55: 72000 | DJ55: 63000 | DK55: 54000 | DL55: 45000 | DM55: 90000 | DN55: 72000 | DO55: 63000 | DP55: 54000 | DQ55: 45000 | DS55: 90000 | DT55: 90000 | DU55: 90000 | DV55: 90000 | DW55: 90000 | DX55: 3.240740741 | DY55: REV | DZ55: 1 | EA55: 0.8 | EB55: 0.7 | EC55: 0.6 | ED55: 0.5 | EN55: None [0] | EO55: None [0] | EP55: Medium [66] | EQ55: +ve Medium [+60] | ER55: 0 | ES55: -ve Medium [-60] | ET55: None [0] | EU55: Medium [66] | EV55: -ve High [-100] | EW55: 0 | EX55: -ve Medium [-60] | EY55: High [100] | EZ55: Low [33] | FA55: -ve Medium [-60] | FB55: -19.8 | FC55: +ve Low [+40] | FD55: High [100] | FE55: High [100] | FF55: +ve Medium [+60] | FG55: 40 | FH55: -ve Medium [-60] | FI55: Medium [66] | FJ55: High [100] | FK55: +ve High [+100] | FL55: -39.6 | FM55: -3.88 | FN55: -8 | FO55: -20 | FP55: -60 | FQ55: 40 | FR55: -20 | FS55: 20 | FT55: -ve Medium [-60] | FU55: -ve Low [-40] | FV55: -ve Low [-40] | FW55: None [0] | FX55: +ve Low [+40] | FY55: None [0] | FZ55: -ve Low [-40] | GA55: +ve High [+100] | GB55: -ve High [-100] | GC55: -ve Low [-40] | GD55: None [0] | GE55: -ve High [-100] | GF55: +ve Medium [+60] | GG55: +ve Low [+40] | GH55: +ve Medium [+60] | GI55: -12723.8 | GJ55: -5953 | GK55: -5590 | GL55: -9041 | GM55: -15787 | GN55: -27248 | GO55: 0 | GP55: 0 | GQ55: 0 | GR55: 0 | GS55: 2370 | GT55: 0 | GU55: 0 | GV55: 5684 | GW55: 2435 | GX55: 0 | GY55: 0 | GZ55: 0 | HA55: 0 | HB55: 0 | HC55: 0 | HD55: 5953 | HE55: 5590 | HF55: 14725 | HG55: 18222 | HH55: 24878
A56: Proving | B56: 1570 | C56: Demand Responsive Transport Services | E56: Planned | F56: Transport | G56: Adoption / Implementation [75] | H56: 64 | I56: 50 | J56: Very High [0] | K56: Medium [50] | L56: Not Applicable [-1] | M56: Medium [50] | N56: Very High [100] | O56: Medium [50] | P56: Very Low [100] | Q56: Medium [50] | R56: Not Applicable [-1] | S56: Many Cases / Mixed Results [75] | T56: Research & Development [20] | U56: CRD,CRY,WEL,SUS | V56: 310000 | W56: 310000 | X56: 310000 | Y56: 310000 | Z56: 310000 | AF56: -3 | AG56: 3 | AH56: 3 | AI56: 8 | AJ56: 4 | AK56: 201-267 [4] | AL56: 0-22 [1] | AM56: 76-83 [7] | AN56: 0-11 [1] | AO56: 267-354 [4] | AP56: 73.33333333 | AQ56: 0-67 [1] | AR56: 101-120 [4] | AS56: >101 [10] | AT56: 59-64 [9] | AU56: 711- 887 [8] | AV56: 78800 | AZ56: 540000 | BA56: 432000 | BB56: 378000 | BC56: 324000 | BD56: 270000 | BI56: 230000 | BJ56: 352000 | BK56: 420000 | BL56: 434000 | BM56: 394000 | BN56: 830000 | BO56: 97296 | BP56: 7366 | BQ56: 0 | BR56: 4625 | BS56: 60944 | BT56: 0.5370683621 | BU56: 0 | BV56: 0 | BX56: 540000 | BY56: 540000 | BZ56: 540000 | CA56: 540000 | CB56: 540000 | DH56: 230000 | DI56: 122000 | DJ56: 68000 | DK56: 14000 | DL56: -40000 | DM56: 230000 | DN56: 122000 | DO56: 68000 | DP56: 14000 | DQ56: -40000 | DS56: 540000 | DT56: 540000 | DU56: 540000 | DV56: 540000 | DW56: 540000 | DX56: 10.53299492 | DY56: SOI | DZ56: 1 | EA56: 0.8 | EB56: 0.7 | EC56: 0.6 | ED56: 0.5 | EN56: +ve Medium [+60] | EO56: Medium [66] | EP56: Low [33] | EQ56: -ve Medium [-60] | ER56: 13.068 | ES56: None [0] | ET56: None [0] | EU56: Medium [66] | EV56: None [0] | EW56: 0 | EX56: -ve Low [-40] | EY56: Medium [66] | EZ56: High [100] | FA56: -ve High [-100] | FB56: -26.4 | FC56: +ve High [+100] | FD56: Medium [66] | FE56: Low [33] | FF56: +ve Low [+40] | FG56: 21.78 | FH56: +ve High [+100] | FI56: Low [33] | FJ56: Low [33] | FK56: +ve Medium [+60] | FL56: 10.89 | FM56: 3.8676 | FN56: -33.33333333 | FO56: -6.666666667 | FP56: 0 | FQ56: -53.33333333 | FR56: -66.66666667 | FS56: -40 | FT56: -ve Low [-40] | FU56: -ve High [-100] | FV56: -ve Medium [-60] | FW56: -ve Medium [-60] | FX56: -ve Medium [-60] | FY56: +ve Medium [+60] | FZ56: +ve Medium [+60] | GA56: -ve Medium [-60] | GB56: -ve Low [-40] | GC56: -ve High [-100] | GD56: -ve Low [-40] | GE56: +ve Low [+40] | GF56: -ve Low [-40] | GG56: -ve High [-100] | GH56: +ve Low [+40] | GI56: -13715.2 | GJ56: -14802 | GK56: -7522 | GL56: -6643 | GM56: -16247 | GN56: -23362 | GO56: 0 | GP56: 0 | GQ56: 0 | GR56: 0 | GS56: 2034 | GT56: 0 | GU56: 0 | GV56: 7763 | GW56: 0 | GX56: 0 | GY56: 4049 | GZ56: 0 | HA56: 0 | HB56: 0 | HC56: 0 | HD56: 10753 | HE56: 7522 | HF56: 14406 | HG56: 16247 | HH56: 21328
A57: Proving | B57: 1580 | C57: Classroom Virtualisation (Home To School Transport Cost-Offset) | E57: Planned | F57: Transport | G57: Trial (Limited Scope) [50] | H57: 60.83333333 | I57: 62.5 | J57: Very Low [100] | K57: Not Applicable [-1] | L57: Very Low [0] | M57: Very High [100] | N57: Medium [50] | O57: Not Applicable [-1] | P57: Very High [0] | Q57: Very High [100] | R57: Very Low [100] | S57: Some Cases / Good Results [75] | T57: Pilot Solution [40] | U57: SOI,COF,WEL,EQY,SUS | AF57: 9 | AG57: 2 | AH57: -8 | AI57: -6 | AJ57: -6 | AK57: 0-67 [1] | AL57: 34-66 [2] | AM57: >101 [10] | AN57: >71 [10] | AO57: 888- 1064 [9] | AP57: 40 | AQ57: >601 [10] | AR57: 101-120 [4] | AS57: 17-33 [2] | AT57: 36-41 [4] | AU57: 178-266 [3] | AV57: 864000 | AZ57: 1200000 | BA57: 960000 | BB57: 840000 | BC57: 720000 | BD57: 600000 | BI57: 1200000 | BJ57: 2160000 | BK57: 3000000 | BL57: 3720000 | BM57: 4320000 | BN57: 4300000 | BO57: 78268 | BP57: 9239 | BQ57: 0 | BR57: 601 | BS57: 35086 | BT57: 0.5189516491 | BU57: 0 | BV57: 0 | BX57: 1200000 | BY57: 1200000 | BZ57: 1200000 | CA57: 1200000 | CB57: 1200000 | DH57: 1200000 | DI57: 960000 | DJ57: 840000 | DK57: 720000 | DL57: 600000 | DM57: 1200000 | DN57: 960000 | DO57: 840000 | DP57: 720000 | DQ57: 600000 | DS57: 1200000 | DT57: 1200000 | DU57: 1200000 | DV57: 1200000 | DW57: 1200000 | DX57: 4.976851852 | DY57: RED | DZ57: 1 | EA57: 0.8 | EB57: 0.7 | EC57: 0.6 | ED57: 0.5 | EN57: +ve High [+100] | EO57: Medium [66] | EP57: Low [33] | EQ57: +ve Medium [+60] | ER57: 21.78 | ES57: -ve High [-100] | ET57: None [0] | EU57: Medium [66] | EV57: +ve High [+100] | EW57: 0 | EX57: -ve Medium [-60] | EY57: High [100] | EZ57: High [100] | FA57: +ve Medium [+60] | FB57: -60 | FC57: -ve Medium [-60] | FD57: High [100] | FE57: None [0] | FF57: None [0] | FG57: 0 | FH57: +ve High [+100] | FI57: Low [33] | FJ57: High [100] | FK57: +ve Medium [+60] | FL57: 33 | FM57: -1.044 | FN57: -4 | FO57: -80 | FP57: -13.33333333 | FQ57: 60 | FR57: 33.33333333 | FS57: -20 | FT57: -ve Low [-40] | FU57: -ve Low [-40] | FV57: +ve Medium [+60] | FW57: -ve Low [-40] | FX57: -ve High [-100] | FY57: -ve High [-100] | FZ57: -ve Medium [-60] | GA57: +ve Medium [+60] | GB57: +ve High [+100] | GC57: +ve High [+100] | GD57: -ve High [-100] | GE57: +ve Medium [+60] | GF57: +ve Medium [+60] | GG57: +ve Low [+40] | GH57: -ve Medium [-60] | GI57: -17803.2 | GJ57: -19678 | GK57: -4783 | GL57: -11330 | GM57: -27786 | GN57: -25439 | GO57: 0 | GP57: 0 | GQ57: 3671 | GR57: 2731 | GS57: 0 | GT57: 0 | GU57: 0 | GV57: 4690 | GW57: 0 | GX57: 0 | GY57: 7844 | GZ57: 0 | HA57: 0 | HB57: 6174 | HC57: 0 | HD57: 11834 | HE57: 4783 | HF57: 12349 | HG57: 18881 | HH57: 25439
A58: Proving | B58: 1590 | C58: In-Home / Vulnerable People Virtual Care / Oversight Arrangements | E58: Planned | F58: Transport | G58: Design / Development [25] | H58: 45 | I58: 70 | J58: Very Low [100] | K58: High [75] | L58: Low [25] | M58: Medium [50] | N58: Very High [100] | O58: Not Applicable [-1] | P58: Very Low [100] | Q58: Medium [50] | R58: Low [75] | S58: No Case Studies [0] | T58: Research & Development [20] | U58: CRD,COF,WEL,EQY,SUS | AF58: 1 | AG58: -7 | AH58: 4 | AI58: 1 | AJ58: 0 | AK58: 535-600 [9] | AL58: 188-213 [9] | AM58: 51-58 [4] | AN58: 48-53 [6] | AO58: 89-177 [2] | AP58: 44.44444444 | AQ58: >601 [10] | AR58: 34-66 [2] | AS58: 84-91 [8] | AT58: 54-58 [7] | AU58: 89-177 [2] | AV58: 1512000 | AZ58: 2100000 | BA58: 1680000 | BB58: 1470000 | BC58: 1260000 | BD58: 1050000 | BI58: 2100000 | BJ58: 3780000 | BK58: 5250000 | BL58: 6510000 | BM58: 7560000 | BN58: 4500000 | BO58: 60724 | BP58: 11521 | BQ58: 0 | BR58: 3113 | BS58: 65991 | BT58: 1.048641072 | BU58: 0 | BV58: 0 | BX58: 2100000 | BY58: 2100000 | BZ58: 2100000 | CA58: 2100000 | CB58: 2100000 | DH58: 2100000 | DI58: 1680000 | DJ58: 1470000 | DK58: 1260000 | DL58: 1050000 | DM58: 2100000 | DN58: 1680000 | DO58: 1470000 | DP58: 1260000 | DQ58: 1050000 | DS58: 2100000 | DT58: 2100000 | DU58: 2100000 | DV58: 2100000 | DW58: 2100000 | DX58: 2.976190476 | DY58: SOI | DZ58: 1 | EA58: 0.8 | EB58: 0.7 | EC58: 0.6 | ED58: 0.5 | EN58: -ve Medium [-60] | EO58: None [0] | EP58: Medium [66] | EQ58: None [0] | ER58: 0 | ES58: +ve Medium [+60] | ET58: High [100] | EU58: Medium [66] | EV58: None [0] | EW58: 39.6 | EX58: +ve High [+100] | EY58: Low [33] | EZ58: High [100] | FA58: +ve Medium [+60] | FB58: 33 | FC58: -ve Low [-40] | FD58: Low [33] | FE58: Low [33] | FF58: +ve Medium [+60] | FG58: -4.356 | FH58: -ve Low [-40] | FI58: Low [33] | FJ58: None [0] | FK58: +ve Low [+40] | FL58: 0 | FM58: 13.6488 | FN58: -8 | FO58: -33.33333333 | FP58: 0 | FQ58: 13.33333333 | FR58: 20 | FS58: -40 | FT58: -ve High [-100] | FU58: +ve Medium [+60] | FV58: +ve High [+100] | FW58: +ve Medium [+60] | FX58: -ve Medium [-60] | FY58: -ve Medium [-60] | FZ58: -ve High [-100] | GA58: None [0] | GB58: -ve Medium [-60] | GC58: None [0] | GD58: +ve Medium [+60] | GE58: +ve Low [+40] | GF58: -ve Medium [-60] | GG58: +ve Medium [+60] | GH58: -ve Medium [-60] | GI58: -10986.6 | GJ58: 292 | GK58: -3681 | GL58: -10964 | GM58: -10205 | GN58: -30375 | GO58: 0 | GP58: 0 | GQ58: 0 | GR58: 0 | GS58: 4507 | GT58: 5208 | GU58: 0 | GV58: 3681 | GW58: 7029 | GX58: 4978 | GY58: 0 | GZ58: 0 | HA58: 0 | HB58: 0 | HC58: 9101 | HD58: 4916 | HE58: 3681 | HF58: 14645 | HG58: 17234 | HH58: 21745
A59: Proving | B59: 1600 | C59: Driverless Public Transport Services | E59: Planned | F59: Transport | G59: Live Operations [100] | H59: 66 | I59: 65 | J59: Very Low [100] | K59: High [75] | L59: Medium [50] | M59: Very High [100] | N59: Very Low [0] | O59: Not Applicable [-1] | P59: Not Applicable [-1] | Q59: Low [25] | R59: Low [75] | S59: Many Cases / Good Results [100] | T59: Technology Demonstrator [30] | U59: SOI,CRY,SUS,CER | AF59: 8 | AG59: 5 | AH59: 0 | AI59: 3 | AJ59: -2 | AK59: 0-67 [1] | AL59: 34-66 [2] | AM59: >101 [10] | AN59: 0-11 [1] | AO59: 711- 887 [8] | AP59: 62.22222222 | AQ59: 535-600 [9] | AR59: 161-187 [7] | AS59: >101 [10] | AT59: 36-41 [4] | AU59: 444-532 [6] | AV59: 1584000 | AZ59: 2200000 | BA59: 1760000 | BB59: 1540000 | BC59: 1320000 | BD59: 1100000 | BI59: 2200000 | BJ59: 3960000 | BK59: 5500000 | BL59: 6820000 | BM59: 7920000 | BN59: 6700000 | BO59: 76224 | BP59: 6853 | BQ59: 45245 | BR59: 6905 | BS59: 54750 | BT59: 0.3281428065 | BU59: 0 | BV59: 0 | BX59: 2200000 | BY59: 2200000 | BZ59: 2200000 | CA59: 2200000 | CB59: 2200000 | DH59: 2200000 | DI59: 1760000 | DJ59: 1540000 | DK59: 1320000 | DL59: 1100000 | DM59: 2200000 | DN59: 1760000 | DO59: 1540000 | DP59: 1320000 | DQ59: 1100000 | DS59: 2200000 | DT59: 2200000 | DU59: 2200000 | DV59: 2200000 | DW59: 2200000 | DX59: 4.22979798 | DY59: RED | DZ59: 1 | EA59: 0.8 | EB59: 0.7 | EC59: 0.6 | ED59: 0.5 | EN59: -ve Medium [-60] | EO59: Low [33] | EP59: None [0] | EQ59: None [0] | ER59: 0 | ES59: -ve Medium [-60] | ET59: Medium [66] | EU59: Low [33] | EV59: -ve Medium [-60] | EW59: -13.068 | EX59: -ve Low [-40] | EY59: Medium [66] | EZ59: Low [33] | FA59: -ve High [-100] | FB59: -8.712 | FC59: -ve High [-100] | FD59: None [0] | FE59: None [0] | FF59: +ve Medium [+60] | FG59: 0 | FH59: -ve Low [-40] | FI59: None [0] | FJ59: High [100] | FK59: -ve Low [-40] | FL59: 0 | FM59: -4.356 | FN59: -6.666666667 | FO59: -13.33333333 | FP59: 46.66666667 | FQ59: 6.666666667 | FR59: -6.666666667 | FS59: -66.66666667 | FT59: +ve Medium [+60] | FU59: +ve Low [+40] | FV59: +ve High [+100] | FW59: -ve Low [-40] | FX59: None [0] | FY59: -ve Medium [-60] | FZ59: +ve High [+100] | GA59: -ve Low [-40] | GB59: +ve Medium [+60] | GC59: -ve High [-100] | GD59: -ve Low [-40] | GE59: None [0] | GF59: -ve Low [-40] | GG59: -ve Low [-40] | GH59: -ve High [-100] | GI59: -20884.2 | GJ59: -22024 | GK59: -16141 | GL59: -13666 | GM59: -28616 | GN59: -23974 | GO59: 5076 | GP59: 3441 | GQ59: 0 | GR59: 0 | GS59: 0 | GT59: 0 | GU59: 4229 | GV59: 0 | GW59: 0 | GX59: 0 | GY59: 11915 | GZ59: 7757 | HA59: 0 | HB59: 10063 | HC59: 0 | HD59: 5033 | HE59: 9172 | HF59: 13666 | HG59: 18553 | HH59: 23974
A60: Proving | B60: 1610 | C60: Extending On-Street Parking Fees / Permits | E60: Planned | F60: Highways | G60: Adoption / Implementation [75] | H60: 45 | I60: 60 | J60: High [25] | K60: Very High [100] | L60: High [75] | M60: Very Low [0] | N60: Not Applicable [-1] | O60: Very Low [100] | P60: Very High [0] | Q60: Medium [50] | R60: Low [75] | S60: Limited Cases / Data [25] | T60: Not Applicable [-1] | U60: CER | AF60: -2 | AG60: -5 | AH60: 0 | AI60: -3 | AJ60: -4 | AK60: 268-334 [5] | AL60: 141-160 [6] | AM60: 92-100 [9] | AN60: 54-58 [7] | AO60: >1065 [10] | AP60: 28.88888889 | AQ60: 135-200 [3] | AR60: 0-22 [1] | AS60: 92-100 [9] | AT60: 36-41 [4] | AU60: 444-532 [6] | AV60: 1368000 | AZ60: 1900000 | BA60: 1520000 | BB60: 1330000 | BC60: 1140000 | BD60: 950000 | BI60: 1900000 | BJ60: 3420000 | BK60: 4750000 | BL60: 5890000 | BM60: 6840000 | BN60: 1300000 | BO60: 82228 | BP60: 15977 | BQ60: 0 | BR60: 5025 | BS60: 55125 | BT60: 1.024573869 | BU60: 0 | BV60: 0 | BX60: 1900000 | BY60: 1900000 | BZ60: 1900000 | CA60: 1900000 | CB60: 1900000 | DH60: 1900000 | DI60: 1520000 | DJ60: 1330000 | DK60: 1140000 | DL60: 950000 | DM60: 1900000 | DN60: 1520000 | DO60: 1330000 | DP60: 1140000 | DQ60: 950000 | DS60: 1900000 | DT60: 1900000 | DU60: 1900000 | DV60: 1900000 | DW60: 1900000 | DX60: 0.9502923977 | DY60: REV | DZ60: 1 | EA60: 0.8 | EB60: 0.7 | EC60: 0.6 | ED60: 0.5 | EN60: -ve Low [-40] | EO60: High [100] | EP60: Medium [66] | EQ60: -ve High [-100] | ER60: -26.4 | ES60: -ve Low [-40] | ET60: High [100] | EU60: High [100] | EV60: -ve Medium [-60] | EW60: -40 | EX60: -ve High [-100] | EY60: High [100] | EZ60: High [100] | FA60: None [0] | FB60: -100 | FC60: +ve Low [+40] | FD60: High [100] | FE60: Medium [66] | FF60: -ve Medium [-60] | FG60: 26.4 | FH60: +ve Low [+40] | FI60: Low [33] | FJ60: None [0] | FK60: +ve Low [+40] | FL60: 0 | FM60: -28 | FN60: 8 | FO60: 0 | FP60: 26.66666667 | FQ60: 33.33333333 | FR60: -20 | FS60: 0 | FT60: +ve High [+100] | FU60: None [0] | FV60: +ve High [+100] | FW60: -ve Medium [-60] | FX60: None [0] | FY60: -ve Low [-40] | FZ60: +ve Low [+40] | GA60: +ve High [+100] | GB60: +ve High [+100] | GC60: +ve Medium [+60] | GD60: -ve Medium [-60] | GE60: +ve Low [+40] | GF60: -ve High [-100] | GG60: -ve High [-100] | GH60: -ve Medium [-60] | GI60: -15593.8 | GJ60: -2781 | GK60: -15710 | GL60: -25902 | GM60: -11666 | GN60: -21910 | GO60: 0 | GP60: 2311 | GQ60: 0 | GR60: 0 | GS60: 566 | GT60: 0 | GU60: 0 | GV60: 0 | GW60: 6874 | GX60: 0 | GY60: 0 | GZ60: 8059 | HA60: 11524 | HB60: 0 | HC60: 0 | HD60: 2781 | HE60: 5340 | HF60: 14378 | HG60: 18540 | HH60: 21344
A61: Proving | B61: 1620 | C61: Car Club Permits / Dockless Bikes | E61: Planned | F61: Transport | G61: Trial (Limited Scope) [50] | H61: 45.83333333 | I61: 70 | J61: Not Applicable [-1] | K61: High [75] | L61: High [75] | M61: Very High [100] | N61: Very High [100] | O61: Very High [0] | P61: Very High [0] | Q61: Medium [50] | R61: Medium [50] | S61: Many Cases / Mixed Results [75] | T61: Available - Decline [50] | U61: SUS,AQI | V61: 17000 | W61: 17000 | X61: 17000 | Y61: 17000 | Z61: 17000 | AF61: 1 | AG61: 0 | AH61: -3 | AI61: 0 | AJ61: 6 | AK61: 468-534 [8] | AL61: 141-160 [6] | AM61: >101 [10] | AN61: >71 [10] | AO61: 178-266 [3] | AP61: 28.88888889 | AQ61: 535-600 [9] | AR61: 141-160 [6] | AS61: 76-83 [7] | AT61: >71 [10] | AU61: 888- 1064 [9] | AV61: -17000 | AZ61: 0 | BA61: 0 | BB61: 0 | BC61: 0 | BD61: 0 | BI61: -17000 | BJ61: -34000 | BK61: -51000 | BL61: -68000 | BM61: -85000 | BN61: 93000 | BO61: 56825 | BP61: 13305 | BQ61: 0 | BR61: 5274 | BS61: 26414 | BT61: 1.098751363 | BU61: 0 | BV61: 0 | BX61: 0 | BY61: 0 | BZ61: 0 | CA61: 0 | CB61: 0 | DH61: -17000 | DI61: -17000 | DJ61: -17000 | DK61: -17000 | DL61: -17000 | DM61: -17000 | DN61: -17000 | DO61: -17000 | DP61: -17000 | DQ61: -17000 | DX61: -5.470588235 | DY61: CER | DZ61: 1 | EA61: 0.8 | EB61: 0.7 | EC61: 0.6 | ED61: 0.5 | EN61: None [0] | EO61: Low [33] | EP61: Low [33] | EQ61: -ve Low [-40] | ER61: 0 | ES61: -ve Medium [-60] | ET61: Medium [66] | EU61: Medium [66] | EV61: +ve Medium [+60] | EW61: -26.136 | EX61: None [0] | EY61: Medium [66] | EZ61: Low [33] | FA61: None [0] | FB61: 0 | FC61: -ve Low [-40] | FD61: Low [33] | FE61: Medium [66] | FF61: -ve High [-100] | FG61: -8.712 | FH61: +ve Medium [+60] | FI61: High [100] | FJ61: High [100] | FK61: +ve Low [+40] | FL61: 60 | FM61: 5.0304 | FN61: 20 | FO61: 53.33333333 | FP61: 20 | FQ61: 20 | FR61: 13.33333333 | FS61: -6.666666667 | FT61: None [0] | FU61: +ve Low [+40] | FV61: +ve Medium [+60] | FW61: -ve Medium [-60] | FX61: None [0] | FY61: +ve Medium [+60] | FZ61: -ve Low [-40] | GA61: +ve Medium [+60] | GB61: +ve Low [+40] | GC61: -ve Medium [-60] | GD61: +ve High [+100] | GE61: +ve Medium [+60] | GF61: -ve Medium [-60] | GG61: +ve Medium [+60] | GH61: +ve Low [+40] | GI61: -12109.2 | GJ61: -2625 | GK61: -815 | GL61: -14364 | GM61: -14550 | GN61: -28192 | GO61: 0 | GP61: 0 | GQ61: 0 | GR61: 0 | GS61: 4733 | GT61: 0 | GU61: 0 | GV61: 0 | GW61: 2123 | GX61: 0 | GY61: 0 | GZ61: 0 | HA61: 0 | HB61: 0 | HC61: 0 | HD61: 2625 | HE61: 815 | HF61: 14364 | HG61: 16673 | HH61: 23459
A62: Proving | B62: 1630 | C62: Selling Concessions to Traders (Laybys, Car Parks, Park-and-Ride and Estates) | E62: Planned | F62: Highways | G62: Design / Development [25] | H62: 50.83333333 | I62: 33.33333333 | J62: Very High [0] | K62: Very Low [0] | L62: High [75] | M62: Very Low [0] | N62: Very High [100] | O62: High [25] | P62: Very Low [100] | Q62: Low [25] | R62: Very High [0] | S62: Some Cases / Good Results [75] | T62: Available - New (Standardised) [80] | U62: ECD,CRY | V62: 18000 | W62: 18000 | X62: 18000 | Y62: 18000 | Z62: 18000 | AF62: 1 | AG62: 4 | AH62: 2 | AI62: -6 | AJ62: 1 | AK62: 68-134 [2] | AL62: 141-160 [6] | AM62: 0-16 [1] | AN62: 65-70 [9] | AO62: 533-710 [7] | AP62: 55.55555556 | AQ62: 135-200 [3] | AR62: >241 [10] | AS62: 34-50 [3] | AT62: 24-35 [3] | AU62: 711- 887 [8] | AV62: 226800 | AZ62: 340000 | BA62: 272000 | BB62: 238000 | BC62: 204000 | BD62: 170000 | BI62: 322000 | BJ62: 576000 | BK62: 796000 | BL62: 982000 | BM62: 1134000 | BN62: 77000 | BO62: 580 | BP62: 18287 | BQ62: 0 | BR62: 0 | BS62: 410 | BT62: No Payback | BU62: 0 | BV62: 0 | BX62: 340000 | BY62: 340000 | BZ62: 340000 | CA62: 340000 | CB62: 340000 | DH62: 322000 | DI62: 254000 | DJ62: 220000 | DK62: 186000 | DL62: 152000 | DM62: 322000 | DN62: 254000 | DO62: 220000 | DP62: 186000 | DQ62: 152000 | DS62: 340000 | DT62: 340000 | DU62: 340000 | DV62: 340000 | DW62: 340000 | DX62: 0.3395061728 | DY62: REV | DZ62: 1 | EA62: 0.8 | EB62: 0.7 | EC62: 0.6 | ED62: 0.5 | EN62: -ve Medium [-60] | EO62: None [0] | EP62: Low [33] | EQ62: -ve High [-100] | ER62: 0 | ES62: -ve Medium [-60] | ET62: High [100] | EU62: None [0] | EV62: -ve Medium [-60] | EW62: 0 | EX62: +ve Medium [+60] | EY62: High [100] | EZ62: Medium [66] | FA62: +ve Low [+40] | FB62: 39.6 | FC62: -ve Low [-40] | FD62: None [0] | FE62: Low [33] | FF62: +ve High [+100] | FG62: 0 | FH62: -ve Low [-40] | FI62: None [0] | FJ62: Low [33] | FK62: -ve High [-100] | FL62: 0 | FM62: 7.92 | FN62: -10.66666667 | FO62: -53.33333333 | FP62: -53.33333333 | FQ62: -20 | FR62: -13.33333333 | FS62: 86.66666667 | FT62: None [0] | FU62: -ve Medium [-60] | FV62: -ve Medium [-60] | FW62: +ve Medium [+60] | FX62: +ve Medium [+60] | FY62: -ve Medium [-60] | FZ62: -ve High [-100] | GA62: +ve Medium [+60] | GB62: None [0] | GC62: +ve High [+100] | GD62: -ve High [-100] | GE62: None [0] | GF62: -ve Medium [-60] | GG62: -ve High [-100] | GH62: +ve High [+100] | GI62: 310 | GJ62: 310 | GK62: 310 | GL62: 310 | GM62: 310 | GN62: 310 | GO62: 0 | GP62: 0 | GQ62: 0 | GR62: 0 | GS62: 0 | GT62: 310 | GU62: 310 | GV62: 310 | GW62: 310 | GX62: 310 | GY62: 0 | GZ62: 0 | HA62: 0 | HB62: 0 | HC62: 0 | HD62: 0 | HE62: 0 | HF62: 0 | HG62: 0 | HH62: 0
A63: Proving | B63: 1640 | C63: On-Street License (for Cafés and Street Traders) | E63: Planned | F63: Highways | G63: Design / Development [25] | H63: 31 | I63: 55 | J63: Not Applicable [-1] | K63: High [75] | L63: Medium [50] | M63: Very Low [0] | N63: Very High [100] | O63: Medium [50] | P63: Not Applicable [-1] | Q63: Low [25] | R63: Low [75] | S63: No Case Studies [0] | T63: Technology Demonstrator [30] | U63: ECD,CRY | V63: 18000 | W63: 18000 | X63: 18000 | Y63: 18000 | Z63: 18000 | AF63: 5 | AG63: 1 | AH63: -5 | AI63: 4 | AJ63: 4 | AK63: 68-134 [2] | AL63: 188-213 [9] | AM63: 76-83 [7] | AN63: 42-47 [5] | AO63: 89-177 [2] | AP63: 55.55555556 | AQ63: 401-467 [7] | AR63: >241 [10] | AS63: 17-33 [2] | AT63: 65-70 [9] | AU63: 444-532 [6] | AV63: 280800 | AZ63: 415000 | BA63: 332000 | BB63: 290500 | BC63: 249000 | BD63: 207500 | BI63: 397000 | BJ63: 711000 | BK63: 983500 | BL63: 1214500 | BM63: 1404000 | BN63: 78000 | BO63: 70594 | BP63: 11263 | BQ63: 0 | BR63: 6643 | BS63: 51629 | BT63: 0.7270297835 | BU63: 0 | BV63: 0 | BX63: 415000 | BY63: 415000 | BZ63: 415000 | CA63: 415000 | CB63: 415000 | DH63: 397000 | DI63: 314000 | DJ63: 272500 | DK63: 231000 | DL63: 189500 | DM63: 397000 | DN63: 314000 | DO63: 272500 | DP63: 231000 | DQ63: 189500 | DS63: 415000 | DT63: 415000 | DU63: 415000 | DV63: 415000 | DW63: 415000 | DX63: 0.2777777778 | DY63: REV | DZ63: 1 | EA63: 0.8 | EB63: 0.7 | EC63: 0.6 | ED63: 0.5 | EN63: +ve Low [+40] | EO63: Low [33] | EP63: High [100] | EQ63: None [0] | ER63: 13.2 | ES63: -ve Low [-40] | ET63: Low [33] | EU63: Medium [66] | EV63: -ve Medium [-60] | EW63: -8.712 | EX63: +ve Medium [+60] | EY63: Medium [66] | EZ63: Medium [66] | FA63: +ve Low [+40] | FB63: 26.136 | FC63: -ve High [-100] | FD63: None [0] | FE63: High [100] | FF63: -ve Medium [-60] | FG63: 0 | FH63: +ve High [+100] | FI63: None [0] | FJ63: Low [33] | FK63: -ve Low [-40] | FL63: 0 | FM63: 6.1248 | FN63: -24 | FO63: 33.33333333 | FP63: -73.33333333 | FQ63: 13.33333333 | FR63: -46.66666667 | FS63: -46.66666667 | FT63: -ve Low [-40] | FU63: -ve Medium [-60] | FV63: -ve High [-100] | FW63: None [0] | FX63: None [0] | FY63: +ve High [+100] | FZ63: -ve High [-100] | GA63: +ve High [+100] | GB63: -ve High [-100] | GC63: -ve Low [-40] | GD63: +ve Low [+40] | GE63: -ve Medium [-60] | GF63: +ve Low [+40] | GG63: -ve Low [-40] | GH63: -ve High [-100] | GI63: -15491.8 | GJ63: -16564 | GK63: -7080 | GL63: -21460 | GM63: -12669 | GN63: -19686 | GO63: 0 | GP63: 671 | GQ63: 0 | GR63: 0 | GS63: 0 | GT63: 0 | GU63: 0 | GV63: 0 | GW63: 4115 | GX63: 7264 | GY63: 11471 | GZ63: 0 | HA63: 9848 | HB63: 0 | HC63: 0 | HD63: 5093 | HE63: 6409 | HF63: 11612 | HG63: 16784 | HH63: 26950
A64: Proving | B64: 1650 | C64: Downward Devolution (Agency Agreements & DTP Engagement) | E64: Planned | F64: Highways | G64: Adoption / Implementation [75] | H64: 32 | I64: 50 | J64: Very High [0] | K64: Very Low [0] | L64: High [75] | M64: High [75] | N64: Medium [50] | O64: Very Low [100] | P64: Low [75] | Q64: Very Low [0] | R64: Not Applicable [-1] | S64: No Case Studies [0] | T64: Decommissioned / Superseded [10] | U64: ECD,CRD,CRY | AF64: -6 | AG64: -3 | AH64: 4 | AI64: 1 | AJ64: 5 | AK64: 535-600 [9] | AL64: 141-160 [6] | AM64: 17-33 [2] | AN64: 59-64 [9] | AO64: 267-354 [4] | AP64: 44.44444444 | AQ64: 135-200 [3] | AR64: 67-100 [3] | AS64: 67-75 [6] | AT64: >71 [10] | AU64: 888- 1064 [9] | AV64: 396000 | AZ64: 550000 | BA64: 440000 | BB64: 385000 | BC64: 330000 | BD64: 275000 | BI64: 550000 | BJ64: 990000 | BK64: 1375000 | BL64: 1705000 | BM64: 1980000 | BN64: 290000 | BO64: 56010 | BP64: 6877 | BQ64: 0 | BR64: 4699 | BS64: 27773 | BT64: 0.4814275513 | BU64: 0 | BV64: 0 | BX64: 550000 | BY64: 550000 | BZ64: 550000 | CA64: 550000 | CB64: 550000 | DH64: 550000 | DI64: 440000 | DJ64: 385000 | DK64: 330000 | DL64: 275000 | DM64: 550000 | DN64: 440000 | DO64: 385000 | DP64: 330000 | DQ64: 275000 | DS64: 550000 | DT64: 550000 | DU64: 550000 | DV64: 550000 | DW64: 550000 | DX64: 0.7323232323 | DY64: REV | DZ64: 1 | EA64: 0.8 | EB64: 0.7 | EC64: 0.6 | ED64: 0.5 | EN64: +ve Medium [+60] | EO64: Medium [66] | EP64: None [0] | EQ64: None [0] | ER64: 0 | ES64: -ve High [-100] | ET64: Medium [66] | EU64: High [100] | EV64: -ve Medium [-60] | EW64: -66 | EX64: -ve Medium [-60] | EY64: High [100] | EZ64: None [0] | FA64: -ve Medium [-60] | FB64: 0 | FC64: -ve Low [-40] | FD64: None [0] | FE64: Low [33] | FF64: -ve Medium [-60] | FG64: 0 | FH64: -ve High [-100] | FI64: Medium [66] | FJ64: Medium [66] | FK64: -ve Medium [-60] | FL64: -43.56 | FM64: -21.912 | FN64: -21.33333333 | FO64: -20 | FP64: 20 | FQ64: -66.66666667 | FR64: -46.66666667 | FS64: 6.666666667 | FT64: -ve Medium [-60] | FU64: +ve Medium [+60] | FV64: None [0] | FW64: None [0] | FX64: +ve Medium [+60] | FY64: None [0] | FZ64: +ve Low [+40] | GA64: -ve High [-100] | GB64: -ve Low [-40] | GC64: None [0] | GD64: None [0] | GE64: -ve Low [-40] | GF64: -ve High [-100] | GG64: -ve High [-100] | GH64: -ve Low [-40] | GI64: -14284.6 | GJ64: -10264 | GK64: -7648 | GL64: -12477 | GM64: -16408 | GN64: -24626 | GO64: 0 | GP64: 0 | GQ64: 0 | GR64: 0 | GS64: 0 | GT64: 4200 | GU64: 3416 | GV64: 0 | GW64: 0 | GX64: 0 | GY64: 11592 | GZ64: 0 | HA64: 0 | HB64: 0 | HC64: 0 | HD64: 2872 | HE64: 11064 | HF64: 12477 | HG64: 16408 | HH64: 24626
A65: Proving | B65: 1660 | C65: Crowd-Funded Schemes | E65: Planned | F65: Highways | G65: Identification [0] | H65: 22 | I65: 45 | J65: Very High [0] | K65: Not Applicable [-1] | L65: Very High [100] | M65: High [75] | N65: Very Low [0] | O65: Medium [50] | P65: Not Applicable [-1] | Q65: Low [25] | R65: Medium [50] | S65: Limited Cases / Data [25] | T65: Decommissioned / Superseded [10] | U65: CRD,CRY,COF | AF65: 7 | AG65: 0 | AH65: 7 | AI65: -6 | AJ65: -9 | AK65: 0-67 [1] | AL65: 188-213 [9] | AM65: 34-50 [3] | AN65: 54-58 [7] | AO65: >1065 [10] | AP65: 44.44444444 | AQ65: 468-534 [8] | AR65: 188-213 [9] | AS65: >101 [10] | AT65: 0-11 [1] | AU65: 0-99 [1] | AV65: 216000 | AZ65: 300000 | BA65: 240000 | BB65: 210000 | BC65: 180000 | BD65: 150000 | BI65: 300000 | BJ65: 540000 | BK65: 750000 | BL65: 930000 | BM65: 1080000 | BN65: 12000 | BO65: 84911 | BP65: 18036 | BQ65: 0 | BR65: 1178 | BS65: 50830 | BT65: 1.163342708 | BU65: 0 | BV65: 42910 | BX65: 300000 | BY65: 300000 | BZ65: 300000 | CA65: 300000 | CB65: 300000 | DH65: 300000 | DI65: 240000 | DJ65: 210000 | DK65: 180000 | DL65: 150000 | DM65: 300000 | DN65: 240000 | DO65: 210000 | DP65: 180000 | DQ65: 150000 | DS65: 300000 | DT65: 300000 | DU65: 300000 | DV65: 300000 | DW65: 300000 | DX65: 0.05555555556 | DY65: REV | DZ65: 1 | EA65: 0.8 | EB65: 0.7 | EC65: 0.6 | ED65: 0.5 | EN65: +ve Low [+40] | EO65: None [0] | EP65: None [0] | EQ65: -ve Medium [-60] | ER65: 0 | ES65: -ve Medium [-60] | ET65: Medium [66] | EU65: Low [33] | EV65: +ve High [+100] | EW65: -13.068 | EX65: +ve Low [+40] | EY65: Low [33] | EZ65: High [100] | FA65: +ve Low [+40] | FB65: 13.2 | FC65: +ve Low [+40] | FD65: Low [33] | FE65: None [0] | FF65: +ve Low [+40] | FG65: 0 | FH65: -ve Low [-40] | FI65: Medium [66] | FJ65: None [0] | FK65: +ve Medium [+60] | FL65: 0 | FM65: 0.0264 | FN65: 12 | FO65: 20 | FP65: -13.33333333 | FQ65: 13.33333333 | FR65: 53.33333333 | FS65: -13.33333333 | FT65: -ve Medium [-60] | FU65: -ve Low [-40] | FV65: -ve Medium [-60] | FW65: +ve Medium [+60] | FX65: +ve Medium [+60] | FY65: +ve Medium [+60] | FZ65: None [0] | GA65: None [0] | GB65: None [0] | GC65: -ve High [-100] | GD65: +ve Medium [+60] | GE65: None [0] | GF65: +ve High [+100] | GG65: +ve High [+100] | GH65: None [0] | GI65: -15503.6 | GJ65: -13781 | GK65: -1075 | GL65: -21718 | GM65: -13227 | GN65: -27717 | GO65: 0 | GP65: 0 | GQ65: 1097 | GR65: 2858 | GS65: 0 | GT65: 0 | GU65: 0 | GV65: 866 | GW65: 6217 | GX65: 0 | GY65: 9460 | GZ65: 0 | HA65: 8189 | HB65: 0 | HC65: 0 | HD65: 4321 | HE65: 1075 | HF65: 13298 | HG65: 16586 | HH65: 27717
